{"text_format":"1","workbook":"xlsx","n_sheets":24,"sheets":["XA1KIM","XIA1","XIA2","XIIA1","XIIA2","XIIA1 (2)","XIIA2 (2)","masternilai_10.06.22","dataumum","post","semester","absen","sikap","laporan","cover","rem","jurnalmengajar","jurnalsikap","pengetahuan","keterampilan","rekap","rapor","daftarhadir","blankonilai"],"not_rendered":{"charts":0,"images":11,"macros":1,"external_links":0,"defined_names":16,"comments":1,"pivot_tables":0},"unopened":[],"bounds":{"document_bytes":16777216,"sheet_cells":100000,"rows_first":2000,"rows_last":500,"rows_between":2000,"halvings":0,"cell_chars":16384,"cell_head_chars":4096},"cells_cut":0,"cells_raw":0,"read":"whole","date_system":"1900"}

{"sheet":"XA1KIM","index":0,"n_rows":24,"n_cols":19,"rows_kept":24,"cut":false,"hidden":true,"merged":[]}
["NO","NISN","NAMA","L/P","TTL","KELAS","P5","P6","P7","P8","P11","P12","P14"]
[1,49722638,"Ajeng Septiani","P","Tasikmalaya,09 September 2004","Kelas X-KELAS 10 MIPA 1",78,78,49,100,75,null,null,null,"H+1","96-100","Jumat"]
[2,44978477,"AJRIL SIDIK ALBAR","L","Tasikmalaya,09 September 2004","Kelas X-KELAS 10 MIPA 1",0,0,0,0,null,null,null,null,"H+2","91-95","Sabtu"]
[3,45016734,"Alvin Iqbal Rifa'i","L","Tasikmalaya,27 September 2004","Kelas X-KELAS 10 MIPA 1",0,0,0,0,null,null,null,null,"H+3","86-90","Senin"]
[4,51056613,"Ari Hamdani Muslim","L","Tasikmalaya,29 Juli 2005","Kelas X-KELAS 10 MIPA 1",0,0,0,0,null,null,null,null,"H+4","81-85","Selasa"]
[5,51096729,"Bentar Rio Salasa","L","TASIKMALAYA,01 Februari 2005","Kelas X-KELAS 10 MIPA 1",0,0,0,0,null,null,null,null,"H+5","76-80","Rabu"]
[6,45016728,"Evan Maslul H","L","Tasikmalaya,10 Juli 2004","Kelas X-KELAS 10 MIPA 1",0,0,0,0]
[7,56869160,"Hani Amalia","P","Tasikmalaya,03 Mei 2005","Kelas X-KELAS 10 MIPA 1",0,100,98,100,null,null,null,null,"P5","Soal biloks dan persamaan redoks"]
[8,45422166,"Icha","P","Tasikmalaya,30 Maret 2004","Kelas X-KELAS 10 MIPA 1",0,0,0,0,null,null,null,null,"P6","Soal reaksi redoks (4.9)"]
[9,45016720,"Jeni Alviansyah","L","Tasikmalaya,22 April 2004","Kelas X-KELAS 10 MIPA 1",0,0,0,0,null,null,null,null,"P7","Soal tatanama"]
[10,57530716,"LatifatuL Musyarafah","P","TASIKMALAYA,18 Oktober 2005","Kelas X-KELAS 10 MIPA 1",0,100,97,100,null,null,null,null,"P8","Soal hukum dasar"]
[11,51227962,"Mufti Ridwan","L","Tasikmalaya,07 Januari 2005","Kelas X-KELAS 10 MIPA 1",0,0,0,0,null,null,null,null,"P9","Soal konsep mol"]
[12,45016716,"Muhamad Imam Nur Waham","L","TASIKMALAYA,07 Februari 2004","Kelas X-KELAS 10 MIPA 1",0,0,0,0,null,null,null,null,"P12","Soal stoikiometri persamaan reaksi"]
[13,51977588,"Nayna Nur Azizah","P","Bandung,15 Februari 2005","Kelas X-KELAS 10 MIPA 1",0,0,0,0,null,null,null,null,"P14","Soal pereaksi pembatas"]
[14,48170027,"Putri Ambarwati","P","Tasikmalaya,15 September 2005","Kelas X-KELAS 10 MIPA 1",78,90,98,95,100,95]
[15,45016787,"Saepul Hakim Mubarok","L","Tasikmalaya,10 Mei 2004","Kelas X-KELAS 10 MIPA 1",0,0,0,0,null,null,null,null,"Jml siswa x jml tugas",null,null,":",{"$f":"COUNT(G2:K24)","v":95}]
[16,51096762,"Sarah Tri Apriliani","P","Tasikmalaya,01 April 2005","Kelas X-KELAS 10 MIPA 1",0,85,97,95,null,null,null,null,"Jml siswa mengumpulkan",null,null,":",{"$f":"S16-S18","v":38}]
[17,56558314,"Sena Tianti","P","Tasikmalaya,05 Juli 2005","Kelas X-KELAS 10 MIPA 1",0,85,98,100,null,null,null,null,"Jml siswa belum mengumpulkan",null,null,":",{"$f":"COUNTIF(G2:K24,0)","v":57}]
[18,45016804,"Shen Shen Nurulaini","P","Tasikmalaya,29 Maret 2004","Kelas X-KELAS 10 MIPA 1",79,100,98,100,null,100,null,null,"% siswa mengumpulkan",null,null,":",{"$f":"(S17/S16)*100%","v":0.4}]
[19,41525058,"Tariska Desri Wahyuni","P","Tasikmalaya,15 Desember 2004","Kelas X-KELAS 10 MIPA 1",78,80,98,90,100,95,100,null,"Jml siswa",null,null,":",{"$f":"COUNT(A2:A24)","v":23}]
[20,45439866,"Tendi Fortuna Arijwan","L","Tasikmalaya,08 Juli 2004","Kelas X-KELAS 10 MIPA 1",0,0,0,0,null,null,null,null,"L",null,null,":",{"$f":"COUNTIF(D2:D24,\"L\")","v":11}]
[21,45016812,"Tuti Zakiah","P","Tasikmalaya,10 Juli 2004","Kelas X-KELAS 10 MIPA 1",0,90,90,95,null,null,null,null,"P",null,null,":",{"$f":"S20-S21","v":12}]
[22,38470439,"Yasir Mukhlis","L","Tasikmalaya,23 Desember 2003","Kelas X-KELAS 10 MIPA 1",0,0,0,0]
[23,51096775,"Zia Amallia Khusnul Aini","P","TASIKMALAYA,12 Mei 2005","Kelas X-KELAS 10 MIPA 1",80,100,98,100]

{"sheet":"XIA1","index":1,"n_rows":24,"n_cols":16,"rows_kept":24,"cut":false,"hidden":true,"merged":[]}
["NO","NISN","NAMA","L/P","TTL","KELAS","P5","P6","P7","P8"]
[1,35232165,"AHMAD JAMALUDIN","L","Tasikmalaya,19 September 2003","Kelas XI-KELAS 11 MIPA 1",0,0,0,0,null,"H+1","96-100","Jumat"]
[2,34567713,"ALVINA DAMAYANTI","P","Tasikmalaya,03 Desember 2003","Kelas XI-KELAS 11 MIPA 1",90,100,90,90,null,"H+2","91-95","Sabtu"]
[3,35232115,"AYU NURAENI","P","Tasikmalaya,15 Mei 2003","Kelas XI-KELAS 11 MIPA 1",85,90,81,75,null,"H+3","86-90","Senin"]
[4,28331746,"BUDI RAHAYU SETIAWAN","L","Tasikmalaya,08 April 2002","Kelas XI-KELAS 11 MIPA 1",0,0,0,0,null,"H+4","81-85","Selasa"]
[5,35231622,"CUCU LIDIANA AGUSTIN","P","Tasikmalaya,02 Agustus 2003","Kelas XI-KELAS 11 MIPA 1",0,0,0,30,null,"H+5","76-80","Rabu"]
[6,42510428,"EUIS WARDATUL APRIANI","P","Tasikmalaya,01 April 2004","Kelas XI-KELAS 11 MIPA 1",0,0,0,0]
[7,35232506,"LENI LILIANI","P","Tasikmalaya,19 April 2003","Kelas XI-KELAS 11 MIPA 1",75,100,88,100,null,"P5","Soal kekuatan asam basa"]
[8,35232811,"LILIK SUCI ASIH","P","Tasikmalaya,04 Mei 2003","Kelas XI-KELAS 11 MIPA 1",88,85,0,60,null,"P6","Soal pH"]
[9,36355200,"MOH. DZIKRI ZAELANI","L","Tasikmalaya,08 September 2003","Kelas XI-KELAS 11 MIPA 1",0,0,90,75,null,"P7","Soal indikator asam basa + praktik selfie"]
[10,37553766,"NESVI KANIZA RAHMA","P","Tasikmalaya,06 September 2003","Kelas XI-KELAS 11 MIPA 1",65,90,81,85,null,"P8","UH"]
[11,35231329,"NURKILAH OKTAVIANI","P","Tasikmalaya,04 Oktober 2003","Kelas XI-KELAS 11 MIPA 1",95,95,81,40]
[12,35231814,"NURUL ISNEN","L","Tasikmalaya,05 Mei 2003","Kelas XI-KELAS 11 MIPA 1",0,0,90,0,null,"Jml siswa x jml tugas",null,null,":",{"$f":"COUNT(G2:J24)","v":92}]
[13,40979233,"PIPIN NURUL PAIDAH","P","Tasikmalaya,21 Februari 2004","Kelas XI-KELAS 11 MIPA 1",82,90,90,65,null,"Jml siswa mengumpulkan",null,null,":",{"$f":"P13-P15","v":55}]
[14,48477106,"RIFQI FEBRIANSYAH","L","Tasikmalaya,18 November 2004","Kelas XI-KELAS 11 MIPA 1",0,0,0,0,null,"Jml siswa belum mengumpulkan",null,null,":",{"$f":"COUNTIF(G2:J24,0)","v":37}]
[15,35232513,"SAHRUL GUNAWAN","L","Tasikmalaya,03 Juni 2003","Kelas XI-KELAS 11 MIPA 1",0,0,90,0,null,"% siswa mengumpulkan",null,null,":",{"$f":"(P14/P13)*100%","v":0.59782608695652173}]
[16,28331884,"SAHRUL MUBAROK","L","Tasikmalaya,25 November 2002","Kelas XI-KELAS 11 MIPA 1",0,0,0,35,null,"Jml siswa",null,null,":",{"$f":"COUNT(A2:A24)","v":23}]
[17,35231160,"SILVI","P","Tasikmalaya,08 Desember 2003","Kelas XI-KELAS 11 MIPA 1",0,0,0,0,null,"L",null,null,":",{"$f":"COUNTIF(D2:D24,\"L\")","v":8}]
[18,30220914,"SIPA MUTMAINAH","P","Tasikmalaya,20 Mei 2003","Kelas XI-KELAS 11 MIPA 1",85,100,100,95,null,"P",null,null,":",{"$f":"P17-P18","v":15}]
[19,40978671,"TRIFANNY KHOERUN NISA","P","Tasikmalaya,14 April 2004","Kelas XI-KELAS 11 MIPA 1",70,100,88,95]
[20,35317079,"VIA NURAPIPAH","P","Tasikmalaya,24 April 2003","Kelas XI-KELAS 11 MIPA 1",90,100,81,95]
[21,35232482,"VIRNA FIANARITA RAHMAWATI","P","Tasikmalaya,12 Oktober 2003","Kelas XI-KELAS 11 MIPA 1",75,100,90,90]
[22,3039285869,"YUDA NUGRAHA","L","Tasikmalaya,23 Mei 2003","Kelas XI-KELAS 11 MIPA 1",95,0,0,80]
[23,35231377,"YULIA NURFATWA","P","Tasikmalaya,01 Desember 2003","Kelas XI-KELAS 11 MIPA 1",82,90,80,25]

{"sheet":"XIA2","index":2,"n_rows":25,"n_cols":17,"rows_kept":25,"cut":false,"hidden":true,"merged":[]}
["NO","NISN","NAMA","L/P","TTL","KELAS","P5","P6","P7","P8","P9"]
[1,34449777,"ADE IRNA SITI NURROHMAH","P","Tasikmalaya,25 Agustus 2003","Kelas XI-KELAS 11 MIPA 2",0,0,0,0,null,null,"H+1","96-100","Jumat"]
[2,40977973,"ALYA AULIA ANISSA","P","Tasikmalaya,13 Januari 2005","Kelas XI-KELAS 11 MIPA 2",93,75,0,0,null,null,"H+2","91-95","Sabtu"]
[3,35232114,"ANISA RAHMAN","P","Tasikmalaya,09 April 2003","Kelas XI-KELAS 11 MIPA 2",0,0,0,15,null,null,"H+3","86-90","Senin"]
[4,40977792,"ANISA USSALAMAH","P","Tasikmalaya,25 Juni 2004","Kelas XI-KELAS 11 MIPA 2",90,100,0,40,null,null,"H+4","81-85","Selasa"]
[5,226505005,"DIAN AULIA HAYATI","P","Tasikmalaya,14 April 2006","Kelas XI-KELAS 11 MIPA 2",0,0,0,0,null,null,"H+5","76-80","Rabu"]
[6,40978375,"DINA NURAISYAH","P","Tasikmalaya,26 Maret 2004","Kelas XI-KELAS 11 MIPA 2",0,0,0,0]
[7,40977997,"HALI HUSNI MUBAROK","L","Tasikmalaya,06 Februari 2004","Kelas XI-KELAS 11 MIPA 2",0,0,0,0,null,null,"P5","Soal kekuatan asam basa"]
[8,40977823,"ILA SULPIANA","P","Tasikmalaya,09 Februari 2004","Kelas XI-KELAS 11 MIPA 2",0,0,0,0,null,null,"P6","Soal pH"]
[9,42510518,"IRMA FATHUL BARIYAH","P","Tasikmalaya,21 Januari 2004","Kelas XI-KELAS 11 MIPA 2",0,0,0,0,null,null,"P7","Soal indikator asam basa + praktik selfie"]
[10,28715374,"JAEN","L","Tasikmalaya,09 September 2002","Kelas XI-KELAS 11 MIPA 2",0,0,0,0,null,null,"P8","UH"]
[11,35231365,"MAHMUDIN","L","Tasikmalaya,13 Januari 2003","Kelas XI-KELAS 11 MIPA 2",0,0,0,0,null,null,"P9","Soal hidrolisis garam"]
[12,35231150,"MIFTAH PARID","L","Tasikmalaya,26 Februari 2003","Kelas XI-KELAS 11 MIPA 2",0,0,0,15]
[13,28331885,"MUHAEMIN","L","Tasikmalaya,28 November 2002","Kelas XI-KELAS 11 MIPA 2",0,0,0,0,null,null,"Jml siswa x jml tugas",null,null,":",{"$f":"COUNT(G2:K25)","v":96}]
[14,50438820,"NAILA NURILMI","P","Tasikmalaya,13 Januari 2005","Kelas XI-KELAS 11 MIPA 2",0,0,0,0,null,null,"Jml siswa mengumpulkan",null,null,":",{"$f":"Q14-Q16","v":27}]
[15,35232168,"PIA MARSELA","P","Tasikmalaya,07 November 2003","Kelas XI-KELAS 11 MIPA 2",95,90,81,65,null,null,"Jml siswa belum mengumpulkan",null,null,":",{"$f":"COUNTIF(G2:K25,0)","v":69}]
[16,35741857,"RIDA NURDIANA","P","Tasikmalaya,20 Januari 2004","Kelas XI-KELAS 11 MIPA 2",0,0,0,55,null,null,"% siswa mengumpulkan",null,null,":",{"$f":"(Q15/Q14)*100%","v":0.28125}]
[17,32107831,"RIFAN ARDIANSYAH","L","Tasikmalaya,26 Oktober 2003","Kelas XI-KELAS 11 MIPA 2",0,0,0,0,null,null,"Jml siswa",null,null,":",{"$f":"COUNT(A2:A25)","v":24}]
[18,40978078,"SANDI ALPARIZI","L","Tasikmalaya,02 Februari 2004","Kelas XI-KELAS 11 MIPA 2",0,0,0,0,null,null,"L",null,null,":",{"$f":"COUNTIF(D2:D24,\"L\")","v":9}]
[19,35317512,"SUSAN SUSANTI","P","Tasikmalaya,23 Desember 2003","Kelas XI-KELAS 11 MIPA 2",90,95,81,60,null,null,"P",null,null,":",{"$f":"Q18-Q19","v":15}]
[20,47404973,"WIDI ALFIANDI","L","Tasikmalaya,24 Agustus 2003","Kelas XI-KELAS 11 MIPA 2",0,0,0,0]
[21,40978728,"WINA WIDIANSYAH","P","Tasikmalaya,27 Maret 2004","Kelas XI-KELAS 11 MIPA 2",75,100,85,95]
[22,21242093,"YESINTA","P","Tasikmalaya,29 Desember 2002","Kelas XI-KELAS 11 MIPA 2",100,80,0,30]
[23,36355412,"YUDA AGUSTIAN","L","TASIKMALAYA,28 Agustus 2003","Kelas XI-KELAS 11 MIPA 2",85,95,90,95]
[24,35231753,"YUSUP HAMDANI","L","Tasikmalaya,25 Juni 2003","Kelas XI-KELAS 11 MIPA 2",0,0,0,0]

{"sheet":"XIIA1","index":3,"n_rows":30,"n_cols":22,"rows_kept":30,"cut":false,"hidden":true,"merged":[]}
["NO","NISN","NAMA","L/P","TTL","KELAS","P1","P2","P3","P4","P5","P6","P7","P8","UMBK","TOOL"]
[1,26598132,"AI NURAENI","P","Tasikmalaya,14 Juli 2002","Kelas XII-KELAS 12 MIPA 1",0,0,0,0,78,75,88,100,30,82.5,null,"H+1","96-100","Jumat"]
[2,33155403,"ANGGA","L","Tasikmalaya,01 April 2003","Kelas XII-KELAS 12 MIPA 1",0,0,0,0,0,0,0,0,15,77.5,null,"H+2","91-95","Sabtu"]
[3,26598326,"DANIATUR ROHMAT","L","Tasikmalaya,11 Oktober 2002","Kelas XII-KELAS 12 MIPA 1",0,0,0,0,0,0,0,0,20,80,null,"H+3","86-90","Senin"]
[4,36355267,"DEDE SYIFA SITI KAROMAH","P","Tasikmalaya,23 Januari 2003","Kelas XII-KELAS 12 MIPA 1",0,0,0,0,75,75,75,80,20,80,null,"H+4","81-85","Selasa"]
[5,26711797,"DIMAS RANGGA ZULFIQIH","L","Tasikmalaya,05 Maret 2003","Kelas XII-KELAS 12 MIPA 1",0,0,0,0,84,76,89,95,32.5,82.5,null,"H+5","76-80","Rabu"]
[6,33154854,"EDIS ADELA","P","Tasikmalaya,05 Maret 2003","Kelas XII-KELAS 12 MIPA 1",87,86,87,0,80,75,99,95,37.5,85]
[7,33154771,"ELA SUSILAWATI","P","Tasikmalaya,15 Oktober 2003","Kelas XII-KELAS 12 MIPA 1",89,0,0,0,79,77,99,100,22.5,80,null,"P5","Soal Tatanama Asam Karboksilat dan Ester"]
[8,37917257,"IKSA RURIDHA","P","Pekalongan,24 Desember 2003","Kelas XII-KELAS 12 MIPA 1",0,0,0,0,77,75,80,75,27.5,80,null,"P6","Soal Asam Karboksilat dan Ester"]
[9,33154982,"LUSIANA KARMILA","P","Tasikmalaya,31 Maret 2003","Kelas XII-KELAS 12 MIPA 1",90,92,90,0,80,75,100,100,55,90,null,"P7","Soal Benzena"]
[10,33154197,"NABILA","P","Tasikmalaya,01 April 2004","Kelas XII-KELAS 12 MIPA 1",88,0,86,0,81,76,99,100,35,82.5,null,"P8","Soal Polimer"]
[11,26598997,"NENG FAJRIN ANDINY","P","Tasikmalaya,17 Oktober 2002","Kelas XII-KELAS 12 MIPA 1",0,0,0,0,80,50,99,99,45,87.5]
[12,33155458,"NISRINA MAIMANAH","P","Tasikmalaya,02 April 2003","Kelas XII-KELAS 12 MIPA 1",0,0,0,0,75,50,87,95,47.5,87.5,null,"Jml siswa x jml tugas",null,null,":",{"$f":"COUNT(G2:N30)","v":232}]
[13,26597573,"NURYADIN","L","Tasikmalaya,07 September 2002","Kelas XII-KELAS 12 MIPA 1",87,0,0,0,75,75,75,0,40,85,null,"Jml siswa mengumpulkan",null,null,":",{"$f":"V13-V15","v":130}]
[14,22565454,"RANI SILVIANI","P","Tasikmalaya,19 Februari 2002","Kelas XII-KELAS 12 MIPA 1",88,87,86,0,75,76,89,95,35,82.5,null,"Jml siswa belum mengumpulkan",null,null,":",{"$f":"COUNTIF(G2:N30,0)","v":102}]
[15,28474206,"RAYHAN OKTASANDI","L","Tasikmalaya,17 Oktober 2002","Kelas XII-KELAS 12 MIPA 1",0,0,0,0,0,0,89,0,30,82.5,null,"% siswa mengumpulkan",null,null,":",{"$f":"(V14/V13)*100%","v":0.56034482758620685}]
[16,33154201,"RIAN SAHRUL MAULANA","L","Tasikmalaya,12 Maret 2003","Kelas XII-KELAS 12 MIPA 1",0,0,0,0,0,0,0,0,35,82.5,null,"Jml siswa",null,null,":",{"$f":"COUNT(A2:A30)","v":29}]
[17,19635205,"RIFAN FAUZI","L","Tasikmalaya,15 Juli 2001","Kelas XII-KELAS 12 MIPA 1",0,0,0,0,75,75,75,75,27.5,80,null,"L",null,null,":",{"$f":"COUNTIF(D2:D24,\"L\")","v":9}]
[18,26598906,"RIJA SYAHRUL AZMI","L","Tasikmalaya,25 Juni 2002","Kelas XII-KELAS 12 MIPA 1",85,85,86,0,84,76,86,0,32.5,82.5,null,"P",null,null,":",{"$f":"V17-V18","v":20}]
[19,26599016,"RIPA NUR AULIA","P","Tasikmalaya,14 Desember 2002","Kelas XII-KELAS 12 MIPA 1",87,86,85,0,80,78,98,100,42.5,85]
[20,26598991,"RIZLAN GUSYANA","L","Tasikmalaya,17 Agustus 2002","Kelas XII-KELAS 12 MIPA 1",85,86,85,0,75,75,89,99,40,85,null,"Nilai max",null,null,null,{"$f":"MAX(O2:O30)","v":55}]
[21,26598316,"SHELMY KURNIAWATI PERTIWI","P","Tasikmalaya,09 Mei 2002","Kelas XII-KELAS 12 MIPA 1",87,87,88,0,78,75,82,95,52.5,90,null,"Nilai min",null,null,null,{"$f":"MIN(O2:O30)","v":15}]
[22,38547467,"SILVI","P","Tasikmalaya,04 Agustus 2003","Kelas XII-KELAS 12 MIPA 1",89,88,90,0,80,78,99,95,55,90,null,"Nilai Rata-rata",null,null,null,{"$f":"AVERAGE(O2:O30)","v":36.810344827586206}]
[23,26598416,"SIPA NURMALA","P","Tasikmalaya,10 Agustus 2002","Kelas XII-KELAS 12 MIPA 1",90,0,0,0,79,77,98,85,42.5,85]
[24,28134619,"SRI ATI SUMIATI","P","Tasikmalaya,07 September 2002","Kelas XII-KELAS 12 MIPA 1",86,87,85,0,75,75,84,95,37.5,85]
[25,26711796,"WIDI KRIS STYARANI","P","Tasikmalaya,25 April 2002","Kelas XII-KELAS 12 MIPA 1",85,86,0,0,0,0,0,0,35,82.5]
[26,26598418,"WILDA NURHASANAH","P","Tasikmalaya,11 Oktober 2003","Kelas XII-KELAS 12 MIPA 1",0,0,0,0,83,76,99,75,50,87.5]
[27,20801969,"WIWIN NURSAFITRI","P","Tasikmalaya,20 Agustus 2002","Kelas XII-KELAS 12 MIPA 1",90,92,90,0,80,78,99,100,50,87.5]
[28,18993363,"WULAN PURNAMA SARI","P","Tasikmalaya,25 Juli 2001","Kelas XII-KELAS 12 MIPA 1",0,87,88,0,78,78,86,100,47.5,87.5]
[29,25524884,"ZIAN REGI ASPAHANI","L","Tasikmalaya,01 Juli 2002","Kelas XII-KELAS 12 MIPA 1",0,0,0,0,0,0,0,0,27.5,80]

{"sheet":"XIIA2","index":4,"n_rows":30,"n_cols":22,"rows_kept":30,"cut":false,"hidden":true,"merged":[]}
["NO","NISN","NAMA","L/P","TTL","KELAS","P1","P2","P3","P4","P5","P6","P7","P8","UMBK","TOOL"]
[1,23102779,"ANDRA SAPUTRA","L","Tasikmalaya,03 Januari 2002","Kelas XII-KELAS 12 MIPA 2",0,0,0,0,75,0,88,95,7.5,77.5,null,"H+1","96-100","Jumat"]
[2,26598114,"ANJIAN","L","Tasikmalaya,19 September 2002","Kelas XII-KELAS 12 MIPA 2",0,0,0,0,75,75,75,75,37.5,85,null,"H+2","91-95","Sabtu"]
[3,40216088,"AULIA ANANTA","P","Tasikmalaya,21 April 2004","Kelas XII-KELAS 12 MIPA 2",0,0,0,0,0,0,0,0,45,87.5,null,"H+3","86-90","Senin"]
[4,28134618,"AZIS AGUSTIN","L","Tasikmalaya,22 Agustus 2002","Kelas XII-KELAS 12 MIPA 2",85,86,87,0,85,75,98,90,37.5,85,null,"H+4","81-85","Selasa"]
[5,29088957,"DENI MULYANA","L","Tasikmalaya,08 Agustus 2002","Kelas XII-KELAS 12 MIPA 2",86,85,87,0,85,78,98,95,37.5,85,null,"H+5","76-80","Rabu"]
[6,26598101,"ELMA ELVIANA","P","Tasikmalaya,23 November 2002","Kelas XII-KELAS 12 MIPA 2",0,0,0,0,75,75,75,75,30,82.5]
[7,40216136,"ERNA NURYANTI","P","Tasikmalaya,29 Februari 2004","Kelas XII-KELAS 12 MIPA 2",86,88,0,0,75,75,93,75,27.5,82.5,null,"P5","Soal Tatanama Asam Karboksilat dan Ester"]
[8,26598517,"FITRI SRI MULYANI","P","Tasikmalaya,18 Oktober 2002","Kelas XII-KELAS 12 MIPA 2",0,0,0,0,75,75,90,80,25,82.5,null,"P6","Soal Asam Karboksilat dan Ester"]
[9,33154840,"HILMA NUR PASIAM","P","Tasikmalaya,14 Desember 2003","Kelas XII-KELAS 12 MIPA 2",0,0,0,0,75,75,97,85,22.5,80,null,"P7","Soal Benzena"]
[10,26598194,"IRMA AGUSTINA","P","Tasikmalaya,22 Agustus 2002","Kelas XII-KELAS 12 MIPA 2",88,89,90,0,82,80,96,95,37.5,85,null,"P8","Soal Polimer"]
[11,36355221,"ISEP NURHADI","L","Tasikmalaya,02 April 2002","Kelas XII-KELAS 12 MIPA 2",86,0,0,0,0,0,0,0,32.5,85]
[12,36355210,"KHAERUNNISA PUTRI DAWAMI","P","Bekasi,03 Mei 2003","Kelas XII-KELAS 12 MIPA 2",86,86,85,0,0,75,0,0,17.5,80,null,"Jml siswa x jml tugas",null,null,":",{"$f":"COUNT(G2:N30)","v":232}]
[13,3024920797,"MOHAMAD ARIF SALEH","L","Tasikmalaya,01 Oktober 2002","Kelas XII-KELAS 12 MIPA 2",0,0,0,0,75,0,0,0,12.5,77.5,null,"Jml siswa mengumpulkan",null,null,":",{"$f":"V13-V15","v":120}]
[14,26598757,"NALA","P","Tasikmalaya,16 Juni 2002","Kelas XII-KELAS 12 MIPA 2",86,85,84,0,80,77,99,90,30,82.5,null,"Jml siswa belum mengumpulkan",null,null,":",{"$f":"COUNTIF(G2:N30,0)","v":112}]
[15,36355196,"NINDIA HADIATUL MAULA","P","Tasikmalaya,06 Maret 2002","Kelas XII-KELAS 12 MIPA 2",0,0,0,0,81,75,100,90,37.5,85,null,"% siswa mengumpulkan",null,null,":",{"$f":"(V14/V13)*100%","v":0.51724137931034486}]
[16,33155482,"NURLAELA","P","Tasikmalaya,20 Januari 2003","Kelas XII-KELAS 12 MIPA 2",88,87,0,0,75,75,95,75,47.5,87.5,null,"Jml siswa",null,null,":",{"$f":"COUNT(A2:A30)","v":29}]
[17,33265139,"PINA KHOERUNISA","P","Tasikmalaya,19 Agustus 2003","Kelas XII-KELAS 12 MIPA 2",0,0,0,0,0,0,0,0,25,82.5,null,"L",null,null,":",{"$f":"COUNTIF(D2:D24,\"L\")","v":7}]
[18,33155056,"RANI PUSPITASARI","P","Tasikmalaya,07 Mei 2003","Kelas XII-KELAS 12 MIPA 2",0,0,0,0,76,75,90,85,37.5,85,null,"P",null,null,":",{"$f":"V17-V18","v":22}]
[19,22192049,"REZA REGINA ASTIANA","P","Tasikmalaya,27 Januari 2002","Kelas XII-KELAS 12 MIPA 2",0,0,0,0,75,75,94,75,30,82.5]
[20,28134288,"RIMA FAUZIAH","P","Tasikmalaya,23 Agustus 2002","Kelas XII-KELAS 12 MIPA 2",0,0,0,0,77,75,88,95,32.5,85,null,"Nilai max",null,null,null,{"$f":"MAX(O2:O30)","v":52.5}]
[21,30207724,"RINI SUSANTI","P","Tasikmalaya,24 April 2003","Kelas XII-KELAS 12 MIPA 2",0,0,0,0,75,75,75,75,35,85,null,"Nilai min",null,null,null,{"$f":"MIN(O2:O30)","v":0}]
[22,26598321,"RISKA NURLAILA","P","Tasikmalaya,10 September 2002","Kelas XII-KELAS 12 MIPA 2",86,85,86,0,80,75,97,95,52.5,90,null,"Nilai Rata-rata",null,null,null,{"$f":"AVERAGE(O2:O30)","v":28.96551724137931}]
[23,26598401,"RULLY ASKHOLANI","L","Tasikmalaya,15 Maret 2002","Kelas XII-KELAS 12 MIPA 2",0,0,0,0,0,0,0,0,27.5,82.5]
[24,28715398,"SIFFA LUTFATUL QOLBI","P","Tasikmalaya,20 Desember 2002","Kelas XII-KELAS 12 MIPA 2",88,90,0,0,80,78,96,95,30,82.5]
[25,28134293,"SINTA ANISA","P","Tasikmalaya,24 September 2002","Kelas XII-KELAS 12 MIPA 2",86,86,85,0,75,75,75,75,20,80]
[26,33155477,"SOFI NUR SHOFIAH","P","Tasikmalaya,10 Juni 2003","Kelas XII-KELAS 12 MIPA 2",0,0,0,0,75,75,75,75,17.5,80]
[27,null,"WIDA HERDIYANI","P",null,"Kelas XII-KELAS 12 MIPA 2",0,0,0,0,0,0,0,0,0,0]
[28,33154851,"WINI AINUN NINDA","P","Tasikmalaya,27 Februari 2003","Kelas XII-KELAS 12 MIPA 2",0,0,0,0,75,75,90,80,20,80]
[29,36808963,"YATI OCTAVIA","P","Tasikmalaya,01 April 2003","Kelas XII-KELAS 12 MIPA 2",89,92,90,0,88,85,99,95,27.5,82.5]

{"sheet":"XIIA1 (2)","index":5,"n_rows":30,"n_cols":31,"rows_kept":30,"cut":false,"hidden":true,"merged":[]}
["NO","NISN","NAMA","L/P","TTL","KELAS","P1","P2","P3","P4","P5","P6","P7","P8","UMBK","TOOL",null,null,null,null,null,null,null,"S1_P","S2_P","SELISIH","FIX","S1_K","S2_K","SELISIH","FIX"]
[1,26598132,"AI NURAENI","P","Tasikmalaya,14 Juli 2002","Kelas XII-KELAS 12 MIPA 1",75,75,75,75,78,75,88,100,30,82.5,null,"H+1","96-100","Jumat",null,null,null,89,86,{"$f":"X2-Y2","v":3},86,89,90,{"$f":"AB2-AC2","v":-1},90]
[2,33155403,"ANGGA","L","Tasikmalaya,01 April 2003","Kelas XII-KELAS 12 MIPA 1",75,75,75,75,75,75,75,75,15,77.5,null,"H+2","91-95","Sabtu",null,null,null,87,85,{"$f":"X3-Y3","v":2},85,87,85,{"$f":"AB3-AC3","v":2},85]
[3,26598326,"DANIATUR ROHMAT","L","Tasikmalaya,11 Oktober 2002","Kelas XII-KELAS 12 MIPA 1",75,75,75,75,75,75,75,75,20,80,null,"H+3","86-90","Senin",null,null,null,88,86,2,86,87,85,2,85]
[4,36355267,"DEDE SYIFA SITI KAROMAH","P","Tasikmalaya,23 Januari 2003","Kelas XII-KELAS 12 MIPA 1",75,75,75,75,75,75,75,80,20,80,null,"H+4","81-85","Selasa",null,null,null,88,86,2,86,87,85,2,85]
[5,26711797,"DIMAS RANGGA ZULFIQIH","L","Tasikmalaya,05 Maret 2003","Kelas XII-KELAS 12 MIPA 1",75,75,75,75,84,76,89,95,32.5,82.5,null,"H+5","76-80","Rabu",null,null,null,89,86,3,86,88,92,-4,92]
[6,33154854,"EDIS ADELA","P","Tasikmalaya,05 Maret 2003","Kelas XII-KELAS 12 MIPA 1",87,86,87,75,80,75,99,95,37.5,85,null,null,null,null,null,null,null,90,91,-1,91,90,93,-3,93]
[7,33154771,"ELA SUSILAWATI","P","Tasikmalaya,15 Oktober 2003","Kelas XII-KELAS 12 MIPA 1",89,75,75,75,79,77,99,100,22.5,80,null,"P5","Soal Tatanama Asam Karboksilat dan Ester",null,null,null,null,90,87,3,87,89,93,-4,93]
[8,37917257,"IKSA RURIDHA","P","Pekalongan,24 Desember 2003","Kelas XII-KELAS 12 MIPA 1",75,75,75,75,77,75,80,75,27.5,80,null,"P6","Soal Asam Karboksilat dan Ester",null,null,null,null,90,86,4,86,90,87,3,87]
[9,33154982,"LUSIANA KARMILA","P","Tasikmalaya,31 Maret 2003","Kelas XII-KELAS 12 MIPA 1",90,92,90,75,80,75,100,100,55,90,null,"P7","Soal Benzena",null,null,null,null,94,94,0,94,94,94,0,94]
[10,33154197,"NABILA","P","Tasikmalaya,01 April 2004","Kelas XII-KELAS 12 MIPA 1",88,75,86,75,81,76,99,100,35,82.5,null,"P8","Soal Polimer",null,null,null,null,89,89,0,89,89,94,-5,94]
[11,26598997,"NENG FAJRIN ANDINY","P","Tasikmalaya,17 Oktober 2002","Kelas XII-KELAS 12 MIPA 1",75,75,75,75,80,50,99,99,45,87.5,null,null,null,null,null,null,null,91,88,3,88,91,91,0,91]
[12,33155458,"NISRINA MAIMANAH","P","Tasikmalaya,02 April 2003","Kelas XII-KELAS 12 MIPA 1",75,75,75,75,75,50,87,95,47.5,87.5,null,"Jml siswa x jml tugas",null,null,":",{"$f":"COUNT(G2:N30)","v":232},null,89,88,1,88,89,87,2,87]
[13,26597573,"NURYADIN","L","Tasikmalaya,07 September 2002","Kelas XII-KELAS 12 MIPA 1",87,75,75,75,75,75,75,75,40,85,null,"Jml siswa mengumpulkan",null,null,":",{"$f":"V13-V15","v":232},null,89,89,0,89,89,85,4,85]
[14,22565454,"RANI SILVIANI","P","Tasikmalaya,19 Februari 2002","Kelas XII-KELAS 12 MIPA 1",88,87,86,75,75,76,89,95,35,82.5,null,"Jml siswa belum mengumpulkan",null,null,":",{"$f":"COUNTIF(G2:N30,0)","v":0},null,89,90,-1,90,88,89,-1,89]
[15,28474206,"RAYHAN OKTASANDI","L","Tasikmalaya,17 Oktober 2002","Kelas XII-KELAS 12 MIPA 1",75,75,75,75,75,75,89,75,30,82.5,null,"% siswa mengumpulkan",null,null,":",{"$f":"(V14/V13)*100%","v":1},null,88,86,2,86,88,88,0,88]
[16,33154201,"RIAN SAHRUL MAULANA","L","Tasikmalaya,12 Maret 2003","Kelas XII-KELAS 12 MIPA 1",75,75,75,75,75,75,75,75,35,82.5,null,"Jml siswa",null,null,":",{"$f":"COUNT(A2:A30)","v":29},null,87,86,1,86,87,85,2,85]
[17,19635205,"RIFAN FAUZI","L","Tasikmalaya,15 Juli 2001","Kelas XII-KELAS 12 MIPA 1",75,75,75,75,75,75,75,75,27.5,80,null,"L",null,null,":",{"$f":"COUNTIF(D2:D24,\"L\")","v":9},null,88,86,2,86,88,85,3,85]
[18,26598906,"RIJA SYAHRUL AZMI","L","Tasikmalaya,25 Juni 2002","Kelas XII-KELAS 12 MIPA 1",85,85,86,75,84,76,86,75,32.5,82.5,null,"P",null,null,":",{"$f":"V17-V18","v":20},null,89,89,0,89,88,90,-2,90]
[19,26599016,"RIPA NUR AULIA","P","Tasikmalaya,14 Desember 2002","Kelas XII-KELAS 12 MIPA 1",87,86,85,75,80,78,98,100,42.5,85,null,null,null,null,null,null,null,90,91,-1,91,89,93,-4,93]
[20,26598991,"RIZLAN GUSYANA","L","Tasikmalaya,17 Agustus 2002","Kelas XII-KELAS 12 MIPA 1",85,86,85,75,75,75,89,99,40,85,null,"Nilai max",null,null,null,{"$f":"MAX(O2:O30)","v":55},null,88,90,-2,90,88,89,-1,89]
[21,26598316,"SHELMY KURNIAWATI PERTIWI","P","Tasikmalaya,09 Mei 2002","Kelas XII-KELAS 12 MIPA 1",87,87,88,75,78,75,82,95,52.5,90,null,"Nilai min",null,null,null,{"$f":"MIN(O2:O30)","v":15},null,90,92,-2,92,89,88,1,88]
[22,38547467,"SILVI","P","Tasikmalaya,04 Agustus 2003","Kelas XII-KELAS 12 MIPA 1",89,88,90,75,80,78,99,95,55,90,null,"Nilai Rata-rata",null,null,null,{"$f":"AVERAGE(O2:O30)","v":36.810344827586206},null,90,93,-3,93,89,93,-4,93]
[23,26598416,"SIPA NURMALA","P","Tasikmalaya,10 Agustus 2002","Kelas XII-KELAS 12 MIPA 1",90,75,75,75,79,77,98,85,42.5,85,null,null,null,null,null,null,null,90,89,1,89,88,92,-4,92]
[24,28134619,"SRI ATI SUMIATI","P","Tasikmalaya,07 September 2002","Kelas XII-KELAS 12 MIPA 1",86,87,85,75,75,75,84,95,37.5,85,null,null,null,null,null,null,null,89,91,-2,91,89,88,1,88]
[25,26711796,"WIDI KRIS STYARANI","P","Tasikmalaya,25 April 2002","Kelas XII-KELAS 12 MIPA 1",85,86,75,75,75,75,75,75,35,82.5,null,null,null,null,null,null,null,89,88,1,88,89,85,4,85]
[26,26598418,"WILDA NURHASANAH","P","Tasikmalaya,11 Oktober 2003","Kelas XII-KELAS 12 MIPA 1",75,75,75,75,83,76,99,75,50,87.5,null,null,null,null,null,null,null,90,88,2,88,90,93,-3,93]
[27,20801969,"WIWIN NURSAFITRI","P","Tasikmalaya,20 Agustus 2002","Kelas XII-KELAS 12 MIPA 1",90,92,90,75,80,78,99,100,50,87.5,null,null,null,null,null,null,null,94,93,1,93,94,94,0,94]
[28,18993363,"WULAN PURNAMA SARI","P","Tasikmalaya,25 Juli 2001","Kelas XII-KELAS 12 MIPA 1",75,87,88,75,78,78,86,100,47.5,87.5,null,null,null,null,null,null,null,91,90,1,90,91,90,1,90]
[29,25524884,"ZIAN REGI ASPAHANI","L","Tasikmalaya,01 Juli 2002","Kelas XII-KELAS 12 MIPA 1",75,75,75,75,75,75,75,75,27.5,80,null,null,null,null,null,null,null,87,86,1,86,87,85,2,85]

{"sheet":"XIIA2 (2)","index":6,"n_rows":30,"n_cols":32,"rows_kept":30,"cut":false,"hidden":true,"merged":[]}
["NO","NISN","NAMA","L/P","TTL","KELAS","P1","P2","P3","P4","P5","P6","P7","P8","UMBK","TOOL",null,null,null,null,null,null,null,null,"S1_P","S2_P","SELISIH","FIX","S1_K","S2_K","SELISIH","FIX"]
[1,23102779,"ANDRA SAPUTRA","L","Tasikmalaya,03 Januari 2002","Kelas XII-KELAS 12 MIPA 2",75,75,75,75,75,75,88,95,7.5,77.5,null,"H+1","96-100","Jumat",null,null,null,null,90,84,{"$f":"Y2-Z2","v":6},null,89,88,{"$f":"AC2-AD2","v":1}]
[2,26598114,"ANJIAN","L","Tasikmalaya,19 September 2002","Kelas XII-KELAS 12 MIPA 2",75,75,75,75,75,75,75,75,37.5,85,null,"H+2","91-95","Sabtu",null,null,null,null,89,86,{"$f":"Y3-Z3","v":3},null,89,86,{"$f":"AC3-AD3","v":3}]
[3,40216088,"AULIA ANANTA","P","Tasikmalaya,21 April 2004","Kelas XII-KELAS 12 MIPA 2",75,75,75,75,75,75,75,75,45,87.5,null,"H+3","86-90","Senin",null,null,null,null,88,86,2,null,87,86,1]
[4,28134618,"AZIS AGUSTIN","L","Tasikmalaya,22 Agustus 2002","Kelas XII-KELAS 12 MIPA 2",85,86,87,75,85,75,98,90,37.5,85,null,"H+4","81-85","Selasa",null,null,null,null,89,88,1,null,89,91,-2]
[5,29088957,"DENI MULYANA","L","Tasikmalaya,08 Agustus 2002","Kelas XII-KELAS 12 MIPA 2",86,85,87,75,85,78,98,95,37.5,85,null,"H+5","76-80","Rabu",null,null,null,null,89,89,0,null,89,92,-3]
[6,26598101,"ELMA ELVIANA","P","Tasikmalaya,23 November 2002","Kelas XII-KELAS 12 MIPA 2",75,75,75,75,75,75,75,75,30,82.5,null,null,null,null,null,null,null,null,89,85,4,null,88,86,2]
[7,40216136,"ERNA NURYANTI","P","Tasikmalaya,29 Februari 2004","Kelas XII-KELAS 12 MIPA 2",86,88,75,75,75,75,93,75,27.5,82.5,null,"P5","Soal Tatanama Asam Karboksilat dan Ester",null,null,null,null,null,90,88,2,null,89,88,1]
[8,26598517,"FITRI SRI MULYANI","P","Tasikmalaya,18 Oktober 2002","Kelas XII-KELAS 12 MIPA 2",75,75,75,75,75,75,90,80,25,82.5,null,"P6","Soal Asam Karboksilat dan Ester",null,null,null,null,null,88,85,3,null,88,87,1]
[9,33154840,"HILMA NUR PASIAM","P","Tasikmalaya,14 Desember 2003","Kelas XII-KELAS 12 MIPA 2",75,75,75,75,75,75,97,85,22.5,80,null,"P7","Soal Benzena",null,null,null,null,null,89,85,4,null,89,89,0]
[10,26598194,"IRMA AGUSTINA","P","Tasikmalaya,22 Agustus 2002","Kelas XII-KELAS 12 MIPA 2",88,89,90,75,82,80,96,95,37.5,85,null,"P8","Soal Polimer",null,null,null,null,null,91,89,2,null,91,91,0]
[11,36355221,"ISEP NURHADI","L","Tasikmalaya,02 April 2002","Kelas XII-KELAS 12 MIPA 2",86,75,75,75,75,75,75,75,32.5,85,null,null,null,null,null,null,null,null,88,88,0,null,88,86,2]
[12,36355210,"KHAERUNNISA PUTRI DAWAMI","P","Bekasi,03 Mei 2003","Kelas XII-KELAS 12 MIPA 2",86,86,85,75,75,75,75,75,17.5,80,null,"Jml siswa x jml tugas",null,null,":",{"$f":"COUNT(G2:N30)","v":232},null,null,89,87,2,null,88,86,2]
[13,3024920797,"MOHAMAD ARIF SALEH","L","Tasikmalaya,01 Oktober 2002","Kelas XII-KELAS 12 MIPA 2",75,75,75,75,75,75,75,75,12.5,77.5,null,"Jml siswa mengumpulkan",null,null,":",{"$f":"V13-V15","v":232},null,null,89,83,6,null,89,86,3]
[14,26598757,"NALA","P","Tasikmalaya,16 Juni 2002","Kelas XII-KELAS 12 MIPA 2",86,85,84,75,80,77,99,90,30,82.5,null,"Jml siswa belum mengumpulkan",null,null,":",{"$f":"COUNTIF(G2:N30,0)","v":0},null,null,90,88,2,null,89,91,-2]
[15,36355196,"NINDIA HADIATUL MAULA","P","Tasikmalaya,06 Maret 2002","Kelas XII-KELAS 12 MIPA 2",75,75,75,75,81,75,100,90,37.5,85,null,"% siswa mengumpulkan",null,null,":",{"$f":"(V14/V13)*100%","v":1},null,null,91,86,5,null,90,91,-1]
[16,33155482,"NURLAELA","P","Tasikmalaya,20 Januari 2003","Kelas XII-KELAS 12 MIPA 2",88,87,75,75,75,75,95,75,47.5,87.5,null,"Jml siswa",null,null,":",{"$f":"COUNT(A2:A30)","v":29},null,null,89,89,0,null,88,88,0]
[17,33265139,"PINA KHOERUNISA","P","Tasikmalaya,19 Agustus 2003","Kelas XII-KELAS 12 MIPA 2",75,75,75,75,75,75,75,75,25,82.5,null,"L",null,null,":",{"$f":"COUNTIF(D2:D24,\"L\")","v":7},null,null,88,85,3,null,88,86,2]
[18,33155056,"RANI PUSPITASARI","P","Tasikmalaya,07 Mei 2003","Kelas XII-KELAS 12 MIPA 2",75,75,75,75,76,75,90,85,37.5,85,null,"P",null,null,":",{"$f":"V17-V18","v":22},null,null,89,86,3,null,89,88,1]
[19,22192049,"REZA REGINA ASTIANA","P","Tasikmalaya,27 Januari 2002","Kelas XII-KELAS 12 MIPA 2",75,75,75,75,75,75,94,75,30,82.5,null,null,null,null,null,null,null,null,89,86,3,null,89,88,1]
[20,28134288,"RIMA FAUZIAH","P","Tasikmalaya,23 Agustus 2002","Kelas XII-KELAS 12 MIPA 2",75,75,75,75,77,75,88,95,32.5,85,null,"Nilai max",null,null,null,{"$f":"MAX(O2:O30)","v":52.5},null,null,89,86,3,null,89,88,1]
[21,30207724,"RINI SUSANTI","P","Tasikmalaya,24 April 2003","Kelas XII-KELAS 12 MIPA 2",75,75,75,75,75,75,75,75,35,85,null,"Nilai min",null,null,null,{"$f":"MIN(O2:O30)","v":0},null,null,88,86,2,null,88,86,2]
[22,26598321,"RISKA NURLAILA","P","Tasikmalaya,10 September 2002","Kelas XII-KELAS 12 MIPA 2",86,85,86,75,80,75,97,95,52.5,90,null,"Nilai Rata-rata",null,null,null,{"$f":"AVERAGE(O2:O30)","v":28.96551724137931},null,null,88,90,-2,null,88,91,-3]
[23,26598401,"RULLY ASKHOLANI","L","Tasikmalaya,15 Maret 2002","Kelas XII-KELAS 12 MIPA 2",75,75,75,75,75,75,75,75,27.5,82.5,null,null,null,null,null,null,null,null,88,85,3,null,88,86,2]
[24,28715398,"SIFFA LUTFATUL QOLBI","P","Tasikmalaya,20 Desember 2002","Kelas XII-KELAS 12 MIPA 2",88,90,75,75,80,78,96,95,30,82.5,null,null,null,null,null,null,null,null,91,88,3,null,91,91,0]
[25,28134293,"SINTA ANISA","P","Tasikmalaya,24 September 2002","Kelas XII-KELAS 12 MIPA 2",86,86,85,75,75,75,75,75,20,80,null,null,null,null,null,null,null,null,89,86,3,null,89,86,3]
[26,33155477,"SOFI NUR SHOFIAH","P","Tasikmalaya,10 Juni 2003","Kelas XII-KELAS 12 MIPA 2",75,75,75,75,75,75,75,75,17.5,80,null,null,null,null,null,null,null,null,93,84,9,null,91,86,5]
[27,null,"WIDA HERDIYANI","P",null,"Kelas XII-KELAS 12 MIPA 2",75,75,75,75,75,75,75,75,0,0,null,null,null,null,null,null,null,null,0,0,0,null,0,0,0]
[28,33154851,"WINI AINUN NINDA","P","Tasikmalaya,27 Februari 2003","Kelas XII-KELAS 12 MIPA 2",75,75,75,75,75,75,90,80,20,80,null,null,null,null,null,null,null,null,88,85,3,null,88,87,1]
[29,36808963,"YATI OCTAVIA","P","Tasikmalaya,01 April 2003","Kelas XII-KELAS 12 MIPA 2",89,92,90,75,88,85,99,95,27.5,82.5,null,null,null,null,null,null,null,null,92,88,4,null,90,93,-3]

{"sheet":"masternilai_10.06.22","index":7,"n_rows":47,"n_cols":90,"rows_kept":47,"cut":false,"hidden":true,"merged":[[6,32,6,50],[1,32,1,50],[2,6,9,7],[7,8,7,9],[8,8,8,9],[12,40,12,42],[12,44,12,46],[12,48,12,50],[12,23,13,23],[12,15,13,15],[11,6,13,6],[12,7,13,7],[12,8,13,8],[12,9,13,9],[12,10,13,10],[12,11,13,11],[12,12,13,12],[12,13,13,13],[12,14,13,14],[1,25,1,28],[1,10,1,19],[4,10,4,19],[5,10,5,19],[6,10,6,19],[0,25,0,52],[0,6,0,22],[0,0,0,2],[5,29,5,30],[1,8,1,9],[2,8,2,9],[3,8,3,9],[4,8,4,9],[5,8,5,9],[1,6,1,7],[2,25,9,28],[7,29,7,30],[1,0,1,1],[2,0,2,1],[3,0,3,1],[4,0,4,1],[5,0,5,1],[6,0,6,1],[5,32,5,50],[9,8,9,9],[6,8,6,9],[2,10,2,19],[3,10,3,19],[6,29,6,30],[12,56,13,56],[12,51,13,51],[11,3,12,3],[11,0,13,0],[11,2,13,2],[11,5,13,5],[12,16,13,16],[11,19,13,19],[11,17,13,17],[12,47,13,47],[12,20,12,22],[12,24,12,26],[12,28,12,30],[12,32,12,34],[12,36,12,38],[12,27,13,27],[12,31,13,31],[12,35,13,35],[12,39,13,39],[12,43,13,43],[11,18,13,18],[11,1,13,1],[11,7,11,14],[11,20,11,50],[1,20,1,22],[2,20,2,22],[3,20,3,22],[4,20,4,22],[5,20,5,22],[6,20,6,22],[7,20,7,22],[8,20,8,22],[9,20,9,22],[12,57,12,59],[12,60,12,62],[12,63,12,65],[12,66,12,68],[12,69,12,71],[7,10,7,19],[8,10,8,19],[9,10,9,19],[0,54,8,55],[7,32,7,50],[8,29,8,30],[8,32,8,50],[9,29,9,30],[9,32,9,50],[1,29,1,30],[2,29,2,30],[3,29,3,30],[4,29,4,30],[2,32,2,50],[3,32,3,50],[4,32,4,50],[11,52,13,52],[12,54,13,54],[12,55,13,55],[12,82,13,82],[12,83,13,83],[12,84,13,84],[12,85,13,85],[12,86,13,86],[12,87,13,87],[12,88,13,88],[12,89,13,89],[12,72,12,74],[12,75,12,77],[12,78,12,80]]}
["IDENTITAS GURU PENGAJAR",null,null,null,null,null,"PENULISAN KOMPETENSI DASAR (KD) PENGETAHUAN",null,null,null,null,null,null,null,null,null,null,null,null,null,null,null,null,null,null,"PENULISAN KOMPETENSI DASAR (KD) KETERAMPILAN",null,null,null,null,null,null,null,null,null,null,null,null,null,null,null,null,null,null,null,null,null,null,null,null,null,null,null,null,"TOOLS UNTUK OLAH NILAI",null,null,"KARAKTER KD"]
["Nama Guru",null,"Arief Pribadi, S.Si",null,null,null,"Ranah",null,"No. KD",null,"Uraian singkat (mak. 60 char)",null,null,null,null,null,null,null,null,null,"Sisa char",null,null,null,null,"Ranah",null,null,null,"No. KD",null,null,"Uraian singkat (mak. 60 char)",null,null,null,null,null,null,null,null,null,null,null,null,null,null,null,null,null,null,null,"Sisa char",null,null,null,null,"CHAR_P","CHAR_K"]
["NIP",null,"198603112020121005",null,null,null,"Pengetahuan",null,null,null,null,null,null,null,null,null,null,null,null,null,{"$f":"60-BF3","v":60},null,null,null,null,"Keterampilan",null,null,null,null,null,null,null,null,null,null,null,null,null,null,null,null,null,null,null,null,null,null,null,null,null,null,{"$f":"60-BG3","v":60},null,null,null,null,{"$f":"LEN(K3)","v":0},{"$f":"LEN(AG3)","v":0}]
["Mata Pelajaran",null,"Kimia",null,null,null,null,null,null,null,null,null,null,null,null,null,null,null,null,null,{"$f":"60-BF4","v":60},null,null,null,null,null,null,null,null,null,null,null,null,null,null,null,null,null,null,null,null,null,null,null,null,null,null,null,null,null,null,null,60,null,null,null,null,{"$f":"LEN(K4)","v":0},{"$f":"LEN(AG4)","v":0}]
["Semester",null,"2 (Genap)",null,null,null,null,null,null,null,null,null,null,null,null,null,null,null,null,null,60,null,null,null,null,null,null,null,null,null,null,null,null,null,null,null,null,null,null,null,null,null,null,null,null,null,null,null,null,null,null,null,60,null,null,null,null,0,0]
["Tahun Pelajaran",null,"2021/2022",null,null,null,null,null,null,null,null,null,null,null,null,null,null,null,null,null,60,null,null,null,null,null,null,null,null,null,null,null,null,null,null,null,null,null,null,null,null,null,null,null,null,null,null,null,null,null,null,null,60,null,null,null,null,0,0]
["Kelas",null,null,null,null,null,null,null,null,null,null,null,null,null,null,null,null,null,null,null,60,null,null,null,null,null,null,null,null,null,null,null,null,null,null,null,null,null,null,null,null,null,null,null,null,null,null,null,null,null,null,null,60,null,null,null,null,0,0]
[null,null,"by ariefp_11 v13.3-622",null,null,null,null,null,null,null,null,null,null,null,null,null,null,null,null,null,60,null,null,null,null,null,null,null,null,null,null,null,null,null,null,null,null,null,null,null,null,null,null,null,null,null,null,null,null,null,null,null,60,null,null,null,null,0,0]
[null,null,null,null,null,null,null,null,null,null,null,null,null,null,null,null,null,null,null,null,60,null,null,null,null,null,null,null,null,null,null,null,null,null,null,null,null,null,null,null,null,null,null,null,null,null,null,null,null,null,null,null,60,null,null,null,null,0,0]
[null,null,null,null,null,null,null,null,null,null,null,null,null,null,null,null,null,null,null,null,60,null,null,null,null,null,null,null,null,null,null,null,null,null,null,null,null,null,null,null,null,null,null,null,null,null,null,null,null,null,null,null,60,null,"N_MIN",77,null,0,0]
[null,null,null,null,null,null,null,{"$f":"IF(COUNT(H15:H46)>0,1,\"\")","v":""},{"$f":"IF(COUNT(I15:I46)>0,1,\"\")","v":""},"","","","","","",{"$f":"SUM(H11:O11)","v":0},null,null,null,null,{"$f":"IF(COUNT(U15:U44)>0,1,\"\")","v":""},"","",null,"","","",null,"","","",null,"","","",null,"","","",null,"","","",null,"","","",null,"","","",null,{"$f":"SUM(U11:AY11)","v":0},null,"N_MAX",83]
["NO","NISN","NAMA\n(Silahkan ambil dari salah satu template RDM)","L/P",null,"KELAS","NP_S1","PENGETAHUAN",null,null,null,null,null,null,null,"RPH","PAS / PAT / UMBK","NP_S2","SELISIH","NPR S1 S2","KETERAMPILAN\n(UK = UNJUK KERJA, PR = PROYEK, PO = PORTOFOLIO)",null,null,null,null,null,null,null,null,null,null,null,null,null,null,null,null,null,null,null,null,null,null,null,null,null,null,null,null,null,null,null,"NK",null,"MIN",{"$f":"MIN(BC15:BC44)","v":10}]
[null,null,null,null,"TTL",null,null,"PH1","PH2","PH3","PH4","PH5","PH6","PH7","PH8",70,30,null,null,null,"PH1",null,null,"NR","PH2",null,null,"NR","PH3",null,null,"NR","PH4",null,null,"NR","PH5",null,null,"NR","PH6",null,null,"NR","PH7",null,null,"NR","PH8",null,null,"NR",null,null,"MAX",{"$f":"MAX(BC15:BC44)","v":50},null,"PH1",null,null,"PH2",null,null,"PH3",null,null,"PH4",null,null,"PH5",null,null,"PH6",null,null,"PH7",null,null,"PH8",null,null,null,"PH1","PH2","PH3","PH4","PH5","PH6","PH7","PH8"]
[null,null,null,null,null,null,null,null,null,null,null,null,null,null,null,null,null,null,null,null,null,null,null,null,null,null,null,null,null,null,null,null,null,null,null,null,null,null,null,null,null,null,null,null,null,null,null,null,null,null,null,null,null,null,null,null,null,"UK","PR","PO","UK","PR","PO","UK","PR","PO","UK","PR","PO","UK","PR","PO","UK","PR","PO","UK","PR","PO","UK","PR","PO"]
[1,null,null,null,"Tasikmalaya,09 September 2004",{"$f":"$C$7","v":0},null,null,null,null,null,null,null,null,null,{"$f":"IF(COUNT(H15:O15)<1,\"\",ROUND(SUM(H15:O15)/$P$11,0))","v":""},null,{"$f":"IFERROR(P15*$P$13/100+Q15*$Q$13/100,0)","v":0},{"$f":"R15-G15","v":0},{"$f":"AVERAGE(G15,R15)","v":0},null,null,null,null,null,null,null,null,null,null,null,null,null,null,null,null,null,null,null,null,null,null,null,null,null,null,null,null,null,null,null,{"$f":"IFERROR(AVERAGE(AW15:AY15),0)","v":0},{"$f":"IFERROR(IF(COUNT(BF15:CC15)<1,\"\",ROUND(SUM(BF15:CC15)/$BA$11,0)),0)","v":0},null,26.666666666666668,{"$f":"IFERROR($BD$10+((BC15-$BD$12)/($BD$13-$BD$12)*($BD$11-$BD$10)),0)","v":79.5},null,{"$f":"U15","v":0},{"$f":"V15","v":0},0,{"$f":"Y15","v":0},{"$f":"Z15","v":0},0,{"$f":"AC15","v":0},{"$f":"AD15","v":0},0,{"$f":"AG15","v":0},{"$f":"AH15","v":0},0,{"$f":"AK15","v":0},{"$f":"AL15","v":0},0,{"$f":"AO15","v":0},{"$f":"AP15","v":0},0,{"$f":"AS15","v":0},{"$f":"AT15","v":0},0,{"$f":"AW15","v":0},{"$f":"AX15","v":0},0,null,{"$f":"(H15*$P$13/100)+(Q15*$Q$13/100)","v":0},{"$f":"(I15*$P$13/100)+(Q15*$Q$13/100)","v":0},{"$f":"(J15*$P$13/100)+(Q15*$Q$13/100)","v":0},{"$f":"(K15*$P$13/100)+(Q15*$Q$13/100)","v":0},{"$f":"(L15*$P$13/100)+(Q15*$Q$13/100)","v":0},{"$f":"(M15*$P$13/100)+(Q15*$Q$13/100)","v":0},{"$f":"(N15*$P$13/100)+(Q15*$Q$13/100)","v":0},{"$f":"(O15*$P$13/100)+(Q15*$Q$13/100)","v":0}]
[2,null,null,null,"Tasikmalaya,09 September 2004",{"$f":"$C$7","v":0},null,null,null,null,null,null,null,null,null,{"$f":"IF(COUNT(H16:O16)<1,\"\",ROUND(SUM(H16:O16)/$P$11,0))","v":""},null,{"$f":"IFERROR(P16*$P$13/100+Q16*$Q$13/100,0)","v":0},{"$f":"R16-G16","v":0},{"$f":"AVERAGE(G16,R16)","v":0},null,null,null,null,null,null,null,null,null,null,null,null,null,null,null,null,null,null,null,null,null,null,null,null,null,null,null,null,null,null,null,{"$f":"IFERROR(AVERAGE(AW16:AY16),0)","v":0},{"$f":"IFERROR(IF(COUNT(BF16:CC16)<1,\"\",ROUND(SUM(BF16:CC16)/$BA$11,0)),0)","v":0},null,20,{"$f":"IFERROR($BD$10+((BC16-$BD$12)/($BD$13-$BD$12)*($BD$11-$BD$10)),0)","v":78.5},null,{"$f":"U16","v":0},{"$f":"V16","v":0},{"$f":"W16","v":0},{"$f":"Y16","v":0},{"$f":"Z16","v":0},{"$f":"AA16","v":0},{"$f":"AC16","v":0},{"$f":"AD16","v":0},{"$f":"AE16","v":0},{"$f":"AG16","v":0},{"$f":"AH16","v":0},{"$f":"AI16","v":0},{"$f":"AK16","v":0},{"$f":"AL16","v":0},{"$f":"AM16","v":0},{"$f":"AO16","v":0},{"$f":"AP16","v":0},{"$f":"AQ16","v":0},{"$f":"AS16","v":0},{"$f":"AT16","v":0},{"$f":"AU16","v":0},{"$f":"AW16","v":0},{"$f":"AX16","v":0},{"$f":"AY16","v":0},null,{"$f":"(H16*$P$13/100)+(Q16*$Q$13/100)","v":0},{"$f":"(I16*$P$13/100)+(Q16*$Q$13/100)","v":0},{"$f":"(J16*$P$13/100)+(Q16*$Q$13/100)","v":0},{"$f":"(K16*$P$13/100)+(Q16*$Q$13/100)","v":0},{"$f":"(L16*$P$13/100)+(Q16*$Q$13/100)","v":0},{"$f":"(M16*$P$13/100)+(Q16*$Q$13/100)","v":0},{"$f":"(N16*$P$13/100)+(Q16*$Q$13/100)","v":0},{"$f":"(O16*$P$13/100)+(Q16*$Q$13/100)","v":0}]
[3,null,null,null,"Tasikmalaya,27 September 2004",0,null,null,null,null,null,null,null,null,null,"",null,0,0,0,null,null,null,null,null,null,null,null,null,null,null,null,null,null,null,null,null,null,null,null,null,null,null,null,null,null,null,null,null,null,null,0,0,null,13.333333333333334,77.5,null,0,0,0,0,0,0,0,0,0,0,0,0,0,0,0,0,0,0,0,0,0,0,0,0,null,0,0,0,0,0,0,0,0]
[4,null,null,null,"Tasikmalaya,29 Juli 2005",0,null,null,null,null,null,null,null,null,null,"",null,0,0,0,null,null,null,null,null,null,null,null,null,null,null,null,null,null,null,null,null,null,null,null,null,null,null,null,null,null,null,null,null,null,null,0,0,null,23.333333333333332,79,null,0,0,0,0,0,0,0,0,0,0,0,0,0,0,0,0,0,0,0,0,0,0,0,0,null,0,0,0,0,0,0,0,0]
[5,null,null,null,"TASIKMALAYA,01 Februari 2005",0,null,null,null,null,null,null,null,null,null,"",null,0,0,0,null,null,null,null,null,null,null,null,null,null,null,null,null,null,null,null,null,null,null,null,null,null,null,null,null,null,null,null,null,null,null,0,0,null,50,83,null,0,0,0,0,0,0,0,0,0,0,0,0,0,0,0,0,0,0,0,0,0,0,0,0,null,0,0,0,0,0,0,0,0]
[6,null,null,null,"Tasikmalaya,10 Juli 2004",0,null,null,null,null,null,null,null,null,null,"",null,0,0,0,null,null,null,null,null,null,null,null,null,null,null,null,null,null,null,null,null,null,null,null,null,null,null,null,null,null,null,null,null,null,null,0,0,null,40,81.5,null,0,0,0,0,0,0,0,0,0,0,0,0,0,0,0,0,0,0,0,0,0,0,0,0,null,0,0,0,0,0,0,0,0]
[7,null,null,null,"Tasikmalaya,03 Mei 2005",0,null,null,null,null,null,null,null,null,null,"",null,0,0,0,null,null,null,null,null,null,null,null,null,null,null,null,null,null,null,null,null,null,null,null,null,null,null,null,null,null,null,null,null,null,null,0,0,null,50,83,null,0,0,0,0,0,0,0,0,0,0,0,0,0,0,0,0,0,0,0,0,0,0,0,0,null,0,0,0,0,0,0,0,0]
[8,null,null,null,"Tasikmalaya,30 Maret 2004",0,null,null,null,null,null,null,null,null,null,"",null,0,0,0,null,null,null,null,null,null,null,null,null,null,null,null,null,null,null,null,null,null,null,null,null,null,null,null,null,null,null,null,null,null,null,0,0,null,43.333333333333336,82,null,0,0,0,0,0,0,0,0,0,0,0,0,0,0,0,0,0,0,0,0,0,0,0,0,null,0,0,0,0,0,0,0,0]
[9,null,null,null,"Tasikmalaya,22 April 2004",0,null,null,null,null,null,null,null,null,null,"",null,0,0,0,null,null,null,null,null,null,null,null,null,null,null,null,null,null,null,null,null,null,null,null,null,null,null,null,null,null,null,null,null,null,null,0,0,null,43.333333333333336,82,null,0,0,0,0,0,0,0,0,0,0,0,0,0,0,0,0,0,0,0,0,0,0,0,0,null,0,0,0,0,0,0,0,0]
[10,null,null,null,"TASIKMALAYA,18 Oktober 2005",0,null,null,null,null,null,null,null,null,null,"",null,0,0,0,null,null,null,null,null,null,null,null,null,null,null,null,null,null,null,null,null,null,null,null,null,null,null,null,null,null,null,null,null,null,null,0,0,null,33.333333333333329,80.5,null,0,0,0,0,0,0,0,0,0,0,0,0,0,0,0,0,0,0,0,0,0,0,0,0,null,0,0,0,0,0,0,0,0]
[11,null,null,null,"Tasikmalaya,07 Januari 2005",0,null,null,null,null,null,null,null,null,null,"",null,0,0,0,null,null,null,null,null,null,null,null,null,null,null,null,null,null,null,null,null,null,null,null,null,null,null,null,null,null,null,null,null,null,null,0,0,null,43.333333333333336,82,null,0,0,0,0,0,0,0,0,0,0,0,0,0,0,0,0,0,0,0,0,0,0,0,0,null,0,0,0,0,0,0,0,0]
[12,null,null,null,"TASIKMALAYA,07 Februari 2004",0,null,null,null,null,null,null,null,null,null,"",null,0,0,0,null,null,null,null,null,null,null,null,null,null,null,null,null,null,null,null,null,null,null,null,null,null,null,null,null,null,null,null,null,null,null,0,0,null,13.333333333333334,77.5,null,0,0,0,0,0,0,0,0,0,0,0,0,0,0,0,0,0,0,0,0,0,0,0,0,null,0,0,0,0,0,0,0,0]
[13,null,null,null,"Bandung,15 Februari 2005",0,null,null,null,null,null,null,null,null,null,"",null,0,0,0,null,null,null,null,null,null,null,null,null,null,null,null,null,null,null,null,null,null,null,null,null,null,null,null,null,null,null,null,null,null,null,0,0,null,16.666666666666664,78,null,0,0,0,0,0,0,0,0,0,0,0,0,0,0,0,0,0,0,0,0,0,0,0,0,null,0,0,0,0,0,0,0,0]
[14,null,null,null,"Tasikmalaya,15 September 2005",0,null,null,null,null,null,null,null,null,null,"",null,0,0,0,null,null,null,null,null,null,null,null,null,null,null,null,null,null,null,null,null,null,null,null,null,null,null,null,null,null,null,null,null,null,null,0,0,null,46.666666666666664,82.5,null,{"$f":"U28","v":0},{"$f":"V28","v":0},{"$f":"W28","v":0},{"$f":"Y28","v":0},{"$f":"Z28","v":0},{"$f":"AA28","v":0},{"$f":"AC28","v":0},{"$f":"AD28","v":0},{"$f":"AE28","v":0},{"$f":"AG28","v":0},{"$f":"AH28","v":0},{"$f":"AI28","v":0},{"$f":"AK28","v":0},{"$f":"AL28","v":0},{"$f":"AM28","v":0},{"$f":"AO28","v":0},{"$f":"AP28","v":0},{"$f":"AQ28","v":0},{"$f":"AS28","v":0},{"$f":"AT28","v":0},{"$f":"AU28","v":0},{"$f":"AW28","v":0},{"$f":"AX28","v":0},{"$f":"AY28","v":0},null,0,0,0,0,0,0,0,0]
[15,null,null,null,"Tasikmalaya,10 Mei 2004",0,null,null,null,null,null,null,null,null,null,"",null,0,0,0,null,null,null,null,null,null,null,null,null,null,null,null,null,null,null,null,null,null,null,null,null,null,null,null,null,null,null,null,null,null,null,0,0,null,30,80,null,0,0,0,0,0,0,0,0,0,0,0,0,0,0,0,0,0,0,0,0,0,0,0,0,null,0,0,0,0,0,0,0,0]
[16,null,null,null,"Tasikmalaya,01 April 2005",0,null,null,null,null,null,null,null,null,null,"",null,0,0,0,null,null,null,null,null,null,null,null,null,null,null,null,null,null,null,null,null,null,null,null,null,null,null,null,null,null,null,null,null,null,null,0,0,null,20,78.5,null,0,0,0,0,0,0,0,0,0,0,0,0,0,0,0,0,0,0,0,0,0,0,0,0,null,0,0,0,0,0,0,0,0]
[17,null,null,null,"Tasikmalaya,05 Juli 2005",0,null,null,null,null,null,null,null,null,null,"",null,0,0,0,null,null,null,null,null,null,null,null,null,null,null,null,null,null,null,null,null,null,null,null,null,null,null,null,null,null,null,null,null,null,null,0,0,null,40,81.5,null,0,0,0,0,0,0,0,0,0,0,0,0,0,0,0,0,0,0,0,0,0,0,0,0,null,0,0,0,0,0,0,0,0]
[18,null,null,null,"Tasikmalaya,29 Maret 2004",0,null,null,null,null,null,null,null,null,null,"",null,0,0,0,null,null,null,null,null,null,null,null,null,null,null,null,null,null,null,null,null,null,null,null,null,null,null,null,null,null,null,null,null,null,null,0,0,null,10,77,null,0,0,0,0,0,0,0,0,0,0,0,0,0,0,0,0,0,0,0,0,0,0,0,0,null,0,0,0,0,0,0,0,0]
[19,null,null,null,"Tasikmalaya,15 Desember 2004",0,null,null,null,null,null,null,null,null,null,"",null,0,0,0,null,null,null,null,null,null,null,null,null,null,null,null,null,null,null,null,null,null,null,null,null,null,null,null,null,null,null,null,null,null,null,0,0,null,30,80,null,0,0,0,0,0,0,0,0,0,0,0,0,0,0,0,0,0,0,0,0,0,0,0,0,null,0,0,0,0,0,0,0,0]
[20,null,null,null,"Tasikmalaya,08 Juli 2004",0,null,null,null,null,null,null,null,null,null,"",null,0,0,0,null,null,null,null,null,null,null,null,null,null,null,null,null,null,null,null,null,null,null,null,null,null,null,null,null,null,null,null,null,null,null,0,0,null,46.666666666666664,82.5,null,0,0,0,0,0,0,0,0,0,0,0,0,0,0,0,0,0,0,0,0,0,0,0,0,null,0,0,0,0,0,0,0,0]
[21,null,null,null,"Tasikmalaya,10 Juli 2004",0,null,null,null,null,null,null,null,null,null,"",null,0,0,0,null,null,null,null,null,null,null,null,null,null,null,null,null,null,null,null,null,null,null,null,null,null,null,null,null,null,null,null,null,null,null,0,0,null,43.333333333333336,82,null,0,0,0,0,0,0,0,0,0,0,0,0,0,0,0,0,0,0,0,0,0,0,0,0,null,0,0,0,0,0,0,0,0]
[22,null,null,null,"Tasikmalaya,23 Desember 2003",0,null,null,null,null,null,null,null,null,null,"",null,0,0,0,null,null,null,null,null,null,null,null,null,null,null,null,null,null,null,null,null,null,null,null,null,null,null,null,null,null,null,null,null,null,null,0,0,null,30,80,null,0,0,0,0,0,0,0,0,0,0,0,0,0,0,0,0,0,0,0,0,0,0,0,0,null,0,0,0,0,0,0,0,0]
[23,null,null,null,"TASIKMALAYA,12 Mei 2005",0,null,null,null,null,null,null,null,null,null,"",null,0,0,0,null,null,null,null,null,null,null,null,null,null,null,null,null,null,null,null,null,null,null,null,null,null,null,null,null,null,null,null,null,null,null,0,0,null,30,80,null,0,0,0,0,0,0,0,0,0,0,0,0,0,0,0,0,0,0,0,0,0,0,0,0,null,0,0,0,0,0,0,0,0]
[24,null,null,null,null,0,null,null,null,null,null,null,null,null,null,"",null,0,0,0,null,null,null,null,null,null,null,null,null,null,null,null,null,null,null,null,null,null,null,null,null,null,null,null,null,null,null,null,null,null,null,0,0,null,30,80,null,0,0,0,0,0,0,0,0,0,0,0,0,0,0,0,0,0,0,0,0,0,0,0,0,null,0,0,0,0,0,0,0,0]
[25,null,null,null,null,0,null,null,null,null,null,null,null,null,null,"",null,0,0,0,null,null,null,null,null,null,null,null,null,null,null,null,null,null,null,null,null,null,null,null,null,null,null,null,null,null,null,null,null,null,null,0,0,null,43.333333333333336,82,null,0,0,0,0,0,0,0,0,0,0,0,0,0,0,0,0,0,0,0,0,0,0,0,0,null,0,0,0,0,0,0,0,0]
[26,null,null,null,null,0,null,null,null,null,null,null,null,null,null,"",null,0,0,0,null,null,null,null,null,null,null,null,null,null,null,null,null,null,null,null,null,null,null,null,null,null,null,null,null,null,null,null,null,null,null,0,0,null,null,75.5,null,0,0,0,0,0,0,0,0,0,0,0,0,0,0,0,0,0,0,0,0,0,0,0,0,null,0,0,0,0,0,0,0,0]
[27,null,null,null,null,0,null,null,null,null,null,null,null,null,null,"",null,0,0,0,null,null,null,null,null,null,null,null,null,null,null,null,null,null,null,null,null,null,null,null,null,null,null,null,null,null,null,null,null,null,null,0,0,null,null,75.5,null,0,0,0,0,0,0,0,0,0,0,0,0,0,0,0,0,0,0,0,0,0,0,0,0,null,0,0,0,0,0,0,0,0]
[28,null,null,null,null,0,null,null,null,null,null,null,null,null,null,"",null,0,0,0,null,null,null,null,null,null,null,null,null,null,null,null,null,null,null,null,null,null,null,null,null,null,null,null,null,null,null,null,null,null,null,0,0,null,null,75.5,null,{"$f":"U42","v":0},0,0,{"$f":"Y42","v":0},0,0,{"$f":"AC42","v":0},0,0,{"$f":"AG42","v":0},0,0,{"$f":"AK42","v":0},0,0,{"$f":"AO42","v":0},0,0,{"$f":"AS42","v":0},0,0,{"$f":"AW42","v":0},0,0,null,0,0,0,0,0,0,0,0]
[29,null,null,null,null,0,null,null,null,null,null,null,null,null,null,"",null,0,0,0,null,null,null,null,null,null,null,null,null,null,null,null,null,null,null,null,null,null,null,null,null,null,null,null,null,null,null,null,null,null,null,0,0,null,null,75.5,null,{"$f":"U43","v":0},0,0,{"$f":"Y43","v":0},0,0,{"$f":"AC43","v":0},0,0,{"$f":"AG43","v":0},0,0,{"$f":"AK43","v":0},0,0,{"$f":"AO43","v":0},0,0,{"$f":"AS43","v":0},0,0,{"$f":"AW43","v":0},0,0,null,0,0,0,0,0,0,0,0]
[30,null,null,null,null,0,null,null,null,null,null,null,null,null,null,"",null,0,0,0,null,null,null,null,null,null,null,null,null,null,null,null,null,null,null,null,null,null,null,null,null,null,null,null,null,null,null,null,null,null,null,0,0,null,null,75.5,null,0,0,0,0,0,0,0,0,0,0,0,0,0,0,0,0,0,0,0,0,0,0,0,0,null,0,0,0,0,0,0,0,0]
[31,null,null,null,null,0,null,null,null,null,null,null,null,null,null,"",null,{"$f":"IFERROR(P45*$P$13/100+Q45*$Q$13/100,0)","v":0},0,{"$f":"AVERAGE(G45,R45)","v":0},null,null,null,null,null,null,null,null,null,null,null,null,null,null,null,null,null,null,null,null,null,null,null,null,null,null,null,null,null,null,null,0,0,null,null,75.5,null,0,0,0,0,0,0,0,0,0,0,0,0,0,0,0,0,0,0,0,0,0,0,0,0,null,0,0,0,0,0,0,0,0]
[32,null,null,null,null,0,null,null,null,null,null,null,null,null,null,"",null,{"$f":"IFERROR(P46*$P$13/100+Q46*$Q$13/100,0)","v":0},0,{"$f":"AVERAGE(G46,R46)","v":0},null,null,null,null,null,null,null,null,null,null,null,null,null,null,null,null,null,null,null,null,null,null,null,null,null,null,null,null,null,null,null,0,0,null,null,75.5,null,0,0,0,0,0,0,0,0,0,0,0,0,0,0,0,0,0,0,0,0,0,0,0,0,null,0,0,0,0,0,0,0,0]
[null,null,null,null,null,null,null,null,null,null,null,null,null,null,null,null,null,null,null,null,null,null,null,null,null,null,null,null,null,null,null,null,null,null,null,null,null,null,null,null,null,null,null,null,null,null,null,null,null,null,null,null,null,null,null,{"$f":"$C$8","v":"by ariefp_11 v13.3-622"}]

{"sheet":"dataumum","index":8,"n_rows":77,"n_cols":8,"rows_kept":77,"cut":false,"hidden":false,"merged":[[7,6,7,7],[8,6,8,7],[9,6,9,7],[15,6,15,7],[14,6,14,7],[18,6,18,7],[1,1,1,3],[2,1,2,3],[3,1,3,3],[4,1,4,3],[6,1,7,1],[6,2,7,2],[6,3,7,3],[12,6,12,7],[1,6,4,7],[17,6,17,7],[13,6,13,7],[10,6,10,7],[11,6,11,7],[5,6,5,7],[6,6,6,7]]}
[]
[null,"KEMENTERIAN AGAMA REPUBLIK INDONESIA",null,null,null,null,"MASTER NILAI KURIKULUM MERDEKA"]
[null,"KANTOR KEMENTERIAN AGAMA KABUPATEN TASIKMALAYA"]
[null,"MAN 4 TASIKMALAYA"]
[null,"Jalan Sindanghurip Ds. Cikalong Kec. Cikalong Kab. Tasikmalaya 46195"]
[null,null,null,null,null,"Nama Guru","Arief Pribadi, S.Si"]
[null,"No Abs","NISN","NAMA SISWA",null,"NIP","198603112020121005"]
[null,null,null,null,null,"Mata Pelajaran","Kimia"]
[null,1,"0095527100","AHMAD JAMIL MUNAWAR",null,"Semester","2 (Genap)"]
[null,2,"0108689880","AKBAR NUGRAHA",null,"Tahun Pelajaran","2025/2026"]
[null,3,"0101457073","ALSA NAPILA ABALIA",null,"Kelas","X-D"]
[null,4,"3098669460","ALWAN FAJRUL HAKIM",null,"KKTP",75]
[null,5,"0097476054","ANDIKA",null,"Bobot Kehadiran",30]
[null,6,"0107479079","CHINTIA NUR AZIZAH",null,"Bobot Sumatif",{"$f":"100-G13","v":70}]
[null,7,"0095178395","DEDE AULIA",null,"Jenis Asesmen Sumatif","ASAT"]
[null,8,"0097071532","DIRLI PIRMANSAH REZA",null,"Bobot Nilai Rerata Sumatif",70]
[null,9,"0085525399","EKSEL",null,"Bobot Nilai ASAS/ASAT",{"$f":"100-G16","v":30}]
[null,10,"0099271082","FADLAN APANDI",null,"Tanggal Rapor"]
[null,11,"3109814391","HAYA MADIHATUL ISMAH",null,"Nama File","X-D"]
[null,12,"3094762585","HIKAYATUL JABAL",null,null,null,"versi 07.01.26 by AP_11"]
[null,13,"0105251526","IHSAN NURSALAM",null,null,null,"HP. 082140206782"]
[null,14,"3095547483","IZAD NOOR JAMAN"]
[null,15,"0093659815","JIHAN NURROHMAH SEPTIRA"]
[null,16,"3090540244","KAKA SEPTIAN"]
[null,17,"0088283383","LUTPI"]
[null,18,"3096008382","M SUGIH MIWAHA"]
[null,19,"0093656626","MUHLIS"]
[null,20,"0097902846","NURAFIFAH FAUZIAH"]
[null,21,"0088756415","REPAN"]
[null,22,"0095868392","REZA NURUL WILDAN"]
[null,23,"3095334952","SYIFA NURJANAH"]
[null,24,"0093189091","WINDI PUJIA SAFITRI"]
[null,25,"0096749734","WULAN RESPIANI"]
[null,26,"0099314795","YESI DESTRIYANI"]
[null,27]
[null,28]
[null,29]
[null,30]
[null,31]
[null,32]
[null,33]
[null,34]
[null,35]
[null,36]
[null,37]
[null,38]
[null,39]
[null,40]
[null,null,null,{"$f":"COUNTA(D9:D48)","v":26}]
[null,1,"Al Qur'an Hadis","X-A",null,"ASAS"]
[null,2,"Akidah Akhlak","X-B",null,"ASAT"]
[null,3,"Fikih","X-C"]
[null,4,"Sejarah Kebudayaan Islam","X-D"]
[null,5,"Bahasa Arab","X-E"]
[null,6,"Pendidikan Pancasila","X-F"]
[null,7,"Bahasa Indonesia","XI-A"]
[null,8,"Matematika","XI-B"]
[null,9,"IPA-Biologi","XI-C"]
[null,10,"IPA-Fisika","XI-D"]
[null,11,"IPA-Kimia","XI-E"]
[null,12,"IPS-Ekonomi","XI-F"]
[null,13,"IPS-Geografi","XII-A"]
[null,14,"IPS-Sosiologi","XII-B"]
[null,15,"Bahasa Inggris","XII-C"]
[null,16,"Penjaskes","XII-D"]
[null,17,"Sejarah","XII-E"]
[null,18,"Informatika","XII-F"]
[null,19,"Seni Budaya"]
[null,20,"Muatan Lokal"]
[null,21,"Biologi"]
[null,22,"Fisika"]
[null,23,"Kimia"]
[null,24,"Matematika Tingkat Lanjut"]
[null,25,"Sejarah Tingkat Lanjut"]
[null,26,"Ekonomi"]
[null,27,"Geografi"]
[null,28,"Sosiologi"]

{"sheet":"post","index":9,"n_rows":27,"n_cols":26,"rows_kept":27,"cut":false,"hidden":false,"merged":[[12,2,12,3],[12,4,12,5],[13,4,13,5],[14,4,14,5],[15,4,15,5],[8,5,10,5],[12,12,12,13],[22,4,22,5],[16,4,16,5],[17,4,17,5],[18,4,18,5],[19,4,19,5],[20,4,20,5],[21,4,21,5]]}
[]
[null,"POST PELAKSANAAN PEMBELAJARAN",null,null,null,null,null,null,null,"Data Semester 1",null,"Data Semester 2"]
[null,null,null,null,null,null,null,null,null,"Jumlah Hari Efektif",null,"Jumlah Hari Efektif"]
[null,"Nama Mata Pelajaran",null,null,":",{"$f":"dataumum!G8","v":"Kimia"},null,null,null,"Jumlah Hari Fakultatif",null,"Jumlah Hari Fakultatif"]
[null,"Guru Pengampu",null,null,":",{"$f":"dataumum!G6","v":"Arief Pribadi, S.Si"},null,null,null,"Jumlah Jam Efektif",null,"Jumlah Jam Efektif"]
[null,"Kelas",null,null,":",{"$f":"dataumum!G11","v":"X-D"},null,null,null,"Jumlah Jam Fakultatif",null,"Jumlah Jam Fakultatif",null,null,null,null,null,null,null,null,null,null,null,"ASAS","PAS1","asesmen sumatif akhir semester"]
[null,"Semester",null,null,":",{"$f":"dataumum!G9","v":"2 (Genap)"},null,null,null,null,null,null,null,null,null,null,null,null,null,null,null,null,null,"ASAT","PAT 1","asesmen sumatif akhir tahun"]
[null,"Tahun Ajaran",null,null,":",{"$f":"dataumum!G10","v":"2025/2026"},null,null,null,{"$f":"dataumum!G15","v":"ASAT"},{"$f":"VLOOKUP(J8,X6:Y7,2,0)","v":"PAT 1"},{"$f":"VLOOKUP(K8,Y6:Z7,2,0)","v":"asesmen sumatif akhir tahun"}]
[null,"Bahan dan Sumber Belajar",null,null,":","Buku paket fase E kelas X, modul, internet, LKPD (Lembar Kerja Peserta Didik)"]
[]
[]
[null,null,null,null,null,null,null,null,null,null,null,null,{"$f":"dataumum!H20","v":"versi 07.01.26 by AP_11"}]
[null,"No.","Tujuan Pembelajaran",null,"Materi Esensial/Kata Kunci",null,"Penilaian","Materi di RDM (max. 60 char)","KKTP","Profil Pelajar Pancasila","SMT","Bahan dan Sumber Belajar","Alokasi",null,null,null,"Char"]
[{"$f":"COUNT(C14)","v":1},1,1,"Menganalisis hubungan antara konfigurasi elektron dengan letak unsur dalam tabel periodik dan sifat keperiodikan unsur","Sistem Periodik Unsur",null,"SUM 1","menganalisis hubungan letak unsur & sifat keperiodikan",{"$f":"dataumum!$G$12","v":75},"Beriman, bertakwa kepada Tuhan Yang Maha Esa dan berakhlak mulia, berkebhinekaan global, bergotong royong, mandiri, bernalar kritis dan kreatif",{"$f":"dataumum!$G$9","v":"2 (Genap)"},{"$f":"$F$9","v":"Buku paket fase E kelas X, modul, internet, LKPD (Lembar Kerja Peserta Didik)"},{"$f":"VLOOKUP(L14,$D$25:$E$27,2,0)","v":2},"JP",null,{"$f":"LEN(H14)","v":54},{"$f":"60-P14","v":6}]
[{"$f":"COUNT(C15)","v":1},2,2,"Menerapkan konsep stoikiometri dalam berbagai aspek kuantitatif reaksi kimia;","Rumus Kimia dan Persamaan Reaksi",null,"SUM 2","menyusun dan menyetarakan persamaan reaksi sederhana",{"$f":"dataumum!$G$12","v":75},"Beriman, bertakwa kepada Tuhan Yang Maha Esa dan berakhlak mulia, berkebhinekaan global, bergotong royong, mandiri, bernalar kritis dan kreatif",{"$f":"dataumum!$G$9","v":"2 (Genap)"},{"$f":"$F$9","v":"Buku paket fase E kelas X, modul, internet, LKPD (Lembar Kerja Peserta Didik)"},{"$f":"$M$14","v":2},"JP",null,{"$f":"LEN(H15)","v":52},{"$f":"60-P15","v":8}]
[1,3,3,"Menerapkan konsep stoikiometri dalam berbagai aspek kuantitatif reaksi kimia;","Hukum Dasar Kimia",null,"SUM 3","menjelaskan hukum-hukum dasar kimia",{"$f":"dataumum!$G$12","v":75},"Beriman, bertakwa kepada Tuhan Yang Maha Esa dan berakhlak mulia, berkebhinekaan global, bergotong royong, mandiri, bernalar kritis dan kreatif",{"$f":"dataumum!$G$9","v":"2 (Genap)"},"Buku paket fase E kelas X, modul, internet, LKPD (Lembar Kerja Peserta Didik)",{"$f":"$M$14","v":2},"JP",null,{"$f":"LEN(H16)","v":35},{"$f":"60-P16","v":25}]
[1,4,4,"Menerapkan konsep IPA untuk mengatasi permasalahan berkaitan dengan perubahan iklim","Kimia Hijau",null,"SUM 4","menganalisis penerapan kimia hijau dalam kehidupan nyata",{"$f":"dataumum!$G$12","v":75},"Beriman, bertakwa kepada Tuhan Yang Maha Esa dan berakhlak mulia, berkebhinekaan global, bergotong royong, mandiri, bernalar kritis dan kreatif",{"$f":"dataumum!$G$9","v":"2 (Genap)"},"Buku paket fase E kelas X, modul, internet, LKPD (Lembar Kerja Peserta Didik)",2,"JP",null,56,4]
[0,5,null,null,null,null,"SUM 5",null,{"$f":"dataumum!$G$12","v":75},"Beriman, bertakwa kepada Tuhan Yang Maha Esa dan berakhlak mulia, berkebhinekaan global, bergotong royong, mandiri, bernalar kritis dan kreatif",{"$f":"dataumum!$G$9","v":"2 (Genap)"},"Buku paket fase E kelas X, modul, internet, LKPD (Lembar Kerja Peserta Didik)",2,"JP",null,0,60]
[0,6,null,null,null,null,"SUM 6",null,{"$f":"dataumum!$G$12","v":75},"Beriman, bertakwa kepada Tuhan Yang Maha Esa dan berakhlak mulia, berkebhinekaan global, bergotong royong, mandiri, bernalar kritis dan kreatif",{"$f":"dataumum!$G$9","v":"2 (Genap)"},"Buku paket fase E kelas X, modul, internet, LKPD (Lembar Kerja Peserta Didik)",2,"JP",null,0,60]
[0,7,null,null,null,null,"SUM 7",null,{"$f":"dataumum!$G$12","v":75},"Beriman, bertakwa kepada Tuhan Yang Maha Esa dan berakhlak mulia, berkebhinekaan global, bergotong royong, mandiri, bernalar kritis dan kreatif",{"$f":"dataumum!$G$9","v":"2 (Genap)"},"Buku paket fase E kelas X, modul, internet, LKPD (Lembar Kerja Peserta Didik)",2,"JP",null,0,60]
[0,8,null,null,null,null,"SUM 8",null,{"$f":"dataumum!$G$12","v":75},"Beriman, bertakwa kepada Tuhan Yang Maha Esa dan berakhlak mulia, berkebhinekaan global, bergotong royong, mandiri, bernalar kritis dan kreatif",{"$f":"dataumum!$G$9","v":"2 (Genap)"},"Buku paket fase E kelas X, modul, internet, LKPD (Lembar Kerja Peserta Didik)",2,"JP",null,0,60]
[0,9,null,null,null,null,"SUM 9",null,{"$f":"dataumum!$G$12","v":75},"Beriman, bertakwa kepada Tuhan Yang Maha Esa dan berakhlak mulia, berkebhinekaan global, bergotong royong, mandiri, bernalar kritis dan kreatif",{"$f":"dataumum!$G$9","v":"2 (Genap)"},"Buku paket fase E kelas X, modul, internet, LKPD (Lembar Kerja Peserta Didik)",2,"JP",null,0,60]
[0,10,null,null,null,null,"SUM 10",null,{"$f":"dataumum!$G$12","v":75},"Beriman, bertakwa kepada Tuhan Yang Maha Esa dan berakhlak mulia, berkebhinekaan global, bergotong royong, mandiri, bernalar kritis dan kreatif",{"$f":"dataumum!$G$9","v":"2 (Genap)"},"Buku paket fase E kelas X, modul, internet, LKPD (Lembar Kerja Peserta Didik)",2,"JP",null,0,60]
[]
[null,null,null,"Buku paket fase E kelas X, modul, internet, LKPD (Lembar Kerja Peserta Didik)",2]
[null,null,null,"Buku paket fase F kelas XI, modul, internet, LKPD (Lembar Kerja Peserta Didik)",5]
[null,null,null,"Buku paket fase F kelas XII, modul, internet, LKPD (Lembar Kerja Peserta Didik)",5]

{"sheet":"semester","index":10,"n_rows":58,"n_cols":80,"rows_kept":58,"cut":false,"hidden":false,"merged":[[5,10,5,14],[6,10,6,11],[6,13,6,14],[57,1,57,6],[10,47,15,47],[56,1,56,6],[11,45,11,46],[12,45,12,46],[14,43,14,46],[14,31,14,34],[11,21,11,22],[12,21,12,22],[11,25,11,26],[12,25,12,26],[11,29,11,30],[10,1,15,1],[10,2,15,2],[10,5,15,5],[10,6,15,6],[10,7,10,46],[11,9,11,10],[12,9,12,10],[11,13,11,14],[12,13,12,14],[11,17,11,18],[12,17,12,18],[14,35,14,38],[12,41,12,42],[11,33,11,34],[12,33,12,34],[11,37,11,38],[52,3,52,4],[53,3,53,4],[54,3,54,4],[55,3,55,4],[14,39,14,42],[51,3,51,4],[23,3,23,4],[24,3,24,4],[25,3,25,4],[26,3,26,4],[46,3,46,4],[47,3,47,4],[48,3,48,4],[39,3,39,4],[40,3,40,4],[41,3,41,4],[21,3,21,4],[22,3,22,4],[34,3,34,4],[35,3,35,4],[36,3,36,4],[33,3,33,4],[18,3,18,4],[10,3,15,4],[49,3,49,4],[50,3,50,4],[38,3,38,4],[27,3,27,4],[28,3,28,4],[29,3,29,4],[30,3,30,4],[31,3,31,4],[32,3,32,4],[37,3,37,4],[42,3,42,4],[43,3,43,4],[44,3,44,4],[45,3,45,4],[7,10,7,11],[14,7,14,10],[16,3,16,4],[17,3,17,4],[12,29,12,30],[2,22,3,47],[19,3,19,4],[20,3,20,4],[7,13,7,14],[10,51,15,51],[10,50,15,50],[10,48,10,49],[11,48,12,49],[14,48,14,49],[14,15,14,18],[14,11,14,14],[14,19,14,22],[14,23,14,26],[14,27,14,30],[12,37,12,38],[11,41,11,42]]}
[]
[]
[null,"DATA CAPAIAN HASIL BELAJAR",null,null,null,null,null,null,null,":",null,null,null,null,null,null,null,null,null,null,null,null,"APLIKASI NILAI KURMER 2025",null,null,null,null,null,null,null,null,null,null,null,null,null,null,null,null,null,null,null,null,null,null,null,null,null,null,null,null,null,null,null,null,null,null,null,null,null,null,null,null,null,null,null,{"$f":"K7/100","v":0.3},null,{"$f":"N7/100","v":0.7}]
[]
[null,"Nama Mata Pelajaran",null,":",{"$f":"dataumum!G8","v":"Kimia"}]
[null,"Kelas",null,":",{"$f":"dataumum!G11","v":"X-D"},null,null,null,null,null,"BOBOT NILAI"]
[null,"Semester",null,":",{"$f":"dataumum!G9","v":"2 (Genap)"},null,null,null,null,null,{"$f":"dataumum!G13","v":30},null,null,{"$f":"dataumum!G14","v":70}]
[null,"Tahun Ajaran",null,":",{"$f":"dataumum!G10","v":"2025/2026"},null,null,null,null,null,"Kehadiran",null,null,"Sumatif",null,null,"X",null,null,null,"X",null,null,null,"X",null,null,null,"X",null,null,null,"X",null,null,null,"X",null,null,null,"X","X",null,null,null,"X"]
[null,"Nama Guru Pengampu",null,":",{"$f":"dataumum!G6","v":"Arief Pribadi, S.Si"},null,null,null,null,null,null,null,null,null,null,null,"V",null,null,null,"V",null,null,null,"V",null,null,null,"V",null,null,null,"V",null,null,null,"V",null,null,null,"V","V"]
[null,null,null,null,null,null,null,{"$f":"IF(COUNT(H17:H56)>0,1,0)","v":1},{"$f":"IF(COUNT(I17:I56)>0,1,0)","v":0},null,{"$f":"SUM(H10:I10)","v":1},{"$f":"IF(COUNT(L17:L56)>0,1,0)","v":1},{"$f":"IF(COUNT(M17:M56)>0,1,0)","v":0},null,{"$f":"SUM(L10:M10)","v":1},{"$f":"IF(COUNT(P17:P56)>0,1,0)","v":1},{"$f":"IF(COUNT(Q17:Q56)>0,1,0)","v":0},null,{"$f":"SUM(P10:Q10)","v":1},{"$f":"IF(COUNT(T17:T56)>0,1,0)","v":1},{"$f":"IF(COUNT(U17:U56)>0,1,0)","v":0},null,{"$f":"SUM(T10:U10)","v":1},{"$f":"IF(COUNT(X17:X56)>0,1,0)","v":1},{"$f":"IF(COUNT(Y17:Y56)>0,1,0)","v":0},null,{"$f":"SUM(X10:Y10)","v":1},{"$f":"IF(COUNT(AB17:AB56)>0,1,0)","v":1},{"$f":"IF(COUNT(AC17:AC56)>0,1,0)","v":0},null,{"$f":"SUM(AB10:AC10)","v":1},{"$f":"IF(COUNT(AF17:AF56)>0,1,0)","v":1},{"$f":"IF(COUNT(AG17:AG56)>0,1,0)","v":0},null,{"$f":"SUM(AF10:AG10)","v":1},{"$f":"IF(COUNT(AJ17:AJ56)>0,1,0)","v":1},{"$f":"IF(COUNT(AK17:AK56)>0,1,0)","v":0},null,{"$f":"SUM(AJ10:AK10)","v":1},{"$f":"IF(COUNT(AN17:AN56)>0,1,0)","v":1},{"$f":"IF(COUNT(AO17:AO56)>0,1,0)","v":0},null,{"$f":"SUM(AN10:AO10)","v":1},{"$f":"IF(COUNT(AR17:AR56)>0,1,0)","v":1},{"$f":"IF(COUNT(AS17:AS56)>0,1,0)","v":0},null,{"$f":"SUM(AR10:AS10)","v":1},null,null,null,null,{"$f":"dataumum!H20","v":"versi 07.01.26 by AP_11"}]
[null,"No","Nama Peserta Didik","NISN",null,"Gender (L/P)","Inklusi (Y/T)","NILAI SUMATIF",null,null,null,null,null,null,null,null,null,null,null,null,null,null,null,null,null,null,null,null,null,null,null,null,null,null,null,null,null,null,null,null,null,null,null,null,null,null,null,"NILAI RATA-RATA SUMATIF","N_AS",null,"NILAI RATA-RATA ASESMEN SUMATIF","NILAI RAPOR"]
[null,null,null,null,null,null,null,"No. TP",null,{"$f":"post!C14","v":1},null,"No. TP",null,{"$f":"post!C15","v":2},null,"No. TP",null,{"$f":"post!C16","v":3},null,"No. TP",null,{"$f":"post!C17","v":4},null,"No. TP",null,{"$f":"post!C18","v":0},null,"No. TP",null,{"$f":"post!C19","v":0},null,"No. TP",null,{"$f":"post!C20","v":0},null,"No. TP",null,{"$f":"post!C21","v":0},null,"No. TP",null,{"$f":"post!C22","v":0},null,"No. TP",null,{"$f":"post!C23","v":0},null,null,{"$f":"dataumum!G15","v":"ASAT"}]
[null,null,null,null,null,null,null,"KKTP",null,{"$f":"post!I14","v":75},null,"KKTP",null,{"$f":"post!I15","v":75},null,"KKTP",null,{"$f":"post!I16","v":75},null,"KKTP",null,{"$f":"post!I17","v":75},null,"KKTP",null,{"$f":"post!I18","v":75},null,"KKTP",null,{"$f":"post!I19","v":75},null,"KKTP",null,{"$f":"post!I20","v":75},null,"KKTP",null,{"$f":"post!I21","v":75},null,"KKTP",null,{"$f":"post!I22","v":75},null,"KKTP",null,{"$f":"post!I23","v":75},null,null,null,null,null,null,null,{"$f":"IF(COUNT(BB17:BB56)>0,1,0)","v":1},{"$f":"IF(COUNT(BC17:BC56)>0,1,0)","v":1},1,1,1,1,1,1,1,1,{"$f":"SUM(BB13:BK13)","v":10},null,null,null,null,1,2,3,4,5,6,7,8,9,10]
[]
[null,null,null,null,null,null,null,{"$f":"IFERROR(post!D14,\"\")","v":"Menganalisis hubungan antara konfigurasi elektron dengan letak unsur dalam tabel periodik dan sifat keperiodikan unsur"},null,null,null,{"$f":"IFERROR(post!D15,\"\")","v":"Menerapkan konsep stoikiometri dalam berbagai aspek kuantitatif reaksi kimia;"},null,null,null,{"$f":"IFERROR(post!D16,\"\")","v":"Menerapkan konsep stoikiometri dalam berbagai aspek kuantitatif reaksi kimia;"},null,null,null,{"$f":"IFERROR(post!D17,\"\")","v":"Menerapkan konsep IPA untuk mengatasi permasalahan berkaitan dengan perubahan iklim"},null,null,null,{"$f":"IFERROR(post!D18,\"\")","v":0},null,null,null,{"$f":"IFERROR(post!D19,\"\")","v":0},null,null,null,{"$f":"IFERROR(post!D20,\"\")","v":0},null,null,null,{"$f":"IFERROR(post!D21,\"\")","v":0},null,null,null,{"$f":"IFERROR(post!D22,\"\")","v":0},null,null,null,{"$f":"IFERROR(post!D23,\"\")","v":0},null,null,null,null,"Pilihan Ganda dan/atau Esai",null,null,null,null,null,null,null,null,null,null,null,null,"X","Y",{"$f":"dataumum!G12-0.5","v":74.5},{"$f":"dataumum!G16/100","v":0.7},{"$f":"dataumum!G17/100","v":0.3}]
[null,null,null,null,null,null,null,"Kehadiran","Sumatif","Remedial","Nilai","Kehadiran","Sumatif","Remedial","Nilai","Kehadiran","Sumatif","Remedial","Nilai","Kehadiran","Sumatif","Remedial","Nilai","Kehadiran","Sumatif","Remedial","Nilai","Kehadiran","Sumatif","Remedial","Nilai","Kehadiran","Sumatif","Remedial","Nilai","Kehadiran","Sumatif","Remedial","Nilai","Kehadiran","Sumatif","Remedial","Nilai","Kehadiran","Sumatif","Remedial","Nilai",null,"Nilai 1","Nilai 2",null,null,null,"TP1","TP2","TP3","TP4","TP5","TP6","TP7","TP8","TP9","TP10","RTP","N1","N2",null,null,"RTP1","RTP2","RTP3","RTP4","RTP5","RTP6","RTP7","RTP8","RTP9","RTP10",{"$f":"COUNTA(post!C14:C23)","v":4},"RTP"]
[{"$f":"COUNT(D17)","v":0},1,{"$f":"dataumum!D9","v":"AHMAD JAMIL MUNAWAR"},{"$f":"dataumum!C9","v":"0095527100"},null,"L","T",{"$f":"absen!AQ12","v":100},null,{"$f":"IFERROR(IF(K17<$BL$15,$BK$15,$BJ$15),\"\")","v":"Y"},{"$f":"IFERROR(ROUNDUP((H17*$BO$3)+(I17*$BQ$3),0),\"\")","v":30},{"$f":"H17","v":100},null,{"$f":"IFERROR(IF(O17<$BL$15,$BK$15,$BJ$15),\"\")","v":"Y"},{"$f":"IFERROR(ROUNDUP((L17*$BO$3)+(M17*$BQ$3),0),\"\")","v":30},{"$f":"L17","v":100},null,{"$f":"IFERROR(IF(S17<$BL$15,$BK$15,$BJ$15),\"\")","v":"Y"},{"$f":"IFERROR(ROUNDUP((P17*$BO$3)+(Q17*$BQ$3),0),\"\")","v":30},{"$f":"P17","v":100},null,{"$f":"IFERROR(IF(W17<$BL$15,$BK$15,$BJ$15),\"\")","v":"Y"},{"$f":"IFERROR(ROUNDUP((T17*$BO$3)+(U17*$BQ$3),0),\"\")","v":30},{"$f":"T17","v":100},null,{"$f":"IFERROR(IF(AA17<$BL$15,$BK$15,$BJ$15),\"\")","v":"Y"},{"$f":"IFERROR(ROUNDUP((X17*$BO$3)+(Y17*$BQ$3),0),\"\")","v":30},{"$f":"X17","v":100},null,{"$f":"IFERROR(IF(AE17<$BL$15,$BK$15,$BJ$15),\"\")","v":"Y"},{"$f":"IFERROR(ROUNDUP((AB17*$BO$3)+(AC17*$BQ$3),0),\"\")","v":30},{"$f":"AB17","v":100},null,{"$f":"IFERROR(IF(AI17<$BL$15,$BK$15,$BJ$15),\"\")","v":"Y"},{"$f":"IFERROR(ROUNDUP((AF17*$BO$3)+(AG17*$BQ$3),0),\"\")","v":30},{"$f":"AF17","v":100},null,{"$f":"IFERROR(IF(AM17<$BL$15,$BK$15,$BJ$15),\"\")","v":"Y"},{"$f":"IFERROR(ROUNDUP((AJ17*$BO$3)+(AK17*$BQ$3),0),\"\")","v":30},{"$f":"AJ17","v":100},null,{"$f":"IFERROR(IF(AQ17<$BL$15,$BK$15,$BJ$15),\"\")","v":"Y"},{"$f":"IFERROR(ROUNDUP((AN17*$BO$3)+(AO17*$BQ$3),0),\"\")","v":30},{"$f":"AN17","v":100},null,{"$f":"IFERROR(IF(AU17<$BL$15,$BK$15,$BJ$15),\"\")","v":"Y"},{"$f":"IFERROR(ROUNDUP((AR17*$BO$3)+(AS17*$BQ$3),0),\"\")","v":30},{"$f":"BL17","v":30},90,null,{"$f":"IFERROR(AVERAGEIF(AW17:AX17,\"<>0\"),\"\")","v":90},{"$f":"IFERROR((AV17*$BM$15)+(AY17*$BN$15),\"\")","v":48},null,{"$f":"K17","v":30},{"$f":"O17","v":30},{"$f":"S17","v":30},{"$f":"W17","v":30},{"$f":"AA17","v":30},{"$f":"AE17","v":30},{"$f":"AI17","v":30},{"$f":"AM17","v":30},{"$f":"AQ17","v":30},{"$f":"AU17","v":30},{"$f":"CB17","v":30},{"$f":"AW17","v":90},{"$f":"AX17","v":0},null,{"$f":"CA17","v":5},{"$f":"BB17","v":30},{"$f":"IFERROR(IF(COUNT(BB17:BC17)<1,\"\",ROUND(SUM(BB17:BC17)/$BR$13,0)),0)","v":30},{"$f":"IFERROR(IF(COUNT(BB17:BD17)<1,\"\",ROUND(SUM(BB17:BD17)/$BS$13,0)),0)","v":30},{"$f":"IFERROR(IF(COUNT(BB17:BE17)<1,\"\",ROUND(SUM(BB17:BE17)/$BT$13,0)),0)","v":30},{"$f":"IFERROR(IF(COUNT(BB17:BF17)<1,\"\",ROUND(SUM(BB17:BF17)/$BU$13,0)),0)","v":30},{"$f":"IFERROR(IF(COUNT(BB17:BG17)<1,\"\",ROUND(SUM(BB17:BG17)/$BV$13,0)),0)","v":30},{"$f":"IFERROR(IF(COUNT(BB17:BH17)<1,\"\",ROUND(SUM(BB17:BH17)/$BW$13,0)),0)","v":30},{"$f":"IFERROR(IF(COUNT(BB17:BI17)<1,\"\",ROUND(SUM(BB17:BI17)/$BX$13,0)),0)","v":30},{"$f":"IFERROR(IF(COUNT(BB17:BJ17)<1,\"\",ROUND(SUM(BB17:BJ17)/$BY$13,0)),0)","v":30},{"$f":"IFERROR(IF(COUNT(BB17:BK17)<1,\"\",ROUND(SUM(BB17:BK17)/$BZ$13,0)),0)","v":30},{"$f":"$CA$16+1","v":5},{"$f":"VLOOKUP(CA17,BP17:BZ17,CA17,TRUE)","v":30}]
[{"$f":"COUNT(D18)","v":0},2,{"$f":"dataumum!D10","v":"AKBAR NUGRAHA"},{"$f":"dataumum!C10","v":"0108689880"},null,"L","T",{"$f":"absen!AQ13","v":""},null,"X",{"$f":"IFERROR(ROUNDUP((H18*$BO$3)+(I18*$BQ$3),0),\"\")","v":""},{"$f":"H18","v":""},null,"X",{"$f":"IFERROR(ROUNDUP((L18*$BO$3)+(M18*$BQ$3),0),\"\")","v":""},{"$f":"L18","v":""},null,"X",{"$f":"IFERROR(ROUNDUP((P18*$BO$3)+(Q18*$BQ$3),0),\"\")","v":""},{"$f":"P18","v":""},null,"X",{"$f":"IFERROR(ROUNDUP((T18*$BO$3)+(U18*$BQ$3),0),\"\")","v":""},{"$f":"T18","v":""},null,"X",{"$f":"IFERROR(ROUNDUP((X18*$BO$3)+(Y18*$BQ$3),0),\"\")","v":""},{"$f":"X18","v":""},null,"X",{"$f":"IFERROR(ROUNDUP((AB18*$BO$3)+(AC18*$BQ$3),0),\"\")","v":""},{"$f":"AB18","v":""},null,"X",{"$f":"IFERROR(ROUNDUP((AF18*$BO$3)+(AG18*$BQ$3),0),\"\")","v":""},{"$f":"AF18","v":""},null,"X",{"$f":"IFERROR(ROUNDUP((AJ18*$BO$3)+(AK18*$BQ$3),0),\"\")","v":""},{"$f":"AJ18","v":""},null,"X",{"$f":"IFERROR(ROUNDUP((AN18*$BO$3)+(AO18*$BQ$3),0),\"\")","v":""},{"$f":"AN18","v":""},null,"X",{"$f":"IFERROR(ROUNDUP((AR18*$BO$3)+(AS18*$BQ$3),0),\"\")","v":""},{"$f":"BL18","v":""},85,null,85,{"$f":"IFERROR((AV18*$BM$15)+(AY18*$BN$15),\"\")","v":""},null,"","","","","","","","","","",{"$f":"CB18","v":""},85,0,null,{"$f":"CA18","v":5},{"$f":"BB18","v":""},{"$f":"IFERROR(IF(COUNT(BB18:BC18)<1,\"\",ROUND(SUM(BB18:BC18)/$BR$13,0)),0)","v":""},{"$f":"IFERROR(IF(COUNT(BB18:BD18)<1,\"\",ROUND(SUM(BB18:BD18)/$BS$13,0)),0)","v":""},{"$f":"IFERROR(IF(COUNT(BB18:BE18)<1,\"\",ROUND(SUM(BB18:BE18)/$BT$13,0)),0)","v":""},{"$f":"IFERROR(IF(COUNT(BB18:BF18)<1,\"\",ROUND(SUM(BB18:BF18)/$BU$13,0)),0)","v":""},{"$f":"IFERROR(IF(COUNT(BB18:BG18)<1,\"\",ROUND(SUM(BB18:BG18)/$BV$13,0)),0)","v":""},{"$f":"IFERROR(IF(COUNT(BB18:BH18)<1,\"\",ROUND(SUM(BB18:BH18)/$BW$13,0)),0)","v":""},{"$f":"IFERROR(IF(COUNT(BB18:BI18)<1,\"\",ROUND(SUM(BB18:BI18)/$BX$13,0)),0)","v":""},{"$f":"IFERROR(IF(COUNT(BB18:BJ18)<1,\"\",ROUND(SUM(BB18:BJ18)/$BY$13,0)),0)","v":""},{"$f":"IFERROR(IF(COUNT(BB18:BK18)<1,\"\",ROUND(SUM(BB18:BK18)/$BZ$13,0)),0)","v":""},{"$f":"$CA$16+1","v":5},{"$f":"VLOOKUP(CA18,BP18:BZ18,CA18,TRUE)","v":""}]
[0,3,{"$f":"dataumum!D11","v":"ALSA NAPILA ABALIA"},{"$f":"dataumum!C11","v":"0101457073"},null,"P","T",{"$f":"absen!AQ14","v":100},null,"Y",30,100,null,"Y",30,100,null,"Y",30,100,null,"Y",30,100,null,"Y",30,100,null,"Y",30,100,null,"Y",30,100,null,"Y",30,100,null,"Y",30,100,null,"Y",30,30,80,null,80,45,null,30,30,30,30,30,30,30,30,30,30,30,80,0,null,5,30,30,30,30,30,30,30,30,30,30,5,30]
[0,4,{"$f":"dataumum!D12","v":"ALWAN FAJRUL HAKIM"},{"$f":"dataumum!C12","v":"3098669460"},null,"L","T",{"$f":"absen!AQ15","v":100},null,"Y",30,100,null,"Y",30,100,null,"Y",30,100,null,"Y",30,100,null,"Y",30,100,null,"Y",30,100,null,"Y",30,100,null,"Y",30,100,null,"Y",30,100,null,"Y",30,30,null,null,"","",null,30,30,30,30,30,30,30,30,30,30,30,0,0,null,5,30,30,30,30,30,30,30,30,30,30,5,30]
[0,5,{"$f":"dataumum!D13","v":"ANDIKA"},{"$f":"dataumum!C13","v":"0097476054"},null,"L","T",{"$f":"absen!AQ16","v":100},null,"Y",30,100,null,"Y",30,100,null,"Y",30,100,null,"Y",30,100,null,"Y",30,100,null,"Y",30,100,null,"Y",30,100,null,"Y",30,100,null,"Y",30,100,null,"Y",30,30,null,null,"","",null,30,30,30,30,30,30,30,30,30,30,30,0,0,null,5,30,30,30,30,30,30,30,30,30,30,5,30]
[0,6,{"$f":"dataumum!D14","v":"CHINTIA NUR AZIZAH"},{"$f":"dataumum!C14","v":"0107479079"},null,"P","T",{"$f":"absen!AQ17","v":""},null,"X","","",null,"X","","",null,"X","","",null,"X","","",null,"X","","",null,"X","","",null,"X","","",null,"X","","",null,"X","","",null,"X","","",null,null,"","",null,"","","","","","","","","","","",0,0,null,5,"","","","","","","","","","",5,""]
[0,7,{"$f":"dataumum!D15","v":"DEDE AULIA"},{"$f":"dataumum!C15","v":"0095178395"},null,"P","T",{"$f":"absen!AQ18","v":100},null,"Y",30,100,null,"Y",30,100,null,"Y",30,100,null,"Y",30,100,null,"Y",30,100,null,"Y",30,100,null,"Y",30,100,null,"Y",30,100,null,"Y",30,100,null,"Y",30,30,null,null,"","",null,30,30,30,30,30,30,30,30,30,30,30,0,0,null,5,30,30,30,30,30,30,30,30,30,30,5,30]
[0,8,{"$f":"dataumum!D16","v":"DIRLI PIRMANSAH REZA"},{"$f":"dataumum!C16","v":"0097071532"},null,"L","T",{"$f":"absen!AQ19","v":""},null,"X","","",null,"X","","",null,"X","","",null,"X","","",null,"X","","",null,"X","","",null,"X","","",null,"X","","",null,"X","","",null,"X","","",null,null,"","",null,"","","","","","","","","","","",0,0,null,5,"","","","","","","","","","",5,""]
[0,9,{"$f":"dataumum!D17","v":"EKSEL"},{"$f":"dataumum!C17","v":"0085525399"},null,"L","T",{"$f":"absen!AQ20","v":""},null,"X","","",null,"X","","",null,"X","","",null,"X","","",null,"X","","",null,"X","","",null,"X","","",null,"X","","",null,"X","","",null,"X","","",null,null,"","",null,"","","","","","","","","","","",0,0,null,5,"","","","","","","","","","",5,""]
[0,10,{"$f":"dataumum!D18","v":"FADLAN APANDI"},{"$f":"dataumum!C18","v":"0099271082"},null,"L","T",{"$f":"absen!AQ21","v":100},null,"Y",30,100,null,"Y",30,100,null,"Y",30,100,null,"Y",30,100,null,"Y",30,100,null,"Y",30,100,null,"Y",30,100,null,"Y",30,100,null,"Y",30,100,null,"Y",30,30,null,null,"","",null,30,30,30,30,30,30,30,30,30,30,30,0,0,null,5,30,30,30,30,30,30,30,30,30,30,5,30]
[0,11,{"$f":"dataumum!D19","v":"HAYA MADIHATUL ISMAH"},{"$f":"dataumum!C19","v":"3109814391"},null,"P","T",{"$f":"absen!AQ22","v":100},null,"Y",30,100,null,"Y",30,100,null,"Y",30,100,null,"Y",30,100,null,"Y",30,100,null,"Y",30,100,null,"Y",30,100,null,"Y",30,100,null,"Y",30,100,null,"Y",30,30,null,null,"","",null,30,30,30,30,30,30,30,30,30,30,30,0,0,null,5,30,30,30,30,30,30,30,30,30,30,5,30]
[0,12,{"$f":"dataumum!D20","v":"HIKAYATUL JABAL"},{"$f":"dataumum!C20","v":"3094762585"},null,"L","T",{"$f":"absen!AQ23","v":""},null,"X","","",null,"X","","",null,"X","","",null,"X","","",null,"X","","",null,"X","","",null,"X","","",null,"X","","",null,"X","","",null,"X","","",null,null,"","",null,"","","","","","","","","","","",0,0,null,5,"","","","","","","","","","",5,""]
[0,13,{"$f":"dataumum!D21","v":"IHSAN NURSALAM"},{"$f":"dataumum!C21","v":"0105251526"},null,"L","T",{"$f":"absen!AQ24","v":""},null,"X","","",null,"X","","",null,"X","","",null,"X","","",null,"X","","",null,"X","","",null,"X","","",null,"X","","",null,"X","","",null,"X","","",null,null,"","",null,"","","","","","","","","","","",0,0,null,5,"","","","","","","","","","",5,""]
[0,14,{"$f":"dataumum!D22","v":"IZAD NOOR JAMAN"},{"$f":"dataumum!C22","v":"3095547483"},null,"L","T",{"$f":"absen!AQ25","v":100},null,"Y",30,100,null,"Y",30,100,null,"Y",30,100,null,"Y",30,100,null,"Y",30,100,null,"Y",30,100,null,"Y",30,100,null,"Y",30,100,null,"Y",30,100,null,"Y",30,30,null,null,"","",null,30,30,30,30,30,30,30,30,30,30,30,0,0,null,5,30,30,30,30,30,30,30,30,30,30,5,30]
[0,15,{"$f":"dataumum!D23","v":"JIHAN NURROHMAH SEPTIRA"},{"$f":"dataumum!C23","v":"0093659815"},null,"P","T",{"$f":"absen!AQ26","v":100},null,"Y",30,100,null,"Y",30,100,null,"Y",30,100,null,"Y",30,100,null,"Y",30,100,null,"Y",30,100,null,"Y",30,100,null,"Y",30,100,null,"Y",30,100,null,"Y",30,30,null,null,"","",null,30,30,30,30,30,30,30,30,30,30,30,0,0,null,5,30,30,30,30,30,30,30,30,30,30,5,30]
[0,16,{"$f":"dataumum!D24","v":"KAKA SEPTIAN"},{"$f":"dataumum!C24","v":"3090540244"},null,"L","T",{"$f":"absen!AQ27","v":""},null,"X","","",null,"X","","",null,"X","","",null,"X","","",null,"X","","",null,"X","","",null,"X","","",null,"X","","",null,"X","","",null,"X","","",null,null,"","",null,"","","","","","","","","","","",0,0,null,5,"","","","","","","","","","",5,""]
[0,17,{"$f":"dataumum!D25","v":"LUTPI"},{"$f":"dataumum!C25","v":"0088283383"},null,"L","T",{"$f":"absen!AQ28","v":""},null,"X","","",null,"X","","",null,"X","","",null,"X","","",null,"X","","",null,"X","","",null,"X","","",null,"X","","",null,"X","","",null,"X","","",null,null,"","",null,"","","","","","","","","","","",0,0,null,5,"","","","","","","","","","",5,""]
[0,18,{"$f":"dataumum!D26","v":"M SUGIH MIWAHA"},{"$f":"dataumum!C26","v":"3096008382"},null,"L","T",{"$f":"absen!AQ29","v":100},null,"Y",30,100,null,"Y",30,100,null,"Y",30,100,null,"Y",30,100,null,"Y",30,100,null,"Y",30,100,null,"Y",30,100,null,"Y",30,100,null,"Y",30,100,null,"Y",30,30,null,null,"","",null,30,30,30,30,30,30,30,30,30,30,30,0,0,null,5,30,30,30,30,30,30,30,30,30,30,5,30]
[0,19,{"$f":"dataumum!D27","v":"MUHLIS"},{"$f":"dataumum!C27","v":"0093656626"},null,"L","T",{"$f":"absen!AQ30","v":""},null,"X","","",null,"X","","",null,"X","","",null,"X","","",null,"X","","",null,"X","","",null,"X","","",null,"X","","",null,"X","","",null,"X","","",null,null,"","",null,"","","","","","","","","","","",0,0,null,5,"","","","","","","","","","",5,""]
[0,20,{"$f":"dataumum!D28","v":"NURAFIFAH FAUZIAH"},{"$f":"dataumum!C28","v":"0097902846"},null,"P","T",{"$f":"absen!AQ31","v":100},null,"Y",30,100,null,"Y",30,100,null,"Y",30,100,null,"Y",30,100,null,"Y",30,100,null,"Y",30,100,null,"Y",30,100,null,"Y",30,100,null,"Y",30,100,null,"Y",30,30,null,null,"","",null,30,30,30,30,30,30,30,30,30,30,30,0,0,null,5,30,30,30,30,30,30,30,30,30,30,5,30]
[0,21,{"$f":"dataumum!D29","v":"REPAN"},{"$f":"dataumum!C29","v":"0088756415"},null,"L","T",{"$f":"absen!AQ32","v":""},null,"X","","",null,"X","","",null,"X","","",null,"X","","",null,"X","","",null,"X","","",null,"X","","",null,"X","","",null,"X","","",null,"X","","",null,null,"","",null,"","","","","","","","","","","",0,0,null,5,"","","","","","","","","","",5,""]
[0,22,{"$f":"dataumum!D30","v":"REZA NURUL WILDAN"},{"$f":"dataumum!C30","v":"0095868392"},null,"L","T",{"$f":"absen!AQ33","v":100},null,"Y",30,100,null,"Y",30,100,null,"Y",30,100,null,"Y",30,100,null,"Y",30,100,null,"Y",30,100,null,"Y",30,100,null,"Y",30,100,null,"Y",30,100,null,"Y",30,30,null,null,"","",null,30,30,30,30,30,30,30,30,30,30,30,0,0,null,5,30,30,30,30,30,30,30,30,30,30,5,30]
[0,23,{"$f":"dataumum!D31","v":"SYIFA NURJANAH"},{"$f":"dataumum!C31","v":"3095334952"},null,"P","T",{"$f":"absen!AQ34","v":100},null,"Y",30,100,null,"Y",30,100,null,"Y",30,100,null,"Y",30,100,null,"Y",30,100,null,"Y",30,100,null,"Y",30,100,null,"Y",30,100,null,"Y",30,100,null,"Y",30,30,null,null,"","",null,30,30,30,30,30,30,30,30,30,30,30,0,0,null,5,30,30,30,30,30,30,30,30,30,30,5,30]
[0,24,{"$f":"dataumum!D32","v":"WINDI PUJIA SAFITRI"},{"$f":"dataumum!C32","v":"0093189091"},null,"P","T",{"$f":"absen!AQ35","v":100},null,"Y",30,100,null,"Y",30,100,null,"Y",30,100,null,"Y",30,100,null,"Y",30,100,null,"Y",30,100,null,"Y",30,100,null,"Y",30,100,null,"Y",30,100,null,"Y",30,30,null,null,"","",null,30,30,30,30,30,30,30,30,30,30,30,0,0,null,5,30,30,30,30,30,30,30,30,30,30,5,30]
[0,25,{"$f":"dataumum!D33","v":"WULAN RESPIANI"},{"$f":"dataumum!C33","v":"0096749734"},null,"P","T",{"$f":"absen!AQ36","v":100},null,"Y",30,100,null,"Y",30,100,null,"Y",30,100,null,"Y",30,100,null,"Y",30,100,null,"Y",30,100,null,"Y",30,100,null,"Y",30,100,null,"Y",30,100,null,"Y",30,30,null,null,"","",null,30,30,30,30,30,30,30,30,30,30,30,0,0,null,5,30,30,30,30,30,30,30,30,30,30,5,30]
[0,26,{"$f":"dataumum!D34","v":"YESI DESTRIYANI"},{"$f":"dataumum!C34","v":"0099314795"},null,"P","T",{"$f":"absen!AQ37","v":100},null,"Y",30,100,null,"Y",30,100,null,"Y",30,100,null,"Y",30,100,null,"Y",30,100,null,"Y",30,100,null,"Y",30,100,null,"Y",30,100,null,"Y",30,100,null,"Y",30,30,null,null,"","",null,30,30,30,30,30,30,30,30,30,30,30,0,0,null,5,30,30,30,30,30,30,30,30,30,30,5,30]
[1,27,{"$f":"dataumum!D35","v":0},{"$f":"dataumum!C35","v":0},null,null,null,{"$f":"absen!AQ38","v":""},null,"X","","",null,"X","","",null,"X","","",null,"X","","",null,"X","","",null,"X","","",null,"X","","",null,"X","","",null,"X","","",null,"X","","",null,null,"","",null,"","","","","","","","","","","",0,0,null,5,"","","","","","","","","","",5,""]
[1,28,{"$f":"dataumum!D36","v":0},{"$f":"dataumum!C36","v":0},null,null,null,{"$f":"absen!AQ39","v":""},null,"X","","",null,"X","","",null,"X","","",null,"X","","",null,"X","","",null,"X","","",null,"X","","",null,"X","","",null,"X","","",null,"X","","",null,null,"","",null,"","","","","","","","","","","",0,0,null,5,"","","","","","","","","","",5,""]
[1,29,{"$f":"dataumum!D37","v":0},{"$f":"dataumum!C37","v":0},null,null,null,{"$f":"absen!AQ40","v":""},null,"X","","",null,"X","","",null,"X","","",null,"X","","",null,"X","","",null,"X","","",null,"X","","",null,"X","","",null,"X","","",null,"X","","",null,null,"","",null,"","","","","","","","","","","",0,0,null,5,"","","","","","","","","","",5,""]
[1,30,{"$f":"dataumum!D38","v":0},{"$f":"dataumum!C38","v":0},null,null,null,{"$f":"absen!AQ41","v":""},null,"X","","",null,"X","","",null,"X","","",null,"X","","",null,"X","","",null,"X","","",null,"X","","",null,"X","","",null,"X","","",null,"X","","",null,null,"","",null,"","","","","","","","","","","",0,0,null,5,"","","","","","","","","","",5,""]
[1,31,{"$f":"dataumum!D39","v":0},{"$f":"dataumum!C39","v":0},null,null,null,{"$f":"absen!AQ42","v":""},null,"X","","",null,"X","","",null,"X","","",null,"X","","",null,"X","","",null,"X","","",null,"X","","",null,"X","","",null,"X","","",null,"X","","",null,null,"","",null,"","","","","","","","","","","",0,0,null,5,"","","","","","","","","","",5,""]
[1,32,{"$f":"dataumum!D40","v":0},{"$f":"dataumum!C40","v":0},null,null,null,{"$f":"absen!AQ43","v":""},null,"X","","",null,"X","","",null,"X","","",null,"X","","",null,"X","","",null,"X","","",null,"X","","",null,"X","","",null,"X","","",null,"X","","",null,null,"","",null,"","","","","","","","","","","",0,0,null,5,"","","","","","","","","","",5,""]
[1,33,{"$f":"dataumum!D41","v":0},{"$f":"dataumum!C41","v":0},null,null,null,{"$f":"absen!AQ44","v":""},null,"X","","",null,"X","","",null,"X","","",null,"X","","",null,"X","","",null,"X","","",null,"X","","",null,"X","","",null,"X","","",null,"X","","",null,null,"","",null,"","","","","","","","","","","",0,0,null,5,"","","","","","","","","","",5,""]
[1,34,{"$f":"dataumum!D42","v":0},{"$f":"dataumum!C42","v":0},null,null,null,{"$f":"absen!AQ45","v":""},null,"X","","",null,"X","","",null,"X","","",null,"X","","",null,"X","","",null,"X","","",null,"X","","",null,"X","","",null,"X","","",null,"X","","",null,null,"","",null,"","","","","","","","","","","",0,0,null,5,"","","","","","","","","","",5,""]
[1,35,{"$f":"dataumum!D43","v":0},{"$f":"dataumum!C43","v":0},null,null,null,{"$f":"absen!AQ46","v":""},null,"X","","",null,"X","","",null,"X","","",null,"X","","",null,"X","","",null,"X","","",null,"X","","",null,"X","","",null,"X","","",null,"X","","",null,null,"","",null,"","","","","","","","","","","",0,0,null,5,"","","","","","","","","","",5,""]
[1,36,{"$f":"dataumum!D44","v":0},{"$f":"dataumum!C44","v":0},null,null,null,{"$f":"absen!AQ47","v":""},null,"X","","",null,"X","","",null,"X","","",null,"X","","",null,"X","","",null,"X","","",null,"X","","",null,"X","","",null,"X","","",null,"X","","",null,null,"","",null,"","","","","","","","","","","",0,0,null,5,"","","","","","","","","","",5,""]
[1,37,{"$f":"dataumum!D45","v":0},{"$f":"dataumum!C45","v":0},null,null,null,{"$f":"absen!AQ48","v":""},null,"X","","",null,"X","","",null,"X","","",null,"X","","",null,"X","","",null,"X","","",null,"X","","",null,"X","","",null,"X","","",null,"X","","",null,null,"","",null,"","","","","","","","","","","",0,0,null,5,"","","","","","","","","","",5,""]
[1,38,{"$f":"dataumum!D46","v":0},{"$f":"dataumum!C46","v":0},null,null,null,{"$f":"absen!AQ49","v":""},null,"X","","",null,"X","","",null,"X","","",null,"X","","",null,"X","","",null,"X","","",null,"X","","",null,"X","","",null,"X","","",null,"X","","",null,null,"","",null,"","","","","","","","","","","",0,0,null,5,"","","","","","","","","","",5,""]
[1,39,{"$f":"dataumum!D47","v":0},{"$f":"dataumum!C47","v":0},null,null,null,{"$f":"absen!AQ50","v":""},null,"X","","",null,"X","","",null,"X","","",null,"X","","",null,"X","","",null,"X","","",null,"X","","",null,"X","","",null,"X","","",null,"X","","",null,null,"","",null,"","","","","","","","","","","",0,0,null,5,"","","","","","","","","","",5,""]
[1,40,{"$f":"dataumum!D48","v":0},{"$f":"dataumum!C48","v":0},null,null,null,{"$f":"absen!AQ51","v":""},null,"X","","",null,"X","","",null,"X","","",null,"X","","",null,"X","","",null,"X","","",null,"X","","",null,"X","","",null,"X","","",null,"X","","",null,null,"","",null,"","","","","","","","","","","",0,0,null,5,"","","","","","","","","","",5,""]
[null,"Rata-rata Kelas",null,null,null,null,null,{"$f":"IFERROR(AVERAGEIF(H17:H56,\"<>0\"),\"\")","v":100},{"$f":"IFERROR(AVERAGEIF(I17:I56,\"<>0\"),\"\")","v":""},{"$f":"IFERROR(IF(K57<$BL$15,$BK$15,$BJ$15),\"\")","v":"Y"},{"$f":"ROUNDUP(IFERROR(AVERAGEIF(K17:K56,\"<>0\"),\"\"),0)","v":30},{"$f":"IFERROR(AVERAGEIF(L17:L56,\"<>0\"),\"\")","v":100},{"$f":"IFERROR(AVERAGEIF(M17:M56,\"<>0\"),\"\")","v":""},{"$f":"IFERROR(IF(O57<$BL$15,$BK$15,$BJ$15),\"\")","v":"Y"},{"$f":"ROUNDUP(IFERROR(AVERAGEIF(O17:O56,\"<>0\"),\"\"),0)","v":30},{"$f":"IFERROR(AVERAGEIF(P17:P56,\"<>0\"),\"\")","v":100},{"$f":"IFERROR(AVERAGEIF(Q17:Q56,\"<>0\"),\"\")","v":""},{"$f":"IFERROR(IF(S57<$BL$15,$BK$15,$BJ$15),\"\")","v":"Y"},{"$f":"ROUNDUP(IFERROR(AVERAGEIF(S17:S56,\"<>0\"),\"\"),0)","v":30},{"$f":"IFERROR(AVERAGEIF(T17:T56,\"<>0\"),\"\")","v":100},{"$f":"IFERROR(AVERAGEIF(U17:U56,\"<>0\"),\"\")","v":""},{"$f":"IFERROR(IF(W57<$BL$15,$BK$15,$BJ$15),\"\")","v":"Y"},{"$f":"ROUNDUP(IFERROR(AVERAGEIF(W17:W56,\"<>0\"),\"\"),0)","v":30},{"$f":"IFERROR(AVERAGEIF(X17:X56,\"<>0\"),\"\")","v":100},{"$f":"IFERROR(AVERAGEIF(Y17:Y56,\"<>0\"),\"\")","v":""},{"$f":"IFERROR(IF(AA57<$BL$15,$BK$15,$BJ$15),\"\")","v":"Y"},{"$f":"ROUNDUP(IFERROR(AVERAGEIF(AA17:AA56,\"<>0\"),\"\"),0)","v":30},{"$f":"IFERROR(AVERAGEIF(AB17:AB56,\"<>0\"),\"\")","v":100},{"$f":"IFERROR(AVERAGEIF(AC17:AC56,\"<>0\"),\"\")","v":""},{"$f":"IFERROR(IF(AE57<$BL$15,$BK$15,$BJ$15),\"\")","v":"Y"},{"$f":"ROUNDUP(IFERROR(AVERAGEIF(AE17:AE56,\"<>0\"),\"\"),0)","v":30},{"$f":"IFERROR(AVERAGEIF(AF17:AF56,\"<>0\"),\"\")","v":100},{"$f":"IFERROR(AVERAGEIF(AG17:AG56,\"<>0\"),\"\")","v":""},{"$f":"IFERROR(IF(AI57<$BL$15,$BK$15,$BJ$15),\"\")","v":"Y"},{"$f":"ROUNDUP(IFERROR(AVERAGEIF(AI17:AI56,\"<>0\"),\"\"),0)","v":30},{"$f":"IFERROR(AVERAGEIF(AJ17:AJ56,\"<>0\"),\"\")","v":100},{"$f":"IFERROR(AVERAGEIF(AK17:AK56,\"<>0\"),\"\")","v":""},{"$f":"IFERROR(IF(AM57<$BL$15,$BK$15,$BJ$15),\"\")","v":"Y"},{"$f":"ROUNDUP(IFERROR(AVERAGEIF(AM17:AM56,\"<>0\"),\"\"),0)","v":30},{"$f":"IFERROR(AVERAGEIF(AN17:AN56,\"<>0\"),\"\")","v":100},{"$f":"IFERROR(AVERAGEIF(AO17:AO56,\"<>0\"),\"\")","v":""},{"$f":"IFERROR(IF(AQ57<$BL$15,$BK$15,$BJ$15),\"\")","v":"Y"},{"$f":"ROUNDUP(IFERROR(AVERAGEIF(AQ17:AQ56,\"<>0\"),\"\"),0)","v":30},{"$f":"IFERROR(AVERAGEIF(AR17:AR56,\"<>0\"),\"\")","v":100},{"$f":"IFERROR(AVERAGEIF(AS17:AS56,\"<>0\"),\"\")","v":""},{"$f":"IFERROR(IF(AU57<$BL$15,$BK$15,$BJ$15),\"\")","v":"Y"},{"$f":"ROUNDUP(IFERROR(AVERAGEIF(AU17:AU56,\"<>0\"),\"\"),0)","v":30},{"$f":"ROUNDUP(IFERROR(AVERAGEIF(AV17:AV56,\"<>0\"),\"\"),0)","v":30},{"$f":"IFERROR(AVERAGEIF(AW17:AW56,\"<>0\"),\"\")","v":85},{"$f":"IFERROR(AVERAGEIF(AX17:AX56,\"<>0\"),\"\")","v":""},{"$f":"IFERROR(AVERAGEIF(AY17:AY56,\"<>0\"),\"\")","v":85},{"$f":"IFERROR(AVERAGEIF(AZ17:AZ56,\"<>0\"),\"\")","v":46.5}]
[null,"Tanggal Pelaksanaan Sumatif"]

{"sheet":"absen","index":11,"n_rows":71,"n_cols":43,"rows_kept":71,"cut":false,"hidden":false,"merged":[[51,37,53,41],[51,42,53,42],[38,3,38,4],[1,1,1,42],[9,7,9,36],[9,37,9,42],[45,3,45,4],[27,3,27,4],[28,3,28,4],[29,3,29,4],[30,3,30,4],[31,3,31,4],[32,3,32,4],[21,3,21,4],[22,3,22,4],[23,3,23,4],[24,3,24,4],[25,3,25,4],[33,3,33,4],[34,3,34,4],[35,3,35,4],[26,3,26,4],[36,3,36,4],[37,3,37,4],[48,3,48,4],[49,3,49,4],[50,3,50,4],[39,3,39,4],[40,3,40,4],[41,3,41,4],[42,3,42,4],[43,3,43,4],[44,3,44,4],[47,3,47,4],[46,3,46,4],[20,3,20,4],[11,3,11,4],[12,3,12,4],[13,3,13,4],[14,3,14,4],[15,3,15,4],[16,3,16,4],[17,3,17,4],[18,3,18,4],[19,3,19,4],[9,1,10,1],[9,2,10,2],[9,3,10,4],[9,5,10,5],[9,6,10,6]]}
[]
[null,"DAFTAR KEHADIRAN PESERTA DIDIK"]
[]
[null,"Nama Mata Pelajaran",null,":",{"$f":"dataumum!G8","v":"Kimia"},null,null,null,null,null,null,null,null,null,null,null,null,null,null,null,null,null,null,null,null,null,null,null,null,null,null,null,null,null,null,null,null,"Keterangan :"]
[null,"Kelas",null,":",{"$f":"dataumum!G11","v":"X-D"},null,null,null,null,null,null,null,null,null,null,null,null,null,null,null,null,null,null,null,null,null,null,null,null,null,null,null,null,null,null,null,null,"Masuk",null,": 1"]
[null,"Semester",null,":",{"$f":"dataumum!G9","v":"2 (Genap)"},null,null,null,null,null,null,null,null,null,null,null,null,null,null,null,null,null,null,null,null,null,null,null,null,null,null,null,null,null,null,null,null,"Sakit",null,": 2"]
[null,"Tahun Ajaran",null,":",{"$f":"dataumum!G10","v":"2025/2026"},null,null,null,null,null,null,null,null,null,null,null,null,null,null,null,null,null,null,null,null,null,null,null,null,null,null,null,null,null,null,null,null,"Izin",null,": 3"]
[null,"Nama Guru Pengampu",null,":",{"$f":"dataumum!G6","v":"Arief Pribadi, S.Si"},null,null,null,null,null,null,null,null,null,null,null,null,null,null,null,null,null,null,null,null,null,null,null,null,null,null,null,null,null,null,null,null,"Alpa",null,": 4"]
[null,null,null,null,null,null,null,null,null,null,null,null,null,null,null,null,null,null,null,null,null,null,null,null,null,null,null,null,null,null,null,null,null,null,null,null,null,null,null,{"$f":"dataumum!H20","v":"versi 07.01.26 by AP_11"}]
[null,"No","Nama Peserta Didik","NISN",null,"Gender (L/P)","Inklusi (Y/T)","Tanggal / Bulan / Tahun",null,null,null,null,null,null,null,null,null,null,null,null,null,null,null,null,null,null,null,null,null,null,null,null,null,null,null,null,null,"Rekap per Semester"]
[null,null,null,null,null,null,null,"2026-01-05",null,null,null,null,null,null,null,null,null,null,null,null,null,null,null,null,null,null,null,null,null,null,null,null,null,null,null,null,null,"Masuk","Sakit","Izin","Alpa","Jumlah Pertemuan","% Kehadiran"]
[{"$f":"COUNT(D12)","v":0},1,{"$f":"dataumum!D9","v":"AHMAD JAMIL MUNAWAR"},{"$f":"dataumum!C9","v":"0095527100"},null,{"$f":"semester!F17","v":"L"},{"$f":"semester!G17","v":"T"},1,null,null,null,null,null,null,null,null,null,null,null,null,null,null,null,null,null,null,null,null,null,null,null,null,null,null,null,null,null,{"$f":"IF(COUNTIF(H12:AK12,\"1\")=0,\" \",COUNTIF(H12:AK12,\"1\"))","v":1},{"$f":"IF(COUNTIF(H12:AK12,\"2\")=0,\" \",COUNTIF(H12:AK12,\"2\"))","v":" "},{"$f":"IF(COUNTIF(H12:AK12,\"3\")=0,\" \",COUNTIF(H12:AK12,\"3\"))","v":" "},{"$f":"IF(COUNTIF(H12:AK12,\"4\")=0,\" \",COUNTIF(H12:AK12,\"4\"))","v":" "},{"$f":"IF(COUNT(H12:AK12)=0,\"\",COUNT(H12:AK12))","v":1},{"$f":"IF(IFERROR(ROUNDUP(((AL12/AP12)*100),0),\"\")=0,\"\",IFERROR(ROUNDUP(((AL12/AP12)*100),0),\"\"))","v":100}]
[{"$f":"COUNT(D13)","v":0},2,{"$f":"dataumum!D10","v":"AKBAR NUGRAHA"},{"$f":"dataumum!C10","v":"0108689880"},null,{"$f":"semester!F18","v":"L"},{"$f":"semester!G18","v":"T"},4,null,null,null,null,null,null,null,null,null,null,null,null,null,null,null,null,null,null,null,null,null,null,null,null,null,null,null,null,null,{"$f":"IF(COUNTIF(H13:AK13,\"1\")=0,\" \",COUNTIF(H13:AK13,\"1\"))","v":" "},{"$f":"IF(COUNTIF(H13:AK13,\"2\")=0,\" \",COUNTIF(H13:AK13,\"2\"))","v":" "},{"$f":"IF(COUNTIF(H13:AK13,\"3\")=0,\" \",COUNTIF(H13:AK13,\"3\"))","v":" "},{"$f":"IF(COUNTIF(H13:AK13,\"4\")=0,\" \",COUNTIF(H13:AK13,\"4\"))","v":1},{"$f":"IF(COUNT(H13:AK13)=0,\"\",COUNT(H13:AK13))","v":1},{"$f":"IF(IFERROR(ROUNDUP(((AL13/AP13)*100),0),\"\")=0,\"\",IFERROR(ROUNDUP(((AL13/AP13)*100),0),\"\"))","v":""}]
[0,3,{"$f":"dataumum!D11","v":"ALSA NAPILA ABALIA"},{"$f":"dataumum!C11","v":"0101457073"},null,{"$f":"semester!F19","v":"P"},{"$f":"semester!G19","v":"T"},1,null,null,null,null,null,null,null,null,null,null,null,null,null,null,null,null,null,null,null,null,null,null,null,null,null,null,null,null,null,1," "," "," ",1,100]
[0,4,{"$f":"dataumum!D12","v":"ALWAN FAJRUL HAKIM"},{"$f":"dataumum!C12","v":"3098669460"},null,{"$f":"semester!F20","v":"L"},{"$f":"semester!G20","v":"T"},1,null,null,null,null,null,null,null,null,null,null,null,null,null,null,null,null,null,null,null,null,null,null,null,null,null,null,null,null,null,1," "," "," ",1,100]
[0,5,{"$f":"dataumum!D13","v":"ANDIKA"},{"$f":"dataumum!C13","v":"0097476054"},null,{"$f":"semester!F21","v":"L"},{"$f":"semester!G21","v":"T"},1,null,null,null,null,null,null,null,null,null,null,null,null,null,null,null,null,null,null,null,null,null,null,null,null,null,null,null,null,null,1," "," "," ",1,100]
[0,6,{"$f":"dataumum!D14","v":"CHINTIA NUR AZIZAH"},{"$f":"dataumum!C14","v":"0107479079"},null,{"$f":"semester!F22","v":"P"},{"$f":"semester!G22","v":"T"},4,null,null,null,null,null,null,null,null,null,null,null,null,null,null,null,null,null,null,null,null,null,null,null,null,null,null,null,null,null," "," "," ",1,1,""]
[0,7,{"$f":"dataumum!D15","v":"DEDE AULIA"},{"$f":"dataumum!C15","v":"0095178395"},null,{"$f":"semester!F23","v":"P"},{"$f":"semester!G23","v":"T"},1,null,null,null,null,null,null,null,null,null,null,null,null,null,null,null,null,null,null,null,null,null,null,null,null,null,null,null,null,null,1," "," "," ",1,100]
[0,8,{"$f":"dataumum!D16","v":"DIRLI PIRMANSAH REZA"},{"$f":"dataumum!C16","v":"0097071532"},null,{"$f":"semester!F24","v":"L"},{"$f":"semester!G24","v":"T"},4,null,null,null,null,null,null,null,null,null,null,null,null,null,null,null,null,null,null,null,null,null,null,null,null,null,null,null,null,null," "," "," ",1,1,""]
[0,9,{"$f":"dataumum!D17","v":"EKSEL"},{"$f":"dataumum!C17","v":"0085525399"},null,{"$f":"semester!F25","v":"L"},{"$f":"semester!G25","v":"T"},4,null,null,null,null,null,null,null,null,null,null,null,null,null,null,null,null,null,null,null,null,null,null,null,null,null,null,null,null,null," "," "," ",1,1,""]
[0,10,{"$f":"dataumum!D18","v":"FADLAN APANDI"},{"$f":"dataumum!C18","v":"0099271082"},null,{"$f":"semester!F26","v":"L"},{"$f":"semester!G26","v":"T"},1,null,null,null,null,null,null,null,null,null,null,null,null,null,null,null,null,null,null,null,null,null,null,null,null,null,null,null,null,null,1," "," "," ",1,100]
[0,11,{"$f":"dataumum!D19","v":"HAYA MADIHATUL ISMAH"},{"$f":"dataumum!C19","v":"3109814391"},null,{"$f":"semester!F27","v":"P"},{"$f":"semester!G27","v":"T"},1,null,null,null,null,null,null,null,null,null,null,null,null,null,null,null,null,null,null,null,null,null,null,null,null,null,null,null,null,null,1," "," "," ",1,100]
[0,12,{"$f":"dataumum!D20","v":"HIKAYATUL JABAL"},{"$f":"dataumum!C20","v":"3094762585"},null,{"$f":"semester!F28","v":"L"},{"$f":"semester!G28","v":"T"},4,null,null,null,null,null,null,null,null,null,null,null,null,null,null,null,null,null,null,null,null,null,null,null,null,null,null,null,null,null," "," "," ",1,1,""]
[0,13,{"$f":"dataumum!D21","v":"IHSAN NURSALAM"},{"$f":"dataumum!C21","v":"0105251526"},null,{"$f":"semester!F29","v":"L"},{"$f":"semester!G29","v":"T"},4,null,null,null,null,null,null,null,null,null,null,null,null,null,null,null,null,null,null,null,null,null,null,null,null,null,null,null,null,null," "," "," ",1,1,""]
[0,14,{"$f":"dataumum!D22","v":"IZAD NOOR JAMAN"},{"$f":"dataumum!C22","v":"3095547483"},null,{"$f":"semester!F30","v":"L"},{"$f":"semester!G30","v":"T"},1,null,null,null,null,null,null,null,null,null,null,null,null,null,null,null,null,null,null,null,null,null,null,null,null,null,null,null,null,null,1," "," "," ",1,100]
[0,15,{"$f":"dataumum!D23","v":"JIHAN NURROHMAH SEPTIRA"},{"$f":"dataumum!C23","v":"0093659815"},null,{"$f":"semester!F31","v":"P"},{"$f":"semester!G31","v":"T"},1,null,null,null,null,null,null,null,null,null,null,null,null,null,null,null,null,null,null,null,null,null,null,null,null,null,null,null,null,null,1," "," "," ",1,100]
[0,16,{"$f":"dataumum!D24","v":"KAKA SEPTIAN"},{"$f":"dataumum!C24","v":"3090540244"},null,{"$f":"semester!F32","v":"L"},{"$f":"semester!G32","v":"T"},4,null,null,null,null,null,null,null,null,null,null,null,null,null,null,null,null,null,null,null,null,null,null,null,null,null,null,null,null,null," "," "," ",1,1,""]
[0,17,{"$f":"dataumum!D25","v":"LUTPI"},{"$f":"dataumum!C25","v":"0088283383"},null,{"$f":"semester!F33","v":"L"},{"$f":"semester!G33","v":"T"},4,null,null,null,null,null,null,null,null,null,null,null,null,null,null,null,null,null,null,null,null,null,null,null,null,null,null,null,null,null," "," "," ",1,1,""]
[0,18,{"$f":"dataumum!D26","v":"M SUGIH MIWAHA"},{"$f":"dataumum!C26","v":"3096008382"},null,{"$f":"semester!F34","v":"L"},{"$f":"semester!G34","v":"T"},1,null,null,null,null,null,null,null,null,null,null,null,null,null,null,null,null,null,null,null,null,null,null,null,null,null,null,null,null,null,1," "," "," ",1,100]
[0,19,{"$f":"dataumum!D27","v":"MUHLIS"},{"$f":"dataumum!C27","v":"0093656626"},null,{"$f":"semester!F35","v":"L"},{"$f":"semester!G35","v":"T"},4,null,null,null,null,null,null,null,null,null,null,null,null,null,null,null,null,null,null,null,null,null,null,null,null,null,null,null,null,null," "," "," ",1,1,""]
[0,20,{"$f":"dataumum!D28","v":"NURAFIFAH FAUZIAH"},{"$f":"dataumum!C28","v":"0097902846"},null,{"$f":"semester!F36","v":"P"},{"$f":"semester!G36","v":"T"},1,null,null,null,null,null,null,null,null,null,null,null,null,null,null,null,null,null,null,null,null,null,null,null,null,null,null,null,null,null,1," "," "," ",1,100]
[0,21,{"$f":"dataumum!D29","v":"REPAN"},{"$f":"dataumum!C29","v":"0088756415"},null,{"$f":"semester!F37","v":"L"},{"$f":"semester!G37","v":"T"},4,null,null,null,null,null,null,null,null,null,null,null,null,null,null,null,null,null,null,null,null,null,null,null,null,null,null,null,null,null," "," "," ",1,1,""]
[0,22,{"$f":"dataumum!D30","v":"REZA NURUL WILDAN"},{"$f":"dataumum!C30","v":"0095868392"},null,{"$f":"semester!F38","v":"L"},{"$f":"semester!G38","v":"T"},1,null,null,null,null,null,null,null,null,null,null,null,null,null,null,null,null,null,null,null,null,null,null,null,null,null,null,null,null,null,1," "," "," ",1,100]
[0,23,{"$f":"dataumum!D31","v":"SYIFA NURJANAH"},{"$f":"dataumum!C31","v":"3095334952"},null,{"$f":"semester!F39","v":"P"},{"$f":"semester!G39","v":"T"},1,null,null,null,null,null,null,null,null,null,null,null,null,null,null,null,null,null,null,null,null,null,null,null,null,null,null,null,null,null,1," "," "," ",1,100]
[0,24,{"$f":"dataumum!D32","v":"WINDI PUJIA SAFITRI"},{"$f":"dataumum!C32","v":"0093189091"},null,{"$f":"semester!F40","v":"P"},{"$f":"semester!G40","v":"T"},1,null,null,null,null,null,null,null,null,null,null,null,null,null,null,null,null,null,null,null,null,null,null,null,null,null,null,null,null,null,1," "," "," ",1,100]
[0,25,{"$f":"dataumum!D33","v":"WULAN RESPIANI"},{"$f":"dataumum!C33","v":"0096749734"},null,{"$f":"semester!F41","v":"P"},{"$f":"semester!G41","v":"T"},1,null,null,null,null,null,null,null,null,null,null,null,null,null,null,null,null,null,null,null,null,null,null,null,null,null,null,null,null,null,1," "," "," ",1,100]
[0,26,{"$f":"dataumum!D34","v":"YESI DESTRIYANI"},{"$f":"dataumum!C34","v":"0099314795"},null,{"$f":"semester!F42","v":"P"},{"$f":"semester!G42","v":"T"},1,null,null,null,null,null,null,null,null,null,null,null,null,null,null,null,null,null,null,null,null,null,null,null,null,null,null,null,null,null,1," "," "," ",1,100]
[1,27,{"$f":"dataumum!D35","v":0},{"$f":"dataumum!C35","v":0},null,{"$f":"semester!F43","v":0},{"$f":"semester!G43","v":0},null,null,null,null,null,null,null,null,null,null,null,null,null,null,null,null,null,null,null,null,null,null,null,null,null,null,null,null,null,null," "," "," "," ","",""]
[1,28,{"$f":"dataumum!D36","v":0},{"$f":"dataumum!C36","v":0},null,{"$f":"semester!F44","v":0},{"$f":"semester!G44","v":0},null,null,null,null,null,null,null,null,null,null,null,null,null,null,null,null,null,null,null,null,null,null,null,null,null,null,null,null,null,null," "," "," "," ","",""]
[1,29,{"$f":"dataumum!D37","v":0},{"$f":"dataumum!C37","v":0},null,{"$f":"semester!F45","v":0},{"$f":"semester!G45","v":0},null,null,null,null,null,null,null,null,null,null,null,null,null,null,null,null,null,null,null,null,null,null,null,null,null,null,null,null,null,null," "," "," "," ","",""]
[1,30,{"$f":"dataumum!D38","v":0},{"$f":"dataumum!C38","v":0},null,{"$f":"semester!F46","v":0},{"$f":"semester!G46","v":0},null,null,null,null,null,null,null,null,null,null,null,null,null,null,null,null,null,null,null,null,null,null,null,null,null,null,null,null,null,null," "," "," "," ","",""]
[1,31,{"$f":"dataumum!D39","v":0},{"$f":"dataumum!C39","v":0},null,{"$f":"semester!F47","v":0},{"$f":"semester!G47","v":0},null,null,null,null,null,null,null,null,null,null,null,null,null,null,null,null,null,null,null,null,null,null,null,null,null,null,null,null,null,null," "," "," "," ","",""]
[1,32,{"$f":"dataumum!D40","v":0},{"$f":"dataumum!C40","v":0},null,{"$f":"semester!F48","v":0},{"$f":"semester!G48","v":0},null,null,null,null,null,null,null,null,null,null,null,null,null,null,null,null,null,null,null,null,null,null,null,null,null,null,null,null,null,null," "," "," "," ","",""]
[1,33,{"$f":"dataumum!D41","v":0},{"$f":"dataumum!C41","v":0},null,{"$f":"semester!F49","v":0},{"$f":"semester!G49","v":0},null,null,null,null,null,null,null,null,null,null,null,null,null,null,null,null,null,null,null,null,null,null,null,null,null,null,null,null,null,null," "," "," "," ","",""]
[1,34,{"$f":"dataumum!D42","v":0},{"$f":"dataumum!C42","v":0},null,{"$f":"semester!F50","v":0},{"$f":"semester!G50","v":0},null,null,null,null,null,null,null,null,null,null,null,null,null,null,null,null,null,null,null,null,null,null,null,null,null,null,null,null,null,null," "," "," "," ","",""]
[1,35,{"$f":"dataumum!D43","v":0},{"$f":"dataumum!C43","v":0},null,{"$f":"semester!F51","v":0},{"$f":"semester!G51","v":0},null,null,null,null,null,null,null,null,null,null,null,null,null,null,null,null,null,null,null,null,null,null,null,null,null,null,null,null,null,null," "," "," "," ","",""]
[1,36,{"$f":"dataumum!D44","v":0},{"$f":"dataumum!C44","v":0},null,{"$f":"semester!F52","v":0},{"$f":"semester!G52","v":0},null,null,null,null,null,null,null,null,null,null,null,null,null,null,null,null,null,null,null,null,null,null,null,null,null,null,null,null,null,null," "," "," "," ","",""]
[1,37,{"$f":"dataumum!D45","v":0},{"$f":"dataumum!C45","v":0},null,{"$f":"semester!F53","v":0},{"$f":"semester!G53","v":0},null,null,null,null,null,null,null,null,null,null,null,null,null,null,null,null,null,null,null,null,null,null,null,null,null,null,null,null,null,null," "," "," "," ","",""]
[1,38,{"$f":"dataumum!D46","v":0},{"$f":"dataumum!C46","v":0},null,{"$f":"semester!F54","v":0},{"$f":"semester!G54","v":0},null,null,null,null,null,null,null,null,null,null,null,null,null,null,null,null,null,null,null,null,null,null,null,null,null,null,null,null,null,null," "," "," "," ","",""]
[1,39,{"$f":"dataumum!D47","v":0},{"$f":"dataumum!C47","v":0},null,{"$f":"semester!F55","v":0},{"$f":"semester!G55","v":0},null,null,null,null,null,null,null,null,null,null,null,null,null,null,null,null,null,null,null,null,null,null,null,null,null,null,null,null,null,null," "," "," "," ","",""]
[1,40,{"$f":"dataumum!D48","v":0},{"$f":"dataumum!C48","v":0},null,{"$f":"semester!F56","v":0},{"$f":"semester!G56","v":0},null,null,null,null,null,null,null,null,null,null,null,null,null,null,null,null,null,null,null,null,null,null,null,null,null,null,null,null,null,null," "," "," "," ","",""]
[null,null,"Jumlah siswa yang hadir",null,null,null,null,{"$f":"COUNTIF(H12:H51,\"1\")","v":16},{"$f":"COUNTIF(I12:I51,\"1\")","v":0},0,0,0,0,0,0,0,0,0,0,0,0,0,0,0,0,0,0,0,0,0,0,0,0,0,0,0,0,"Rata-rata Kehadiran Siswa",null,null,null,null,{"$f":"IFERROR(AVERAGEIF(AQ12:AQ51,\"<>0\"),\"\")","v":100}]
[null,null,"Jumlah siswa yang tidak hadir",null,null,null,null,{"$f":"H54-H52","v":10},{"$f":"I54-I52","v":26},26,26,26,26,26,26,26,26,26,26,26,26,26,26,26,26,26,26,26,26,26,26,26,26,26,26,26,26]
[null,null,"Jumlah siswa keseluruhan",null,null,null,null,{"$f":"dataumum!$D$49","v":26},{"$f":"dataumum!$D$49","v":26},{"$f":"dataumum!$D$49","v":26},{"$f":"dataumum!$D$49","v":26},{"$f":"dataumum!$D$49","v":26},{"$f":"dataumum!$D$49","v":26},{"$f":"dataumum!$D$49","v":26},{"$f":"dataumum!$D$49","v":26},{"$f":"dataumum!$D$49","v":26},{"$f":"dataumum!$D$49","v":26},{"$f":"dataumum!$D$49","v":26},{"$f":"dataumum!$D$49","v":26},{"$f":"dataumum!$D$49","v":26},{"$f":"dataumum!$D$49","v":26},{"$f":"dataumum!$D$49","v":26},{"$f":"dataumum!$D$49","v":26},{"$f":"dataumum!$D$49","v":26},{"$f":"dataumum!$D$49","v":26},{"$f":"dataumum!$D$49","v":26},{"$f":"dataumum!$D$49","v":26},{"$f":"dataumum!$D$49","v":26},{"$f":"dataumum!$D$49","v":26},{"$f":"dataumum!$D$49","v":26},{"$f":"dataumum!$D$49","v":26},{"$f":"dataumum!$D$49","v":26},{"$f":"dataumum!$D$49","v":26},{"$f":"dataumum!$D$49","v":26},{"$f":"dataumum!$D$49","v":26},{"$f":"dataumum!$D$49","v":26},{"$f":"dataumum!$D$49","v":26}]
[]
[]
[null,null,null,"Mengetahui,",null,null,null,null,null,null,null,null,null,null,null,null,null,null,null,null,null,null,null,null,null,null,null,null,{"$f":"jurnalmengajar!$G$113","v":"Tasikmalaya, 31 Januari 2026"}]
[null,null,null,"Kepala Madrasah",null,null,null,null,null,null,null,null,null,null,null,null,null,null,null,null,null,null,null,null,null,null,null,null,{"$f":"jurnalmengajar!$G$114","v":"Guru Kimia"}]
[]
[]
[]
[]
[null,null,null,"Enjang, S.Ag., M.Pd.I.",null,null,null,null,null,null,null,null,null,null,null,null,null,null,null,null,null,null,null,null,null,null,null,null,{"$f":"jurnalmengajar!$G$118","v":"Arief Pribadi, S.Si"}]
[null,null,null,"NIP. 197406152005011006",null,null,null,null,null,null,null,null,null,null,null,null,null,null,null,null,null,null,null,null,null,null,null,null,{"$f":"jurnalmengajar!$G$119","v":"NIP. 198603112020121005"}]
[]
[]
[null,null,"Keterangan :"]
[null,null,"1 : Masuk"]
[null,null,"2 : Sakit"]
[null,null,"3 : Izin"]
[null,null,"4 : Alpa"]

{"sheet":"sikap","index":12,"n_rows":52,"n_cols":23,"rows_kept":52,"cut":false,"hidden":false,"merged":[[9,20,11,20],[9,21,11,21],[9,22,11,22],[47,3,47,4],[48,3,48,4],[37,3,37,4],[38,3,38,4],[39,3,39,4],[40,3,40,4],[29,3,29,4],[30,3,30,4],[31,3,31,4],[32,3,32,4],[33,3,33,4],[34,3,34,4],[23,3,23,4],[49,3,49,4],[50,3,50,4],[51,3,51,4],[9,7,9,19],[11,7,11,13],[11,14,11,19],[9,3,11,4],[9,5,11,5],[41,3,41,4],[42,3,42,4],[43,3,43,4],[44,3,44,4],[45,3,45,4],[46,3,46,4],[35,3,35,4],[36,3,36,4],[24,3,24,4],[25,3,25,4],[26,3,26,4],[27,3,27,4],[28,3,28,4],[9,6,11,6],[9,1,11,1],[9,2,11,2],[22,3,22,4],[12,3,12,4],[13,3,13,4],[14,3,14,4],[15,3,15,4],[16,3,16,4],[17,3,17,4],[18,3,18,4],[19,3,19,4],[20,3,20,4],[21,3,21,4]]}
[]
[null,"LAPORAN PENILAIAN SIKAP"]
[]
[null,"Nama Mata Pelajaran",null,":",{"$f":"dataumum!G8","v":"Kimia"}]
[null,"Kelas",null,":",{"$f":"dataumum!G11","v":"X-D"}]
[null,"Semester",null,":",{"$f":"dataumum!G9","v":"2 (Genap)"}]
[null,"Tahun Ajaran",null,":",{"$f":"dataumum!G10","v":"2025/2026"}]
[null,"Nama Guru Pengampu",null,":",{"$f":"dataumum!G6","v":"Arief Pribadi, S.Si"}]
[]
[null,"No","Nama Peserta Didik","NISN",null,"Gender (L/P)","Inklusi (Y/T)","Observasi Pembelajaran",null,null,null,null,null,null,null,null,null,null,null,null,"Nilai","Capaian Pembelajaran","Catatan"]
[null,null,null,null,null,null,null,"Kerja sama","Disiplin","Kepedulian","Hidup bersih","Perilaku jujur","Kum.","Penilaian Umum","Beralar kritis","Kreatif","Innovatif","Ide & Gagasan","Kum","Penilaian Umum"]
[null,null,null,null,null,null,null,"Sikap Sosial",null,null,null,null,null,null,"Sikap Ilmiah"]
[{"$f":"COUNT(C13)","v":0},1,{"$f":"dataumum!D9","v":"AHMAD JAMIL MUNAWAR"},{"$f":"dataumum!C9","v":"0095527100"},null,{"$f":"semester!F17","v":"L"},{"$f":"semester!G17","v":"T"},3,2,4,1,4,{"$f":"IFERROR(SUM(H13:L13)/5,0)","v":2.8},{"$f":"IF(M13<=2.5,\"C\",IF(M13<=3.25,\"B\",IF(M13<=4,\"A\",\"E\")))","v":"B"},2,3,3,4,{"$f":"IFERROR(SUM(O13:R13)/4,0)","v":3},{"$f":"IF(S13<=2.5,\"C\",IF(S13<=3.25,\"B\",IF(S13<=4,\"A\",\"E\")))","v":"B"},{"$f":"semester!AZ17","v":48}]
[{"$f":"COUNT(C14)","v":0},2,{"$f":"dataumum!D10","v":"AKBAR NUGRAHA"},{"$f":"dataumum!C10","v":"0108689880"},null,{"$f":"semester!F18","v":"L"},{"$f":"semester!G18","v":"T"},4,4,4,3,2,{"$f":"IFERROR(SUM(H14:L14)/5,0)","v":3.4},{"$f":"IF(M14<=2.5,\"C\",IF(M14<=3.25,\"B\",IF(M14<=4,\"A\",\"E\")))","v":"A"},2,2,3,4,{"$f":"IFERROR(SUM(O14:R14)/4,0)","v":2.75},{"$f":"IF(S14<=2.5,\"C\",IF(S14<=3.25,\"B\",IF(S14<=4,\"A\",\"E\")))","v":"B"},{"$f":"semester!AZ18","v":""}]
[0,3,{"$f":"dataumum!D11","v":"ALSA NAPILA ABALIA"},{"$f":"dataumum!C11","v":"0101457073"},null,{"$f":"semester!F19","v":"P"},{"$f":"semester!G19","v":"T"},null,null,null,null,null,0,"C",null,null,null,null,0,"C",{"$f":"semester!AZ19","v":45}]
[0,4,{"$f":"dataumum!D12","v":"ALWAN FAJRUL HAKIM"},{"$f":"dataumum!C12","v":"3098669460"},null,{"$f":"semester!F20","v":"L"},{"$f":"semester!G20","v":"T"},null,null,null,null,null,0,"C",null,null,null,null,0,"C",{"$f":"semester!AZ20","v":""}]
[0,5,{"$f":"dataumum!D13","v":"ANDIKA"},{"$f":"dataumum!C13","v":"0097476054"},null,{"$f":"semester!F21","v":"L"},{"$f":"semester!G21","v":"T"},null,null,null,null,null,0,"C",null,null,null,null,0,"C",{"$f":"semester!AZ21","v":""}]
[0,6,{"$f":"dataumum!D14","v":"CHINTIA NUR AZIZAH"},{"$f":"dataumum!C14","v":"0107479079"},null,{"$f":"semester!F22","v":"P"},{"$f":"semester!G22","v":"T"},null,null,null,null,null,0,"C",null,null,null,null,0,"C",{"$f":"semester!AZ22","v":""}]
[0,7,{"$f":"dataumum!D15","v":"DEDE AULIA"},{"$f":"dataumum!C15","v":"0095178395"},null,{"$f":"semester!F23","v":"P"},{"$f":"semester!G23","v":"T"},null,null,null,null,null,0,"C",null,null,null,null,0,"C",{"$f":"semester!AZ23","v":""}]
[0,8,{"$f":"dataumum!D16","v":"DIRLI PIRMANSAH REZA"},{"$f":"dataumum!C16","v":"0097071532"},null,{"$f":"semester!F24","v":"L"},{"$f":"semester!G24","v":"T"},null,null,null,null,null,0,"C",null,null,null,null,0,"C",{"$f":"semester!AZ24","v":""}]
[0,9,{"$f":"dataumum!D17","v":"EKSEL"},{"$f":"dataumum!C17","v":"0085525399"},null,{"$f":"semester!F25","v":"L"},{"$f":"semester!G25","v":"T"},null,null,null,null,null,0,"C",null,null,null,null,0,"C",{"$f":"semester!AZ25","v":""}]
[0,10,{"$f":"dataumum!D18","v":"FADLAN APANDI"},{"$f":"dataumum!C18","v":"0099271082"},null,{"$f":"semester!F26","v":"L"},{"$f":"semester!G26","v":"T"},null,null,null,null,null,0,"C",null,null,null,null,0,"C",{"$f":"semester!AZ26","v":""}]
[0,11,{"$f":"dataumum!D19","v":"HAYA MADIHATUL ISMAH"},{"$f":"dataumum!C19","v":"3109814391"},null,{"$f":"semester!F27","v":"P"},{"$f":"semester!G27","v":"T"},null,null,null,null,null,0,"C",null,null,null,null,0,"C",{"$f":"semester!AZ27","v":""}]
[0,12,{"$f":"dataumum!D20","v":"HIKAYATUL JABAL"},{"$f":"dataumum!C20","v":"3094762585"},null,{"$f":"semester!F28","v":"L"},{"$f":"semester!G28","v":"T"},null,null,null,null,null,0,"C",null,null,null,null,0,"C",{"$f":"semester!AZ28","v":""}]
[0,13,{"$f":"dataumum!D21","v":"IHSAN NURSALAM"},{"$f":"dataumum!C21","v":"0105251526"},null,{"$f":"semester!F29","v":"L"},{"$f":"semester!G29","v":"T"},null,null,null,null,null,0,"C",null,null,null,null,0,"C",{"$f":"semester!AZ29","v":""}]
[0,14,{"$f":"dataumum!D22","v":"IZAD NOOR JAMAN"},{"$f":"dataumum!C22","v":"3095547483"},null,{"$f":"semester!F30","v":"L"},{"$f":"semester!G30","v":"T"},null,null,null,null,null,0,"C",null,null,null,null,0,"C",{"$f":"semester!AZ30","v":""}]
[0,15,{"$f":"dataumum!D23","v":"JIHAN NURROHMAH SEPTIRA"},{"$f":"dataumum!C23","v":"0093659815"},null,{"$f":"semester!F31","v":"P"},{"$f":"semester!G31","v":"T"},null,null,null,null,null,0,"C",null,null,null,null,0,"C",{"$f":"semester!AZ31","v":""}]
[0,16,{"$f":"dataumum!D24","v":"KAKA SEPTIAN"},{"$f":"dataumum!C24","v":"3090540244"},null,{"$f":"semester!F32","v":"L"},{"$f":"semester!G32","v":"T"},null,null,null,null,null,0,"C",null,null,null,null,0,"C",{"$f":"semester!AZ32","v":""}]
[0,17,{"$f":"dataumum!D25","v":"LUTPI"},{"$f":"dataumum!C25","v":"0088283383"},null,{"$f":"semester!F33","v":"L"},{"$f":"semester!G33","v":"T"},null,null,null,null,null,0,"C",null,null,null,null,0,"C",{"$f":"semester!AZ33","v":""}]
[0,18,{"$f":"dataumum!D26","v":"M SUGIH MIWAHA"},{"$f":"dataumum!C26","v":"3096008382"},null,{"$f":"semester!F34","v":"L"},{"$f":"semester!G34","v":"T"},null,null,null,null,null,0,"C",null,null,null,null,0,"C",{"$f":"semester!AZ34","v":""}]
[0,19,{"$f":"dataumum!D27","v":"MUHLIS"},{"$f":"dataumum!C27","v":"0093656626"},null,{"$f":"semester!F35","v":"L"},{"$f":"semester!G35","v":"T"},null,null,null,null,null,0,"C",null,null,null,null,0,"C",{"$f":"semester!AZ35","v":""}]
[0,20,{"$f":"dataumum!D28","v":"NURAFIFAH FAUZIAH"},{"$f":"dataumum!C28","v":"0097902846"},null,{"$f":"semester!F36","v":"P"},{"$f":"semester!G36","v":"T"},null,null,null,null,null,0,"C",null,null,null,null,0,"C",{"$f":"semester!AZ36","v":""}]
[0,21,{"$f":"dataumum!D29","v":"REPAN"},{"$f":"dataumum!C29","v":"0088756415"},null,{"$f":"semester!F37","v":"L"},{"$f":"semester!G37","v":"T"},null,null,null,null,null,0,"C",null,null,null,null,0,"C",{"$f":"semester!AZ37","v":""}]
[0,22,{"$f":"dataumum!D30","v":"REZA NURUL WILDAN"},{"$f":"dataumum!C30","v":"0095868392"},null,{"$f":"semester!F38","v":"L"},{"$f":"semester!G38","v":"T"},null,null,null,null,null,0,"C",null,null,null,null,0,"C",{"$f":"semester!AZ38","v":""}]
[0,23,{"$f":"dataumum!D31","v":"SYIFA NURJANAH"},{"$f":"dataumum!C31","v":"3095334952"},null,{"$f":"semester!F39","v":"P"},{"$f":"semester!G39","v":"T"},null,null,null,null,null,0,"C",null,null,null,null,0,"C",{"$f":"semester!AZ39","v":""}]
[0,24,{"$f":"dataumum!D32","v":"WINDI PUJIA SAFITRI"},{"$f":"dataumum!C32","v":"0093189091"},null,{"$f":"semester!F40","v":"P"},{"$f":"semester!G40","v":"T"},null,null,null,null,null,0,"C",null,null,null,null,0,"C",{"$f":"semester!AZ40","v":""}]
[0,25,{"$f":"dataumum!D33","v":"WULAN RESPIANI"},{"$f":"dataumum!C33","v":"0096749734"},null,{"$f":"semester!F41","v":"P"},{"$f":"semester!G41","v":"T"},null,null,null,null,null,0,"C",null,null,null,null,0,"C",{"$f":"semester!AZ41","v":""}]
[0,26,{"$f":"dataumum!D34","v":"YESI DESTRIYANI"},{"$f":"dataumum!C34","v":"0099314795"},null,{"$f":"semester!F42","v":"P"},{"$f":"semester!G42","v":"T"},null,null,null,null,null,0,"C",null,null,null,null,0,"C",{"$f":"semester!AZ42","v":""}]
[1,27,{"$f":"dataumum!D35","v":0},{"$f":"dataumum!C35","v":0},null,{"$f":"semester!F43","v":0},{"$f":"semester!G43","v":0},null,null,null,null,null,0,"C",null,null,null,null,0,"C",{"$f":"semester!AZ43","v":""}]
[1,28,{"$f":"dataumum!D36","v":0},{"$f":"dataumum!C36","v":0},null,{"$f":"semester!F44","v":0},{"$f":"semester!G44","v":0},null,null,null,null,null,0,"C",null,null,null,null,0,"C",{"$f":"semester!AZ44","v":""}]
[1,29,{"$f":"dataumum!D37","v":0},{"$f":"dataumum!C37","v":0},null,{"$f":"semester!F45","v":0},{"$f":"semester!G45","v":0},null,null,null,null,null,0,"C",null,null,null,null,0,"C",{"$f":"semester!AZ45","v":""}]
[1,30,{"$f":"dataumum!D38","v":0},{"$f":"dataumum!C38","v":0},null,{"$f":"semester!F46","v":0},{"$f":"semester!G46","v":0},null,null,null,null,null,0,"C",null,null,null,null,0,"C",{"$f":"semester!AZ46","v":""}]
[1,31,{"$f":"dataumum!D39","v":0},{"$f":"dataumum!C39","v":0},null,{"$f":"semester!F47","v":0},{"$f":"semester!G47","v":0},null,null,null,null,null,0,"C",null,null,null,null,0,"C",{"$f":"semester!AZ47","v":""}]
[1,32,{"$f":"dataumum!D40","v":0},{"$f":"dataumum!C40","v":0},null,{"$f":"semester!F48","v":0},{"$f":"semester!G48","v":0},null,null,null,null,null,0,"C",null,null,null,null,0,"C",{"$f":"semester!AZ48","v":""}]
[1,33,{"$f":"dataumum!D41","v":0},{"$f":"dataumum!C41","v":0},null,{"$f":"semester!F49","v":0},{"$f":"semester!G49","v":0},null,null,null,null,null,0,"C",null,null,null,null,0,"C",{"$f":"semester!AZ49","v":""}]
[1,34,{"$f":"dataumum!D42","v":0},{"$f":"dataumum!C42","v":0},null,{"$f":"semester!F50","v":0},{"$f":"semester!G50","v":0},null,null,null,null,null,0,"C",null,null,null,null,0,"C",{"$f":"semester!AZ50","v":""}]
[1,35,{"$f":"dataumum!D43","v":0},{"$f":"dataumum!C43","v":0},null,{"$f":"semester!F51","v":0},{"$f":"semester!G51","v":0},null,null,null,null,null,0,"C",null,null,null,null,0,"C",{"$f":"semester!AZ51","v":""}]
[1,36,{"$f":"dataumum!D44","v":0},{"$f":"dataumum!C44","v":0},null,{"$f":"semester!F52","v":0},{"$f":"semester!G52","v":0},null,null,null,null,null,0,"C",null,null,null,null,0,"C",{"$f":"semester!AZ52","v":""}]
[1,37,{"$f":"dataumum!D45","v":0},{"$f":"dataumum!C45","v":0},null,{"$f":"semester!F53","v":0},{"$f":"semester!G53","v":0},null,null,null,null,null,0,"C",null,null,null,null,0,"C",{"$f":"semester!AZ53","v":""}]
[1,38,{"$f":"dataumum!D46","v":0},{"$f":"dataumum!C46","v":0},null,{"$f":"semester!F54","v":0},{"$f":"semester!G54","v":0},null,null,null,null,null,0,"C",null,null,null,null,0,"C",{"$f":"semester!AZ54","v":""}]
[1,39,{"$f":"dataumum!D47","v":0},{"$f":"dataumum!C47","v":0},null,{"$f":"semester!F55","v":0},{"$f":"semester!G55","v":0},null,null,null,null,null,0,"C",null,null,null,null,0,"C",{"$f":"semester!AZ55","v":""}]
[1,40,{"$f":"dataumum!D48","v":0},{"$f":"dataumum!C48","v":0},null,{"$f":"semester!F56","v":0},{"$f":"semester!G56","v":0},null,null,null,null,null,0,"C",null,null,null,null,0,"C",{"$f":"semester!AZ56","v":""}]

{"sheet":"laporan","index":13,"n_rows":55,"n_cols":16,"rows_kept":55,"cut":false,"hidden":false,"merged":[[1,1,1,3],[29,15,30,15],[31,15,33,15],[51,2,52,3],[25,1,28,15],[3,1,3,15],[4,1,4,15],[5,1,5,15],[6,1,6,15],[7,1,7,15],[45,2,46,3],[43,1,44,1],[45,1,46,1],[47,1,48,1],[47,2,48,3],[37,1,38,1],[54,14,54,15],[9,1,9,15],[29,2,32,3],[33,2,34,3],[35,2,36,3],[37,2,38,3],[39,2,40,3],[41,2,42,3],[43,2,44,3],[49,1,50,1],[51,1,52,1],[34,11,34,15],[29,11,33,12],[42,14,42,15],[43,11,45,12],[43,14,45,15],[39,1,40,1],[41,1,42,1],[49,4,50,4],[49,5,50,5],[49,6,50,6],[41,4,42,4],[41,5,42,5],[41,6,42,6],[39,4,40,4],[39,5,40,5],[39,6,40,6],[49,7,50,7],[49,8,50,8],[51,4,52,4],[51,5,52,5],[51,6,52,6],[51,7,52,7],[51,8,52,8],[45,8,46,8],[47,4,48,4],[47,5,48,5],[47,6,48,6],[47,7,48,7],[47,8,48,8],[41,7,42,7],[41,8,42,8],[43,4,44,4],[43,5,44,5],[43,6,44,6],[43,7,44,7],[43,8,44,8],[37,4,38,4],[37,5,38,5],[37,6,38,6],[37,7,38,7],[37,8,38,8],[33,8,34,8],[35,1,36,1],[35,4,36,4],[35,5,36,5],[35,6,36,6],[35,7,36,7],[35,8,36,8],[33,1,34,1],[33,4,34,4],[33,5,34,5],[33,6,34,6],[33,7,34,7],[30,8,32,8],[53,1,53,8],[49,2,50,3],[29,4,29,9],[42,11,42,12],[45,4,46,4],[45,5,46,5],[45,6,46,6],[45,7,46,7],[29,1,32,1],[30,4,32,4],[30,5,32,5],[30,6,32,6],[30,7,32,7],[39,7,40,7],[39,8,40,8]]}
[]
[null,"Ketikkan Nomor Urut Peserta Didik",null,null,1]
[]
[null,"KEMENTERIAN AGAMA REPUBLIK INDONESIA"]
[null,"KANTOR KEMENTERIAN AGAMA KABUPATEN TASIKMALAYA"]
[null,"MAN 4 TASIKMALAYA"]
[null,"Jl. Sindanghurip Ds. Cikalong Kec. Cikalong Kab. Tasikmalaya 46195"]
[null,"Website : www.man4tasikmalaya.sch.id  Email : mancikalong@gmail.com"]
[]
[null,"LAPORAN CAPAIAN HASIL BELAJAR PESERTA DIDIK"]
[]
[null,"Kepada"]
[null,"Yth. Bapak/ Ibu/ Wali Siswa"]
[]
[null,"Assalamu'alaikum Wr. Wb"]
[null,"Salam hormat kami kepada Bapak/ Ibu / Wali Siswa atas nama :"]
[]
[null,"Nama  Peserta Didik",null,":",{"$f":"IFERROR(VLOOKUP(E2,semester!B17:C56,2,0),0)","v":"AHMAD JAMIL MUNAWAR"}]
[null,"NISN",null,":",{"$f":"VLOOKUP(E2,semester!B17:E56,3)","v":"0095527100"}]
[null,"Kelas",null,":",{"$f":"dataumum!G11","v":"X-D"}]
[null,"Mata Pelajaran",null,":",{"$f":"dataumum!G8","v":"Kimia"}]
[null,"Semester",null,":",{"$f":"dataumum!G9","v":"2 (Genap)"}]
[null,"Tahun Ajaran",null,":",{"$f":"dataumum!G10","v":"2025/2026"}]
[null,"Guru Pengampu",null,":",{"$f":"dataumum!G6","v":"Arief Pribadi, S.Si"}]
[]
[null,"Sebagai bentuk tanggungjawab kami dalam membimbing putra/putri Bapak/ Ibu, berikut ini kami sampaikan laporan hasil belajar khusus untuk Mata Pelajaran yang telah tersebut pada data sebelumnya. Kami terus memantau perkembangan Ananda agar memperoleh pengetahuan dan keterampilan yang bermakna untuk persiapan masa depannya. Terima kasih atas perhatiannya."]
[]
[]
[]
[null,"No. TP","Deskripsi Capaian Pembelajaran / Tujuan Pembelajaran",null,"Nilai Formatif / Harian",null,null,null,null,null,null,"PENGAMATAN SIKAP",null,null,"Keterangan:","Nilai Rapor"]
[null,null,null,null,"Nilai 1","Nilai 2","Remedial","Nilai","Rata-Rata Kelas","Tanggal",null,null,null,null,"1 : Kurang"]
[null,null,null,null,null,null,null,null,null,"Nilai 1",null,null,null,null,"2 : Cukup",{"$f":"IFERROR(VLOOKUP(E2,semester!B17:AZ56,61,0),0)","v":0}]
[null,null,null,null,null,null,null,null,null,"Nilai 2",null,null,null,null,"3 : Baik"]
[null,{"$f":"semester!J12","v":1},{"$f":"semester!H15","v":"Menganalisis hubungan antara konfigurasi elektron dengan letak unsur dalam tabel periodik dan sifat keperiodikan unsur"},null,{"$f":"IFERROR(VLOOKUP(E2,semester!B17:H56,7,0),0)","v":100},{"$f":"IFERROR(VLOOKUP(E2,semester!B17:I56,8,0),0)","v":0},{"$f":"IFERROR(VLOOKUP(E2,semester!B17:J56,9,0),0)","v":"Y"},{"$f":"IFERROR(VLOOKUP(E2,semester!B17:K56,10,0),0)","v":30},{"$f":"semester!K57","v":30},{"$f":"semester!H58","v":"00:00:00"},null,null,null,null,"4 : Sangat Baik"]
[null,null,null,null,null,null,null,null,null,{"$f":"semester!I58","v":"00:00:00"}]
[null,{"$f":"semester!N12","v":2},{"$f":"semester!L15","v":"Menerapkan konsep stoikiometri dalam berbagai aspek kuantitatif reaksi kimia;"},null,{"$f":"IFERROR(VLOOKUP(E2,semester!B17:L56,11,0),0)","v":100},{"$f":"IFERROR(VLOOKUP(E2,semester!B17:M56,12,0),0)","v":0},{"$f":"IFERROR(VLOOKUP(E2,semester!B17:N56,13,0),0)","v":"Y"},{"$f":"IFERROR(VLOOKUP(E2,semester!B17:O56,14,0),0)","v":30},{"$f":"semester!O57","v":30},{"$f":"semester!L58","v":"00:00:00"},null,"Aspek Sikap Sosial","Modus",null,"Aspek Sikap Ilmiah","Modus"]
[null,null,null,null,null,null,null,null,null,{"$f":"semester!M58","v":"00:00:00"},null,{"$f":"sikap!H11","v":"Kerja sama"},{"$f":"IFERROR(VLOOKUP(E2,sikap!B13:H52,7,0),0)","v":3},null,{"$f":"sikap!O11","v":"Beralar kritis"},{"$f":"IFERROR(VLOOKUP(E2,sikap!B13:O52,14,0),0)","v":2}]
[null,{"$f":"semester!R12","v":3},{"$f":"semester!P15","v":"Menerapkan konsep stoikiometri dalam berbagai aspek kuantitatif reaksi kimia;"},null,{"$f":"IFERROR(VLOOKUP(E2,semester!B17:P56,15,0),0)","v":100},{"$f":"IFERROR(VLOOKUP(E2,semester!B17:Q56,16,0),0)","v":0},{"$f":"IFERROR(VLOOKUP(E2,semester!B17:R56,17,0),0)","v":"Y"},{"$f":"IFERROR(VLOOKUP(E2,semester!B17:S56,18,0),0)","v":30},{"$f":"semester!S57","v":30},{"$f":"semester!P58","v":"00:00:00"},null,{"$f":"sikap!I11","v":"Disiplin"},{"$f":"IFERROR(VLOOKUP(E2,sikap!B13:I52,8,0),0)","v":2},null,{"$f":"sikap!P11","v":"Kreatif"},{"$f":"IFERROR(VLOOKUP(E2,sikap!B13:P52,15,0),0)","v":3}]
[null,null,null,null,null,null,null,null,null,{"$f":"semester!Q58","v":"00:00:00"},null,{"$f":"sikap!J11","v":"Kepedulian"},{"$f":"IFERROR(VLOOKUP(E2,sikap!B13:J52,9,0),0)","v":4},null,{"$f":"sikap!Q11","v":"Innovatif"},{"$f":"IFERROR(VLOOKUP(E2,sikap!B13:Q52,16,0),0)","v":3}]
[null,{"$f":"semester!V12","v":4},{"$f":"semester!T15","v":"Menerapkan konsep IPA untuk mengatasi permasalahan berkaitan dengan perubahan iklim"},null,{"$f":"IFERROR(VLOOKUP(E2,semester!B17:T56,19,0),0)","v":100},{"$f":"IFERROR(VLOOKUP(E2,semester!B17:U56,20,0),0)","v":0},{"$f":"IFERROR(VLOOKUP(E2,semester!B17:V56,21,0),0)","v":"Y"},{"$f":"IFERROR(VLOOKUP(E2,semester!B17:W56,22,0),0)","v":30},{"$f":"semester!W57","v":30},{"$f":"semester!T58","v":"00:00:00"},null,{"$f":"sikap!K11","v":"Hidup bersih"},{"$f":"IFERROR(VLOOKUP(E2,sikap!B13:K52,10,0),0)","v":1},null,{"$f":"sikap!R11","v":"Ide & Gagasan"},{"$f":"IFERROR(VLOOKUP(E2,sikap!B13:R52,17,0),0)","v":4}]
[null,null,null,null,null,null,null,null,null,{"$f":"semester!U58","v":"00:00:00"},null,{"$f":"sikap!L11","v":"Perilaku jujur"},{"$f":"IFERROR(VLOOKUP(E2,sikap!B13:L52,11,0),0)","v":4}]
[null,{"$f":"semester!Z12","v":0},{"$f":"semester!X15","v":0},null,{"$f":"IFERROR(VLOOKUP(E2,semester!B17:X56,23,0),0)","v":100},{"$f":"IFERROR(VLOOKUP(E2,semester!B17:Y56,24,0),0)","v":0},{"$f":"IFERROR(VLOOKUP(E2,semester!B17:Z56,25,0),0)","v":"Y"},{"$f":"IFERROR(VLOOKUP(E2,semester!B17:AA56,26,0),0)","v":30},{"$f":"semester!AA57","v":30},{"$f":"semester!X58","v":"00:00:00"},null,{"$f":"semester!#REF!","v":{"$error":"#REF!"}}]
[null,null,null,null,null,null,null,null,null,{"$f":"semester!Y58","v":"00:00:00"},null,"Catatan Orang tua",null,null,"Catatan Guru Pengampu"]
[null,{"$f":"semester!AD12","v":0},{"$f":"semester!AB15","v":0},null,{"$f":"IFERROR(VLOOKUP(E2,semester!B17:AB56,27,0),0)","v":100},{"$f":"IFERROR(VLOOKUP(E2,semester!B17:AC56,28,0),0)","v":0},{"$f":"IFERROR(VLOOKUP(E2,semester!B17:AD56,29,0),0)","v":"Y"},{"$f":"IFERROR(VLOOKUP(E2,semester!B17:AE56,30,0),0)","v":30},{"$f":"semester!AE57","v":30},{"$f":"semester!AB58","v":"00:00:00"}]
[null,null,null,null,null,null,null,null,null,{"$f":"semester!AC58","v":"00:00:00"}]
[null,{"$f":"semester!AH12","v":0},{"$f":"semester!AF15","v":0},null,{"$f":"IFERROR(VLOOKUP(E2,semester!B17:AF56,31,0),0)","v":100},{"$f":"IFERROR(VLOOKUP(E2,semester!B17:AG56,32,0),0)","v":0},{"$f":"IFERROR(VLOOKUP(E2,semester!B17:AH56,33,0),0)","v":"Y"},{"$f":"IFERROR(VLOOKUP(E2,semester!B17:AI56,34,0),0)","v":30},{"$f":"semester!AI57","v":30},{"$f":"semester!AF58","v":"00:00:00"}]
[null,null,null,null,null,null,null,null,null,{"$f":"semester!AG58","v":"00:00:00"}]
[null,{"$f":"semester!AL12","v":0},{"$f":"semester!AJ15","v":0},null,{"$f":"IFERROR(VLOOKUP(E2,semester!B17:AJ56,35,0),0)","v":100},{"$f":"IFERROR(VLOOKUP(E2,semester!B17:AK56,36,0),0)","v":0},{"$f":"IFERROR(VLOOKUP(E2,semester!B17:AL56,37,0),0)","v":"Y"},{"$f":"IFERROR(VLOOKUP(E2,semester!B17:AM56,38,0),0)","v":30},{"$f":"semester!AM57","v":30},{"$f":"semester!AJ58","v":"00:00:00"},null,"Mengetahui,",null,null,{"$f":"CONCATENATE(\"Tasikmalaya,\",\" \",dataumum!G18)","v":"Tasikmalaya, "}]
[null,null,null,null,null,null,null,null,null,{"$f":"semester!AK58","v":"00:00:00"},null,"Orang Tua / Wali Siswa",null,null,"Guru Pengampu"]
[null,{"$f":"semester!AP12","v":0},{"$f":"semester!AN15","v":0},null,{"$f":"IFERROR(VLOOKUP(E2,semester!B17:AN56,39,0),0)","v":100},{"$f":"IFERROR(VLOOKUP(E2,semester!B17:AO56,40,0),0)","v":0},{"$f":"IFERROR(VLOOKUP(E2,semester!B17:AP56,41,0),0)","v":"Y"},{"$f":"IFERROR(VLOOKUP(E2,semester!B17:AQ56,42,0),0)","v":30},{"$f":"semester!AQ57","v":30},{"$f":"semester!AN58","v":"00:00:00"}]
[null,null,null,null,null,null,null,null,null,{"$f":"semester!AO58","v":"00:00:00"}]
[null,{"$f":"semester!AT12","v":0},{"$f":"semester!AR15","v":0},null,{"$f":"IFERROR(VLOOKUP(E2,semester!B17:AR56,43,0),0)","v":100},{"$f":"IFERROR(VLOOKUP(E2,semester!B17:AS56,44,0),0)","v":0},{"$f":"IFERROR(VLOOKUP(E2,semester!B17:AT56,45,0),0)","v":"Y"},{"$f":"IFERROR(VLOOKUP(E2,semester!B17:AU56,46,0),0)","v":30},{"$f":"semester!AU57","v":30},{"$f":"semester!AR58","v":"00:00:00"}]
[null,null,null,null,null,null,null,null,null,{"$f":"semester!AS58","v":"00:00:00"},null,null,null,null,{"$f":"dataumum!G6","v":"Arief Pribadi, S.Si"}]
[null,"Persen (%) Partisipasi Semester 1 (Berjalan)",null,null,null,null,null,null,null,{"$f":"VLOOKUP(E2,absen!B12:AQ51,42,0)","v":100},null,null,null,null,{"$f":"CONCATENATE(\"NIP.\",\" \",dataumum!G7)","v":"NIP. 198603112020121005"}]
[null,null,null,null,null,null,null,null,null,null,null,null,null,null,{"$f":"dataumum!G19","v":"X-D"}]

{"sheet":"cover","index":14,"n_rows":48,"n_cols":10,"rows_kept":48,"cut":false,"hidden":false,"merged":[[43,1,43,10],[44,1,44,10],[45,1,45,10],[46,1,46,10],[47,9,47,10],[1,1,1,3],[4,1,4,10],[5,1,5,10],[21,6,21,9],[23,6,23,9]]}
[]
[null,"Ketikkan Nomor Urut Peserta Didik",null,null,1]
[]
[]
[null,"LAPORAN"]
[null,"PORTOFOLIO PESERTA DIDIK"]
[]
[]
[]
[]
[]
[null,null,null,"Mata Pelajaran",null,":",{"$f":"dataumum!G8","v":"Kimia"}]
[null,null,null,"Guru Mata Pelajaran",null,":",{"$f":"dataumum!G6","v":"Arief Pribadi, S.Si"}]
[null,null,null,"Kelas",null,":",{"$f":"dataumum!G11","v":"X-D"}]
[null,null,null,"Semester",null,":",{"$f":"dataumum!G9","v":"2 (Genap)"}]
[null,null,null,"Tahun Ajaran",null,":",{"$f":"dataumum!G10","v":"2025/2026"}]
[]
[]
[]
[]
[]
[null,null,null,"Nama Peserta Didik",null,":",{"$f":"IFERROR(VLOOKUP(E2,dataumum!B9:D48,3,0),0)","v":"AHMAD JAMIL MUNAWAR"}]
[]
[null,null,null,"NISN",null,":",{"$f":"IFERROR(VLOOKUP(E2,dataumum!B9:C48,2,0),0)","v":"0095527100"}]
[]
[]
[]
[]
[]
[]
[]
[]
[]
[]
[]
[]
[]
[]
[]
[]
[]
[]
[]
[null,"KEMENTERIAN AGAMA REPUBLIK INDONESIA"]
[null,"KANTOR KEMENTERIAN AGAMA KABUPATEN TASIKMALAYA"]
[null,"MADRASAH ALIYAH NEGERI 4 TASIKMALAYA"]
[null,"TAHUN AJARAN 2023/2024"]
[null,null,null,null,null,null,null,null,null,{"$f":"dataumum!G19","v":"X-D"}]

{"sheet":"rem","index":15,"n_rows":51,"n_cols":26,"rows_kept":51,"cut":false,"hidden":false,"merged":[[50,15,50,19],[39,15,39,19],[40,15,40,19],[41,15,41,19],[42,15,42,19],[43,15,43,19],[44,15,44,19],[45,15,45,19],[46,15,46,19],[47,15,47,19],[48,15,48,19],[49,15,49,19],[38,15,38,19],[27,15,27,19],[28,15,28,19],[29,15,29,19],[30,15,30,19],[31,15,31,19],[32,15,32,19],[33,15,33,19],[34,15,34,19],[35,15,35,19],[36,15,36,19],[37,15,37,19],[26,15,26,19],[15,15,15,19],[16,15,16,19],[17,15,17,19],[18,15,18,19],[19,15,19,19],[20,15,20,19],[21,15,21,19],[22,15,22,19],[23,15,23,19],[24,15,24,19],[25,15,25,19],[50,2,50,6],[39,2,39,6],[40,2,40,6],[41,2,41,6],[42,2,42,6],[43,2,43,6],[44,2,44,6],[45,2,45,6],[46,2,46,6],[47,2,47,6],[48,2,48,6],[49,2,49,6],[38,2,38,6],[27,2,27,6],[28,2,28,6],[29,2,29,6],[30,2,30,6],[31,2,31,6],[32,2,32,6],[33,2,33,6],[34,2,34,6],[35,2,35,6],[36,2,36,6],[37,2,37,6],[26,2,26,6],[15,2,15,6],[16,2,16,6],[17,2,17,6],[18,2,18,6],[19,2,19,6],[20,2,20,6],[21,2,21,6],[22,2,22,6],[23,2,23,6],[24,2,24,6],[25,2,25,6],[14,2,14,6],[12,15,12,19],[13,15,13,19],[14,15,14,19],[9,1,9,12],[11,2,11,6],[9,14,9,25],[10,15,10,19],[11,15,11,19],[10,2,10,6],[12,2,12,6],[13,2,13,6]]}
[]
[null,"PROGRAM REMEDIAL / ENRICHMENT MAN 4 TASIKMALAYA"]
[]
[null,"Nama Guru Mapel",null,null,null,null,":",{"$f":"dataumum!G6","v":"Arief Pribadi, S.Si"}]
[null,"Mata Pelajaran",null,null,null,null,":",{"$f":"dataumum!G8","v":"Kimia"}]
[null,"Kelas",null,null,null,null,":",{"$f":"dataumum!G11","v":"X-D"}]
[null,"Semester",null,null,null,null,":",{"$f":"dataumum!G9","v":"2 (Genap)"}]
[null,"Tahun Ajaran",null,null,null,null,":",{"$f":"dataumum!G10","v":"2025/2026"}]
[]
[null,"REMEDIAL",null,null,null,null,null,null,null,null,null,null,null,null,"ENRICHMENT / PENGAYAAN"]
[null,"No.","Nama Peserta Didik",null,null,null,null,"Deskripsi Profile Siswa","Tgl Pelaksanaan","Target KD/ CP Materi Esensial","Capaian / Nilai","TTD Siswa","TTD Guru",null,"No.","Nama Peserta Didik",null,null,null,null,"Deskripsi Profile Siswa","Tgl Pelaksanaan","Target KD/ CP Materi Esensial","Capaian / Nilai","TTD Siswa","TTD Guru"]
[null,1,null,null,null,null,null,null,null,null,null,null,null,null,1]
[null,2,null,null,null,null,null,null,null,null,null,null,null,null,2]
[null,3,null,null,null,null,null,null,null,null,null,null,null,null,3]
[null,4,null,null,null,null,null,null,null,null,null,null,null,null,4]
[null,5,null,null,null,null,null,null,null,null,null,null,null,null,5]
[null,6,null,null,null,null,null,null,null,null,null,null,null,null,6]
[null,7,null,null,null,null,null,null,null,null,null,null,null,null,7]
[null,8,null,null,null,null,null,null,null,null,null,null,null,null,8]
[null,9,null,null,null,null,null,null,null,null,null,null,null,null,9]
[null,10,null,null,null,null,null,null,null,null,null,null,null,null,10]
[null,11,null,null,null,null,null,null,null,null,null,null,null,null,11]
[null,12,null,null,null,null,null,null,null,null,null,null,null,null,12]
[null,13,null,null,null,null,null,null,null,null,null,null,null,null,13]
[null,14,null,null,null,null,null,null,null,null,null,null,null,null,14]
[null,15,null,null,null,null,null,null,null,null,null,null,null,null,15]
[null,16,null,null,null,null,null,null,null,null,null,null,null,null,16]
[null,17,null,null,null,null,null,null,null,null,null,null,null,null,17]
[null,18,null,null,null,null,null,null,null,null,null,null,null,null,18]
[null,19,null,null,null,null,null,null,null,null,null,null,null,null,19]
[null,20,null,null,null,null,null,null,null,null,null,null,null,null,20]
[null,21,null,null,null,null,null,null,null,null,null,null,null,null,21]
[null,22,null,null,null,null,null,null,null,null,null,null,null,null,22]
[null,23,null,null,null,null,null,null,null,null,null,null,null,null,23]
[null,24,null,null,null,null,null,null,null,null,null,null,null,null,24]
[null,25,null,null,null,null,null,null,null,null,null,null,null,null,25]
[null,26,null,null,null,null,null,null,null,null,null,null,null,null,26]
[null,27,null,null,null,null,null,null,null,null,null,null,null,null,27]
[null,28,null,null,null,null,null,null,null,null,null,null,null,null,28]
[null,29,null,null,null,null,null,null,null,null,null,null,null,null,29]
[null,30,null,null,null,null,null,null,null,null,null,null,null,null,30]
[null,31,null,null,null,null,null,null,null,null,null,null,null,null,31]
[null,32,null,null,null,null,null,null,null,null,null,null,null,null,32]
[null,33,null,null,null,null,null,null,null,null,null,null,null,null,33]
[null,34,null,null,null,null,null,null,null,null,null,null,null,null,34]
[null,35,null,null,null,null,null,null,null,null,null,null,null,null,35]
[null,36,null,null,null,null,null,null,null,null,null,null,null,null,36]
[null,37,null,null,null,null,null,null,null,null,null,null,null,null,37]
[null,38,null,null,null,null,null,null,null,null,null,null,null,null,38]
[null,39,null,null,null,null,null,null,null,null,null,null,null,null,39]
[null,40,null,null,null,null,null,null,null,null,null,null,null,null,40]

{"sheet":"jurnalmengajar","index":16,"n_rows":119,"n_cols":13,"rows_kept":119,"cut":false,"hidden":false,"merged":[[1,1,1,7],[11,12,11,16],[13,10,13,16]]}
[]
[null,"JURNAL MENGAJAR GURU"]
[]
[null,"Nama Guru Mapel",null,{"$f":"CONCATENATE(\":\",\" \",dataumum!G6)","v":": Arief Pribadi, S.Si"}]
[null,"Mata Pelajaran",null,{"$f":"CONCATENATE(\":\",\" \",dataumum!G8)","v":": Kimia"}]
[null,"Kelas",null,{"$f":"CONCATENATE(\":\",\" \",dataumum!G11)","v":": X-D"}]
[null,"Semester",null,{"$f":"CONCATENATE(\":\",\" \",dataumum!G9)","v":": 2 (Genap)"}]
[null,"Tahun Ajaran",null,{"$f":"CONCATENATE(\":\",\" \",dataumum!G10)","v":": 2025/2026"}]
[]
[null,"No","Tanggal","Jam ke-","Uraian Singkat Pembelajaran","Capaian/Materi","Refleksi/RTL","Catatan Khusus/Kasus"]
[{"$f":"COUNT(C11)","v":1},1,"2026-01-05","4-5","Evaluasi KBM semester ganjil","-","-","-",null,null,"Tempat","Tasikmalaya"]
[{"$f":"COUNT(C12)","v":0},null,null,null,null,null,null,null,null,null,"Tanggal","31 Januari 2026","DIISI MANUAL OLEH GURU UNTUK PROSES PENCETAKAN"]
[0]
[0]
[0]
[0]
[0]
[0]
[0]
[0]
[0]
[0]
[0]
[0]
[0]
[0]
[0]
[0]
[0]
[0]
[0]
[0]
[0]
[0]
[0]
[0]
[0]
[0]
[0]
[0]
[0]
[0]
[0]
[0]
[0]
[0]
[0]
[0]
[0]
[0]
[0]
[0]
[0]
[0]
[0]
[0]
[0]
[0]
[0]
[0]
[0]
[0]
[0]
[0]
[0]
[0]
[0]
[0]
[0]
[0]
[0]
[0]
[0]
[0]
[0]
[{"$f":"COUNT(C76)","v":0}]
[0]
[0]
[0]
[0]
[0]
[0]
[0]
[0]
[0]
[0]
[0]
[0]
[0]
[0]
[0]
[0]
[0]
[0]
[0]
[0]
[0]
[0]
[0]
[0]
[0]
[0]
[0]
[0]
[0]
[0]
[0]
[0]
[0]
[0]
[]
[]
[null,null,null,"Mengetahui,",null,null,{"$f":"CONCATENATE(L11,\",\",\" \",TEXT(L12,\"DD MMMM YY\"))","v":"Tasikmalaya, 31 Januari 2026"}]
[null,null,null,"Kepala Madrasah",null,null,{"$f":"CONCATENATE(\"Guru\",\" \",dataumum!G8)","v":"Guru Kimia"}]
[]
[]
[]
[null,null,null,"Enjang, S.Ag., M.Pd.I.",null,null,{"$f":"dataumum!G6","v":"Arief Pribadi, S.Si"}]
[null,null,null,"NIP. 197406152005011006",null,null,{"$f":"CONCATENATE(\"NIP.\",\" \",dataumum!G7)","v":"NIP. 198603112020121005"}]

{"sheet":"jurnalsikap","index":17,"n_rows":119,"n_cols":11,"rows_kept":119,"cut":false,"hidden":false,"merged":[[1,1,1,7]]}
[]
[null,"JURNAL PENILAIAN SIKAP"]
[]
[null,"Nama Guru Mapel",null,{"$f":"CONCATENATE(\":\",\" \",dataumum!G6)","v":": Arief Pribadi, S.Si"}]
[null,"Mata Pelajaran",null,{"$f":"CONCATENATE(\":\",\" \",dataumum!G8)","v":": Kimia"}]
[null,"Kelas",null,{"$f":"CONCATENATE(\":\",\" \",dataumum!G11)","v":": X-D"}]
[null,"Semester",null,{"$f":"CONCATENATE(\":\",\" \",dataumum!G9)","v":": 2 (Genap)"}]
[null,"Tahun Ajaran",null,{"$f":"CONCATENATE(\":\",\" \",dataumum!G10)","v":": 2025/2026"}]
[]
[null,"No","Tanggal","Nama Peserta Didik","Catatan Perilaku","Butir Sikap","Tindak Lanjut","Paraf Guru"]
[{"$f":"COUNT(C11)","v":1},1,"2026-01-05","-","-","-","-","-",null,"KI 1 - Sikap Spiritual"]
[{"$f":"COUNT(C12)","v":0},null,null,null,null,null,null,null,null,"Butir Sikap","Indikator"]
[0,null,null,null,null,null,null,null,null,"Beriman kepada Tuhan Yang Maha Esa","1. Berdoa sebelum dan sesudah menjalan setiap perbuatan"]
[0,null,null,null,null,null,null,null,null,null,"2. Menerima semua pemberian dan keputusan Tuhan Yang Maha Esa dengan ikhlas"]
[0,null,null,null,null,null,null,null,null,null,"3. Berusaha semaksimal mungkin untuk meraih hasil atau prestasi yang diharapkan (ikhtiar)"]
[0,null,null,null,null,null,null,null,null,null,"4. Berserah diri (tawakal) kepada Tuhan Yang Maha Esa setelah selesai melakukan usaha maksimal (ikhtiar)"]
[0,null,null,null,null,null,null,null,null,"Bertakwa kepada Tuhan Yang Maha Esa","1. Menjalankan ibadah sesuai dengan ajaran agama yang dianutnya"]
[0,null,null,null,null,null,null,null,null,null,"2. Memberi salam pada saat awal dan akhir pembelajaran"]
[0,null,null,null,null,null,null,null,null,null,"3. Menjaga lingkungan hidup di sekitar rumah tempat tinggal, sekolah dan masyarakat"]
[0,null,null,null,null,null,null,null,null,null,"4. Memelihara hubungan baik dengan sesama makhluk ciptaan Tuhan Yang Maha Esa"]
[0,null,null,null,null,null,null,null,null,null,"5. Menghormati orang lain dalam menjalankan ibadah sesuai dengan agamanya"]
[0,null,null,null,null,null,null,null,null,"Bersyukur kepada Tuhan Yang Maha Esa","1. Mengucapkan kalimat pujian kepada Tuhan Yang Maha Esa atas nikmat dan karunia-Nya"]
[0,null,null,null,null,null,null,null,null,null,"2. Memanfaatkan kesempatan belajar dengan sebaik-baiknya untuk meraih kesuksesan dalam pendidikan"]
[0,null,null,null,null,null,null,null,null,null,"3. Mensyukuri kekayaan alam Indonesia dengan memanfaatkannya semaksimal mungkin"]
[0]
[0,null,null,null,null,null,null,null,null,"KI 2 - Sikap Sosial"]
[0,null,null,null,null,null,null,null,null,"Butir Sikap","Indikator"]
[0,null,null,null,null,null,null,null,null,"1. Jujur","1. Tidak menyontek dalam ujian/ulangan"]
[0,null,null,null,null,null,null,null,null,null,"2. Tidak mengambil/menyalin karya orang lain tanpa menyebutkan sumbernya"]
[0,null,null,null,null,null,null,null,null,null,"3. Mengungkapkan perasaan apa adanya"]
[0,null,null,null,null,null,null,null,null,null,"4. Menyerahkan barang yang ditemukan kepada yang berhak"]
[0,null,null,null,null,null,null,null,null,null,"5. Membuat laporan berdasarkan data atau informasi apa adanya"]
[0,null,null,null,null,null,null,null,null,null,"6. Mengakui setiap kesalahan yang diperbuat"]
[0,null,null,null,null,null,null,null,null,null,"7. Mengakui kekurangan yang dimiliki"]
[0,null,null,null,null,null,null,null,null,null,"8. Menyampaikan informasi sesuai dengan fakta yang ada"]
[0,null,null,null,null,null,null,null,null,"2. Disiplin","1. Datang ke sekolah dan pulang dari sekolah tepat waktu"]
[0,null,null,null,null,null,null,null,null,null,"2. Patuh pada tata tertib atau aturan sekolah"]
[0,null,null,null,null,null,null,null,null,null,"3. Mengerjakan setiap tugas yang diberikan"]
[0,null,null,null,null,null,null,null,null,null,"4. Mengumpulkan tugas tepat waktu"]
[0,null,null,null,null,null,null,null,null,null,"5. Mengikuti kaidah berbahasa yang baik dan benar"]
[0,null,null,null,null,null,null,null,null,null,"6. Memakai seragam sesuai dengan ketentuan yang berlaku"]
[0,null,null,null,null,null,null,null,null,null,"7. Membawa perlengkapan belajar sesuai dengan mata pelajaran"]
[0,null,null,null,null,null,null,null,null,"3. Tanggung Jawab","1. Melaksanakan setiap pekerjaan yang menjadi tanggung jawabnya."]
[0,null,null,null,null,null,null,null,null,null,"2. Melaksanakan tugas individu dengan baik"]
[0,null,null,null,null,null,null,null,null,null,"3. Menerima resiko dari setiap tindakan yang dilakukan"]
[0,null,null,null,null,null,null,null,null,null,"4. Tidak menyalahkan/menuduh orang lain tanpa bukti yang akurat"]
[0,null,null,null,null,null,null,null,null,null,"5. Mengembalikan barang yang dipinjam"]
[0,null,null,null,null,null,null,null,null,null,"6. Membayar semua barang yang dibeli"]
[0,null,null,null,null,null,null,null,null,null,"7.  Mengakui dan meminta maaf atas kesalahan yang dilakukan"]
[0,null,null,null,null,null,null,null,null,null,"8. Menepati janji"]
[0,null,null,null,null,null,null,null,null,"4. Peduli","1. Membantu orang yang membutuhkan"]
[0,null,null,null,null,null,null,null,null,null,"2. Tidak melakukan aktivitas yang mengganggu dan merugikan orang lain"]
[0,null,null,null,null,null,null,null,null,null,"3. Melakukan aktivitas sosial untuk membantu orang-orang yang membutuhkan"]
[0,null,null,null,null,null,null,null,null,null,"4. Memelihara lingkungan sekolah"]
[0,null,null,null,null,null,null,null,null,null,"5. Membuang sampah pada tempatnya"]
[0,null,null,null,null,null,null,null,null,null,"6. Mematikan kran air yang mengucurkan air"]
[0,null,null,null,null,null,null,null,null,null,"7. Mematikan lampu yang tidak digunakan"]
[0,null,null,null,null,null,null,null,null,null,"8. Tidak merusak tanaman di lingkungan sekolah"]
[0,null,null,null,null,null,null,null,null,"5. Toleransi","1. Tidak mengganggu teman yang berbeda pendapat"]
[0,null,null,null,null,null,null,null,null,null,"2. Menerima kesepakatan meskipun berbeda dengan pendapatnya"]
[0,null,null,null,null,null,null,null,null,null,"3. Dapat menerima kekurangan orang lain"]
[0,null,null,null,null,null,null,null,null,null,"4. Dapat memaafkan kesalahan orang lain"]
[0,null,null,null,null,null,null,null,null,null,"5. Mampu dan mau bekerja sama dengan siapa pun yang memiliki keberagaman latar belakang, pandangan, dan keyakinan"]
[0,null,null,null,null,null,null,null,null,null,"6. Tidak memaksakan pendapat atau keyakinan pada orang lain"]
[0,null,null,null,null,null,null,null,null,null,"7. Menerima perbedaan dengan orang lain dalam hal sikap, perilaku, tradisi, suku, bahasa, dan agama"]
[0,null,null,null,null,null,null,null,null,"6. Gotong Royong","1. Terlibat aktif dalam bekerja bakti membersihkan kelas atau sekolah"]
[0,null,null,null,null,null,null,null,null,null,"2. Bersedia melakukan tugas sesuai kesepakatan bersama"]
[0,null,null,null,null,null,null,null,null,null,"3. Bersedia membantu orang lain tanpa mengharap imbalan"]
[0,null,null,null,null,null,null,null,null,null,"4. Aktif dalam kerja kelompok"]
[0,null,null,null,null,null,null,null,null,null,"5. Memusatkan perhatian pada tujuan kelompok"]
[0,null,null,null,null,null,null,null,null,null,"6. Tidak mendahulukan kepentingan pribadi"]
[0,null,null,null,null,null,null,null,null,null,"7. Mencari jalan untuk mengatasi perbedaan pendapat/pikiran antara diri sendiri dengan orang lain"]
[0,null,null,null,null,null,null,null,null,"7. Sopan atau Santun","1. Menghormati orang yang lebih tua."]
[0,null,null,null,null,null,null,null,null,null,"2. Tidak berkata-kata kotor, kasar, dan tidak menyakitkan."]
[0,null,null,null,null,null,null,null,null,null,"3. Tidak meludah di sembarang tempat."]
[{"$f":"COUNT(C76)","v":0},null,null,null,null,null,null,null,null,null,"4. Tidak menyela pembicaraan orang lain pada waktu yang tidak tepat"]
[0,null,null,null,null,null,null,null,null,null,"5. Mengucapkan terima kasih kepada orang yang membantunya"]
[0,null,null,null,null,null,null,null,null,null,"6. Bersikap 3S (salam, senyum, sapa)"]
[0,null,null,null,null,null,null,null,null,null,"7. Meminta ijin ketika akan memasuki ruangan orang lain atau menggunakan barang milik orang lain"]
[0,null,null,null,null,null,null,null,null,null,"8. Memperlakukan orang lain sebagaimana memperlakukan dirinya sendiri"]
[0,null,null,null,null,null,null,null,null,"8. Percaya Diri","1. Berpendapat atau melakukan tindakan tanpa ragu-ragu."]
[0,null,null,null,null,null,null,null,null,null,"2. Mampu membuat keputusan dengan cepat"]
[0,null,null,null,null,null,null,null,null,null,"3. Berani presentasi di depan kelas"]
[0,null,null,null,null,null,null,null,null,null,"4. Berani berpendapat, bertanya, atau menjawab pertanyaan di hadapan guru dan teman-temannya"]
[0,null,null,null,null,null,null,null,null,"9. Rasa Ingin Tahu","1. Suka bertanya"]
[0,null,null,null,null,null,null,null,null,null,"2. Suka mengamati sesuatu"]
[0,null,null,null,null,null,null,null,null,null,"3. Tidak puas pada jawaban yang ada"]
[0,null,null,null,null,null,null,null,null,"10. Kreatif","1. Menyusun gagasan baru"]
[0,null,null,null,null,null,null,null,null,null,"2. Menciptakan karya baru"]
[0,null,null,null,null,null,null,null,null,null,"3. Mampu memecahkan masalah"]
[0,null,null,null,null,null,null,null,null,"11. Persatuan dan Kesatuan","1. Menyukai kebersamaan."]
[0,null,null,null,null,null,null,null,null,null,"2. Bergaul tanpa membeda-bedakan kepentingan, agama, atau yang lainnya."]
[0,null,null,null,null,null,null,null,null,null,"3. Tidak suka bertengkar."]
[0,null,null,null,null,null,null,null,null,"12. Demokratis","1. Melibatkan warga sekolah dalam setiap pengambilan keputusan."]
[0,null,null,null,null,null,null,null,null,null,"2. Menciptakan suasana sekolah yang menerima perbedaan."]
[0,null,null,null,null,null,null,null,null,null,"3. Mengambil keputusan secara bersama-sama"]
[0,null,null,null,null,null,null,null,null,"13. Rendah Hati","1. Tidak sombong."]
[0,null,null,null,null,null,null,null,null,null,"2. Tidak suka pamer."]
[0,null,null,null,null,null,null,null,null,null,"3. Menghargai kelebihan orang lain."]
[0]
[0]
[0]
[0]
[0]
[0]
[0]
[0]
[0]
[0]
[0]
[]
[]
[null,null,null,"Mengetahui,",null,null,{"$f":"jurnalmengajar!G113","v":"Tasikmalaya, 31 Januari 2026"}]
[null,null,null,"Kepala Madrasah",null,null,{"$f":"jurnalmengajar!G114","v":"Guru Kimia"}]
[]
[]
[]
[null,null,null,"Enjang, S.Ag., M.Pd.I.",null,null,{"$f":"jurnalmengajar!G118","v":"Arief Pribadi, S.Si"}]
[null,null,null,"NIP. 197406152005011006",null,null,{"$f":"jurnalmengajar!G119","v":"NIP. 198603112020121005"}]

{"sheet":"pengetahuan","index":18,"n_rows":57,"n_cols":135,"rows_kept":57,"cut":false,"hidden":true,"merged":[[56,1,56,3],[9,115,10,118],[8,115,8,118],[3,115,7,118],[8,120,10,121],[13,1,15,1],[13,2,15,2],[13,3,15,3],[13,4,13,13],[13,120,13,121],[13,117,15,117],[14,4,14,13],[13,15,13,24],[13,25,15,25],[14,15,14,24],[13,115,15,115],[7,120,7,121],[10,1,10,2],[4,4,4,5],[4,6,4,14],[6,5,6,9],[7,5,7,9],[8,5,8,9],[9,5,9,9],[6,11,6,14],[7,11,7,14],[3,4,3,14],[13,14,15,14],[3,15,3,25],[4,15,4,16],[4,17,4,25],[5,15,5,25],[6,16,6,20],[6,22,6,25],[7,16,7,20],[7,22,7,25],[8,16,8,20],[8,22,8,25],[9,16,9,20],[9,22,9,25],[10,16,10,20],[10,22,10,25],[8,11,8,14],[9,11,9,14],[5,4,5,14],[10,5,10,9],[10,11,10,14],[3,37,3,47],[4,37,4,38],[4,39,4,47],[5,37,5,47],[6,38,6,42],[6,44,6,47],[10,27,10,31],[10,33,10,36],[14,26,14,35],[13,26,13,35],[13,36,15,36],[7,27,7,31],[7,33,7,36],[8,27,8,31],[8,33,8,36],[9,27,9,31],[9,33,9,36],[3,26,3,36],[4,26,4,27],[4,28,4,36],[5,26,5,36],[6,27,6,31],[6,33,6,36],[10,38,10,42],[10,44,10,47],[13,37,13,46],[13,47,15,47],[14,37,14,46],[7,38,7,42],[7,44,7,47],[8,38,8,42],[8,44,8,47],[9,38,9,42],[9,44,9,47],[3,59,3,69],[4,59,4,60],[4,61,4,69],[5,59,5,69],[6,60,6,64],[6,66,6,69],[10,49,10,53],[10,55,10,58],[13,48,13,57],[13,58,15,58],[14,48,14,57],[7,49,7,53],[7,55,7,58],[8,49,8,53],[8,55,8,58],[9,49,9,53],[9,55,9,58],[3,48,3,58],[4,48,4,49],[4,50,4,58],[5,48,5,58],[6,49,6,53],[6,55,6,58],[10,60,10,64],[10,66,10,69],[13,59,13,68],[13,69,15,69],[14,59,14,68],[7,60,7,64],[7,66,7,69],[8,60,8,64],[8,66,8,69],[9,60,9,64],[9,66,9,69],[3,81,3,91],[4,81,4,82],[4,83,4,91],[5,81,5,91],[6,82,6,86],[6,88,6,91],[10,71,10,75],[10,77,10,80],[13,70,13,79],[13,80,15,80],[14,70,14,79],[7,71,7,75],[7,77,7,80],[8,71,8,75],[8,77,8,80],[9,71,9,75],[9,77,9,80],[3,70,3,80],[4,70,4,71],[4,72,4,80],[5,70,5,80],[6,71,6,75],[6,77,6,80],[10,82,10,86],[10,88,10,91],[13,81,13,90],[13,91,15,91],[14,81,14,90],[7,82,7,86],[7,88,7,91],[8,82,8,86],[8,88,8,91],[9,82,9,86],[9,88,9,91],[3,103,3,113],[4,103,4,104],[4,105,4,113],[5,103,5,113],[6,104,6,108],[6,110,6,113],[10,93,10,97],[10,99,10,102],[13,92,13,101],[13,102,15,102],[14,92,14,101],[7,93,7,97],[7,99,7,102],[8,93,8,97],[8,99,8,102],[9,93,9,97],[9,99,9,102],[3,92,3,102],[4,92,4,93],[4,94,4,102],[5,92,5,102],[6,93,6,97],[6,99,6,102],[13,116,15,116],[13,118,15,118],[10,104,10,108],[10,110,10,113],[13,103,13,112],[13,113,15,113],[14,103,14,112],[7,104,7,108],[7,110,7,113],[8,104,8,108],[8,110,8,113],[9,104,9,108],[9,110,9,113]]}
[]
[]
[]
[null,"IDENTITAS GURU PENGAJAR",null,null,{"$f":"CONCATENATE(\"KD\",\" \",dataumum!#REF!)","v":{"$error":"#REF!"}},null,null,null,null,null,null,null,null,null,null,{"$f":"CONCATENATE(\"KD\",\" \",dataumum!#REF!)","v":{"$error":"#REF!"}},null,null,null,null,null,null,null,null,null,null,{"$f":"CONCATENATE(\"KD\",\" \",dataumum!#REF!)","v":{"$error":"#REF!"}},null,null,null,null,null,null,null,null,null,null,{"$f":"CONCATENATE(\"KD\",\" \",dataumum!#REF!)","v":{"$error":"#REF!"}},null,null,null,null,null,null,null,null,null,null,{"$f":"CONCATENATE(\"KD\",\" \",dataumum!#REF!)","v":{"$error":"#REF!"}},null,null,null,null,null,null,null,null,null,null,{"$f":"CONCATENATE(\"KD\",\" \",dataumum!#REF!)","v":{"$error":"#REF!"}},null,null,null,null,null,null,null,null,null,null,{"$f":"CONCATENATE(\"KD\",\" \",dataumum!#REF!)","v":{"$error":"#REF!"}},null,null,null,null,null,null,null,null,null,null,{"$f":"CONCATENATE(\"KD\",\" \",dataumum!#REF!)","v":{"$error":"#REF!"}},null,null,null,null,null,null,null,null,null,null,{"$f":"CONCATENATE(\"KD\",\" \",dataumum!#REF!)","v":{"$error":"#REF!"}},null,null,null,null,null,null,null,null,null,null,{"$f":"CONCATENATE(\"KD\",\" \",dataumum!#REF!)","v":{"$error":"#REF!"}},null,null,null,null,null,null,null,null,null,null,null,"APLIKASI PENILAIAN K.13 MAN 4 TASIKMALAYA",null,null,null,null,null,null,null,null,null,null,"PENILAIAN PENGETAHUAN",null,null,"JENIS UJIAN"]
[null,"Nama Guru",null,{"$f":"dataumum!G6","v":"Arief Pribadi, S.Si"},"Deskripsi",null,{"$f":"dataumum!#REF!","v":{"$error":"#REF!"}},null,null,null,null,null,null,null,null,"Deskripsi",null,{"$f":"dataumum!#REF!","v":{"$error":"#REF!"}},null,null,null,null,null,null,null,null,"Deskripsi",null,{"$f":"dataumum!#REF!","v":{"$error":"#REF!"}},null,null,null,null,null,null,null,null,"Deskripsi",null,{"$f":"dataumum!#REF!","v":{"$error":"#REF!"}},null,null,null,null,null,null,null,null,"Deskripsi",null,{"$f":"dataumum!#REF!","v":{"$error":"#REF!"}},null,null,null,null,null,null,null,null,"Deskripsi",null,{"$f":"dataumum!#REF!","v":{"$error":"#REF!"}},null,null,null,null,null,null,null,null,"Deskripsi",null,{"$f":"dataumum!#REF!","v":{"$error":"#REF!"}},null,null,null,null,null,null,null,null,"Deskripsi",null,{"$f":"dataumum!#REF!","v":{"$error":"#REF!"}},null,null,null,null,null,null,null,null,"Deskripsi",null,{"$f":"dataumum!#REF!","v":{"$error":"#REF!"}},null,null,null,null,null,null,null,null,"Deskripsi",null,{"$f":"dataumum!#REF!","v":{"$error":"#REF!"}},null,null,null,null,null,null,null,null,null,null,null,null,null,null,null,null,null,null,null,null,"TLS",null,null,"PAS"]
[null,"NIP",null,{"$f":"dataumum!G7","v":"198603112020121005"},"Keterangan Tagihan",null,null,null,null,null,null,null,null,null,null,"Keterangan Tagihan",null,null,null,null,null,null,null,null,null,null,"Keterangan Tagihan",null,null,null,null,null,null,null,null,null,null,"Keterangan Tagihan",null,null,null,null,null,null,null,null,null,null,"Keterangan Tagihan",null,null,null,null,null,null,null,null,null,null,"Keterangan Tagihan",null,null,null,null,null,null,null,null,null,null,"Keterangan Tagihan",null,null,null,null,null,null,null,null,null,null,"Keterangan Tagihan",null,null,null,null,null,null,null,null,null,null,"Keterangan Tagihan",null,null,null,null,null,null,null,null,null,null,"Keterangan Tagihan",null,null,null,null,null,null,null,null,null,null,null,null,null,null,null,null,null,null,null,null,null,null,"LSN",null,null,"PAT"]
[null,"Mata Pelajaran",null,{"$f":"dataumum!G8","v":"Kimia"},"PH1",null,null,null,null,null,"PH6",null,null,null,null,"PH1",null,null,null,null,null,"PH6",null,null,null,null,"PH1",null,null,null,null,null,"PH6",null,null,null,null,"PH1",null,null,null,null,null,"PH6",null,null,null,null,"PH1",null,null,null,null,null,"PH6",null,null,null,null,"PH1",null,null,null,null,null,"PH6",null,null,null,null,"PH1",null,null,null,null,null,"PH6",null,null,null,null,"PH1",null,null,null,null,null,"PH6",null,null,null,null,"PH1",null,null,null,null,null,"PH6",null,null,null,null,"PH1",null,null,null,null,null,"PH6",null,null,null,null,null,null,null,null,null,null,null,null,null,null,null,null,"TGS",null,null,"UM"]
[null,"Semester",null,{"$f":"dataumum!G9","v":"2 (Genap)"},"PH2",null,null,null,null,null,"PH7",null,null,null,null,"PH2",null,null,null,null,null,"PH7",null,null,null,null,"PH2",null,null,null,null,null,"PH7",null,null,null,null,"PH2",null,null,null,null,null,"PH7",null,null,null,null,"PH2",null,null,null,null,null,"PH7",null,null,null,null,"PH2",null,null,null,null,null,"PH7",null,null,null,null,"PH2",null,null,null,null,null,"PH7",null,null,null,null,"PH2",null,null,null,null,null,"PH7",null,null,null,null,"PH2",null,null,null,null,null,"PH7",null,null,null,null,"PH2",null,null,null,null,null,"PH7",null,null,null,null,null,null,null,null,null,null,"MAN 4 TASIKMALAYA",null,null,null,null,null,"PENILAIAN KETERAMPILAN"]
[null,"Tahun Pelajaran",null,{"$f":"dataumum!G10","v":"2025/2026"},"PH3",null,null,null,null,null,"PH8",null,null,null,null,"PH3",null,null,null,null,null,"PH8",null,null,null,null,"PH3",null,null,null,null,null,"PH8",null,null,null,null,"PH3",null,null,null,null,null,"PH8",null,null,null,null,"PH3",null,null,null,null,null,"PH8",null,null,null,null,"PH3",null,null,null,null,null,"PH8",null,null,null,null,"PH3",null,null,null,null,null,"PH8",null,null,null,null,"PH3",null,null,null,null,null,"PH8",null,null,null,null,"PH3",null,null,null,null,null,"PH8",null,null,null,null,"PH3",null,null,null,null,null,"PH8",null,null,null,null,null,{"$f":"dataumum!G19","v":"X-D"},null,null,null,null,"TOOLS UNTUK OLAH NILAI",null,null,null,null,null,"UK"]
[null,"Kelas",null,{"$f":"dataumum!G11","v":"X-D"},"PH4",null,null,null,null,null,"PH9",null,null,null,null,"PH4",null,null,null,null,null,"PH9",null,null,null,null,"PH4",null,null,null,null,null,"PH9",null,null,null,null,"PH4",null,null,null,null,null,"PH9",null,null,null,null,"PH4",null,null,null,null,null,"PH9",null,null,null,null,"PH4",null,null,null,null,null,"PH9",null,null,null,null,"PH4",null,null,null,null,null,"PH9",null,null,null,null,"PH4",null,null,null,null,null,"PH9",null,null,null,null,"PH4",null,null,null,null,null,"PH9",null,null,null,null,"PH4",null,null,null,null,null,"PH9",null,null,null,null,null,"NILAI PENGETAHUAN",null,null,null,null,null,null,null,null,null,null,"PR"]
[null,"KKM",null,{"$f":"dataumum!G12","v":75},"PH5",null,null,null,null,null,"PH10",null,null,null,null,"PH5",null,null,null,null,null,"PH10",null,null,null,null,"PH5",null,null,null,null,null,"PH10",null,null,null,null,"PH5",null,null,null,null,null,"PH10",null,null,null,null,"PH5",null,null,null,null,null,"PH10",null,null,null,null,"PH5",null,null,null,null,null,"PH10",null,null,null,null,"PH5",null,null,null,null,null,"PH10",null,null,null,null,"PH5",null,null,null,null,null,"PH10",null,null,null,null,"PH5",null,null,null,null,null,"PH10",null,null,null,null,"PH5",null,null,null,null,null,"PH10",null,null,null,null,null,null,null,null,null,null,null,null,null,null,null,null,"PF"]
[null,null,null,{"$f":"dataumum!G19","v":"X-D"},null,null,null,null,null,null,null,null,null,null,null,null,null,null,null,null,null,null,null,null,null,null,null,null,null,null,null,null,null,null,null,null,null,null,null,null,null,null,null,null,null,null,null,null,null,null,null,null,null,null,null,null,null,null,null,null,null,null,null,null,null,null,null,null,null,null,null,null,null,null,null,null,null,null,null,null,null,null,null,null,null,null,null,null,null,null,null,null,null,null,null,null,null,null,null,null,null,null,null,null,null,null,null,null,null,null,null,null,null,null,null,null,null,null,null,null,"N_MIN",{"$f":"MIN(DQ17:DQ56)","v":10}]
[null,null,null,null,{"$f":"IF(COUNT(E17:E56)>0,1,0)","v":0},0,0,0,0,0,0,0,0,0,{"$f":"SUM(E13:N13)","v":0},{"$f":"IF(COUNT(P17:P56)>0,1,0)","v":0},0,0,0,0,0,0,0,0,0,{"$f":"SUM(P13:Y13)","v":0},{"$f":"IF(COUNT(AA17:AA56)>0,1,0)","v":0},0,0,0,0,0,0,0,0,0,{"$f":"SUM(AA13:AJ13)","v":0},{"$f":"IF(COUNT(AL17:AL56)>0,1,0)","v":0},0,0,0,0,0,0,0,0,0,{"$f":"SUM(AL13:AU13)","v":0},{"$f":"IF(COUNT(AW17:AW56)>0,1,0)","v":0},0,0,0,0,0,0,0,0,0,{"$f":"SUM(AW13:BF13)","v":0},{"$f":"IF(COUNT(BH17:BH56)>0,1,0)","v":0},0,0,0,0,0,0,0,0,0,{"$f":"SUM(BH13:BQ13)","v":0},{"$f":"IF(COUNT(BS17:BS56)>0,1,0)","v":0},0,0,0,0,0,0,0,0,0,{"$f":"SUM(BS13:CB13)","v":0},{"$f":"IF(COUNT(CD17:CD56)>0,1,0)","v":0},0,0,0,0,0,0,0,0,0,{"$f":"SUM(CD13:CM13)","v":0},{"$f":"IF(COUNT(CO17:CO56)>0,1,0)","v":0},0,0,0,0,0,0,0,0,0,{"$f":"SUM(CO13:CX13)","v":0},{"$f":"IF(COUNT(CZ17:CZ56)>0,1,0)","v":0},0,0,0,0,0,0,0,0,0,{"$f":"SUM(CZ13:DI13)","v":0},null,null,null,null,null,null,"N_MAX",{"$f":"MAX(DQ17:DQ56)","v":50}]
[null,"NO","NISN","NAMA\n(Silahkan ambil dari salah satu template RDM)","PENGETAHUAN",null,null,null,null,null,null,null,null,null,{"$f":"CONCATENATE(\"NILAI\",\" \",E4)","v":{"$error":"#REF!"}},"PENGETAHUAN",null,null,null,null,null,null,null,null,null,{"$f":"CONCATENATE(\"NILAI\",\" \",P4)","v":{"$error":"#REF!"}},"PENGETAHUAN",null,null,null,null,null,null,null,null,null,{"$f":"CONCATENATE(\"NILAI\",\" \",AA4)","v":{"$error":"#REF!"}},"PENGETAHUAN",null,null,null,null,null,null,null,null,null,{"$f":"CONCATENATE(\"NILAI\",\" \",AL4)","v":{"$error":"#REF!"}},"PENGETAHUAN",null,null,null,null,null,null,null,null,null,{"$f":"CONCATENATE(\"NILAI\",\" \",AW4)","v":{"$error":"#REF!"}},"PENGETAHUAN",null,null,null,null,null,null,null,null,null,{"$f":"CONCATENATE(\"NILAI\",\" \",BH4)","v":{"$error":"#REF!"}},"PENGETAHUAN",null,null,null,null,null,null,null,null,null,{"$f":"CONCATENATE(\"NILAI\",\" \",BS4)","v":{"$error":"#REF!"}},"PENGETAHUAN",null,null,null,null,null,null,null,null,null,{"$f":"CONCATENATE(\"NILAI\",\" \",CD4)","v":{"$error":"#REF!"}},"PENGETAHUAN",null,null,null,null,null,null,null,null,null,{"$f":"CONCATENATE(\"NILAI\",\" \",CO4)","v":{"$error":"#REF!"}},"PENGETAHUAN",null,null,null,null,null,null,null,null,null,{"$f":"CONCATENATE(\"NILAI\",\" \",CZ4)","v":{"$error":"#REF!"}},null,"RKD","PAS","NP","PREDIKAT",null,"NILAI YANG DIINGINKAN"]
[null,null,null,null,"Teknik Penilaian",null,null,null,null,null,null,null,null,null,null,"Teknik Penilaian",null,null,null,null,null,null,null,null,null,null,"Teknik Penilaian",null,null,null,null,null,null,null,null,null,null,"Teknik Penilaian",null,null,null,null,null,null,null,null,null,null,"Teknik Penilaian",null,null,null,null,null,null,null,null,null,null,"Teknik Penilaian",null,null,null,null,null,null,null,null,null,null,"Teknik Penilaian",null,null,null,null,null,null,null,null,null,null,"Teknik Penilaian",null,null,null,null,null,null,null,null,null,null,"Teknik Penilaian",null,null,null,null,null,null,null,null,null,null,"Teknik Penilaian",null,null,null,null,null,null,null,null,null,null,null,null,null,null,null,null,"MIN",77,null,null,{"$f":"IF(COUNT(DU17:DU56)>0,1,0)","v":0},{"$f":"IF(COUNT(DV17:DV56)>0,1,0)","v":0},0,0,0,0,0,0,0,0,{"$f":"SUM(DU15:ED15)","v":0}]
[null,null,null,null,null,null,null,null,null,null,null,null,null,null,null,null,null,null,null,null,null,null,null,null,null,null,null,null,null,null,null,null,null,null,null,null,null,null,null,null,null,null,null,null,null,null,null,null,null,null,null,null,null,null,null,null,null,null,null,null,null,null,null,null,null,null,null,null,null,null,null,null,null,null,null,null,null,null,null,null,null,null,null,null,null,null,null,null,null,null,null,null,null,null,null,null,null,null,null,null,null,null,null,null,null,null,null,null,null,null,null,null,null,null,null,null,null,null,null,null,"MAX",83,null,null,{"$f":"E4","v":{"$error":"#REF!"}},{"$f":"P4","v":{"$error":"#REF!"}},{"$f":"AA4","v":{"$error":"#REF!"}},{"$f":"AL4","v":{"$error":"#REF!"}},{"$f":"AW4","v":{"$error":"#REF!"}},{"$f":"BH4","v":{"$error":"#REF!"}},{"$f":"BS4","v":{"$error":"#REF!"}},{"$f":"CD4","v":{"$error":"#REF!"}},{"$f":"CO4","v":{"$error":"#REF!"}},{"$f":"CZ4","v":{"$error":"#REF!"}},"RKD"]
[null,1,{"$f":"dataumum!C9","v":"0095527100"},{"$f":"dataumum!D9","v":"AHMAD JAMIL MUNAWAR"},null,null,null,null,null,null,null,null,null,null,{"$f":"IF(COUNT(E17:N17)<1,\"\",ROUND(SUM(E17:N17)/$O$13,0))","v":""},null,null,null,null,null,null,null,null,null,null,{"$f":"IF(COUNT(P17:Y17)<1,\"\",ROUND(SUM(P17:Y17)/$Z$13,0))","v":""},null,null,null,null,null,null,null,null,null,null,{"$f":"IF(COUNT(AA17:AJ17)<1,\"\",ROUND(SUM(AA17:AJ17)/$AK$13,0))","v":""},null,null,null,null,null,null,null,null,null,null,{"$f":"IF(COUNT(AL17:AU17)<1,\"\",ROUND(SUM(AL17:AU17)/$AV$13,0))","v":""},null,null,null,null,null,null,null,null,null,null,{"$f":"IF(COUNT(AW17:BF17)<1,\"\",ROUND(SUM(AW17:BF17)/$BG$13,0))","v":""},null,null,null,null,null,null,null,null,null,null,{"$f":"IF(COUNT(BH17:BQ17)<1,\"\",ROUND(SUM(BH17:BQ17)/$BR$13,0))","v":""},null,null,null,null,null,null,null,null,null,null,{"$f":"IF(COUNT(BS17:CB17)<1,\"\",ROUND(SUM(BS17:CB17)/$CC$13,0))","v":""},null,null,null,null,null,null,null,null,null,null,{"$f":"IF(COUNT(CD17:CM17)<1,\"\",ROUND(SUM(CD17:CM17)/$CN$13,0))","v":""},null,null,null,null,null,null,null,null,null,null,{"$f":"IF(COUNT(CO17:CX17)<1,\"\",ROUND(SUM(CO17:CX17)/$CY$13,0))","v":""},null,null,null,null,null,null,null,null,null,null,{"$f":"IF(COUNT(CZ17:DI17)<1,\"\",ROUND(SUM(CZ17:DI17)/$DJ$13,0))","v":""},null,{"$f":"EE17","v":""},80,{"$f":"IFERROR(DL17*dataumum!$G$13/100+DM17*dataumum!$G$14/100,0)","v":0},{"$f":"IFERROR(IF(DN17>=dataumum!#REF!,\"A\",IF(DN17>=dataumum!#REF!,\"B\",IF(DN17>=dataumum!#REF!,\"C\",\"D\"))),0)","v":0},null,26.666666666666668,{"$f":"IFERROR($DR$15+((DQ17-$DR$12)/($DR$13-$DR$12)*($DR$16-$DR$15)),0)","v":79.5},null,null,{"$f":"O17","v":""},{"$f":"Z17","v":""},{"$f":"AK17","v":""},{"$f":"AV17","v":""},{"$f":"BG17","v":""},{"$f":"BR17","v":""},{"$f":"CC17","v":""},{"$f":"CN17","v":""},{"$f":"CY17","v":""},{"$f":"DJ17","v":""},{"$f":"IFERROR(IF(COUNT(DU17:ED17)<1,\"\",ROUND(SUM(DU17:ED17)/$EE$15,0)),0)","v":""}]
[null,2,{"$f":"dataumum!C10","v":"0108689880"},{"$f":"dataumum!D10","v":"AKBAR NUGRAHA"},null,null,null,null,null,null,null,null,null,null,{"$f":"IF(COUNT(E18:N18)<1,\"\",ROUND(SUM(E18:N18)/$O$13,0))","v":""},null,null,null,null,null,null,null,null,null,null,{"$f":"IF(COUNT(P18:Y18)<1,\"\",ROUND(SUM(P18:Y18)/$Z$13,0))","v":""},null,null,null,null,null,null,null,null,null,null,{"$f":"IF(COUNT(AA18:AJ18)<1,\"\",ROUND(SUM(AA18:AJ18)/$AK$13,0))","v":""},null,null,null,null,null,null,null,null,null,null,{"$f":"IF(COUNT(AL18:AU18)<1,\"\",ROUND(SUM(AL18:AU18)/$AV$13,0))","v":""},null,null,null,null,null,null,null,null,null,null,{"$f":"IF(COUNT(AW18:BF18)<1,\"\",ROUND(SUM(AW18:BF18)/$BG$13,0))","v":""},null,null,null,null,null,null,null,null,null,null,{"$f":"IF(COUNT(BH18:BQ18)<1,\"\",ROUND(SUM(BH18:BQ18)/$BR$13,0))","v":""},null,null,null,null,null,null,null,null,null,null,{"$f":"IF(COUNT(BS18:CB18)<1,\"\",ROUND(SUM(BS18:CB18)/$CC$13,0))","v":""},null,null,null,null,null,null,null,null,null,null,{"$f":"IF(COUNT(CD18:CM18)<1,\"\",ROUND(SUM(CD18:CM18)/$CN$13,0))","v":""},null,null,null,null,null,null,null,null,null,null,{"$f":"IF(COUNT(CO18:CX18)<1,\"\",ROUND(SUM(CO18:CX18)/$CY$13,0))","v":""},null,null,null,null,null,null,null,null,null,null,{"$f":"IF(COUNT(CZ18:DI18)<1,\"\",ROUND(SUM(CZ18:DI18)/$DJ$13,0))","v":""},null,{"$f":"EE18","v":""},50,{"$f":"IFERROR(DL18*dataumum!$G$13/100+DM18*dataumum!$G$14/100,0)","v":0},{"$f":"IFERROR(IF(DN18>=dataumum!#REF!,\"A\",IF(DN18>=dataumum!#REF!,\"B\",IF(DN18>=dataumum!#REF!,\"C\",\"D\"))),0)","v":0},null,20,{"$f":"IFERROR($DR$15+((DQ18-$DR$12)/($DR$13-$DR$12)*($DR$16-$DR$15)),0)","v":78.5},null,null,"","","","","","","","","","",{"$f":"IFERROR(IF(COUNT(DU18:ED18)<1,\"\",ROUND(SUM(DU18:ED18)/$EE$15,0)),0)","v":""}]
[null,3,{"$f":"dataumum!C11","v":"0101457073"},{"$f":"dataumum!D11","v":"ALSA NAPILA ABALIA"},null,null,null,null,null,null,null,null,null,null,"",null,null,null,null,null,null,null,null,null,null,"",null,null,null,null,null,null,null,null,null,null,"",null,null,null,null,null,null,null,null,null,null,"",null,null,null,null,null,null,null,null,null,null,"",null,null,null,null,null,null,null,null,null,null,"",null,null,null,null,null,null,null,null,null,null,"",null,null,null,null,null,null,null,null,null,null,"",null,null,null,null,null,null,null,null,null,null,"",null,null,null,null,null,null,null,null,null,null,"",null,"",null,{"$f":"IFERROR(DL19*dataumum!$G$13/100+DM19*dataumum!$G$14/100,0)","v":0},{"$f":"IFERROR(IF(DN19>=dataumum!#REF!,\"A\",IF(DN19>=dataumum!#REF!,\"B\",IF(DN19>=dataumum!#REF!,\"C\",\"D\"))),0)","v":0},null,13.333333333333334,77.5,null,null,"","","","","","","","","","",""]
[null,4,{"$f":"dataumum!C12","v":"3098669460"},{"$f":"dataumum!D12","v":"ALWAN FAJRUL HAKIM"},null,null,null,null,null,null,null,null,null,null,"",null,null,null,null,null,null,null,null,null,null,"",null,null,null,null,null,null,null,null,null,null,"",null,null,null,null,null,null,null,null,null,null,"",null,null,null,null,null,null,null,null,null,null,"",null,null,null,null,null,null,null,null,null,null,"",null,null,null,null,null,null,null,null,null,null,"",null,null,null,null,null,null,null,null,null,null,"",null,null,null,null,null,null,null,null,null,null,"",null,null,null,null,null,null,null,null,null,null,"",null,"",null,{"$f":"IFERROR(DL20*dataumum!$G$13/100+DM20*dataumum!$G$14/100,0)","v":0},{"$f":"IFERROR(IF(DN20>=dataumum!#REF!,\"A\",IF(DN20>=dataumum!#REF!,\"B\",IF(DN20>=dataumum!#REF!,\"C\",\"D\"))),0)","v":0},null,23.333333333333332,79,null,null,"","","","","","","","","","",""]
[null,5,{"$f":"dataumum!C13","v":"0097476054"},{"$f":"dataumum!D13","v":"ANDIKA"},null,null,null,null,null,null,null,null,null,null,"",null,null,null,null,null,null,null,null,null,null,"",null,null,null,null,null,null,null,null,null,null,"",null,null,null,null,null,null,null,null,null,null,"",null,null,null,null,null,null,null,null,null,null,"",null,null,null,null,null,null,null,null,null,null,"",null,null,null,null,null,null,null,null,null,null,"",null,null,null,null,null,null,null,null,null,null,"",null,null,null,null,null,null,null,null,null,null,"",null,null,null,null,null,null,null,null,null,null,"",null,"",null,{"$f":"IFERROR(DL21*dataumum!$G$13/100+DM21*dataumum!$G$14/100,0)","v":0},{"$f":"IFERROR(IF(DN21>=dataumum!#REF!,\"A\",IF(DN21>=dataumum!#REF!,\"B\",IF(DN21>=dataumum!#REF!,\"C\",\"D\"))),0)","v":0},null,50,83,null,null,"","","","","","","","","","",""]
[null,6,{"$f":"dataumum!C14","v":"0107479079"},{"$f":"dataumum!D14","v":"CHINTIA NUR AZIZAH"},null,null,null,null,null,null,null,null,null,null,"",null,null,null,null,null,null,null,null,null,null,"",null,null,null,null,null,null,null,null,null,null,"",null,null,null,null,null,null,null,null,null,null,"",null,null,null,null,null,null,null,null,null,null,"",null,null,null,null,null,null,null,null,null,null,"",null,null,null,null,null,null,null,null,null,null,"",null,null,null,null,null,null,null,null,null,null,"",null,null,null,null,null,null,null,null,null,null,"",null,null,null,null,null,null,null,null,null,null,"",null,"",null,{"$f":"IFERROR(DL22*dataumum!$G$13/100+DM22*dataumum!$G$14/100,0)","v":0},{"$f":"IFERROR(IF(DN22>=dataumum!#REF!,\"A\",IF(DN22>=dataumum!#REF!,\"B\",IF(DN22>=dataumum!#REF!,\"C\",\"D\"))),0)","v":0},null,40,81.5,null,null,"","","","","","","","","","",""]
[null,7,{"$f":"dataumum!C15","v":"0095178395"},{"$f":"dataumum!D15","v":"DEDE AULIA"},null,null,null,null,null,null,null,null,null,null,"",null,null,null,null,null,null,null,null,null,null,"",null,null,null,null,null,null,null,null,null,null,"",null,null,null,null,null,null,null,null,null,null,"",null,null,null,null,null,null,null,null,null,null,"",null,null,null,null,null,null,null,null,null,null,"",null,null,null,null,null,null,null,null,null,null,"",null,null,null,null,null,null,null,null,null,null,"",null,null,null,null,null,null,null,null,null,null,"",null,null,null,null,null,null,null,null,null,null,"",null,"",null,{"$f":"IFERROR(DL23*dataumum!$G$13/100+DM23*dataumum!$G$14/100,0)","v":0},{"$f":"IFERROR(IF(DN23>=dataumum!#REF!,\"A\",IF(DN23>=dataumum!#REF!,\"B\",IF(DN23>=dataumum!#REF!,\"C\",\"D\"))),0)","v":0},null,50,83,null,null,"","","","","","","","","","",""]
[null,8,{"$f":"dataumum!C16","v":"0097071532"},{"$f":"dataumum!D16","v":"DIRLI PIRMANSAH REZA"},null,null,null,null,null,null,null,null,null,null,"",null,null,null,null,null,null,null,null,null,null,"",null,null,null,null,null,null,null,null,null,null,"",null,null,null,null,null,null,null,null,null,null,"",null,null,null,null,null,null,null,null,null,null,"",null,null,null,null,null,null,null,null,null,null,"",null,null,null,null,null,null,null,null,null,null,"",null,null,null,null,null,null,null,null,null,null,"",null,null,null,null,null,null,null,null,null,null,"",null,null,null,null,null,null,null,null,null,null,"",null,"",null,{"$f":"IFERROR(DL24*dataumum!$G$13/100+DM24*dataumum!$G$14/100,0)","v":0},{"$f":"IFERROR(IF(DN24>=dataumum!#REF!,\"A\",IF(DN24>=dataumum!#REF!,\"B\",IF(DN24>=dataumum!#REF!,\"C\",\"D\"))),0)","v":0},null,43.333333333333336,82,null,null,"","","","","","","","","","",""]
[null,9,{"$f":"dataumum!C17","v":"0085525399"},{"$f":"dataumum!D17","v":"EKSEL"},null,null,null,null,null,null,null,null,null,null,"",null,null,null,null,null,null,null,null,null,null,"",null,null,null,null,null,null,null,null,null,null,"",null,null,null,null,null,null,null,null,null,null,"",null,null,null,null,null,null,null,null,null,null,"",null,null,null,null,null,null,null,null,null,null,"",null,null,null,null,null,null,null,null,null,null,"",null,null,null,null,null,null,null,null,null,null,"",null,null,null,null,null,null,null,null,null,null,"",null,null,null,null,null,null,null,null,null,null,"",null,"",null,{"$f":"IFERROR(DL25*dataumum!$G$13/100+DM25*dataumum!$G$14/100,0)","v":0},{"$f":"IFERROR(IF(DN25>=dataumum!#REF!,\"A\",IF(DN25>=dataumum!#REF!,\"B\",IF(DN25>=dataumum!#REF!,\"C\",\"D\"))),0)","v":0},null,43.333333333333336,82,null,null,"","","","","","","","","","",""]
[null,10,{"$f":"dataumum!C18","v":"0099271082"},{"$f":"dataumum!D18","v":"FADLAN APANDI"},null,null,null,null,null,null,null,null,null,null,"",null,null,null,null,null,null,null,null,null,null,"",null,null,null,null,null,null,null,null,null,null,"",null,null,null,null,null,null,null,null,null,null,"",null,null,null,null,null,null,null,null,null,null,"",null,null,null,null,null,null,null,null,null,null,"",null,null,null,null,null,null,null,null,null,null,"",null,null,null,null,null,null,null,null,null,null,"",null,null,null,null,null,null,null,null,null,null,"",null,null,null,null,null,null,null,null,null,null,"",null,"",null,{"$f":"IFERROR(DL26*dataumum!$G$13/100+DM26*dataumum!$G$14/100,0)","v":0},{"$f":"IFERROR(IF(DN26>=dataumum!#REF!,\"A\",IF(DN26>=dataumum!#REF!,\"B\",IF(DN26>=dataumum!#REF!,\"C\",\"D\"))),0)","v":0},null,33.333333333333329,80.5,null,null,"","","","","","","","","","",""]
[null,11,{"$f":"dataumum!C19","v":"3109814391"},{"$f":"dataumum!D19","v":"HAYA MADIHATUL ISMAH"},null,null,null,null,null,null,null,null,null,null,"",null,null,null,null,null,null,null,null,null,null,"",null,null,null,null,null,null,null,null,null,null,"",null,null,null,null,null,null,null,null,null,null,"",null,null,null,null,null,null,null,null,null,null,"",null,null,null,null,null,null,null,null,null,null,"",null,null,null,null,null,null,null,null,null,null,"",null,null,null,null,null,null,null,null,null,null,"",null,null,null,null,null,null,null,null,null,null,"",null,null,null,null,null,null,null,null,null,null,"",null,"",null,{"$f":"IFERROR(DL27*dataumum!$G$13/100+DM27*dataumum!$G$14/100,0)","v":0},{"$f":"IFERROR(IF(DN27>=dataumum!#REF!,\"A\",IF(DN27>=dataumum!#REF!,\"B\",IF(DN27>=dataumum!#REF!,\"C\",\"D\"))),0)","v":0},null,43.333333333333336,82,null,null,"","","","","","","","","","",""]
[null,12,{"$f":"dataumum!C20","v":"3094762585"},{"$f":"dataumum!D20","v":"HIKAYATUL JABAL"},null,null,null,null,null,null,null,null,null,null,"",null,null,null,null,null,null,null,null,null,null,"",null,null,null,null,null,null,null,null,null,null,"",null,null,null,null,null,null,null,null,null,null,"",null,null,null,null,null,null,null,null,null,null,"",null,null,null,null,null,null,null,null,null,null,"",null,null,null,null,null,null,null,null,null,null,"",null,null,null,null,null,null,null,null,null,null,"",null,null,null,null,null,null,null,null,null,null,"",null,null,null,null,null,null,null,null,null,null,"",null,"",null,{"$f":"IFERROR(DL28*dataumum!$G$13/100+DM28*dataumum!$G$14/100,0)","v":0},{"$f":"IFERROR(IF(DN28>=dataumum!#REF!,\"A\",IF(DN28>=dataumum!#REF!,\"B\",IF(DN28>=dataumum!#REF!,\"C\",\"D\"))),0)","v":0},null,13.333333333333334,77.5,null,null,"","","","","","","","","","",""]
[null,13,{"$f":"dataumum!C21","v":"0105251526"},{"$f":"dataumum!D21","v":"IHSAN NURSALAM"},null,null,null,null,null,null,null,null,null,null,"",null,null,null,null,null,null,null,null,null,null,"",null,null,null,null,null,null,null,null,null,null,"",null,null,null,null,null,null,null,null,null,null,"",null,null,null,null,null,null,null,null,null,null,"",null,null,null,null,null,null,null,null,null,null,"",null,null,null,null,null,null,null,null,null,null,"",null,null,null,null,null,null,null,null,null,null,"",null,null,null,null,null,null,null,null,null,null,"",null,null,null,null,null,null,null,null,null,null,"",null,"",null,{"$f":"IFERROR(DL29*dataumum!$G$13/100+DM29*dataumum!$G$14/100,0)","v":0},{"$f":"IFERROR(IF(DN29>=dataumum!#REF!,\"A\",IF(DN29>=dataumum!#REF!,\"B\",IF(DN29>=dataumum!#REF!,\"C\",\"D\"))),0)","v":0},null,16.666666666666664,78,null,null,"","","","","","","","","","",""]
[null,14,{"$f":"dataumum!C22","v":"3095547483"},{"$f":"dataumum!D22","v":"IZAD NOOR JAMAN"},null,null,null,null,null,null,null,null,null,null,"",null,null,null,null,null,null,null,null,null,null,"",null,null,null,null,null,null,null,null,null,null,"",null,null,null,null,null,null,null,null,null,null,"",null,null,null,null,null,null,null,null,null,null,"",null,null,null,null,null,null,null,null,null,null,"",null,null,null,null,null,null,null,null,null,null,"",null,null,null,null,null,null,null,null,null,null,"",null,null,null,null,null,null,null,null,null,null,"",null,null,null,null,null,null,null,null,null,null,"",null,"",null,{"$f":"IFERROR(DL30*dataumum!$G$13/100+DM30*dataumum!$G$14/100,0)","v":0},{"$f":"IFERROR(IF(DN30>=dataumum!#REF!,\"A\",IF(DN30>=dataumum!#REF!,\"B\",IF(DN30>=dataumum!#REF!,\"C\",\"D\"))),0)","v":0},null,46.666666666666664,82.5,null,null,"","","","","","","","","","",""]
[null,15,{"$f":"dataumum!C23","v":"0093659815"},{"$f":"dataumum!D23","v":"JIHAN NURROHMAH SEPTIRA"},null,null,null,null,null,null,null,null,null,null,"",null,null,null,null,null,null,null,null,null,null,"",null,null,null,null,null,null,null,null,null,null,"",null,null,null,null,null,null,null,null,null,null,"",null,null,null,null,null,null,null,null,null,null,"",null,null,null,null,null,null,null,null,null,null,"",null,null,null,null,null,null,null,null,null,null,"",null,null,null,null,null,null,null,null,null,null,"",null,null,null,null,null,null,null,null,null,null,"",null,null,null,null,null,null,null,null,null,null,"",null,"",null,{"$f":"IFERROR(DL31*dataumum!$G$13/100+DM31*dataumum!$G$14/100,0)","v":0},{"$f":"IFERROR(IF(DN31>=dataumum!#REF!,\"A\",IF(DN31>=dataumum!#REF!,\"B\",IF(DN31>=dataumum!#REF!,\"C\",\"D\"))),0)","v":0},null,30,80,null,null,"","","","","","","","","","",""]
[null,16,{"$f":"dataumum!C24","v":"3090540244"},{"$f":"dataumum!D24","v":"KAKA SEPTIAN"},null,null,null,null,null,null,null,null,null,null,"",null,null,null,null,null,null,null,null,null,null,"",null,null,null,null,null,null,null,null,null,null,"",null,null,null,null,null,null,null,null,null,null,"",null,null,null,null,null,null,null,null,null,null,"",null,null,null,null,null,null,null,null,null,null,"",null,null,null,null,null,null,null,null,null,null,"",null,null,null,null,null,null,null,null,null,null,"",null,null,null,null,null,null,null,null,null,null,"",null,null,null,null,null,null,null,null,null,null,"",null,"",null,{"$f":"IFERROR(DL32*dataumum!$G$13/100+DM32*dataumum!$G$14/100,0)","v":0},{"$f":"IFERROR(IF(DN32>=dataumum!#REF!,\"A\",IF(DN32>=dataumum!#REF!,\"B\",IF(DN32>=dataumum!#REF!,\"C\",\"D\"))),0)","v":0},null,20,78.5,null,null,"","","","","","","","","","",""]
[null,17,{"$f":"dataumum!C25","v":"0088283383"},{"$f":"dataumum!D25","v":"LUTPI"},null,null,null,null,null,null,null,null,null,null,"",null,null,null,null,null,null,null,null,null,null,"",null,null,null,null,null,null,null,null,null,null,"",null,null,null,null,null,null,null,null,null,null,"",null,null,null,null,null,null,null,null,null,null,"",null,null,null,null,null,null,null,null,null,null,"",null,null,null,null,null,null,null,null,null,null,"",null,null,null,null,null,null,null,null,null,null,"",null,null,null,null,null,null,null,null,null,null,"",null,null,null,null,null,null,null,null,null,null,"",null,"",null,{"$f":"IFERROR(DL33*dataumum!$G$13/100+DM33*dataumum!$G$14/100,0)","v":0},{"$f":"IFERROR(IF(DN33>=dataumum!#REF!,\"A\",IF(DN33>=dataumum!#REF!,\"B\",IF(DN33>=dataumum!#REF!,\"C\",\"D\"))),0)","v":0},null,40,81.5,null,null,"","","","","","","","","","",""]
[null,18,{"$f":"dataumum!C26","v":"3096008382"},{"$f":"dataumum!D26","v":"M SUGIH MIWAHA"},null,null,null,null,null,null,null,null,null,null,"",null,null,null,null,null,null,null,null,null,null,"",null,null,null,null,null,null,null,null,null,null,"",null,null,null,null,null,null,null,null,null,null,"",null,null,null,null,null,null,null,null,null,null,"",null,null,null,null,null,null,null,null,null,null,"",null,null,null,null,null,null,null,null,null,null,"",null,null,null,null,null,null,null,null,null,null,"",null,null,null,null,null,null,null,null,null,null,"",null,null,null,null,null,null,null,null,null,null,"",null,"",null,{"$f":"IFERROR(DL34*dataumum!$G$13/100+DM34*dataumum!$G$14/100,0)","v":0},{"$f":"IFERROR(IF(DN34>=dataumum!#REF!,\"A\",IF(DN34>=dataumum!#REF!,\"B\",IF(DN34>=dataumum!#REF!,\"C\",\"D\"))),0)","v":0},null,10,77,null,null,"","","","","","","","","","",""]
[null,19,{"$f":"dataumum!C27","v":"0093656626"},{"$f":"dataumum!D27","v":"MUHLIS"},null,null,null,null,null,null,null,null,null,null,"",null,null,null,null,null,null,null,null,null,null,"",null,null,null,null,null,null,null,null,null,null,"",null,null,null,null,null,null,null,null,null,null,"",null,null,null,null,null,null,null,null,null,null,"",null,null,null,null,null,null,null,null,null,null,"",null,null,null,null,null,null,null,null,null,null,"",null,null,null,null,null,null,null,null,null,null,"",null,null,null,null,null,null,null,null,null,null,"",null,null,null,null,null,null,null,null,null,null,"",null,"",null,{"$f":"IFERROR(DL35*dataumum!$G$13/100+DM35*dataumum!$G$14/100,0)","v":0},{"$f":"IFERROR(IF(DN35>=dataumum!#REF!,\"A\",IF(DN35>=dataumum!#REF!,\"B\",IF(DN35>=dataumum!#REF!,\"C\",\"D\"))),0)","v":0},null,30,80,null,null,"","","","","","","","","","",""]
[null,20,{"$f":"dataumum!C28","v":"0097902846"},{"$f":"dataumum!D28","v":"NURAFIFAH FAUZIAH"},null,null,null,null,null,null,null,null,null,null,"",null,null,null,null,null,null,null,null,null,null,"",null,null,null,null,null,null,null,null,null,null,"",null,null,null,null,null,null,null,null,null,null,"",null,null,null,null,null,null,null,null,null,null,"",null,null,null,null,null,null,null,null,null,null,"",null,null,null,null,null,null,null,null,null,null,"",null,null,null,null,null,null,null,null,null,null,"",null,null,null,null,null,null,null,null,null,null,"",null,null,null,null,null,null,null,null,null,null,"",null,"",null,{"$f":"IFERROR(DL36*dataumum!$G$13/100+DM36*dataumum!$G$14/100,0)","v":0},{"$f":"IFERROR(IF(DN36>=dataumum!#REF!,\"A\",IF(DN36>=dataumum!#REF!,\"B\",IF(DN36>=dataumum!#REF!,\"C\",\"D\"))),0)","v":0},null,46.666666666666664,82.5,null,null,"","","","","","","","","","",""]
[null,21,{"$f":"dataumum!C29","v":"0088756415"},{"$f":"dataumum!D29","v":"REPAN"},null,null,null,null,null,null,null,null,null,null,"",null,null,null,null,null,null,null,null,null,null,"",null,null,null,null,null,null,null,null,null,null,"",null,null,null,null,null,null,null,null,null,null,"",null,null,null,null,null,null,null,null,null,null,"",null,null,null,null,null,null,null,null,null,null,"",null,null,null,null,null,null,null,null,null,null,"",null,null,null,null,null,null,null,null,null,null,"",null,null,null,null,null,null,null,null,null,null,"",null,null,null,null,null,null,null,null,null,null,"",null,"",null,{"$f":"IFERROR(DL37*dataumum!$G$13/100+DM37*dataumum!$G$14/100,0)","v":0},{"$f":"IFERROR(IF(DN37>=dataumum!#REF!,\"A\",IF(DN37>=dataumum!#REF!,\"B\",IF(DN37>=dataumum!#REF!,\"C\",\"D\"))),0)","v":0},null,43.333333333333336,82,null,null,"","","","","","","","","","",""]
[null,22,{"$f":"dataumum!C30","v":"0095868392"},{"$f":"dataumum!D30","v":"REZA NURUL WILDAN"},null,null,null,null,null,null,null,null,null,null,"",null,null,null,null,null,null,null,null,null,null,"",null,null,null,null,null,null,null,null,null,null,"",null,null,null,null,null,null,null,null,null,null,"",null,null,null,null,null,null,null,null,null,null,"",null,null,null,null,null,null,null,null,null,null,"",null,null,null,null,null,null,null,null,null,null,"",null,null,null,null,null,null,null,null,null,null,"",null,null,null,null,null,null,null,null,null,null,"",null,null,null,null,null,null,null,null,null,null,"",null,"",null,{"$f":"IFERROR(DL38*dataumum!$G$13/100+DM38*dataumum!$G$14/100,0)","v":0},{"$f":"IFERROR(IF(DN38>=dataumum!#REF!,\"A\",IF(DN38>=dataumum!#REF!,\"B\",IF(DN38>=dataumum!#REF!,\"C\",\"D\"))),0)","v":0},null,30,80,null,null,"","","","","","","","","","",""]
[null,23,{"$f":"dataumum!C31","v":"3095334952"},{"$f":"dataumum!D31","v":"SYIFA NURJANAH"},null,null,null,null,null,null,null,null,null,null,"",null,null,null,null,null,null,null,null,null,null,"",null,null,null,null,null,null,null,null,null,null,"",null,null,null,null,null,null,null,null,null,null,"",null,null,null,null,null,null,null,null,null,null,"",null,null,null,null,null,null,null,null,null,null,"",null,null,null,null,null,null,null,null,null,null,"",null,null,null,null,null,null,null,null,null,null,"",null,null,null,null,null,null,null,null,null,null,"",null,null,null,null,null,null,null,null,null,null,"",null,"",null,{"$f":"IFERROR(DL39*dataumum!$G$13/100+DM39*dataumum!$G$14/100,0)","v":0},{"$f":"IFERROR(IF(DN39>=dataumum!#REF!,\"A\",IF(DN39>=dataumum!#REF!,\"B\",IF(DN39>=dataumum!#REF!,\"C\",\"D\"))),0)","v":0},null,30,80,null,null,"","","","","","","","","","",""]
[null,24,{"$f":"dataumum!C32","v":"0093189091"},{"$f":"dataumum!D32","v":"WINDI PUJIA SAFITRI"},null,null,null,null,null,null,null,null,null,null,"",null,null,null,null,null,null,null,null,null,null,"",null,null,null,null,null,null,null,null,null,null,"",null,null,null,null,null,null,null,null,null,null,"",null,null,null,null,null,null,null,null,null,null,"",null,null,null,null,null,null,null,null,null,null,"",null,null,null,null,null,null,null,null,null,null,"",null,null,null,null,null,null,null,null,null,null,"",null,null,null,null,null,null,null,null,null,null,"",null,null,null,null,null,null,null,null,null,null,"",null,"",null,{"$f":"IFERROR(DL40*dataumum!$G$13/100+DM40*dataumum!$G$14/100,0)","v":0},{"$f":"IFERROR(IF(DN40>=dataumum!#REF!,\"A\",IF(DN40>=dataumum!#REF!,\"B\",IF(DN40>=dataumum!#REF!,\"C\",\"D\"))),0)","v":0},null,30,80,null,null,"","","","","","","","","","",""]
[null,25,{"$f":"dataumum!C33","v":"0096749734"},{"$f":"dataumum!D33","v":"WULAN RESPIANI"},null,null,null,null,null,null,null,null,null,null,"",null,null,null,null,null,null,null,null,null,null,"",null,null,null,null,null,null,null,null,null,null,"",null,null,null,null,null,null,null,null,null,null,"",null,null,null,null,null,null,null,null,null,null,"",null,null,null,null,null,null,null,null,null,null,"",null,null,null,null,null,null,null,null,null,null,"",null,null,null,null,null,null,null,null,null,null,"",null,null,null,null,null,null,null,null,null,null,"",null,null,null,null,null,null,null,null,null,null,"",null,"",null,{"$f":"IFERROR(DL41*dataumum!$G$13/100+DM41*dataumum!$G$14/100,0)","v":0},{"$f":"IFERROR(IF(DN41>=dataumum!#REF!,\"A\",IF(DN41>=dataumum!#REF!,\"B\",IF(DN41>=dataumum!#REF!,\"C\",\"D\"))),0)","v":0},null,43.333333333333336,82,null,null,"","","","","","","","","","",""]
[null,26,{"$f":"dataumum!C34","v":"0099314795"},{"$f":"dataumum!D34","v":"YESI DESTRIYANI"},null,null,null,null,null,null,null,null,null,null,"",null,null,null,null,null,null,null,null,null,null,"",null,null,null,null,null,null,null,null,null,null,"",null,null,null,null,null,null,null,null,null,null,"",null,null,null,null,null,null,null,null,null,null,"",null,null,null,null,null,null,null,null,null,null,"",null,null,null,null,null,null,null,null,null,null,"",null,null,null,null,null,null,null,null,null,null,"",null,null,null,null,null,null,null,null,null,null,"",null,null,null,null,null,null,null,null,null,null,"",null,"",null,{"$f":"IFERROR(DL42*dataumum!$G$13/100+DM42*dataumum!$G$14/100,0)","v":0},{"$f":"IFERROR(IF(DN42>=dataumum!#REF!,\"A\",IF(DN42>=dataumum!#REF!,\"B\",IF(DN42>=dataumum!#REF!,\"C\",\"D\"))),0)","v":0},null,34.633333333333297,80.694999999999993,null,null,"","","","","","","","","","",""]
[null,27,{"$f":"dataumum!C35","v":0},{"$f":"dataumum!D35","v":0},null,null,null,null,null,null,null,null,null,null,"",null,null,null,null,null,null,null,null,null,null,"",null,null,null,null,null,null,null,null,null,null,"",null,null,null,null,null,null,null,null,null,null,"",null,null,null,null,null,null,null,null,null,null,"",null,null,null,null,null,null,null,null,null,null,"",null,null,null,null,null,null,null,null,null,null,"",null,null,null,null,null,null,null,null,null,null,"",null,null,null,null,null,null,null,null,null,null,"",null,null,null,null,null,null,null,null,null,null,"",null,"",null,{"$f":"IFERROR(DL43*dataumum!$G$13/100+DM43*dataumum!$G$14/100,0)","v":0},{"$f":"IFERROR(IF(DN43>=dataumum!#REF!,\"A\",IF(DN43>=dataumum!#REF!,\"B\",IF(DN43>=dataumum!#REF!,\"C\",\"D\"))),0)","v":0},null,34.7846153846154,80.717692307692317,null,null,"","","","","","","","","","",""]
[null,28,{"$f":"dataumum!C36","v":0},{"$f":"dataumum!D36","v":0},null,null,null,null,null,null,null,null,null,null,"",null,null,null,null,null,null,null,null,null,null,"",null,null,null,null,null,null,null,null,null,null,"",null,null,null,null,null,null,null,null,null,null,"",null,null,null,null,null,null,null,null,null,null,"",null,null,null,null,null,null,null,null,null,null,"",null,null,null,null,null,null,null,null,null,null,"",null,null,null,null,null,null,null,null,null,null,"",null,null,null,null,null,null,null,null,null,null,"",null,null,null,null,null,null,null,null,null,null,"",null,"",null,{"$f":"IFERROR(DL44*dataumum!$G$13/100+DM44*dataumum!$G$14/100,0)","v":0},{"$f":"IFERROR(IF(DN44>=dataumum!#REF!,\"A\",IF(DN44>=dataumum!#REF!,\"B\",IF(DN44>=dataumum!#REF!,\"C\",\"D\"))),0)","v":0},null,34.935897435897402,80.740384615384613,null,null,"","","","","","","","","","",""]
[null,29,{"$f":"dataumum!C37","v":0},{"$f":"dataumum!D37","v":0},null,null,null,null,null,null,null,null,null,null,"",null,null,null,null,null,null,null,null,null,null,"",null,null,null,null,null,null,null,null,null,null,"",null,null,null,null,null,null,null,null,null,null,"",null,null,null,null,null,null,null,null,null,null,"",null,null,null,null,null,null,null,null,null,null,"",null,null,null,null,null,null,null,null,null,null,"",null,null,null,null,null,null,null,null,null,null,"",null,null,null,null,null,null,null,null,null,null,"",null,null,null,null,null,null,null,null,null,null,"",null,"",null,{"$f":"IFERROR(DL45*dataumum!$G$13/100+DM45*dataumum!$G$14/100,0)","v":0},{"$f":"IFERROR(IF(DN45>=dataumum!#REF!,\"A\",IF(DN45>=dataumum!#REF!,\"B\",IF(DN45>=dataumum!#REF!,\"C\",\"D\"))),0)","v":0},null,35.087179487179498,80.763076923076923,null,null,"","","","","","","","","","",""]
[null,30,{"$f":"dataumum!C38","v":0},{"$f":"dataumum!D38","v":0},null,null,null,null,null,null,null,null,null,null,"",null,null,null,null,null,null,null,null,null,null,"",null,null,null,null,null,null,null,null,null,null,"",null,null,null,null,null,null,null,null,null,null,"",null,null,null,null,null,null,null,null,null,null,"",null,null,null,null,null,null,null,null,null,null,"",null,null,null,null,null,null,null,null,null,null,"",null,null,null,null,null,null,null,null,null,null,"",null,null,null,null,null,null,null,null,null,null,"",null,null,null,null,null,null,null,null,null,null,"",null,"",null,{"$f":"IFERROR(DL46*dataumum!$G$13/100+DM46*dataumum!$G$14/100,0)","v":0},{"$f":"IFERROR(IF(DN46>=dataumum!#REF!,\"A\",IF(DN46>=dataumum!#REF!,\"B\",IF(DN46>=dataumum!#REF!,\"C\",\"D\"))),0)","v":0},null,35.2384615384615,80.785769230769219,null,null,"","","","","","","","","","",""]
[null,31,{"$f":"dataumum!C39","v":0},{"$f":"dataumum!D39","v":0},null,null,null,null,null,null,null,null,null,null,"",null,null,null,null,null,null,null,null,null,null,"",null,null,null,null,null,null,null,null,null,null,"",null,null,null,null,null,null,null,null,null,null,"",null,null,null,null,null,null,null,null,null,null,"",null,null,null,null,null,null,null,null,null,null,"",null,null,null,null,null,null,null,null,null,null,"",null,null,null,null,null,null,null,null,null,null,"",null,null,null,null,null,null,null,null,null,null,"",null,null,null,null,null,null,null,null,null,null,"",null,"",null,{"$f":"IFERROR(DL47*dataumum!$G$13/100+DM47*dataumum!$G$14/100,0)","v":0},{"$f":"IFERROR(IF(DN47>=dataumum!#REF!,\"A\",IF(DN47>=dataumum!#REF!,\"B\",IF(DN47>=dataumum!#REF!,\"C\",\"D\"))),0)","v":0},null,35.389743589743603,80.808461538461543,null,null,"","","","","","","","","","",""]
[null,32,{"$f":"dataumum!C40","v":0},{"$f":"dataumum!D40","v":0},null,null,null,null,null,null,null,null,null,null,"",null,null,null,null,null,null,null,null,null,null,"",null,null,null,null,null,null,null,null,null,null,"",null,null,null,null,null,null,null,null,null,null,"",null,null,null,null,null,null,null,null,null,null,"",null,null,null,null,null,null,null,null,null,null,"",null,null,null,null,null,null,null,null,null,null,"",null,null,null,null,null,null,null,null,null,null,"",null,null,null,null,null,null,null,null,null,null,"",null,null,null,null,null,null,null,null,null,null,"",null,"",null,{"$f":"IFERROR(DL48*dataumum!$G$13/100+DM48*dataumum!$G$14/100,0)","v":0},{"$f":"IFERROR(IF(DN48>=dataumum!#REF!,\"A\",IF(DN48>=dataumum!#REF!,\"B\",IF(DN48>=dataumum!#REF!,\"C\",\"D\"))),0)","v":0},null,35.541025641025598,80.831153846153839,null,null,"","","","","","","","","","",""]
[null,33,{"$f":"dataumum!C41","v":0},{"$f":"dataumum!D41","v":0},null,null,null,null,null,null,null,null,null,null,"",null,null,null,null,null,null,null,null,null,null,"",null,null,null,null,null,null,null,null,null,null,"",null,null,null,null,null,null,null,null,null,null,"",null,null,null,null,null,null,null,null,null,null,"",null,null,null,null,null,null,null,null,null,null,"",null,null,null,null,null,null,null,null,null,null,"",null,null,null,null,null,null,null,null,null,null,"",null,null,null,null,null,null,null,null,null,null,"",null,null,null,null,null,null,null,null,null,null,"",null,"",null,{"$f":"IFERROR(DL49*dataumum!$G$13/100+DM49*dataumum!$G$14/100,0)","v":0},{"$f":"IFERROR(IF(DN49>=dataumum!#REF!,\"A\",IF(DN49>=dataumum!#REF!,\"B\",IF(DN49>=dataumum!#REF!,\"C\",\"D\"))),0)","v":0},null,35.692307692307701,80.853846153846149,null,null,"","","","","","","","","","",""]
[null,34,{"$f":"dataumum!C42","v":0},{"$f":"dataumum!D42","v":0},null,null,null,null,null,null,null,null,null,null,"",null,null,null,null,null,null,null,null,null,null,"",null,null,null,null,null,null,null,null,null,null,"",null,null,null,null,null,null,null,null,null,null,"",null,null,null,null,null,null,null,null,null,null,"",null,null,null,null,null,null,null,null,null,null,"",null,null,null,null,null,null,null,null,null,null,"",null,null,null,null,null,null,null,null,null,null,"",null,null,null,null,null,null,null,null,null,null,"",null,null,null,null,null,null,null,null,null,null,"",null,"",null,{"$f":"IFERROR(DL50*dataumum!$G$13/100+DM50*dataumum!$G$14/100,0)","v":0},{"$f":"IFERROR(IF(DN50>=dataumum!#REF!,\"A\",IF(DN50>=dataumum!#REF!,\"B\",IF(DN50>=dataumum!#REF!,\"C\",\"D\"))),0)","v":0},null,35.843589743589703,80.876538461538459,null,null,"","","","","","","","","","",""]
[null,35,{"$f":"dataumum!C43","v":0},{"$f":"dataumum!D43","v":0},null,null,null,null,null,null,null,null,null,null,"",null,null,null,null,null,null,null,null,null,null,"",null,null,null,null,null,null,null,null,null,null,"",null,null,null,null,null,null,null,null,null,null,"",null,null,null,null,null,null,null,null,null,null,"",null,null,null,null,null,null,null,null,null,null,"",null,null,null,null,null,null,null,null,null,null,"",null,null,null,null,null,null,null,null,null,null,"",null,null,null,null,null,null,null,null,null,null,"",null,null,null,null,null,null,null,null,null,null,"",null,"",null,{"$f":"IFERROR(DL51*dataumum!$G$13/100+DM51*dataumum!$G$14/100,0)","v":0},{"$f":"IFERROR(IF(DN51>=dataumum!#REF!,\"A\",IF(DN51>=dataumum!#REF!,\"B\",IF(DN51>=dataumum!#REF!,\"C\",\"D\"))),0)","v":0},null,35.994871794871798,80.899230769230769,null,null,"","","","","","","","","","",""]
[null,36,{"$f":"dataumum!C44","v":0},{"$f":"dataumum!D44","v":0},null,null,null,null,null,null,null,null,null,null,"",null,null,null,null,null,null,null,null,null,null,"",null,null,null,null,null,null,null,null,null,null,"",null,null,null,null,null,null,null,null,null,null,"",null,null,null,null,null,null,null,null,null,null,"",null,null,null,null,null,null,null,null,null,null,"",null,null,null,null,null,null,null,null,null,null,"",null,null,null,null,null,null,null,null,null,null,"",null,null,null,null,null,null,null,null,null,null,"",null,null,null,null,null,null,null,null,null,null,"",null,"",null,{"$f":"IFERROR(DL52*dataumum!$G$13/100+DM52*dataumum!$G$14/100,0)","v":0},{"$f":"IFERROR(IF(DN52>=dataumum!#REF!,\"A\",IF(DN52>=dataumum!#REF!,\"B\",IF(DN52>=dataumum!#REF!,\"C\",\"D\"))),0)","v":0},null,36.146153846153901,80.921923076923079,null,null,"","","","","","","","","","",""]
[null,37,{"$f":"dataumum!C45","v":0},{"$f":"dataumum!D45","v":0},null,null,null,null,null,null,null,null,null,null,"",null,null,null,null,null,null,null,null,null,null,"",null,null,null,null,null,null,null,null,null,null,"",null,null,null,null,null,null,null,null,null,null,"",null,null,null,null,null,null,null,null,null,null,"",null,null,null,null,null,null,null,null,null,null,"",null,null,null,null,null,null,null,null,null,null,"",null,null,null,null,null,null,null,null,null,null,"",null,null,null,null,null,null,null,null,null,null,"",null,null,null,null,null,null,null,null,null,null,"",null,"",null,{"$f":"IFERROR(DL53*dataumum!$G$13/100+DM53*dataumum!$G$14/100,0)","v":0},{"$f":"IFERROR(IF(DN53>=dataumum!#REF!,\"A\",IF(DN53>=dataumum!#REF!,\"B\",IF(DN53>=dataumum!#REF!,\"C\",\"D\"))),0)","v":0},null,36.297435897435903,80.944615384615389,null,null,"","","","","","","","","","",""]
[null,38,{"$f":"dataumum!C46","v":0},{"$f":"dataumum!D46","v":0},null,null,null,null,null,null,null,null,null,null,"",null,null,null,null,null,null,null,null,null,null,"",null,null,null,null,null,null,null,null,null,null,"",null,null,null,null,null,null,null,null,null,null,"",null,null,null,null,null,null,null,null,null,null,"",null,null,null,null,null,null,null,null,null,null,"",null,null,null,null,null,null,null,null,null,null,"",null,null,null,null,null,null,null,null,null,null,"",null,null,null,null,null,null,null,null,null,null,"",null,null,null,null,null,null,null,null,null,null,"",null,"",null,{"$f":"IFERROR(DL54*dataumum!$G$13/100+DM54*dataumum!$G$14/100,0)","v":0},{"$f":"IFERROR(IF(DN54>=dataumum!#REF!,\"A\",IF(DN54>=dataumum!#REF!,\"B\",IF(DN54>=dataumum!#REF!,\"C\",\"D\"))),0)","v":0},null,36.448717948717899,80.967307692307685,null,null,"","","","","","","","","","",""]
[null,39,{"$f":"dataumum!C47","v":0},{"$f":"dataumum!D47","v":0},null,null,null,null,null,null,null,null,null,null,"",null,null,null,null,null,null,null,null,null,null,"",null,null,null,null,null,null,null,null,null,null,"",null,null,null,null,null,null,null,null,null,null,"",null,null,null,null,null,null,null,null,null,null,"",null,null,null,null,null,null,null,null,null,null,"",null,null,null,null,null,null,null,null,null,null,"",null,null,null,null,null,null,null,null,null,null,"",null,null,null,null,null,null,null,null,null,null,"",null,null,null,null,null,null,null,null,null,null,"",null,"",null,{"$f":"IFERROR(DL55*dataumum!$G$13/100+DM55*dataumum!$G$14/100,0)","v":0},{"$f":"IFERROR(IF(DN55>=dataumum!#REF!,\"A\",IF(DN55>=dataumum!#REF!,\"B\",IF(DN55>=dataumum!#REF!,\"C\",\"D\"))),0)","v":0},null,36.6,80.989999999999995,null,null,"","","","","","","","","","",""]
[null,40,{"$f":"dataumum!C48","v":0},{"$f":"dataumum!D48","v":0},null,null,null,null,null,null,null,null,null,null,"",null,null,null,null,null,null,null,null,null,null,"",null,null,null,null,null,null,null,null,null,null,"",null,null,null,null,null,null,null,null,null,null,"",null,null,null,null,null,null,null,null,null,null,"",null,null,null,null,null,null,null,null,null,null,"",null,null,null,null,null,null,null,null,null,null,"",null,null,null,null,null,null,null,null,null,null,"",null,null,null,null,null,null,null,null,null,null,"",null,null,null,null,null,null,null,null,null,null,"",null,"",null,{"$f":"IFERROR(DL56*dataumum!$G$13/100+DM56*dataumum!$G$14/100,0)","v":0},{"$f":"IFERROR(IF(DN56>=dataumum!#REF!,\"A\",IF(DN56>=dataumum!#REF!,\"B\",IF(DN56>=dataumum!#REF!,\"C\",\"D\"))),0)","v":0},null,36.751282051281997,81.012692307692305,null,null,"","","","","","","","","","",""]
[null,"NILAI RERATA",null,null,{"$f":"IFERROR(AVERAGE(E17:E56),0)","v":0},{"$f":"IFERROR(AVERAGE(F17:F56),0)","v":0},0,0,0,0,0,0,0,0,0,0,{"$f":"IFERROR(AVERAGE(Q17:Q56),0)","v":0},{"$f":"IFERROR(AVERAGE(R17:R56),0)","v":0},{"$f":"IFERROR(AVERAGE(S17:S56),0)","v":0},{"$f":"IFERROR(AVERAGE(T17:T56),0)","v":0},{"$f":"IFERROR(AVERAGE(U17:U56),0)","v":0},{"$f":"IFERROR(AVERAGE(V17:V56),0)","v":0},{"$f":"IFERROR(AVERAGE(W17:W56),0)","v":0},{"$f":"IFERROR(AVERAGE(X17:X56),0)","v":0},{"$f":"IFERROR(AVERAGE(Y17:Y56),0)","v":0},{"$error":"#DIV/0!"},{"$f":"IFERROR(AVERAGE(AA17:AA56),0)","v":0},{"$f":"IFERROR(AVERAGE(AB17:AB56),0)","v":0},{"$f":"IFERROR(AVERAGE(AC17:AC56),0)","v":0},{"$f":"IFERROR(AVERAGE(AD17:AD56),0)","v":0},{"$f":"IFERROR(AVERAGE(AE17:AE56),0)","v":0},{"$f":"IFERROR(AVERAGE(AF17:AF56),0)","v":0},{"$f":"IFERROR(AVERAGE(AG17:AG56),0)","v":0},{"$f":"IFERROR(AVERAGE(AH17:AH56),0)","v":0},{"$f":"IFERROR(AVERAGE(AI17:AI56),0)","v":0},{"$f":"IFERROR(AVERAGE(AJ17:AJ56),0)","v":0},{"$error":"#DIV/0!"},{"$f":"IFERROR(AVERAGE(AL17:AL56),0)","v":0},{"$f":"IFERROR(AVERAGE(AM17:AM56),0)","v":0},{"$f":"IFERROR(AVERAGE(AN17:AN56),0)","v":0},{"$f":"IFERROR(AVERAGE(AO17:AO56),0)","v":0},{"$f":"IFERROR(AVERAGE(AP17:AP56),0)","v":0},{"$f":"IFERROR(AVERAGE(AQ17:AQ56),0)","v":0},{"$f":"IFERROR(AVERAGE(AR17:AR56),0)","v":0},{"$f":"IFERROR(AVERAGE(AS17:AS56),0)","v":0},{"$f":"IFERROR(AVERAGE(AT17:AT56),0)","v":0},{"$f":"IFERROR(AVERAGE(AU17:AU56),0)","v":0},{"$error":"#DIV/0!"},{"$f":"IFERROR(AVERAGE(AW17:AW56),0)","v":0},{"$f":"IFERROR(AVERAGE(AX17:AX56),0)","v":0},{"$f":"IFERROR(AVERAGE(AY17:AY56),0)","v":0},{"$f":"IFERROR(AVERAGE(AZ17:AZ56),0)","v":0},{"$f":"IFERROR(AVERAGE(BA17:BA56),0)","v":0},{"$f":"IFERROR(AVERAGE(BB17:BB56),0)","v":0},{"$f":"IFERROR(AVERAGE(BC17:BC56),0)","v":0},{"$f":"IFERROR(AVERAGE(BD17:BD56),0)","v":0},{"$f":"IFERROR(AVERAGE(BE17:BE56),0)","v":0},{"$f":"IFERROR(AVERAGE(BF17:BF56),0)","v":0},{"$error":"#DIV/0!"},{"$f":"IFERROR(AVERAGE(BH17:BH56),0)","v":0},{"$f":"IFERROR(AVERAGE(BI17:BI56),0)","v":0},{"$f":"IFERROR(AVERAGE(BJ17:BJ56),0)","v":0},{"$f":"IFERROR(AVERAGE(BK17:BK56),0)","v":0},{"$f":"IFERROR(AVERAGE(BL17:BL56),0)","v":0},{"$f":"IFERROR(AVERAGE(BM17:BM56),0)","v":0},{"$f":"IFERROR(AVERAGE(BN17:BN56),0)","v":0},{"$f":"IFERROR(AVERAGE(BO17:BO56),0)","v":0},{"$f":"IFERROR(AVERAGE(BP17:BP56),0)","v":0},{"$f":"IFERROR(AVERAGE(BQ17:BQ56),0)","v":0},{"$error":"#DIV/0!"},{"$f":"IFERROR(AVERAGE(BS17:BS56),0)","v":0},{"$f":"IFERROR(AVERAGE(BT17:BT56),0)","v":0},{"$f":"IFERROR(AVERAGE(BU17:BU56),0)","v":0},{"$f":"IFERROR(AVERAGE(BV17:BV56),0)","v":0},{"$f":"IFERROR(AVERAGE(BW17:BW56),0)","v":0},{"$f":"IFERROR(AVERAGE(BX17:BX56),0)","v":0},{"$f":"IFERROR(AVERAGE(BY17:BY56),0)","v":0},{"$f":"IFERROR(AVERAGE(BZ17:BZ56),0)","v":0},{"$f":"IFERROR(AVERAGE(CA17:CA56),0)","v":0},{"$f":"IFERROR(AVERAGE(CB17:CB56),0)","v":0},{"$error":"#DIV/0!"},{"$f":"IFERROR(AVERAGE(CD17:CD56),0)","v":0},{"$f":"IFERROR(AVERAGE(CE17:CE56),0)","v":0},{"$f":"IFERROR(AVERAGE(CF17:CF56),0)","v":0},{"$f":"IFERROR(AVERAGE(CG17:CG56),0)","v":0},{"$f":"IFERROR(AVERAGE(CH17:CH56),0)","v":0},{"$f":"IFERROR(AVERAGE(CI17:CI56),0)","v":0},{"$f":"IFERROR(AVERAGE(CJ17:CJ56),0)","v":0},{"$f":"IFERROR(AVERAGE(CK17:CK56),0)","v":0},{"$f":"IFERROR(AVERAGE(CL17:CL56),0)","v":0},{"$f":"IFERROR(AVERAGE(CM17:CM56),0)","v":0},{"$error":"#DIV/0!"},{"$f":"IFERROR(AVERAGE(CO17:CO56),0)","v":0},{"$f":"IFERROR(AVERAGE(CP17:CP56),0)","v":0},{"$f":"IFERROR(AVERAGE(CQ17:CQ56),0)","v":0},{"$f":"IFERROR(AVERAGE(CR17:CR56),0)","v":0},{"$f":"IFERROR(AVERAGE(CS17:CS56),0)","v":0},{"$f":"IFERROR(AVERAGE(CT17:CT56),0)","v":0},{"$f":"IFERROR(AVERAGE(CU17:CU56),0)","v":0},{"$f":"IFERROR(AVERAGE(CV17:CV56),0)","v":0},{"$f":"IFERROR(AVERAGE(CW17:CW56),0)","v":0},{"$f":"IFERROR(AVERAGE(CX17:CX56),0)","v":0},{"$error":"#DIV/0!"},{"$f":"IFERROR(AVERAGE(CZ17:CZ56),0)","v":0},{"$f":"IFERROR(AVERAGE(DA17:DA56),0)","v":0},{"$f":"IFERROR(AVERAGE(DB17:DB56),0)","v":0},{"$f":"IFERROR(AVERAGE(DC17:DC56),0)","v":0},{"$f":"IFERROR(AVERAGE(DD17:DD56),0)","v":0},{"$f":"IFERROR(AVERAGE(DE17:DE56),0)","v":0},{"$f":"IFERROR(AVERAGE(DF17:DF56),0)","v":0},{"$f":"IFERROR(AVERAGE(DG17:DG56),0)","v":0},{"$f":"IFERROR(AVERAGE(DH17:DH56),0)","v":0},{"$f":"IFERROR(AVERAGE(DI17:DI56),0)","v":0},{"$error":"#DIV/0!"},null,null,null,null,null,null,null,{"$f":"dataumum!G19","v":"X-D"}]

{"sheet":"keterampilan","index":19,"n_rows":57,"n_cols":135,"rows_kept":57,"cut":false,"hidden":true,"merged":[[54,115,54,116],[55,115,55,116],[14,134,15,134],[46,115,46,116],[47,115,47,116],[48,115,48,116],[49,115,49,116],[50,115,50,116],[51,115,51,116],[40,115,40,116],[41,115,41,116],[42,115,42,116],[43,115,43,116],[44,115,44,116],[45,115,45,116],[34,115,34,116],[35,115,35,116],[36,115,36,116],[37,115,37,116],[38,115,38,116],[39,115,39,116],[28,115,28,116],[56,1,56,3],[13,115,15,116],[16,115,16,116],[17,115,17,116],[18,115,18,116],[19,115,19,116],[20,115,20,116],[21,115,21,116],[13,117,15,117],[13,58,15,58],[13,59,13,68],[29,115,29,116],[30,115,30,116],[31,115,31,116],[32,115,32,116],[33,115,33,116],[22,115,22,116],[23,115,23,116],[24,115,24,116],[25,115,25,116],[26,115,26,116],[27,115,27,116],[52,115,52,116],[53,115,53,116],[13,119,13,120],[14,4,14,13],[14,15,14,24],[14,26,14,35],[14,37,14,46],[14,48,14,57],[14,59,14,68],[14,70,14,79],[14,81,14,90],[13,102,15,102],[13,103,13,112],[13,113,15,113],[14,103,14,112],[13,69,15,69],[13,70,13,79],[13,80,15,80],[13,81,13,90],[13,91,15,91],[13,92,13,101],[14,92,14,101],[13,36,15,36],[13,37,13,46],[13,47,15,47],[13,48,13,57],[10,88,10,91],[10,93,10,97],[10,99,10,102],[10,38,10,42],[10,44,10,47],[10,49,10,53],[10,55,10,58],[10,60,10,64],[10,66,10,69],[13,1,15,1],[13,2,15,2],[13,3,15,3],[13,4,13,13],[13,14,15,14],[13,15,13,24],[13,25,15,25],[13,26,13,35],[10,71,10,75],[9,115,10,117],[10,1,10,2],[10,5,10,9],[10,11,10,14],[10,16,10,20],[10,22,10,25],[10,27,10,31],[10,33,10,36],[9,71,9,75],[9,77,9,80],[9,82,9,86],[9,88,9,91],[9,93,9,97],[9,99,9,102],[9,38,9,42],[9,44,9,47],[9,49,9,53],[9,55,9,58],[9,60,9,64],[9,66,9,69],[10,104,10,108],[10,110,10,113],[10,77,10,80],[10,82,10,86],[8,115,8,117],[8,119,10,120],[9,5,9,9],[9,11,9,14],[9,16,9,20],[9,22,9,25],[9,27,9,31],[9,33,9,36],[8,71,8,75],[8,77,8,80],[8,82,8,86],[8,88,8,91],[8,93,8,97],[8,99,8,102],[8,38,8,42],[8,44,8,47],[8,49,8,53],[8,55,8,58],[8,60,8,64],[8,66,8,69],[8,5,8,9],[8,11,8,14],[9,104,9,108],[9,110,9,113],[8,16,8,20],[8,22,8,25],[8,27,8,31],[8,33,8,36],[7,88,7,91],[7,93,7,97],[7,99,7,102],[7,104,7,108],[7,110,7,113],[8,104,8,108],[8,110,8,113],[7,119,7,120],[7,55,7,58],[7,60,7,64],[7,66,7,69],[7,71,7,75],[7,77,7,80],[7,82,7,86],[6,110,6,113],[7,5,7,9],[7,11,7,14],[7,16,7,20],[7,22,7,25],[7,27,7,31],[7,33,7,36],[7,38,7,42],[7,44,7,47],[7,49,7,53],[6,77,6,80],[6,82,6,86],[6,88,6,91],[6,93,6,97],[6,99,6,102],[6,104,6,108],[6,44,6,47],[6,49,6,53],[6,55,6,58],[6,60,6,64],[6,66,6,69],[6,71,6,75],[5,81,5,91],[5,92,5,102],[5,103,5,113],[6,5,6,9],[6,11,6,14],[6,16,6,20],[6,22,6,25],[6,27,6,31],[6,33,6,36],[6,38,6,42],[5,59,5,69],[5,70,5,80],[4,61,4,69],[4,70,4,71],[4,72,4,80],[4,81,4,82],[4,83,4,91],[4,92,4,93],[4,28,4,36],[4,37,4,38],[4,39,4,47],[4,48,4,49],[4,50,4,58],[4,59,4,60],[3,70,3,80],[3,81,3,91],[3,92,3,102],[3,103,3,113],[3,115,7,117],[4,4,4,5],[4,6,4,14],[4,15,4,16],[4,17,4,25],[4,26,4,27],[3,4,3,14],[3,15,3,25],[3,26,3,36],[3,37,3,47],[3,48,3,58],[3,59,3,69],[4,94,4,102],[4,103,4,104],[4,105,4,113],[5,4,5,14],[5,15,5,25],[5,26,5,36],[5,37,5,47],[5,48,5,58]]}
[]
[]
[]
[null,"IDENTITAS GURU PENGAJAR",null,null,{"$f":"CONCATENATE(\"KD\",\" \",dataumum!#REF!)","v":{"$error":"#REF!"}},null,null,null,null,null,null,null,null,null,null,{"$f":"CONCATENATE(\"KD\",\" \",dataumum!#REF!)","v":{"$error":"#REF!"}},null,null,null,null,null,null,null,null,null,null,{"$f":"CONCATENATE(\"KD\",\" \",dataumum!#REF!)","v":{"$error":"#REF!"}},null,null,null,null,null,null,null,null,null,null,{"$f":"CONCATENATE(\"KD\",\" \",dataumum!#REF!)","v":{"$error":"#REF!"}},null,null,null,null,null,null,null,null,null,null,{"$f":"CONCATENATE(\"KD\",\" \",dataumum!#REF!)","v":{"$error":"#REF!"}},null,null,null,null,null,null,null,null,null,null,{"$f":"CONCATENATE(\"KD\",\" \",dataumum!#REF!)","v":{"$error":"#REF!"}},null,null,null,null,null,null,null,null,null,null,{"$f":"CONCATENATE(\"KD\",\" \",dataumum!#REF!)","v":{"$error":"#REF!"}},null,null,null,null,null,null,null,null,null,null,{"$f":"CONCATENATE(\"KD\",\" \",dataumum!#REF!)","v":{"$error":"#REF!"}},null,null,null,null,null,null,null,null,null,null,{"$f":"CONCATENATE(\"KD\",\" \",dataumum!#REF!)","v":{"$error":"#REF!"}},null,null,null,null,null,null,null,null,null,null,{"$f":"CONCATENATE(\"KD\",\" \",dataumum!#REF!)","v":{"$error":"#REF!"}},null,null,null,null,null,null,null,null,null,null,null,"APLIKASI PENILAIAN K.13 MAN 4 TASIKMALAYA",null,null,null,null,null,null,null,null,null,"PENILAIAN PENGETAHUAN",null,null,"JENIS UJIAN"]
[null,"Nama Guru",null,{"$f":"dataumum!G6","v":"Arief Pribadi, S.Si"},"Deskripsi",null,{"$f":"dataumum!#REF!","v":{"$error":"#REF!"}},null,null,null,null,null,null,null,null,"Deskripsi",null,{"$f":"dataumum!#REF!","v":{"$error":"#REF!"}},null,null,null,null,null,null,null,null,"Deskripsi",null,{"$f":"dataumum!#REF!","v":{"$error":"#REF!"}},null,null,null,null,null,null,null,null,"Deskripsi",null,{"$f":"dataumum!#REF!","v":{"$error":"#REF!"}},null,null,null,null,null,null,null,null,"Deskripsi",null,{"$f":"dataumum!#REF!","v":{"$error":"#REF!"}},null,null,null,null,null,null,null,null,"Deskripsi",null,{"$f":"dataumum!#REF!","v":{"$error":"#REF!"}},null,null,null,null,null,null,null,null,"Deskripsi",null,{"$f":"dataumum!#REF!","v":{"$error":"#REF!"}},null,null,null,null,null,null,null,null,"Deskripsi",null,{"$f":"dataumum!#REF!","v":{"$error":"#REF!"}},null,null,null,null,null,null,null,null,"Deskripsi",null,{"$f":"dataumum!#REF!","v":{"$error":"#REF!"}},null,null,null,null,null,null,null,null,"Deskripsi",null,{"$f":"dataumum!#REF!","v":{"$error":"#REF!"}},null,null,null,null,null,null,null,null,null,null,null,null,null,null,null,null,null,null,null,"TLS",null,null,"PAS"]
[null,"NIP",null,{"$f":"dataumum!G7","v":"198603112020121005"},"Keterangan Tagihan",null,null,null,null,null,null,null,null,null,null,"Keterangan Tagihan",null,null,null,null,null,null,null,null,null,null,"Keterangan Tagihan",null,null,null,null,null,null,null,null,null,null,"Keterangan Tagihan",null,null,null,null,null,null,null,null,null,null,"Keterangan Tagihan",null,null,null,null,null,null,null,null,null,null,"Keterangan Tagihan",null,null,null,null,null,null,null,null,null,null,"Keterangan Tagihan",null,null,null,null,null,null,null,null,null,null,"Keterangan Tagihan",null,null,null,null,null,null,null,null,null,null,"Keterangan Tagihan",null,null,null,null,null,null,null,null,null,null,"Keterangan Tagihan",null,null,null,null,null,null,null,null,null,null,null,null,null,null,null,null,null,null,null,null,null,"LSN",null,null,"PAT"]
[null,"Mata Pelajaran",null,{"$f":"dataumum!G8","v":"Kimia"},"PH1",null,null,null,null,null,"PH6",null,null,null,null,"PH1",null,null,null,null,null,"PH6",null,null,null,null,"PH1",null,null,null,null,null,"PH6",null,null,null,null,"PH1",null,null,null,null,null,"PH6",null,null,null,null,"PH1",null,null,null,null,null,"PH6",null,null,null,null,"PH1",null,null,null,null,null,"PH6",null,null,null,null,"PH1",null,null,null,null,null,"PH6",null,null,null,null,"PH1",null,null,null,null,null,"PH6",null,null,null,null,"PH1",null,null,null,null,null,"PH6",null,null,null,null,"PH1",null,null,null,null,null,"PH6",null,null,null,null,null,null,null,null,null,null,null,null,null,null,null,"TGS",null,null,"UM"]
[null,"Semester",null,{"$f":"dataumum!G9","v":"2 (Genap)"},"PH2",null,null,null,null,null,"PH7",null,null,null,null,"PH2",null,null,null,null,null,"PH7",null,null,null,null,"PH2",null,null,null,null,null,"PH7",null,null,null,null,"PH2",null,null,null,null,null,"PH7",null,null,null,null,"PH2",null,null,null,null,null,"PH7",null,null,null,null,"PH2",null,null,null,null,null,"PH7",null,null,null,null,"PH2",null,null,null,null,null,"PH7",null,null,null,null,"PH2",null,null,null,null,null,"PH7",null,null,null,null,"PH2",null,null,null,null,null,"PH7",null,null,null,null,"PH2",null,null,null,null,null,"PH7",null,null,null,null,null,null,null,null,null,"MAN 4 TASIKMALAYA",null,null,null,null,null,"PENILAIAN KETERAMPILAN"]
[null,"Tahun Pelajaran",null,{"$f":"dataumum!G10","v":"2025/2026"},"PH3",null,null,null,null,null,"PH8",null,null,null,null,"PH3",null,null,null,null,null,"PH8",null,null,null,null,"PH3",null,null,null,null,null,"PH8",null,null,null,null,"PH3",null,null,null,null,null,"PH8",null,null,null,null,"PH3",null,null,null,null,null,"PH8",null,null,null,null,"PH3",null,null,null,null,null,"PH8",null,null,null,null,"PH3",null,null,null,null,null,"PH8",null,null,null,null,"PH3",null,null,null,null,null,"PH8",null,null,null,null,"PH3",null,null,null,null,null,"PH8",null,null,null,null,"PH3",null,null,null,null,null,"PH8",null,null,null,null,null,{"$f":"dataumum!G19","v":"X-D"},null,null,null,"TOOLS UNTUK OLAH NILAI",null,null,null,null,null,"UKJ"]
[null,"Kelas",null,{"$f":"dataumum!G11","v":"X-D"},"PH4",null,null,null,null,null,"PH9",null,null,null,null,"PH4",null,null,null,null,null,"PH9",null,null,null,null,"PH4",null,null,null,null,null,"PH9",null,null,null,null,"PH4",null,null,null,null,null,"PH9",null,null,null,null,"PH4",null,null,null,null,null,"PH9",null,null,null,null,"PH4",null,null,null,null,null,"PH9",null,null,null,null,"PH4",null,null,null,null,null,"PH9",null,null,null,null,"PH4",null,null,null,null,null,"PH9",null,null,null,null,"PH4",null,null,null,null,null,"PH9",null,null,null,null,"PH4",null,null,null,null,null,"PH9",null,null,null,null,null,"NILAI KETERAMPILAN",null,null,null,null,null,null,null,null,null,"PRY"]
[null,"KKM",null,{"$f":"dataumum!G12","v":75},"PH5",null,null,null,null,null,"PH10",null,null,null,null,"PH5",null,null,null,null,null,"PH10",null,null,null,null,"PH5",null,null,null,null,null,"PH10",null,null,null,null,"PH5",null,null,null,null,null,"PH10",null,null,null,null,"PH5",null,null,null,null,null,"PH10",null,null,null,null,"PH5",null,null,null,null,null,"PH10",null,null,null,null,"PH5",null,null,null,null,null,"PH10",null,null,null,null,"PH5",null,null,null,null,null,"PH10",null,null,null,null,"PH5",null,null,null,null,null,"PH10",null,null,null,null,"PH5",null,null,null,null,null,"PH10",null,null,null,null,null,null,null,null,null,null,null,null,null,null,null,"PTF"]
[null,null,null,{"$f":"dataumum!G19","v":"X-D"},null,null,null,null,null,null,null,null,null,null,null,null,null,null,null,null,null,null,null,null,null,null,null,null,null,null,null,null,null,null,null,null,null,null,null,null,null,null,null,null,null,null,null,null,null,null,null,null,null,null,null,null,null,null,null,null,null,null,null,null,null,null,null,null,null,null,null,null,null,null,null,null,null,null,null,null,null,null,null,null,null,null,null,null,null,null,null,null,null,null,null,null,null,null,null,null,null,null,null,null,null,null,null,null,null,null,null,null,null,null,null,null,null,null,null,"N_MIN",{"$f":"MIN(DP17:DP56)","v":10}]
[null,null,null,null,{"$f":"IF(COUNT(E17:E56)>0,1,0)","v":0},0,0,0,0,0,0,0,0,0,{"$f":"SUM(E13:N13)","v":0},{"$f":"IF(COUNT(P17:P56)>0,1,0)","v":0},0,0,0,0,0,0,0,0,0,{"$f":"SUM(P13:Y13)","v":0},{"$f":"IF(COUNT(AA17:AA56)>0,1,0)","v":0},0,0,0,0,0,0,0,0,0,{"$f":"SUM(AA13:AJ13)","v":0},{"$f":"IF(COUNT(AL17:AL56)>0,1,0)","v":0},0,0,0,0,0,0,0,0,0,{"$f":"SUM(AL13:AU13)","v":0},{"$f":"IF(COUNT(AW17:AW56)>0,1,0)","v":0},0,0,0,0,0,0,0,0,0,{"$f":"SUM(AW13:BF13)","v":0},{"$f":"IF(COUNT(BH17:BH56)>0,1,0)","v":0},0,0,0,0,0,0,0,0,0,{"$f":"SUM(BH13:BQ13)","v":0},{"$f":"IF(COUNT(BS17:BS56)>0,1,0)","v":0},0,0,0,0,0,0,0,0,0,{"$f":"SUM(BS13:CB13)","v":0},{"$f":"IF(COUNT(CD17:CD56)>0,1,0)","v":0},0,0,0,0,0,0,0,0,0,{"$f":"SUM(CD13:CM13)","v":0},{"$f":"IF(COUNT(CO17:CO56)>0,1,0)","v":0},0,0,0,0,0,0,0,0,0,{"$f":"SUM(CO13:CX13)","v":0},{"$f":"IF(COUNT(CZ17:CZ56)>0,1,0)","v":0},0,0,0,0,0,0,0,0,0,{"$f":"SUM(CZ13:DI13)","v":0},null,null,null,null,null,"N_MAX",{"$f":"MAX(DP17:DP56)","v":50}]
[null,"NO","NISN","NAMA\n(Silahkan ambil dari salah satu template RDM)","KETERAMPILAN",null,null,null,null,null,null,null,null,null,{"$f":"CONCATENATE(\"NILAI\",\" \",E4)","v":{"$error":"#REF!"}},"KETERAMPILAN",null,null,null,null,null,null,null,null,null,{"$f":"CONCATENATE(\"NILAI\",\" \",P4)","v":{"$error":"#REF!"}},"KETERAMPILAN",null,null,null,null,null,null,null,null,null,{"$f":"CONCATENATE(\"NILAI\",\" \",AA4)","v":{"$error":"#REF!"}},"KETERAMPILAN",null,null,null,null,null,null,null,null,null,{"$f":"CONCATENATE(\"NILAI\",\" \",AL4)","v":{"$error":"#REF!"}},"KETERAMPILAN",null,null,null,null,null,null,null,null,null,{"$f":"CONCATENATE(\"NILAI\",\" \",AW4)","v":{"$error":"#REF!"}},"KETERAMPILAN",null,null,null,null,null,null,null,null,null,{"$f":"CONCATENATE(\"NILAI\",\" \",BH4)","v":{"$error":"#REF!"}},"KETERAMPILAN",null,null,null,null,null,null,null,null,null,{"$f":"CONCATENATE(\"NILAI\",\" \",BS4)","v":{"$error":"#REF!"}},"KETERAMPILAN",null,null,null,null,null,null,null,null,null,{"$f":"CONCATENATE(\"NILAI\",\" \",CD4)","v":{"$error":"#REF!"}},"KETERAMPILAN",null,null,null,null,null,null,null,null,null,{"$f":"CONCATENATE(\"NILAI\",\" \",CO4)","v":{"$error":"#REF!"}},"KETERAMPILAN",null,null,null,null,null,null,null,null,null,{"$f":"CONCATENATE(\"NILAI\",\" \",CZ4)","v":{"$error":"#REF!"}},null,"NK",null,"PREDIKAT",null,"NILAI YANG DIINGINKAN"]
[null,null,null,null,"Teknik Penilaian",null,null,null,null,null,null,null,null,null,null,"Teknik Penilaian",null,null,null,null,null,null,null,null,null,null,"Teknik Penilaian",null,null,null,null,null,null,null,null,null,null,"Teknik Penilaian",null,null,null,null,null,null,null,null,null,null,"Teknik Penilaian",null,null,null,null,null,null,null,null,null,null,"Teknik Penilaian",null,null,null,null,null,null,null,null,null,null,"Teknik Penilaian",null,null,null,null,null,null,null,null,null,null,"Teknik Penilaian",null,null,null,null,null,null,null,null,null,null,"Teknik Penilaian",null,null,null,null,null,null,null,null,null,null,"Teknik Penilaian",null,null,null,null,null,null,null,null,null,null,null,null,null,null,null,"MIN",77,null,null,{"$f":"IF(COUNT(DT17:DT56)>0,1,0)","v":0},{"$f":"IF(COUNT(DU17:DU56)>0,1,0)","v":0},0,0,0,0,0,0,0,0,{"$f":"SUM(DT15:EC15)","v":0},"PREDIKAT"]
[null,null,null,null,null,null,null,null,null,null,null,null,null,null,null,null,null,null,null,null,null,null,null,null,null,null,null,null,null,null,null,null,null,null,null,null,null,null,null,null,null,null,null,null,null,null,null,null,null,null,null,null,null,null,null,null,null,null,null,null,null,null,null,null,null,null,null,null,null,null,null,null,null,null,null,null,null,null,null,null,null,null,null,null,null,null,null,null,null,null,null,null,null,null,null,null,null,null,null,null,null,null,null,null,null,null,null,null,null,null,null,null,null,null,null,null,null,null,null,"MAX",83,null,null,{"$f":"E4","v":{"$error":"#REF!"}},{"$f":"P4","v":{"$error":"#REF!"}},{"$f":"AA4","v":{"$error":"#REF!"}},{"$f":"AL4","v":{"$error":"#REF!"}},{"$f":"AW4","v":{"$error":"#REF!"}},{"$f":"BH4","v":{"$error":"#REF!"}},{"$f":"BS4","v":{"$error":"#REF!"}},{"$f":"CD4","v":{"$error":"#REF!"}},{"$f":"CO4","v":{"$error":"#REF!"}},{"$f":"CZ4","v":{"$error":"#REF!"}},"RKD"]
[null,1,{"$f":"dataumum!C9","v":"0095527100"},{"$f":"dataumum!D9","v":"AHMAD JAMIL MUNAWAR"},null,null,null,null,null,null,null,null,null,null,{"$f":"IF(COUNT(E17:N17)<1,\"\",ROUND(SUM(E17:N17)/$O$13,0))","v":""},null,null,null,null,null,null,null,null,null,null,{"$f":"IF(COUNT(P17:Y17)<1,\"\",ROUND(SUM(P17:Y17)/$Z$13,0))","v":""},null,null,null,null,null,null,null,null,null,null,{"$f":"IF(COUNT(AA17:AJ17)<1,\"\",ROUND(SUM(AA17:AJ17)/$AK$13,0))","v":""},null,null,null,null,null,null,null,null,null,null,{"$f":"IF(COUNT(AL17:AU17)<1,\"\",ROUND(SUM(AL17:AU17)/$AV$13,0))","v":""},null,null,null,null,null,null,null,null,null,null,{"$f":"IF(COUNT(AW17:BF17)<1,\"\",ROUND(SUM(AW17:BF17)/$BG$13,0))","v":""},null,null,null,null,null,null,null,null,null,null,{"$f":"IF(COUNT(BH17:BQ17)<1,\"\",ROUND(SUM(BH17:BQ17)/$BR$13,0))","v":""},null,null,null,null,null,null,null,null,null,null,{"$f":"IF(COUNT(BS17:CB17)<1,\"\",ROUND(SUM(BS17:CB17)/$CC$13,0))","v":""},null,null,null,null,null,null,null,null,null,null,{"$f":"IF(COUNT(CD17:CM17)<1,\"\",ROUND(SUM(CD17:CM17)/$CN$13,0))","v":""},null,null,null,null,null,null,null,null,null,null,{"$f":"IF(COUNT(CO17:CX17)<1,\"\",ROUND(SUM(CO17:CX17)/$CY$13,0))","v":""},null,null,null,null,null,null,null,null,null,null,{"$f":"IF(COUNT(CZ17:DI17)<1,\"\",ROUND(SUM(CZ17:DI17)/$DJ$13,0))","v":""},null,{"$f":"ED17","v":0},null,{"$f":"IFERROR(IF(ED17>=dataumum!#REF!,\"A\",IF(ED17>=dataumum!#REF!,\"B\",IF(ED17>=dataumum!#REF!,\"C\",\"D\"))),0)","v":0},null,26.666666666666668,{"$f":"IFERROR($DQ$15+((DP17-$DQ$12)/($DQ$13-$DQ$12)*($DQ$16-$DQ$15)),0)","v":79.5},null,null,{"$f":"O17","v":""},{"$f":"Z17","v":""},{"$f":"AK17","v":""},{"$f":"AV17","v":""},{"$f":"BG17","v":""},{"$f":"BR17","v":""},{"$f":"CC17","v":""},{"$f":"CN17","v":""},{"$f":"CY17","v":""},{"$f":"DJ17","v":""},{"$f":"IFERROR(AVERAGE(DT17:EC17),0)","v":0},{"$f":"IF(ED17>dataumum!#REF!,\"A\",IF(ED17>dataumum!#REF!,\"B\",IF(ED17>dataumum!#REF!,\"C\",\"D\")))","v":{"$error":"#REF!"}}]
[null,2,{"$f":"dataumum!C10","v":"0108689880"},{"$f":"dataumum!D10","v":"AKBAR NUGRAHA"},null,null,null,null,null,null,null,null,null,null,{"$f":"IF(COUNT(E18:N18)<1,\"\",ROUND(SUM(E18:N18)/$O$13,0))","v":""},null,null,null,null,null,null,null,null,null,null,{"$f":"IF(COUNT(P18:Y18)<1,\"\",ROUND(SUM(P18:Y18)/$Z$13,0))","v":""},null,null,null,null,null,null,null,null,null,null,{"$f":"IF(COUNT(AA18:AJ18)<1,\"\",ROUND(SUM(AA18:AJ18)/$AK$13,0))","v":""},null,null,null,null,null,null,null,null,null,null,{"$f":"IF(COUNT(AL18:AU18)<1,\"\",ROUND(SUM(AL18:AU18)/$AV$13,0))","v":""},null,null,null,null,null,null,null,null,null,null,{"$f":"IF(COUNT(AW18:BF18)<1,\"\",ROUND(SUM(AW18:BF18)/$BG$13,0))","v":""},null,null,null,null,null,null,null,null,null,null,{"$f":"IF(COUNT(BH18:BQ18)<1,\"\",ROUND(SUM(BH18:BQ18)/$BR$13,0))","v":""},null,null,null,null,null,null,null,null,null,null,{"$f":"IF(COUNT(BS18:CB18)<1,\"\",ROUND(SUM(BS18:CB18)/$CC$13,0))","v":""},null,null,null,null,null,null,null,null,null,null,{"$f":"IF(COUNT(CD18:CM18)<1,\"\",ROUND(SUM(CD18:CM18)/$CN$13,0))","v":""},null,null,null,null,null,null,null,null,null,null,{"$f":"IF(COUNT(CO18:CX18)<1,\"\",ROUND(SUM(CO18:CX18)/$CY$13,0))","v":""},null,null,null,null,null,null,null,null,null,null,{"$f":"IF(COUNT(CZ18:DI18)<1,\"\",ROUND(SUM(CZ18:DI18)/$DJ$13,0))","v":""},null,{"$f":"ED18","v":0},null,{"$f":"IFERROR(IF(ED18>=dataumum!#REF!,\"A\",IF(ED18>=dataumum!#REF!,\"B\",IF(ED18>=dataumum!#REF!,\"C\",\"D\"))),0)","v":0},null,20,{"$f":"IFERROR($DQ$15+((DP18-$DQ$12)/($DQ$13-$DQ$12)*($DQ$16-$DQ$15)),0)","v":78.5},null,null,"","","","","","","","","","",{"$f":"IFERROR(AVERAGE(DT18:EC18),0)","v":0},{"$f":"IF(ED18>dataumum!#REF!,\"A\",IF(ED18>dataumum!#REF!,\"B\",IF(ED18>dataumum!#REF!,\"C\",\"D\")))","v":{"$error":"#REF!"}}]
[null,3,{"$f":"dataumum!C11","v":"0101457073"},{"$f":"dataumum!D11","v":"ALSA NAPILA ABALIA"},null,null,null,null,null,null,null,null,null,null,"",null,null,null,null,null,null,null,null,null,null,"",null,null,null,null,null,null,null,null,null,null,"",null,null,null,null,null,null,null,null,null,null,"",null,null,null,null,null,null,null,null,null,null,"",null,null,null,null,null,null,null,null,null,null,"",null,null,null,null,null,null,null,null,null,null,"",null,null,null,null,null,null,null,null,null,null,"",null,null,null,null,null,null,null,null,null,null,"",null,null,null,null,null,null,null,null,null,null,"",null,0,null,{"$f":"IFERROR(IF(ED19>=dataumum!#REF!,\"A\",IF(ED19>=dataumum!#REF!,\"B\",IF(ED19>=dataumum!#REF!,\"C\",\"D\"))),0)","v":0},null,13.333333333333334,77.5,null,null,"","","","","","","","","","",0,{"$f":"IF(ED19>dataumum!#REF!,\"A\",IF(ED19>dataumum!#REF!,\"B\",IF(ED19>dataumum!#REF!,\"C\",\"D\")))","v":{"$error":"#REF!"}}]
[null,4,{"$f":"dataumum!C12","v":"3098669460"},{"$f":"dataumum!D12","v":"ALWAN FAJRUL HAKIM"},null,null,null,null,null,null,null,null,null,null,"",null,null,null,null,null,null,null,null,null,null,"",null,null,null,null,null,null,null,null,null,null,"",null,null,null,null,null,null,null,null,null,null,"",null,null,null,null,null,null,null,null,null,null,"",null,null,null,null,null,null,null,null,null,null,"",null,null,null,null,null,null,null,null,null,null,"",null,null,null,null,null,null,null,null,null,null,"",null,null,null,null,null,null,null,null,null,null,"",null,null,null,null,null,null,null,null,null,null,"",null,0,null,{"$f":"IFERROR(IF(ED20>=dataumum!#REF!,\"A\",IF(ED20>=dataumum!#REF!,\"B\",IF(ED20>=dataumum!#REF!,\"C\",\"D\"))),0)","v":0},null,23.333333333333332,79,null,null,"","","","","","","","","","",0,{"$f":"IF(ED20>dataumum!#REF!,\"A\",IF(ED20>dataumum!#REF!,\"B\",IF(ED20>dataumum!#REF!,\"C\",\"D\")))","v":{"$error":"#REF!"}}]
[null,5,{"$f":"dataumum!C13","v":"0097476054"},{"$f":"dataumum!D13","v":"ANDIKA"},null,null,null,null,null,null,null,null,null,null,"",null,null,null,null,null,null,null,null,null,null,"",null,null,null,null,null,null,null,null,null,null,"",null,null,null,null,null,null,null,null,null,null,"",null,null,null,null,null,null,null,null,null,null,"",null,null,null,null,null,null,null,null,null,null,"",null,null,null,null,null,null,null,null,null,null,"",null,null,null,null,null,null,null,null,null,null,"",null,null,null,null,null,null,null,null,null,null,"",null,null,null,null,null,null,null,null,null,null,"",null,0,null,{"$f":"IFERROR(IF(ED21>=dataumum!#REF!,\"A\",IF(ED21>=dataumum!#REF!,\"B\",IF(ED21>=dataumum!#REF!,\"C\",\"D\"))),0)","v":0},null,50,83,null,null,"","","","","","","","","","",0,{"$f":"IF(ED21>dataumum!#REF!,\"A\",IF(ED21>dataumum!#REF!,\"B\",IF(ED21>dataumum!#REF!,\"C\",\"D\")))","v":{"$error":"#REF!"}}]
[null,6,{"$f":"dataumum!C14","v":"0107479079"},{"$f":"dataumum!D14","v":"CHINTIA NUR AZIZAH"},null,null,null,null,null,null,null,null,null,null,"",null,null,null,null,null,null,null,null,null,null,"",null,null,null,null,null,null,null,null,null,null,"",null,null,null,null,null,null,null,null,null,null,"",null,null,null,null,null,null,null,null,null,null,"",null,null,null,null,null,null,null,null,null,null,"",null,null,null,null,null,null,null,null,null,null,"",null,null,null,null,null,null,null,null,null,null,"",null,null,null,null,null,null,null,null,null,null,"",null,null,null,null,null,null,null,null,null,null,"",null,0,null,{"$f":"IFERROR(IF(ED22>=dataumum!#REF!,\"A\",IF(ED22>=dataumum!#REF!,\"B\",IF(ED22>=dataumum!#REF!,\"C\",\"D\"))),0)","v":0},null,40,81.5,null,null,"","","","","","","","","","",0,{"$f":"IF(ED22>dataumum!#REF!,\"A\",IF(ED22>dataumum!#REF!,\"B\",IF(ED22>dataumum!#REF!,\"C\",\"D\")))","v":{"$error":"#REF!"}}]
[null,7,{"$f":"dataumum!C15","v":"0095178395"},{"$f":"dataumum!D15","v":"DEDE AULIA"},null,null,null,null,null,null,null,null,null,null,"",null,null,null,null,null,null,null,null,null,null,"",null,null,null,null,null,null,null,null,null,null,"",null,null,null,null,null,null,null,null,null,null,"",null,null,null,null,null,null,null,null,null,null,"",null,null,null,null,null,null,null,null,null,null,"",null,null,null,null,null,null,null,null,null,null,"",null,null,null,null,null,null,null,null,null,null,"",null,null,null,null,null,null,null,null,null,null,"",null,null,null,null,null,null,null,null,null,null,"",null,0,null,{"$f":"IFERROR(IF(ED23>=dataumum!#REF!,\"A\",IF(ED23>=dataumum!#REF!,\"B\",IF(ED23>=dataumum!#REF!,\"C\",\"D\"))),0)","v":0},null,50,83,null,null,"","","","","","","","","","",0,{"$f":"IF(ED23>dataumum!#REF!,\"A\",IF(ED23>dataumum!#REF!,\"B\",IF(ED23>dataumum!#REF!,\"C\",\"D\")))","v":{"$error":"#REF!"}}]
[null,8,{"$f":"dataumum!C16","v":"0097071532"},{"$f":"dataumum!D16","v":"DIRLI PIRMANSAH REZA"},null,null,null,null,null,null,null,null,null,null,"",null,null,null,null,null,null,null,null,null,null,"",null,null,null,null,null,null,null,null,null,null,"",null,null,null,null,null,null,null,null,null,null,"",null,null,null,null,null,null,null,null,null,null,"",null,null,null,null,null,null,null,null,null,null,"",null,null,null,null,null,null,null,null,null,null,"",null,null,null,null,null,null,null,null,null,null,"",null,null,null,null,null,null,null,null,null,null,"",null,null,null,null,null,null,null,null,null,null,"",null,0,null,{"$f":"IFERROR(IF(ED24>=dataumum!#REF!,\"A\",IF(ED24>=dataumum!#REF!,\"B\",IF(ED24>=dataumum!#REF!,\"C\",\"D\"))),0)","v":0},null,43.333333333333336,82,null,null,"","","","","","","","","","",0,{"$f":"IF(ED24>dataumum!#REF!,\"A\",IF(ED24>dataumum!#REF!,\"B\",IF(ED24>dataumum!#REF!,\"C\",\"D\")))","v":{"$error":"#REF!"}}]
[null,9,{"$f":"dataumum!C17","v":"0085525399"},{"$f":"dataumum!D17","v":"EKSEL"},null,null,null,null,null,null,null,null,null,null,"",null,null,null,null,null,null,null,null,null,null,"",null,null,null,null,null,null,null,null,null,null,"",null,null,null,null,null,null,null,null,null,null,"",null,null,null,null,null,null,null,null,null,null,"",null,null,null,null,null,null,null,null,null,null,"",null,null,null,null,null,null,null,null,null,null,"",null,null,null,null,null,null,null,null,null,null,"",null,null,null,null,null,null,null,null,null,null,"",null,null,null,null,null,null,null,null,null,null,"",null,0,null,{"$f":"IFERROR(IF(ED25>=dataumum!#REF!,\"A\",IF(ED25>=dataumum!#REF!,\"B\",IF(ED25>=dataumum!#REF!,\"C\",\"D\"))),0)","v":0},null,43.333333333333336,82,null,null,"","","","","","","","","","",0,{"$f":"IF(ED25>dataumum!#REF!,\"A\",IF(ED25>dataumum!#REF!,\"B\",IF(ED25>dataumum!#REF!,\"C\",\"D\")))","v":{"$error":"#REF!"}}]
[null,10,{"$f":"dataumum!C18","v":"0099271082"},{"$f":"dataumum!D18","v":"FADLAN APANDI"},null,null,null,null,null,null,null,null,null,null,"",null,null,null,null,null,null,null,null,null,null,"",null,null,null,null,null,null,null,null,null,null,"",null,null,null,null,null,null,null,null,null,null,"",null,null,null,null,null,null,null,null,null,null,"",null,null,null,null,null,null,null,null,null,null,"",null,null,null,null,null,null,null,null,null,null,"",null,null,null,null,null,null,null,null,null,null,"",null,null,null,null,null,null,null,null,null,null,"",null,null,null,null,null,null,null,null,null,null,"",null,0,null,{"$f":"IFERROR(IF(ED26>=dataumum!#REF!,\"A\",IF(ED26>=dataumum!#REF!,\"B\",IF(ED26>=dataumum!#REF!,\"C\",\"D\"))),0)","v":0},null,33.333333333333329,80.5,null,null,"","","","","","","","","","",0,{"$f":"IF(ED26>dataumum!#REF!,\"A\",IF(ED26>dataumum!#REF!,\"B\",IF(ED26>dataumum!#REF!,\"C\",\"D\")))","v":{"$error":"#REF!"}}]
[null,11,{"$f":"dataumum!C19","v":"3109814391"},{"$f":"dataumum!D19","v":"HAYA MADIHATUL ISMAH"},null,null,null,null,null,null,null,null,null,null,"",null,null,null,null,null,null,null,null,null,null,"",null,null,null,null,null,null,null,null,null,null,"",null,null,null,null,null,null,null,null,null,null,"",null,null,null,null,null,null,null,null,null,null,"",null,null,null,null,null,null,null,null,null,null,"",null,null,null,null,null,null,null,null,null,null,"",null,null,null,null,null,null,null,null,null,null,"",null,null,null,null,null,null,null,null,null,null,"",null,null,null,null,null,null,null,null,null,null,"",null,0,null,{"$f":"IFERROR(IF(ED27>=dataumum!#REF!,\"A\",IF(ED27>=dataumum!#REF!,\"B\",IF(ED27>=dataumum!#REF!,\"C\",\"D\"))),0)","v":0},null,43.333333333333336,82,null,null,"","","","","","","","","","",0,{"$f":"IF(ED27>dataumum!#REF!,\"A\",IF(ED27>dataumum!#REF!,\"B\",IF(ED27>dataumum!#REF!,\"C\",\"D\")))","v":{"$error":"#REF!"}}]
[null,12,{"$f":"dataumum!C20","v":"3094762585"},{"$f":"dataumum!D20","v":"HIKAYATUL JABAL"},null,null,null,null,null,null,null,null,null,null,"",null,null,null,null,null,null,null,null,null,null,"",null,null,null,null,null,null,null,null,null,null,"",null,null,null,null,null,null,null,null,null,null,"",null,null,null,null,null,null,null,null,null,null,"",null,null,null,null,null,null,null,null,null,null,"",null,null,null,null,null,null,null,null,null,null,"",null,null,null,null,null,null,null,null,null,null,"",null,null,null,null,null,null,null,null,null,null,"",null,null,null,null,null,null,null,null,null,null,"",null,0,null,{"$f":"IFERROR(IF(ED28>=dataumum!#REF!,\"A\",IF(ED28>=dataumum!#REF!,\"B\",IF(ED28>=dataumum!#REF!,\"C\",\"D\"))),0)","v":0},null,13.333333333333334,77.5,null,null,"","","","","","","","","","",0,{"$f":"IF(ED28>dataumum!#REF!,\"A\",IF(ED28>dataumum!#REF!,\"B\",IF(ED28>dataumum!#REF!,\"C\",\"D\")))","v":{"$error":"#REF!"}}]
[null,13,{"$f":"dataumum!C21","v":"0105251526"},{"$f":"dataumum!D21","v":"IHSAN NURSALAM"},null,null,null,null,null,null,null,null,null,null,"",null,null,null,null,null,null,null,null,null,null,"",null,null,null,null,null,null,null,null,null,null,"",null,null,null,null,null,null,null,null,null,null,"",null,null,null,null,null,null,null,null,null,null,"",null,null,null,null,null,null,null,null,null,null,"",null,null,null,null,null,null,null,null,null,null,"",null,null,null,null,null,null,null,null,null,null,"",null,null,null,null,null,null,null,null,null,null,"",null,null,null,null,null,null,null,null,null,null,"",null,0,null,{"$f":"IFERROR(IF(ED29>=dataumum!#REF!,\"A\",IF(ED29>=dataumum!#REF!,\"B\",IF(ED29>=dataumum!#REF!,\"C\",\"D\"))),0)","v":0},null,16.666666666666664,78,null,null,"","","","","","","","","","",0,{"$f":"IF(ED29>dataumum!#REF!,\"A\",IF(ED29>dataumum!#REF!,\"B\",IF(ED29>dataumum!#REF!,\"C\",\"D\")))","v":{"$error":"#REF!"}}]
[null,14,{"$f":"dataumum!C22","v":"3095547483"},{"$f":"dataumum!D22","v":"IZAD NOOR JAMAN"},null,null,null,null,null,null,null,null,null,null,"",null,null,null,null,null,null,null,null,null,null,"",null,null,null,null,null,null,null,null,null,null,"",null,null,null,null,null,null,null,null,null,null,"",null,null,null,null,null,null,null,null,null,null,"",null,null,null,null,null,null,null,null,null,null,"",null,null,null,null,null,null,null,null,null,null,"",null,null,null,null,null,null,null,null,null,null,"",null,null,null,null,null,null,null,null,null,null,"",null,null,null,null,null,null,null,null,null,null,"",null,0,null,{"$f":"IFERROR(IF(ED30>=dataumum!#REF!,\"A\",IF(ED30>=dataumum!#REF!,\"B\",IF(ED30>=dataumum!#REF!,\"C\",\"D\"))),0)","v":0},null,46.666666666666664,82.5,null,null,"","","","","","","","","","",0,{"$f":"IF(ED30>dataumum!#REF!,\"A\",IF(ED30>dataumum!#REF!,\"B\",IF(ED30>dataumum!#REF!,\"C\",\"D\")))","v":{"$error":"#REF!"}}]
[null,15,{"$f":"dataumum!C23","v":"0093659815"},{"$f":"dataumum!D23","v":"JIHAN NURROHMAH SEPTIRA"},null,null,null,null,null,null,null,null,null,null,"",null,null,null,null,null,null,null,null,null,null,"",null,null,null,null,null,null,null,null,null,null,"",null,null,null,null,null,null,null,null,null,null,"",null,null,null,null,null,null,null,null,null,null,"",null,null,null,null,null,null,null,null,null,null,"",null,null,null,null,null,null,null,null,null,null,"",null,null,null,null,null,null,null,null,null,null,"",null,null,null,null,null,null,null,null,null,null,"",null,null,null,null,null,null,null,null,null,null,"",null,0,null,{"$f":"IFERROR(IF(ED31>=dataumum!#REF!,\"A\",IF(ED31>=dataumum!#REF!,\"B\",IF(ED31>=dataumum!#REF!,\"C\",\"D\"))),0)","v":0},null,30,80,null,null,"","","","","","","","","","",0,{"$f":"IF(ED31>dataumum!#REF!,\"A\",IF(ED31>dataumum!#REF!,\"B\",IF(ED31>dataumum!#REF!,\"C\",\"D\")))","v":{"$error":"#REF!"}}]
[null,16,{"$f":"dataumum!C24","v":"3090540244"},{"$f":"dataumum!D24","v":"KAKA SEPTIAN"},null,null,null,null,null,null,null,null,null,null,"",null,null,null,null,null,null,null,null,null,null,"",null,null,null,null,null,null,null,null,null,null,"",null,null,null,null,null,null,null,null,null,null,"",null,null,null,null,null,null,null,null,null,null,"",null,null,null,null,null,null,null,null,null,null,"",null,null,null,null,null,null,null,null,null,null,"",null,null,null,null,null,null,null,null,null,null,"",null,null,null,null,null,null,null,null,null,null,"",null,null,null,null,null,null,null,null,null,null,"",null,0,null,{"$f":"IFERROR(IF(ED32>=dataumum!#REF!,\"A\",IF(ED32>=dataumum!#REF!,\"B\",IF(ED32>=dataumum!#REF!,\"C\",\"D\"))),0)","v":0},null,20,78.5,null,null,"","","","","","","","","","",0,{"$f":"IF(ED32>dataumum!#REF!,\"A\",IF(ED32>dataumum!#REF!,\"B\",IF(ED32>dataumum!#REF!,\"C\",\"D\")))","v":{"$error":"#REF!"}}]
[null,17,{"$f":"dataumum!C25","v":"0088283383"},{"$f":"dataumum!D25","v":"LUTPI"},null,null,null,null,null,null,null,null,null,null,"",null,null,null,null,null,null,null,null,null,null,"",null,null,null,null,null,null,null,null,null,null,"",null,null,null,null,null,null,null,null,null,null,"",null,null,null,null,null,null,null,null,null,null,"",null,null,null,null,null,null,null,null,null,null,"",null,null,null,null,null,null,null,null,null,null,"",null,null,null,null,null,null,null,null,null,null,"",null,null,null,null,null,null,null,null,null,null,"",null,null,null,null,null,null,null,null,null,null,"",null,0,null,{"$f":"IFERROR(IF(ED33>=dataumum!#REF!,\"A\",IF(ED33>=dataumum!#REF!,\"B\",IF(ED33>=dataumum!#REF!,\"C\",\"D\"))),0)","v":0},null,40,81.5,null,null,"","","","","","","","","","",0,{"$f":"IF(ED33>dataumum!#REF!,\"A\",IF(ED33>dataumum!#REF!,\"B\",IF(ED33>dataumum!#REF!,\"C\",\"D\")))","v":{"$error":"#REF!"}}]
[null,18,{"$f":"dataumum!C26","v":"3096008382"},{"$f":"dataumum!D26","v":"M SUGIH MIWAHA"},null,null,null,null,null,null,null,null,null,null,"",null,null,null,null,null,null,null,null,null,null,"",null,null,null,null,null,null,null,null,null,null,"",null,null,null,null,null,null,null,null,null,null,"",null,null,null,null,null,null,null,null,null,null,"",null,null,null,null,null,null,null,null,null,null,"",null,null,null,null,null,null,null,null,null,null,"",null,null,null,null,null,null,null,null,null,null,"",null,null,null,null,null,null,null,null,null,null,"",null,null,null,null,null,null,null,null,null,null,"",null,0,null,{"$f":"IFERROR(IF(ED34>=dataumum!#REF!,\"A\",IF(ED34>=dataumum!#REF!,\"B\",IF(ED34>=dataumum!#REF!,\"C\",\"D\"))),0)","v":0},null,10,77,null,null,"","","","","","","","","","",0,{"$f":"IF(ED34>dataumum!#REF!,\"A\",IF(ED34>dataumum!#REF!,\"B\",IF(ED34>dataumum!#REF!,\"C\",\"D\")))","v":{"$error":"#REF!"}}]
[null,19,{"$f":"dataumum!C27","v":"0093656626"},{"$f":"dataumum!D27","v":"MUHLIS"},null,null,null,null,null,null,null,null,null,null,"",null,null,null,null,null,null,null,null,null,null,"",null,null,null,null,null,null,null,null,null,null,"",null,null,null,null,null,null,null,null,null,null,"",null,null,null,null,null,null,null,null,null,null,"",null,null,null,null,null,null,null,null,null,null,"",null,null,null,null,null,null,null,null,null,null,"",null,null,null,null,null,null,null,null,null,null,"",null,null,null,null,null,null,null,null,null,null,"",null,null,null,null,null,null,null,null,null,null,"",null,0,null,{"$f":"IFERROR(IF(ED35>=dataumum!#REF!,\"A\",IF(ED35>=dataumum!#REF!,\"B\",IF(ED35>=dataumum!#REF!,\"C\",\"D\"))),0)","v":0},null,30,80,null,null,"","","","","","","","","","",0,{"$f":"IF(ED35>dataumum!#REF!,\"A\",IF(ED35>dataumum!#REF!,\"B\",IF(ED35>dataumum!#REF!,\"C\",\"D\")))","v":{"$error":"#REF!"}}]
[null,20,{"$f":"dataumum!C28","v":"0097902846"},{"$f":"dataumum!D28","v":"NURAFIFAH FAUZIAH"},null,null,null,null,null,null,null,null,null,null,"",null,null,null,null,null,null,null,null,null,null,"",null,null,null,null,null,null,null,null,null,null,"",null,null,null,null,null,null,null,null,null,null,"",null,null,null,null,null,null,null,null,null,null,"",null,null,null,null,null,null,null,null,null,null,"",null,null,null,null,null,null,null,null,null,null,"",null,null,null,null,null,null,null,null,null,null,"",null,null,null,null,null,null,null,null,null,null,"",null,null,null,null,null,null,null,null,null,null,"",null,0,null,{"$f":"IFERROR(IF(ED36>=dataumum!#REF!,\"A\",IF(ED36>=dataumum!#REF!,\"B\",IF(ED36>=dataumum!#REF!,\"C\",\"D\"))),0)","v":0},null,46.666666666666664,82.5,null,null,"","","","","","","","","","",0,{"$f":"IF(ED36>dataumum!#REF!,\"A\",IF(ED36>dataumum!#REF!,\"B\",IF(ED36>dataumum!#REF!,\"C\",\"D\")))","v":{"$error":"#REF!"}}]
[null,21,{"$f":"dataumum!C29","v":"0088756415"},{"$f":"dataumum!D29","v":"REPAN"},null,null,null,null,null,null,null,null,null,null,"",null,null,null,null,null,null,null,null,null,null,"",null,null,null,null,null,null,null,null,null,null,"",null,null,null,null,null,null,null,null,null,null,"",null,null,null,null,null,null,null,null,null,null,"",null,null,null,null,null,null,null,null,null,null,"",null,null,null,null,null,null,null,null,null,null,"",null,null,null,null,null,null,null,null,null,null,"",null,null,null,null,null,null,null,null,null,null,"",null,null,null,null,null,null,null,null,null,null,"",null,0,null,{"$f":"IFERROR(IF(ED37>=dataumum!#REF!,\"A\",IF(ED37>=dataumum!#REF!,\"B\",IF(ED37>=dataumum!#REF!,\"C\",\"D\"))),0)","v":0},null,43.333333333333336,82,null,null,"","","","","","","","","","",0,{"$f":"IF(ED37>dataumum!#REF!,\"A\",IF(ED37>dataumum!#REF!,\"B\",IF(ED37>dataumum!#REF!,\"C\",\"D\")))","v":{"$error":"#REF!"}}]
[null,22,{"$f":"dataumum!C30","v":"0095868392"},{"$f":"dataumum!D30","v":"REZA NURUL WILDAN"},null,null,null,null,null,null,null,null,null,null,"",null,null,null,null,null,null,null,null,null,null,"",null,null,null,null,null,null,null,null,null,null,"",null,null,null,null,null,null,null,null,null,null,"",null,null,null,null,null,null,null,null,null,null,"",null,null,null,null,null,null,null,null,null,null,"",null,null,null,null,null,null,null,null,null,null,"",null,null,null,null,null,null,null,null,null,null,"",null,null,null,null,null,null,null,null,null,null,"",null,null,null,null,null,null,null,null,null,null,"",null,0,null,{"$f":"IFERROR(IF(ED38>=dataumum!#REF!,\"A\",IF(ED38>=dataumum!#REF!,\"B\",IF(ED38>=dataumum!#REF!,\"C\",\"D\"))),0)","v":0},null,30,80,null,null,"","","","","","","","","","",0,{"$f":"IF(ED38>dataumum!#REF!,\"A\",IF(ED38>dataumum!#REF!,\"B\",IF(ED38>dataumum!#REF!,\"C\",\"D\")))","v":{"$error":"#REF!"}}]
[null,23,{"$f":"dataumum!C31","v":"3095334952"},{"$f":"dataumum!D31","v":"SYIFA NURJANAH"},null,null,null,null,null,null,null,null,null,null,"",null,null,null,null,null,null,null,null,null,null,"",null,null,null,null,null,null,null,null,null,null,"",null,null,null,null,null,null,null,null,null,null,"",null,null,null,null,null,null,null,null,null,null,"",null,null,null,null,null,null,null,null,null,null,"",null,null,null,null,null,null,null,null,null,null,"",null,null,null,null,null,null,null,null,null,null,"",null,null,null,null,null,null,null,null,null,null,"",null,null,null,null,null,null,null,null,null,null,"",null,0,null,{"$f":"IFERROR(IF(ED39>=dataumum!#REF!,\"A\",IF(ED39>=dataumum!#REF!,\"B\",IF(ED39>=dataumum!#REF!,\"C\",\"D\"))),0)","v":0},null,30,80,null,null,"","","","","","","","","","",0,{"$f":"IF(ED39>dataumum!#REF!,\"A\",IF(ED39>dataumum!#REF!,\"B\",IF(ED39>dataumum!#REF!,\"C\",\"D\")))","v":{"$error":"#REF!"}}]
[null,24,{"$f":"dataumum!C32","v":"0093189091"},{"$f":"dataumum!D32","v":"WINDI PUJIA SAFITRI"},null,null,null,null,null,null,null,null,null,null,"",null,null,null,null,null,null,null,null,null,null,"",null,null,null,null,null,null,null,null,null,null,"",null,null,null,null,null,null,null,null,null,null,"",null,null,null,null,null,null,null,null,null,null,"",null,null,null,null,null,null,null,null,null,null,"",null,null,null,null,null,null,null,null,null,null,"",null,null,null,null,null,null,null,null,null,null,"",null,null,null,null,null,null,null,null,null,null,"",null,null,null,null,null,null,null,null,null,null,"",null,0,null,{"$f":"IFERROR(IF(ED40>=dataumum!#REF!,\"A\",IF(ED40>=dataumum!#REF!,\"B\",IF(ED40>=dataumum!#REF!,\"C\",\"D\"))),0)","v":0},null,30,80,null,null,"","","","","","","","","","",0,{"$f":"IF(ED40>dataumum!#REF!,\"A\",IF(ED40>dataumum!#REF!,\"B\",IF(ED40>dataumum!#REF!,\"C\",\"D\")))","v":{"$error":"#REF!"}}]
[null,25,{"$f":"dataumum!C33","v":"0096749734"},{"$f":"dataumum!D33","v":"WULAN RESPIANI"},null,null,null,null,null,null,null,null,null,null,"",null,null,null,null,null,null,null,null,null,null,"",null,null,null,null,null,null,null,null,null,null,"",null,null,null,null,null,null,null,null,null,null,"",null,null,null,null,null,null,null,null,null,null,"",null,null,null,null,null,null,null,null,null,null,"",null,null,null,null,null,null,null,null,null,null,"",null,null,null,null,null,null,null,null,null,null,"",null,null,null,null,null,null,null,null,null,null,"",null,null,null,null,null,null,null,null,null,null,"",null,0,null,{"$f":"IFERROR(IF(ED41>=dataumum!#REF!,\"A\",IF(ED41>=dataumum!#REF!,\"B\",IF(ED41>=dataumum!#REF!,\"C\",\"D\"))),0)","v":0},null,43.333333333333336,82,null,null,"","","","","","","","","","",0,{"$f":"IF(ED41>dataumum!#REF!,\"A\",IF(ED41>dataumum!#REF!,\"B\",IF(ED41>dataumum!#REF!,\"C\",\"D\")))","v":{"$error":"#REF!"}}]
[null,26,{"$f":"dataumum!C34","v":"0099314795"},{"$f":"dataumum!D34","v":"YESI DESTRIYANI"},null,null,null,null,null,null,null,null,null,null,"",null,null,null,null,null,null,null,null,null,null,"",null,null,null,null,null,null,null,null,null,null,"",null,null,null,null,null,null,null,null,null,null,"",null,null,null,null,null,null,null,null,null,null,"",null,null,null,null,null,null,null,null,null,null,"",null,null,null,null,null,null,null,null,null,null,"",null,null,null,null,null,null,null,null,null,null,"",null,null,null,null,null,null,null,null,null,null,"",null,null,null,null,null,null,null,null,null,null,"",null,0,null,{"$f":"IFERROR(IF(ED42>=dataumum!#REF!,\"A\",IF(ED42>=dataumum!#REF!,\"B\",IF(ED42>=dataumum!#REF!,\"C\",\"D\"))),0)","v":0},null,34.633333333333297,80.694999999999993,null,null,"","","","","","","","","","",0,{"$f":"IF(ED42>dataumum!#REF!,\"A\",IF(ED42>dataumum!#REF!,\"B\",IF(ED42>dataumum!#REF!,\"C\",\"D\")))","v":{"$error":"#REF!"}}]
[null,27,{"$f":"dataumum!C35","v":0},{"$f":"dataumum!D35","v":0},null,null,null,null,null,null,null,null,null,null,"",null,null,null,null,null,null,null,null,null,null,"",null,null,null,null,null,null,null,null,null,null,"",null,null,null,null,null,null,null,null,null,null,"",null,null,null,null,null,null,null,null,null,null,"",null,null,null,null,null,null,null,null,null,null,"",null,null,null,null,null,null,null,null,null,null,"",null,null,null,null,null,null,null,null,null,null,"",null,null,null,null,null,null,null,null,null,null,"",null,null,null,null,null,null,null,null,null,null,"",null,0,null,{"$f":"IFERROR(IF(ED43>=dataumum!#REF!,\"A\",IF(ED43>=dataumum!#REF!,\"B\",IF(ED43>=dataumum!#REF!,\"C\",\"D\"))),0)","v":0},null,34.7846153846154,80.717692307692317,null,null,"","","","","","","","","","",0,{"$f":"IF(ED43>dataumum!#REF!,\"A\",IF(ED43>dataumum!#REF!,\"B\",IF(ED43>dataumum!#REF!,\"C\",\"D\")))","v":{"$error":"#REF!"}}]
[null,28,{"$f":"dataumum!C36","v":0},{"$f":"dataumum!D36","v":0},null,null,null,null,null,null,null,null,null,null,"",null,null,null,null,null,null,null,null,null,null,"",null,null,null,null,null,null,null,null,null,null,"",null,null,null,null,null,null,null,null,null,null,"",null,null,null,null,null,null,null,null,null,null,"",null,null,null,null,null,null,null,null,null,null,"",null,null,null,null,null,null,null,null,null,null,"",null,null,null,null,null,null,null,null,null,null,"",null,null,null,null,null,null,null,null,null,null,"",null,null,null,null,null,null,null,null,null,null,"",null,0,null,{"$f":"IFERROR(IF(ED44>=dataumum!#REF!,\"A\",IF(ED44>=dataumum!#REF!,\"B\",IF(ED44>=dataumum!#REF!,\"C\",\"D\"))),0)","v":0},null,34.935897435897402,80.740384615384613,null,null,"","","","","","","","","","",0,{"$f":"IF(ED44>dataumum!#REF!,\"A\",IF(ED44>dataumum!#REF!,\"B\",IF(ED44>dataumum!#REF!,\"C\",\"D\")))","v":{"$error":"#REF!"}}]
[null,29,{"$f":"dataumum!C37","v":0},{"$f":"dataumum!D37","v":0},null,null,null,null,null,null,null,null,null,null,"",null,null,null,null,null,null,null,null,null,null,"",null,null,null,null,null,null,null,null,null,null,"",null,null,null,null,null,null,null,null,null,null,"",null,null,null,null,null,null,null,null,null,null,"",null,null,null,null,null,null,null,null,null,null,"",null,null,null,null,null,null,null,null,null,null,"",null,null,null,null,null,null,null,null,null,null,"",null,null,null,null,null,null,null,null,null,null,"",null,null,null,null,null,null,null,null,null,null,"",null,0,null,{"$f":"IFERROR(IF(ED45>=dataumum!#REF!,\"A\",IF(ED45>=dataumum!#REF!,\"B\",IF(ED45>=dataumum!#REF!,\"C\",\"D\"))),0)","v":0},null,35.087179487179498,80.763076923076923,null,null,"","","","","","","","","","",0,{"$f":"IF(ED45>dataumum!#REF!,\"A\",IF(ED45>dataumum!#REF!,\"B\",IF(ED45>dataumum!#REF!,\"C\",\"D\")))","v":{"$error":"#REF!"}}]
[null,30,{"$f":"dataumum!C38","v":0},{"$f":"dataumum!D38","v":0},null,null,null,null,null,null,null,null,null,null,"",null,null,null,null,null,null,null,null,null,null,"",null,null,null,null,null,null,null,null,null,null,"",null,null,null,null,null,null,null,null,null,null,"",null,null,null,null,null,null,null,null,null,null,"",null,null,null,null,null,null,null,null,null,null,"",null,null,null,null,null,null,null,null,null,null,"",null,null,null,null,null,null,null,null,null,null,"",null,null,null,null,null,null,null,null,null,null,"",null,null,null,null,null,null,null,null,null,null,"",null,0,null,{"$f":"IFERROR(IF(ED46>=dataumum!#REF!,\"A\",IF(ED46>=dataumum!#REF!,\"B\",IF(ED46>=dataumum!#REF!,\"C\",\"D\"))),0)","v":0},null,35.2384615384615,80.785769230769219,null,null,"","","","","","","","","","",0,{"$f":"IF(ED46>dataumum!#REF!,\"A\",IF(ED46>dataumum!#REF!,\"B\",IF(ED46>dataumum!#REF!,\"C\",\"D\")))","v":{"$error":"#REF!"}}]
[null,31,{"$f":"dataumum!C39","v":0},{"$f":"dataumum!D39","v":0},null,null,null,null,null,null,null,null,null,null,"",null,null,null,null,null,null,null,null,null,null,"",null,null,null,null,null,null,null,null,null,null,"",null,null,null,null,null,null,null,null,null,null,"",null,null,null,null,null,null,null,null,null,null,"",null,null,null,null,null,null,null,null,null,null,"",null,null,null,null,null,null,null,null,null,null,"",null,null,null,null,null,null,null,null,null,null,"",null,null,null,null,null,null,null,null,null,null,"",null,null,null,null,null,null,null,null,null,null,"",null,0,null,{"$f":"IFERROR(IF(ED47>=dataumum!#REF!,\"A\",IF(ED47>=dataumum!#REF!,\"B\",IF(ED47>=dataumum!#REF!,\"C\",\"D\"))),0)","v":0},null,35.389743589743603,80.808461538461543,null,null,"","","","","","","","","","",0,{"$f":"IF(ED47>dataumum!#REF!,\"A\",IF(ED47>dataumum!#REF!,\"B\",IF(ED47>dataumum!#REF!,\"C\",\"D\")))","v":{"$error":"#REF!"}}]
[null,32,{"$f":"dataumum!C40","v":0},{"$f":"dataumum!D40","v":0},null,null,null,null,null,null,null,null,null,null,"",null,null,null,null,null,null,null,null,null,null,"",null,null,null,null,null,null,null,null,null,null,"",null,null,null,null,null,null,null,null,null,null,"",null,null,null,null,null,null,null,null,null,null,"",null,null,null,null,null,null,null,null,null,null,"",null,null,null,null,null,null,null,null,null,null,"",null,null,null,null,null,null,null,null,null,null,"",null,null,null,null,null,null,null,null,null,null,"",null,null,null,null,null,null,null,null,null,null,"",null,0,null,{"$f":"IFERROR(IF(ED48>=dataumum!#REF!,\"A\",IF(ED48>=dataumum!#REF!,\"B\",IF(ED48>=dataumum!#REF!,\"C\",\"D\"))),0)","v":0},null,35.541025641025598,80.831153846153839,null,null,"","","","","","","","","","",0,{"$f":"IF(ED48>dataumum!#REF!,\"A\",IF(ED48>dataumum!#REF!,\"B\",IF(ED48>dataumum!#REF!,\"C\",\"D\")))","v":{"$error":"#REF!"}}]
[null,33,{"$f":"dataumum!C41","v":0},{"$f":"dataumum!D41","v":0},null,null,null,null,null,null,null,null,null,null,"",null,null,null,null,null,null,null,null,null,null,"",null,null,null,null,null,null,null,null,null,null,"",null,null,null,null,null,null,null,null,null,null,"",null,null,null,null,null,null,null,null,null,null,"",null,null,null,null,null,null,null,null,null,null,"",null,null,null,null,null,null,null,null,null,null,"",null,null,null,null,null,null,null,null,null,null,"",null,null,null,null,null,null,null,null,null,null,"",null,null,null,null,null,null,null,null,null,null,"",null,0,null,{"$f":"IFERROR(IF(ED49>=dataumum!#REF!,\"A\",IF(ED49>=dataumum!#REF!,\"B\",IF(ED49>=dataumum!#REF!,\"C\",\"D\"))),0)","v":0},null,35.692307692307701,80.853846153846149,null,null,"","","","","","","","","","",0,{"$f":"IF(ED49>dataumum!#REF!,\"A\",IF(ED49>dataumum!#REF!,\"B\",IF(ED49>dataumum!#REF!,\"C\",\"D\")))","v":{"$error":"#REF!"}}]
[null,34,{"$f":"dataumum!C42","v":0},{"$f":"dataumum!D42","v":0},null,null,null,null,null,null,null,null,null,null,"",null,null,null,null,null,null,null,null,null,null,"",null,null,null,null,null,null,null,null,null,null,"",null,null,null,null,null,null,null,null,null,null,"",null,null,null,null,null,null,null,null,null,null,"",null,null,null,null,null,null,null,null,null,null,"",null,null,null,null,null,null,null,null,null,null,"",null,null,null,null,null,null,null,null,null,null,"",null,null,null,null,null,null,null,null,null,null,"",null,null,null,null,null,null,null,null,null,null,"",null,0,null,{"$f":"IFERROR(IF(ED50>=dataumum!#REF!,\"A\",IF(ED50>=dataumum!#REF!,\"B\",IF(ED50>=dataumum!#REF!,\"C\",\"D\"))),0)","v":0},null,35.843589743589703,80.876538461538459,null,null,"","","","","","","","","","",0,{"$f":"IF(ED50>dataumum!#REF!,\"A\",IF(ED50>dataumum!#REF!,\"B\",IF(ED50>dataumum!#REF!,\"C\",\"D\")))","v":{"$error":"#REF!"}}]
[null,35,{"$f":"dataumum!C43","v":0},{"$f":"dataumum!D43","v":0},null,null,null,null,null,null,null,null,null,null,"",null,null,null,null,null,null,null,null,null,null,"",null,null,null,null,null,null,null,null,null,null,"",null,null,null,null,null,null,null,null,null,null,"",null,null,null,null,null,null,null,null,null,null,"",null,null,null,null,null,null,null,null,null,null,"",null,null,null,null,null,null,null,null,null,null,"",null,null,null,null,null,null,null,null,null,null,"",null,null,null,null,null,null,null,null,null,null,"",null,null,null,null,null,null,null,null,null,null,"",null,0,null,{"$f":"IFERROR(IF(ED51>=dataumum!#REF!,\"A\",IF(ED51>=dataumum!#REF!,\"B\",IF(ED51>=dataumum!#REF!,\"C\",\"D\"))),0)","v":0},null,35.994871794871798,80.899230769230769,null,null,"","","","","","","","","","",0,{"$f":"IF(ED51>dataumum!#REF!,\"A\",IF(ED51>dataumum!#REF!,\"B\",IF(ED51>dataumum!#REF!,\"C\",\"D\")))","v":{"$error":"#REF!"}}]
[null,36,{"$f":"dataumum!C44","v":0},{"$f":"dataumum!D44","v":0},null,null,null,null,null,null,null,null,null,null,"",null,null,null,null,null,null,null,null,null,null,"",null,null,null,null,null,null,null,null,null,null,"",null,null,null,null,null,null,null,null,null,null,"",null,null,null,null,null,null,null,null,null,null,"",null,null,null,null,null,null,null,null,null,null,"",null,null,null,null,null,null,null,null,null,null,"",null,null,null,null,null,null,null,null,null,null,"",null,null,null,null,null,null,null,null,null,null,"",null,null,null,null,null,null,null,null,null,null,"",null,0,null,{"$f":"IFERROR(IF(ED52>=dataumum!#REF!,\"A\",IF(ED52>=dataumum!#REF!,\"B\",IF(ED52>=dataumum!#REF!,\"C\",\"D\"))),0)","v":0},null,36.146153846153901,80.921923076923079,null,null,"","","","","","","","","","",0,{"$f":"IF(ED52>dataumum!#REF!,\"A\",IF(ED52>dataumum!#REF!,\"B\",IF(ED52>dataumum!#REF!,\"C\",\"D\")))","v":{"$error":"#REF!"}}]
[null,37,{"$f":"dataumum!C45","v":0},{"$f":"dataumum!D45","v":0},null,null,null,null,null,null,null,null,null,null,"",null,null,null,null,null,null,null,null,null,null,"",null,null,null,null,null,null,null,null,null,null,"",null,null,null,null,null,null,null,null,null,null,"",null,null,null,null,null,null,null,null,null,null,"",null,null,null,null,null,null,null,null,null,null,"",null,null,null,null,null,null,null,null,null,null,"",null,null,null,null,null,null,null,null,null,null,"",null,null,null,null,null,null,null,null,null,null,"",null,null,null,null,null,null,null,null,null,null,"",null,0,null,{"$f":"IFERROR(IF(ED53>=dataumum!#REF!,\"A\",IF(ED53>=dataumum!#REF!,\"B\",IF(ED53>=dataumum!#REF!,\"C\",\"D\"))),0)","v":0},null,36.297435897435903,80.944615384615389,null,null,"","","","","","","","","","",0,{"$f":"IF(ED53>dataumum!#REF!,\"A\",IF(ED53>dataumum!#REF!,\"B\",IF(ED53>dataumum!#REF!,\"C\",\"D\")))","v":{"$error":"#REF!"}}]
[null,38,{"$f":"dataumum!C46","v":0},{"$f":"dataumum!D46","v":0},null,null,null,null,null,null,null,null,null,null,"",null,null,null,null,null,null,null,null,null,null,"",null,null,null,null,null,null,null,null,null,null,"",null,null,null,null,null,null,null,null,null,null,"",null,null,null,null,null,null,null,null,null,null,"",null,null,null,null,null,null,null,null,null,null,"",null,null,null,null,null,null,null,null,null,null,"",null,null,null,null,null,null,null,null,null,null,"",null,null,null,null,null,null,null,null,null,null,"",null,null,null,null,null,null,null,null,null,null,"",null,0,null,{"$f":"IFERROR(IF(ED54>=dataumum!#REF!,\"A\",IF(ED54>=dataumum!#REF!,\"B\",IF(ED54>=dataumum!#REF!,\"C\",\"D\"))),0)","v":0},null,36.448717948717899,80.967307692307685,null,null,"","","","","","","","","","",0,{"$f":"IF(ED54>dataumum!#REF!,\"A\",IF(ED54>dataumum!#REF!,\"B\",IF(ED54>dataumum!#REF!,\"C\",\"D\")))","v":{"$error":"#REF!"}}]
[null,39,{"$f":"dataumum!C47","v":0},{"$f":"dataumum!D47","v":0},null,null,null,null,null,null,null,null,null,null,"",null,null,null,null,null,null,null,null,null,null,"",null,null,null,null,null,null,null,null,null,null,"",null,null,null,null,null,null,null,null,null,null,"",null,null,null,null,null,null,null,null,null,null,"",null,null,null,null,null,null,null,null,null,null,"",null,null,null,null,null,null,null,null,null,null,"",null,null,null,null,null,null,null,null,null,null,"",null,null,null,null,null,null,null,null,null,null,"",null,null,null,null,null,null,null,null,null,null,"",null,0,null,{"$f":"IFERROR(IF(ED55>=dataumum!#REF!,\"A\",IF(ED55>=dataumum!#REF!,\"B\",IF(ED55>=dataumum!#REF!,\"C\",\"D\"))),0)","v":0},null,36.6,80.989999999999995,null,null,"","","","","","","","","","",0,{"$f":"IF(ED55>dataumum!#REF!,\"A\",IF(ED55>dataumum!#REF!,\"B\",IF(ED55>dataumum!#REF!,\"C\",\"D\")))","v":{"$error":"#REF!"}}]
[null,40,{"$f":"dataumum!C48","v":0},{"$f":"dataumum!D48","v":0},null,null,null,null,null,null,null,null,null,null,"",null,null,null,null,null,null,null,null,null,null,"",null,null,null,null,null,null,null,null,null,null,"",null,null,null,null,null,null,null,null,null,null,"",null,null,null,null,null,null,null,null,null,null,"",null,null,null,null,null,null,null,null,null,null,"",null,null,null,null,null,null,null,null,null,null,"",null,null,null,null,null,null,null,null,null,null,"",null,null,null,null,null,null,null,null,null,null,"",null,null,null,null,null,null,null,null,null,null,"",null,0,null,{"$f":"IFERROR(IF(ED56>=dataumum!#REF!,\"A\",IF(ED56>=dataumum!#REF!,\"B\",IF(ED56>=dataumum!#REF!,\"C\",\"D\"))),0)","v":0},null,36.751282051281997,81.012692307692305,null,null,"","","","","","","","","","",0,{"$f":"IF(ED56>dataumum!#REF!,\"A\",IF(ED56>dataumum!#REF!,\"B\",IF(ED56>dataumum!#REF!,\"C\",\"D\")))","v":{"$error":"#REF!"}}]
[null,"NILAI RERATA",null,null,{"$f":"IFERROR(AVERAGE(E17:E56),0)","v":0},{"$f":"IFERROR(AVERAGE(F17:F56),0)","v":0},0,0,0,0,0,0,0,0,0,0,0,0,0,0,0,0,0,0,0,{"$error":"#DIV/0!"},0,0,0,0,0,0,0,0,0,0,{"$error":"#DIV/0!"},0,0,0,0,0,0,0,0,0,0,{"$error":"#DIV/0!"},0,0,0,0,0,0,0,0,0,0,{"$error":"#DIV/0!"},0,0,0,0,0,0,0,0,0,0,{"$error":"#DIV/0!"},{"$f":"IFERROR(AVERAGE(BS17:BS56),0)","v":0},0,0,0,0,0,0,0,0,0,{"$error":"#DIV/0!"},0,0,0,0,0,0,0,0,0,0,{"$error":"#DIV/0!"},0,0,0,0,0,0,0,0,0,0,{"$error":"#DIV/0!"},0,0,0,0,0,0,0,0,0,0,{"$error":"#DIV/0!"},null,null,null,null,null,null,{"$f":"dataumum!G19","v":"X-D"}]

{"sheet":"rekap","index":20,"n_rows":62,"n_cols":30,"rows_kept":62,"cut":false,"hidden":true,"merged":[[12,29,13,29],[6,1,6,29],[55,26,55,29],[12,28,13,28],[12,17,13,17],[12,15,13,15],[12,14,13,14],[12,16,13,16],[12,4,12,13],[12,18,12,27],[13,44,13,46],[13,47,13,49],[13,50,13,52],[13,53,13,55],[13,32,13,34],[13,35,13,37],[13,38,13,40],[13,41,13,43]]}
[null,"KEMENTERIAN AGAMA REPUBLIK INDONESIA"]
[null,"KANTOR KEMENTERIAN AGAMA KABUPATEN TASIKMALAYA"]
[null,"MADRASAH ALIYAH NEGERI 4 TASIKMALAYA"]
[null,"Jl. Sindanghurip Desa Cikalong Kec. Cikalong 46195"]
[null,"Website : www.mancikalong.sch.id e-mail : mancikalong@gmail.com"]
[]
[null,"REKAPITULASI NILAI PENGETAHUAN DAN KETERAMPILAN"]
[null,"Mata Pelajaran",null,{"$f":"CONCATENATE(\":\",\" \",dataumum!G8)","v":": Kimia"},null,null,null,null,null,null,null,null,null,null,null,null,null,null,null,null,null,null,null,null,"Semester",null,null,{"$f":"CONCATENATE(\":\",\" \",dataumum!G9)","v":": 2 (Genap)"}]
[null,"Kelas",null,{"$f":"CONCATENATE(\":\",\" \",dataumum!G11)","v":": X-D"},null,null,null,null,null,null,null,null,null,null,null,null,null,null,null,null,null,null,null,null,"Tahun Pelajaran",null,null,{"$f":"CONCATENATE(\":\",\" \",dataumum!G10)","v":": 2025/2026"}]
[null,"Pendidik",null,{"$f":"CONCATENATE(\":\",\" \",dataumum!G6)","v":": Arief Pribadi, S.Si"},null,null,null,null,null,null,null,null,null,null,null,null,null,null,null,null,null,null,null,null,"KKM",null,null,{"$f":"CONCATENATE(\":\",\" \",dataumum!G12)","v":": 75"}]
[]
[null,null,null,null,{"$f":"IF(COUNT(E15:E54)>0,1,0)","v":0},0,0,0,0,0,0,0,0,0,{"$f":"SUM(E12:N12)","v":0},null,null,null,{"$f":"IF(COUNT(S15:S54)>0,1,0)","v":0},0,0,0,0,0,0,0,0,0,{"$f":"SUM(S12:AB12)","v":0}]
[null,"NO","NISN","NAMA\n(Silahkan ambil dari salah satu template RDM)","PENGETAHUAN",null,null,null,null,null,null,null,null,null,"RPH",{"$f":"pengetahuan!DM14","v":"PAS"},"NP","PREDIKAT","KETERAMPILAN\n(UK = UNJUK KERJA, PR = PROYEK, PF = PORTOFOLIO)",null,null,null,null,null,null,null,null,null,"NK","PREDIKAT"]
[null,null,null,null,"PH1","PH2","PH3","PH4","PH5","PH6","PH7","PH8","PH9","PH10",null,null,null,null,"PH1","PH2","PH3","PH4","PH5","PH6","PH7","PH8","PH9","PH10"]
[null,1,{"$f":"dataumum!C9","v":"0095527100"},{"$f":"dataumum!D9","v":"AHMAD JAMIL MUNAWAR"},{"$f":"pengetahuan!DU17","v":""},{"$f":"pengetahuan!DV17","v":""},{"$f":"pengetahuan!DW17","v":""},{"$f":"pengetahuan!DX17","v":""},{"$f":"pengetahuan!DY17","v":""},{"$f":"pengetahuan!DZ17","v":""},{"$f":"pengetahuan!EA17","v":""},{"$f":"pengetahuan!EB17","v":""},{"$f":"pengetahuan!EC17","v":""},{"$f":"pengetahuan!ED17","v":""},{"$f":"pengetahuan!DL17","v":""},{"$f":"pengetahuan!DM17","v":80},{"$f":"pengetahuan!DN17","v":0},{"$f":"pengetahuan!DO17","v":0},{"$f":"keterampilan!DT17","v":""},{"$f":"keterampilan!DU17","v":""},{"$f":"keterampilan!DV17","v":""},{"$f":"keterampilan!DW17","v":""},{"$f":"keterampilan!DX17","v":""},{"$f":"keterampilan!DY17","v":""},{"$f":"keterampilan!DZ17","v":""},{"$f":"keterampilan!EA17","v":""},{"$f":"keterampilan!EB17","v":""},{"$f":"keterampilan!EC17","v":""},{"$f":"keterampilan!DL17","v":0},{"$f":"keterampilan!DN17","v":0}]
[null,2,{"$f":"dataumum!C10","v":"0108689880"},{"$f":"dataumum!D10","v":"AKBAR NUGRAHA"},{"$f":"pengetahuan!DU18","v":""},{"$f":"pengetahuan!DV18","v":""},{"$f":"pengetahuan!DW18","v":""},{"$f":"pengetahuan!DX18","v":""},{"$f":"pengetahuan!DY18","v":""},{"$f":"pengetahuan!DZ18","v":""},{"$f":"pengetahuan!EA18","v":""},{"$f":"pengetahuan!EB18","v":""},{"$f":"pengetahuan!EC18","v":""},{"$f":"pengetahuan!ED18","v":""},{"$f":"pengetahuan!DL18","v":""},{"$f":"pengetahuan!DM18","v":50},{"$f":"pengetahuan!DN18","v":0},{"$f":"pengetahuan!DO18","v":0},{"$f":"keterampilan!DT18","v":""},{"$f":"keterampilan!DU18","v":""},{"$f":"keterampilan!DV18","v":""},{"$f":"keterampilan!DW18","v":""},{"$f":"keterampilan!DX18","v":""},{"$f":"keterampilan!DY18","v":""},{"$f":"keterampilan!DZ18","v":""},{"$f":"keterampilan!EA18","v":""},{"$f":"keterampilan!EB18","v":""},{"$f":"keterampilan!EC18","v":""},{"$f":"keterampilan!DL18","v":0},{"$f":"keterampilan!DN18","v":0}]
[null,3,{"$f":"dataumum!C11","v":"0101457073"},{"$f":"dataumum!D11","v":"ALSA NAPILA ABALIA"},{"$f":"pengetahuan!DU19","v":""},{"$f":"pengetahuan!DV19","v":""},{"$f":"pengetahuan!DW19","v":""},{"$f":"pengetahuan!DX19","v":""},{"$f":"pengetahuan!DY19","v":""},{"$f":"pengetahuan!DZ19","v":""},{"$f":"pengetahuan!EA19","v":""},{"$f":"pengetahuan!EB19","v":""},{"$f":"pengetahuan!EC19","v":""},{"$f":"pengetahuan!ED19","v":""},{"$f":"pengetahuan!DL19","v":""},{"$f":"pengetahuan!DM19","v":0},{"$f":"pengetahuan!DN19","v":0},{"$f":"pengetahuan!DO19","v":0},{"$f":"keterampilan!DT19","v":""},{"$f":"keterampilan!DU19","v":""},{"$f":"keterampilan!DV19","v":""},{"$f":"keterampilan!DW19","v":""},{"$f":"keterampilan!DX19","v":""},{"$f":"keterampilan!DY19","v":""},{"$f":"keterampilan!DZ19","v":""},{"$f":"keterampilan!EA19","v":""},{"$f":"keterampilan!EB19","v":""},{"$f":"keterampilan!EC19","v":""},{"$f":"keterampilan!DL19","v":0},{"$f":"keterampilan!DN19","v":0}]
[null,4,{"$f":"dataumum!C12","v":"3098669460"},{"$f":"dataumum!D12","v":"ALWAN FAJRUL HAKIM"},{"$f":"pengetahuan!DU20","v":""},{"$f":"pengetahuan!DV20","v":""},{"$f":"pengetahuan!DW20","v":""},{"$f":"pengetahuan!DX20","v":""},{"$f":"pengetahuan!DY20","v":""},{"$f":"pengetahuan!DZ20","v":""},{"$f":"pengetahuan!EA20","v":""},{"$f":"pengetahuan!EB20","v":""},{"$f":"pengetahuan!EC20","v":""},{"$f":"pengetahuan!ED20","v":""},{"$f":"pengetahuan!DL20","v":""},{"$f":"pengetahuan!DM20","v":0},{"$f":"pengetahuan!DN20","v":0},{"$f":"pengetahuan!DO20","v":0},{"$f":"keterampilan!DT20","v":""},{"$f":"keterampilan!DU20","v":""},{"$f":"keterampilan!DV20","v":""},{"$f":"keterampilan!DW20","v":""},{"$f":"keterampilan!DX20","v":""},{"$f":"keterampilan!DY20","v":""},{"$f":"keterampilan!DZ20","v":""},{"$f":"keterampilan!EA20","v":""},{"$f":"keterampilan!EB20","v":""},{"$f":"keterampilan!EC20","v":""},{"$f":"keterampilan!DL20","v":0},{"$f":"keterampilan!DN20","v":0}]
[null,5,{"$f":"dataumum!C13","v":"0097476054"},{"$f":"dataumum!D13","v":"ANDIKA"},{"$f":"pengetahuan!DU21","v":""},{"$f":"pengetahuan!DV21","v":""},{"$f":"pengetahuan!DW21","v":""},{"$f":"pengetahuan!DX21","v":""},{"$f":"pengetahuan!DY21","v":""},{"$f":"pengetahuan!DZ21","v":""},{"$f":"pengetahuan!EA21","v":""},{"$f":"pengetahuan!EB21","v":""},{"$f":"pengetahuan!EC21","v":""},{"$f":"pengetahuan!ED21","v":""},{"$f":"pengetahuan!DL21","v":""},{"$f":"pengetahuan!DM21","v":0},{"$f":"pengetahuan!DN21","v":0},{"$f":"pengetahuan!DO21","v":0},{"$f":"keterampilan!DT21","v":""},{"$f":"keterampilan!DU21","v":""},{"$f":"keterampilan!DV21","v":""},{"$f":"keterampilan!DW21","v":""},{"$f":"keterampilan!DX21","v":""},{"$f":"keterampilan!DY21","v":""},{"$f":"keterampilan!DZ21","v":""},{"$f":"keterampilan!EA21","v":""},{"$f":"keterampilan!EB21","v":""},{"$f":"keterampilan!EC21","v":""},{"$f":"keterampilan!DL21","v":0},{"$f":"keterampilan!DN21","v":0}]
[null,6,{"$f":"dataumum!C14","v":"0107479079"},{"$f":"dataumum!D14","v":"CHINTIA NUR AZIZAH"},{"$f":"pengetahuan!DU22","v":""},{"$f":"pengetahuan!DV22","v":""},{"$f":"pengetahuan!DW22","v":""},{"$f":"pengetahuan!DX22","v":""},{"$f":"pengetahuan!DY22","v":""},{"$f":"pengetahuan!DZ22","v":""},{"$f":"pengetahuan!EA22","v":""},{"$f":"pengetahuan!EB22","v":""},{"$f":"pengetahuan!EC22","v":""},{"$f":"pengetahuan!ED22","v":""},{"$f":"pengetahuan!DL22","v":""},{"$f":"pengetahuan!DM22","v":0},{"$f":"pengetahuan!DN22","v":0},{"$f":"pengetahuan!DO22","v":0},{"$f":"keterampilan!DT22","v":""},{"$f":"keterampilan!DU22","v":""},{"$f":"keterampilan!DV22","v":""},{"$f":"keterampilan!DW22","v":""},{"$f":"keterampilan!DX22","v":""},{"$f":"keterampilan!DY22","v":""},{"$f":"keterampilan!DZ22","v":""},{"$f":"keterampilan!EA22","v":""},{"$f":"keterampilan!EB22","v":""},{"$f":"keterampilan!EC22","v":""},{"$f":"keterampilan!DL22","v":0},{"$f":"keterampilan!DN22","v":0}]
[null,7,{"$f":"dataumum!C15","v":"0095178395"},{"$f":"dataumum!D15","v":"DEDE AULIA"},{"$f":"pengetahuan!DU23","v":""},{"$f":"pengetahuan!DV23","v":""},{"$f":"pengetahuan!DW23","v":""},{"$f":"pengetahuan!DX23","v":""},{"$f":"pengetahuan!DY23","v":""},{"$f":"pengetahuan!DZ23","v":""},{"$f":"pengetahuan!EA23","v":""},{"$f":"pengetahuan!EB23","v":""},{"$f":"pengetahuan!EC23","v":""},{"$f":"pengetahuan!ED23","v":""},{"$f":"pengetahuan!DL23","v":""},{"$f":"pengetahuan!DM23","v":0},{"$f":"pengetahuan!DN23","v":0},{"$f":"pengetahuan!DO23","v":0},{"$f":"keterampilan!DT23","v":""},{"$f":"keterampilan!DU23","v":""},{"$f":"keterampilan!DV23","v":""},{"$f":"keterampilan!DW23","v":""},{"$f":"keterampilan!DX23","v":""},{"$f":"keterampilan!DY23","v":""},{"$f":"keterampilan!DZ23","v":""},{"$f":"keterampilan!EA23","v":""},{"$f":"keterampilan!EB23","v":""},{"$f":"keterampilan!EC23","v":""},{"$f":"keterampilan!DL23","v":0},{"$f":"keterampilan!DN23","v":0}]
[null,8,{"$f":"dataumum!C16","v":"0097071532"},{"$f":"dataumum!D16","v":"DIRLI PIRMANSAH REZA"},{"$f":"pengetahuan!DU24","v":""},{"$f":"pengetahuan!DV24","v":""},{"$f":"pengetahuan!DW24","v":""},{"$f":"pengetahuan!DX24","v":""},{"$f":"pengetahuan!DY24","v":""},{"$f":"pengetahuan!DZ24","v":""},{"$f":"pengetahuan!EA24","v":""},{"$f":"pengetahuan!EB24","v":""},{"$f":"pengetahuan!EC24","v":""},{"$f":"pengetahuan!ED24","v":""},{"$f":"pengetahuan!DL24","v":""},{"$f":"pengetahuan!DM24","v":0},{"$f":"pengetahuan!DN24","v":0},{"$f":"pengetahuan!DO24","v":0},{"$f":"keterampilan!DT24","v":""},{"$f":"keterampilan!DU24","v":""},{"$f":"keterampilan!DV24","v":""},{"$f":"keterampilan!DW24","v":""},{"$f":"keterampilan!DX24","v":""},{"$f":"keterampilan!DY24","v":""},{"$f":"keterampilan!DZ24","v":""},{"$f":"keterampilan!EA24","v":""},{"$f":"keterampilan!EB24","v":""},{"$f":"keterampilan!EC24","v":""},{"$f":"keterampilan!DL24","v":0},{"$f":"keterampilan!DN24","v":0}]
[null,9,{"$f":"dataumum!C17","v":"0085525399"},{"$f":"dataumum!D17","v":"EKSEL"},{"$f":"pengetahuan!DU25","v":""},{"$f":"pengetahuan!DV25","v":""},{"$f":"pengetahuan!DW25","v":""},{"$f":"pengetahuan!DX25","v":""},{"$f":"pengetahuan!DY25","v":""},{"$f":"pengetahuan!DZ25","v":""},{"$f":"pengetahuan!EA25","v":""},{"$f":"pengetahuan!EB25","v":""},{"$f":"pengetahuan!EC25","v":""},{"$f":"pengetahuan!ED25","v":""},{"$f":"pengetahuan!DL25","v":""},{"$f":"pengetahuan!DM25","v":0},{"$f":"pengetahuan!DN25","v":0},{"$f":"pengetahuan!DO25","v":0},{"$f":"keterampilan!DT25","v":""},{"$f":"keterampilan!DU25","v":""},{"$f":"keterampilan!DV25","v":""},{"$f":"keterampilan!DW25","v":""},{"$f":"keterampilan!DX25","v":""},{"$f":"keterampilan!DY25","v":""},{"$f":"keterampilan!DZ25","v":""},{"$f":"keterampilan!EA25","v":""},{"$f":"keterampilan!EB25","v":""},{"$f":"keterampilan!EC25","v":""},{"$f":"keterampilan!DL25","v":0},{"$f":"keterampilan!DN25","v":0}]
[null,10,{"$f":"dataumum!C18","v":"0099271082"},{"$f":"dataumum!D18","v":"FADLAN APANDI"},{"$f":"pengetahuan!DU26","v":""},{"$f":"pengetahuan!DV26","v":""},{"$f":"pengetahuan!DW26","v":""},{"$f":"pengetahuan!DX26","v":""},{"$f":"pengetahuan!DY26","v":""},{"$f":"pengetahuan!DZ26","v":""},{"$f":"pengetahuan!EA26","v":""},{"$f":"pengetahuan!EB26","v":""},{"$f":"pengetahuan!EC26","v":""},{"$f":"pengetahuan!ED26","v":""},{"$f":"pengetahuan!DL26","v":""},{"$f":"pengetahuan!DM26","v":0},{"$f":"pengetahuan!DN26","v":0},{"$f":"pengetahuan!DO26","v":0},{"$f":"keterampilan!DT26","v":""},{"$f":"keterampilan!DU26","v":""},{"$f":"keterampilan!DV26","v":""},{"$f":"keterampilan!DW26","v":""},{"$f":"keterampilan!DX26","v":""},{"$f":"keterampilan!DY26","v":""},{"$f":"keterampilan!DZ26","v":""},{"$f":"keterampilan!EA26","v":""},{"$f":"keterampilan!EB26","v":""},{"$f":"keterampilan!EC26","v":""},{"$f":"keterampilan!DL26","v":0},{"$f":"keterampilan!DN26","v":0}]
[null,11,{"$f":"dataumum!C19","v":"3109814391"},{"$f":"dataumum!D19","v":"HAYA MADIHATUL ISMAH"},{"$f":"pengetahuan!DU27","v":""},{"$f":"pengetahuan!DV27","v":""},{"$f":"pengetahuan!DW27","v":""},{"$f":"pengetahuan!DX27","v":""},{"$f":"pengetahuan!DY27","v":""},{"$f":"pengetahuan!DZ27","v":""},{"$f":"pengetahuan!EA27","v":""},{"$f":"pengetahuan!EB27","v":""},{"$f":"pengetahuan!EC27","v":""},{"$f":"pengetahuan!ED27","v":""},{"$f":"pengetahuan!DL27","v":""},{"$f":"pengetahuan!DM27","v":0},{"$f":"pengetahuan!DN27","v":0},{"$f":"pengetahuan!DO27","v":0},{"$f":"keterampilan!DT27","v":""},{"$f":"keterampilan!DU27","v":""},{"$f":"keterampilan!DV27","v":""},{"$f":"keterampilan!DW27","v":""},{"$f":"keterampilan!DX27","v":""},{"$f":"keterampilan!DY27","v":""},{"$f":"keterampilan!DZ27","v":""},{"$f":"keterampilan!EA27","v":""},{"$f":"keterampilan!EB27","v":""},{"$f":"keterampilan!EC27","v":""},{"$f":"keterampilan!DL27","v":0},{"$f":"keterampilan!DN27","v":0}]
[null,12,{"$f":"dataumum!C20","v":"3094762585"},{"$f":"dataumum!D20","v":"HIKAYATUL JABAL"},{"$f":"pengetahuan!DU28","v":""},{"$f":"pengetahuan!DV28","v":""},{"$f":"pengetahuan!DW28","v":""},{"$f":"pengetahuan!DX28","v":""},{"$f":"pengetahuan!DY28","v":""},{"$f":"pengetahuan!DZ28","v":""},{"$f":"pengetahuan!EA28","v":""},{"$f":"pengetahuan!EB28","v":""},{"$f":"pengetahuan!EC28","v":""},{"$f":"pengetahuan!ED28","v":""},{"$f":"pengetahuan!DL28","v":""},{"$f":"pengetahuan!DM28","v":0},{"$f":"pengetahuan!DN28","v":0},{"$f":"pengetahuan!DO28","v":0},{"$f":"keterampilan!DT28","v":""},{"$f":"keterampilan!DU28","v":""},{"$f":"keterampilan!DV28","v":""},{"$f":"keterampilan!DW28","v":""},{"$f":"keterampilan!DX28","v":""},{"$f":"keterampilan!DY28","v":""},{"$f":"keterampilan!DZ28","v":""},{"$f":"keterampilan!EA28","v":""},{"$f":"keterampilan!EB28","v":""},{"$f":"keterampilan!EC28","v":""},{"$f":"keterampilan!DL28","v":0},{"$f":"keterampilan!DN28","v":0}]
[null,13,{"$f":"dataumum!C21","v":"0105251526"},{"$f":"dataumum!D21","v":"IHSAN NURSALAM"},{"$f":"pengetahuan!DU29","v":""},{"$f":"pengetahuan!DV29","v":""},{"$f":"pengetahuan!DW29","v":""},{"$f":"pengetahuan!DX29","v":""},{"$f":"pengetahuan!DY29","v":""},{"$f":"pengetahuan!DZ29","v":""},{"$f":"pengetahuan!EA29","v":""},{"$f":"pengetahuan!EB29","v":""},{"$f":"pengetahuan!EC29","v":""},{"$f":"pengetahuan!ED29","v":""},{"$f":"pengetahuan!DL29","v":""},{"$f":"pengetahuan!DM29","v":0},{"$f":"pengetahuan!DN29","v":0},{"$f":"pengetahuan!DO29","v":0},{"$f":"keterampilan!DT29","v":""},{"$f":"keterampilan!DU29","v":""},{"$f":"keterampilan!DV29","v":""},{"$f":"keterampilan!DW29","v":""},{"$f":"keterampilan!DX29","v":""},{"$f":"keterampilan!DY29","v":""},{"$f":"keterampilan!DZ29","v":""},{"$f":"keterampilan!EA29","v":""},{"$f":"keterampilan!EB29","v":""},{"$f":"keterampilan!EC29","v":""},{"$f":"keterampilan!DL29","v":0},{"$f":"keterampilan!DN29","v":0}]
[null,14,{"$f":"dataumum!C22","v":"3095547483"},{"$f":"dataumum!D22","v":"IZAD NOOR JAMAN"},{"$f":"pengetahuan!DU30","v":""},{"$f":"pengetahuan!DV30","v":""},{"$f":"pengetahuan!DW30","v":""},{"$f":"pengetahuan!DX30","v":""},{"$f":"pengetahuan!DY30","v":""},{"$f":"pengetahuan!DZ30","v":""},{"$f":"pengetahuan!EA30","v":""},{"$f":"pengetahuan!EB30","v":""},{"$f":"pengetahuan!EC30","v":""},{"$f":"pengetahuan!ED30","v":""},{"$f":"pengetahuan!DL30","v":""},{"$f":"pengetahuan!DM30","v":0},{"$f":"pengetahuan!DN30","v":0},{"$f":"pengetahuan!DO30","v":0},{"$f":"keterampilan!DT30","v":""},{"$f":"keterampilan!DU30","v":""},{"$f":"keterampilan!DV30","v":""},{"$f":"keterampilan!DW30","v":""},{"$f":"keterampilan!DX30","v":""},{"$f":"keterampilan!DY30","v":""},{"$f":"keterampilan!DZ30","v":""},{"$f":"keterampilan!EA30","v":""},{"$f":"keterampilan!EB30","v":""},{"$f":"keterampilan!EC30","v":""},{"$f":"keterampilan!DL30","v":0},{"$f":"keterampilan!DN30","v":0}]
[null,15,{"$f":"dataumum!C23","v":"0093659815"},{"$f":"dataumum!D23","v":"JIHAN NURROHMAH SEPTIRA"},{"$f":"pengetahuan!DU31","v":""},{"$f":"pengetahuan!DV31","v":""},{"$f":"pengetahuan!DW31","v":""},{"$f":"pengetahuan!DX31","v":""},{"$f":"pengetahuan!DY31","v":""},{"$f":"pengetahuan!DZ31","v":""},{"$f":"pengetahuan!EA31","v":""},{"$f":"pengetahuan!EB31","v":""},{"$f":"pengetahuan!EC31","v":""},{"$f":"pengetahuan!ED31","v":""},{"$f":"pengetahuan!DL31","v":""},{"$f":"pengetahuan!DM31","v":0},{"$f":"pengetahuan!DN31","v":0},{"$f":"pengetahuan!DO31","v":0},{"$f":"keterampilan!DT31","v":""},{"$f":"keterampilan!DU31","v":""},{"$f":"keterampilan!DV31","v":""},{"$f":"keterampilan!DW31","v":""},{"$f":"keterampilan!DX31","v":""},{"$f":"keterampilan!DY31","v":""},{"$f":"keterampilan!DZ31","v":""},{"$f":"keterampilan!EA31","v":""},{"$f":"keterampilan!EB31","v":""},{"$f":"keterampilan!EC31","v":""},{"$f":"keterampilan!DL31","v":0},{"$f":"keterampilan!DN31","v":0}]
[null,16,{"$f":"dataumum!C24","v":"3090540244"},{"$f":"dataumum!D24","v":"KAKA SEPTIAN"},{"$f":"pengetahuan!DU32","v":""},{"$f":"pengetahuan!DV32","v":""},{"$f":"pengetahuan!DW32","v":""},{"$f":"pengetahuan!DX32","v":""},{"$f":"pengetahuan!DY32","v":""},{"$f":"pengetahuan!DZ32","v":""},{"$f":"pengetahuan!EA32","v":""},{"$f":"pengetahuan!EB32","v":""},{"$f":"pengetahuan!EC32","v":""},{"$f":"pengetahuan!ED32","v":""},{"$f":"pengetahuan!DL32","v":""},{"$f":"pengetahuan!DM32","v":0},{"$f":"pengetahuan!DN32","v":0},{"$f":"pengetahuan!DO32","v":0},{"$f":"keterampilan!DT32","v":""},{"$f":"keterampilan!DU32","v":""},{"$f":"keterampilan!DV32","v":""},{"$f":"keterampilan!DW32","v":""},{"$f":"keterampilan!DX32","v":""},{"$f":"keterampilan!DY32","v":""},{"$f":"keterampilan!DZ32","v":""},{"$f":"keterampilan!EA32","v":""},{"$f":"keterampilan!EB32","v":""},{"$f":"keterampilan!EC32","v":""},{"$f":"keterampilan!DL32","v":0},{"$f":"keterampilan!DN32","v":0}]
[null,17,{"$f":"dataumum!C25","v":"0088283383"},{"$f":"dataumum!D25","v":"LUTPI"},{"$f":"pengetahuan!DU33","v":""},{"$f":"pengetahuan!DV33","v":""},{"$f":"pengetahuan!DW33","v":""},{"$f":"pengetahuan!DX33","v":""},{"$f":"pengetahuan!DY33","v":""},{"$f":"pengetahuan!DZ33","v":""},{"$f":"pengetahuan!EA33","v":""},{"$f":"pengetahuan!EB33","v":""},{"$f":"pengetahuan!EC33","v":""},{"$f":"pengetahuan!ED33","v":""},{"$f":"pengetahuan!DL33","v":""},{"$f":"pengetahuan!DM33","v":0},{"$f":"pengetahuan!DN33","v":0},{"$f":"pengetahuan!DO33","v":0},{"$f":"keterampilan!DT33","v":""},{"$f":"keterampilan!DU33","v":""},{"$f":"keterampilan!DV33","v":""},{"$f":"keterampilan!DW33","v":""},{"$f":"keterampilan!DX33","v":""},{"$f":"keterampilan!DY33","v":""},{"$f":"keterampilan!DZ33","v":""},{"$f":"keterampilan!EA33","v":""},{"$f":"keterampilan!EB33","v":""},{"$f":"keterampilan!EC33","v":""},{"$f":"keterampilan!DL33","v":0},{"$f":"keterampilan!DN33","v":0}]
[null,18,{"$f":"dataumum!C26","v":"3096008382"},{"$f":"dataumum!D26","v":"M SUGIH MIWAHA"},{"$f":"pengetahuan!DU34","v":""},{"$f":"pengetahuan!DV34","v":""},{"$f":"pengetahuan!DW34","v":""},{"$f":"pengetahuan!DX34","v":""},{"$f":"pengetahuan!DY34","v":""},{"$f":"pengetahuan!DZ34","v":""},{"$f":"pengetahuan!EA34","v":""},{"$f":"pengetahuan!EB34","v":""},{"$f":"pengetahuan!EC34","v":""},{"$f":"pengetahuan!ED34","v":""},{"$f":"pengetahuan!DL34","v":""},{"$f":"pengetahuan!DM34","v":0},{"$f":"pengetahuan!DN34","v":0},{"$f":"pengetahuan!DO34","v":0},{"$f":"keterampilan!DT34","v":""},{"$f":"keterampilan!DU34","v":""},{"$f":"keterampilan!DV34","v":""},{"$f":"keterampilan!DW34","v":""},{"$f":"keterampilan!DX34","v":""},{"$f":"keterampilan!DY34","v":""},{"$f":"keterampilan!DZ34","v":""},{"$f":"keterampilan!EA34","v":""},{"$f":"keterampilan!EB34","v":""},{"$f":"keterampilan!EC34","v":""},{"$f":"keterampilan!DL34","v":0},{"$f":"keterampilan!DN34","v":0}]
[null,19,{"$f":"dataumum!C27","v":"0093656626"},{"$f":"dataumum!D27","v":"MUHLIS"},{"$f":"pengetahuan!DU35","v":""},{"$f":"pengetahuan!DV35","v":""},{"$f":"pengetahuan!DW35","v":""},{"$f":"pengetahuan!DX35","v":""},{"$f":"pengetahuan!DY35","v":""},{"$f":"pengetahuan!DZ35","v":""},{"$f":"pengetahuan!EA35","v":""},{"$f":"pengetahuan!EB35","v":""},{"$f":"pengetahuan!EC35","v":""},{"$f":"pengetahuan!ED35","v":""},{"$f":"pengetahuan!DL35","v":""},{"$f":"pengetahuan!DM35","v":0},{"$f":"pengetahuan!DN35","v":0},{"$f":"pengetahuan!DO35","v":0},{"$f":"keterampilan!DT35","v":""},{"$f":"keterampilan!DU35","v":""},{"$f":"keterampilan!DV35","v":""},{"$f":"keterampilan!DW35","v":""},{"$f":"keterampilan!DX35","v":""},{"$f":"keterampilan!DY35","v":""},{"$f":"keterampilan!DZ35","v":""},{"$f":"keterampilan!EA35","v":""},{"$f":"keterampilan!EB35","v":""},{"$f":"keterampilan!EC35","v":""},{"$f":"keterampilan!DL35","v":0},{"$f":"keterampilan!DN35","v":0}]
[null,20,{"$f":"dataumum!C28","v":"0097902846"},{"$f":"dataumum!D28","v":"NURAFIFAH FAUZIAH"},{"$f":"pengetahuan!DU36","v":""},{"$f":"pengetahuan!DV36","v":""},{"$f":"pengetahuan!DW36","v":""},{"$f":"pengetahuan!DX36","v":""},{"$f":"pengetahuan!DY36","v":""},{"$f":"pengetahuan!DZ36","v":""},{"$f":"pengetahuan!EA36","v":""},{"$f":"pengetahuan!EB36","v":""},{"$f":"pengetahuan!EC36","v":""},{"$f":"pengetahuan!ED36","v":""},{"$f":"pengetahuan!DL36","v":""},{"$f":"pengetahuan!DM36","v":0},{"$f":"pengetahuan!DN36","v":0},{"$f":"pengetahuan!DO36","v":0},{"$f":"keterampilan!DT36","v":""},{"$f":"keterampilan!DU36","v":""},{"$f":"keterampilan!DV36","v":""},{"$f":"keterampilan!DW36","v":""},{"$f":"keterampilan!DX36","v":""},{"$f":"keterampilan!DY36","v":""},{"$f":"keterampilan!DZ36","v":""},{"$f":"keterampilan!EA36","v":""},{"$f":"keterampilan!EB36","v":""},{"$f":"keterampilan!EC36","v":""},{"$f":"keterampilan!DL36","v":0},{"$f":"keterampilan!DN36","v":0}]
[null,21,{"$f":"dataumum!C29","v":"0088756415"},{"$f":"dataumum!D29","v":"REPAN"},{"$f":"pengetahuan!DU37","v":""},{"$f":"pengetahuan!DV37","v":""},{"$f":"pengetahuan!DW37","v":""},{"$f":"pengetahuan!DX37","v":""},{"$f":"pengetahuan!DY37","v":""},{"$f":"pengetahuan!DZ37","v":""},{"$f":"pengetahuan!EA37","v":""},{"$f":"pengetahuan!EB37","v":""},{"$f":"pengetahuan!EC37","v":""},{"$f":"pengetahuan!ED37","v":""},{"$f":"pengetahuan!DL37","v":""},{"$f":"pengetahuan!DM37","v":0},{"$f":"pengetahuan!DN37","v":0},{"$f":"pengetahuan!DO37","v":0},{"$f":"keterampilan!DT37","v":""},{"$f":"keterampilan!DU37","v":""},{"$f":"keterampilan!DV37","v":""},{"$f":"keterampilan!DW37","v":""},{"$f":"keterampilan!DX37","v":""},{"$f":"keterampilan!DY37","v":""},{"$f":"keterampilan!DZ37","v":""},{"$f":"keterampilan!EA37","v":""},{"$f":"keterampilan!EB37","v":""},{"$f":"keterampilan!EC37","v":""},{"$f":"keterampilan!DL37","v":0},{"$f":"keterampilan!DN37","v":0}]
[null,22,{"$f":"dataumum!C30","v":"0095868392"},{"$f":"dataumum!D30","v":"REZA NURUL WILDAN"},{"$f":"pengetahuan!DU38","v":""},{"$f":"pengetahuan!DV38","v":""},{"$f":"pengetahuan!DW38","v":""},{"$f":"pengetahuan!DX38","v":""},{"$f":"pengetahuan!DY38","v":""},{"$f":"pengetahuan!DZ38","v":""},{"$f":"pengetahuan!EA38","v":""},{"$f":"pengetahuan!EB38","v":""},{"$f":"pengetahuan!EC38","v":""},{"$f":"pengetahuan!ED38","v":""},{"$f":"pengetahuan!DL38","v":""},{"$f":"pengetahuan!DM38","v":0},{"$f":"pengetahuan!DN38","v":0},{"$f":"pengetahuan!DO38","v":0},{"$f":"keterampilan!DT38","v":""},{"$f":"keterampilan!DU38","v":""},{"$f":"keterampilan!DV38","v":""},{"$f":"keterampilan!DW38","v":""},{"$f":"keterampilan!DX38","v":""},{"$f":"keterampilan!DY38","v":""},{"$f":"keterampilan!DZ38","v":""},{"$f":"keterampilan!EA38","v":""},{"$f":"keterampilan!EB38","v":""},{"$f":"keterampilan!EC38","v":""},{"$f":"keterampilan!DL38","v":0},{"$f":"keterampilan!DN38","v":0}]
[null,23,{"$f":"dataumum!C31","v":"3095334952"},{"$f":"dataumum!D31","v":"SYIFA NURJANAH"},{"$f":"pengetahuan!DU39","v":""},{"$f":"pengetahuan!DV39","v":""},{"$f":"pengetahuan!DW39","v":""},{"$f":"pengetahuan!DX39","v":""},{"$f":"pengetahuan!DY39","v":""},{"$f":"pengetahuan!DZ39","v":""},{"$f":"pengetahuan!EA39","v":""},{"$f":"pengetahuan!EB39","v":""},{"$f":"pengetahuan!EC39","v":""},{"$f":"pengetahuan!ED39","v":""},{"$f":"pengetahuan!DL39","v":""},{"$f":"pengetahuan!DM39","v":0},{"$f":"pengetahuan!DN39","v":0},{"$f":"pengetahuan!DO39","v":0},{"$f":"keterampilan!DT39","v":""},{"$f":"keterampilan!DU39","v":""},{"$f":"keterampilan!DV39","v":""},{"$f":"keterampilan!DW39","v":""},{"$f":"keterampilan!DX39","v":""},{"$f":"keterampilan!DY39","v":""},{"$f":"keterampilan!DZ39","v":""},{"$f":"keterampilan!EA39","v":""},{"$f":"keterampilan!EB39","v":""},{"$f":"keterampilan!EC39","v":""},{"$f":"keterampilan!DL39","v":0},{"$f":"keterampilan!DN39","v":0}]
[null,24,{"$f":"dataumum!C32","v":"0093189091"},{"$f":"dataumum!D32","v":"WINDI PUJIA SAFITRI"},{"$f":"pengetahuan!DU40","v":""},{"$f":"pengetahuan!DV40","v":""},{"$f":"pengetahuan!DW40","v":""},{"$f":"pengetahuan!DX40","v":""},{"$f":"pengetahuan!DY40","v":""},{"$f":"pengetahuan!DZ40","v":""},{"$f":"pengetahuan!EA40","v":""},{"$f":"pengetahuan!EB40","v":""},{"$f":"pengetahuan!EC40","v":""},{"$f":"pengetahuan!ED40","v":""},{"$f":"pengetahuan!DL40","v":""},{"$f":"pengetahuan!DM40","v":0},{"$f":"pengetahuan!DN40","v":0},{"$f":"pengetahuan!DO40","v":0},{"$f":"keterampilan!DT40","v":""},{"$f":"keterampilan!DU40","v":""},{"$f":"keterampilan!DV40","v":""},{"$f":"keterampilan!DW40","v":""},{"$f":"keterampilan!DX40","v":""},{"$f":"keterampilan!DY40","v":""},{"$f":"keterampilan!DZ40","v":""},{"$f":"keterampilan!EA40","v":""},{"$f":"keterampilan!EB40","v":""},{"$f":"keterampilan!EC40","v":""},{"$f":"keterampilan!DL40","v":0},{"$f":"keterampilan!DN40","v":0}]
[null,25,{"$f":"dataumum!C33","v":"0096749734"},{"$f":"dataumum!D33","v":"WULAN RESPIANI"},{"$f":"pengetahuan!DU41","v":""},{"$f":"pengetahuan!DV41","v":""},{"$f":"pengetahuan!DW41","v":""},{"$f":"pengetahuan!DX41","v":""},{"$f":"pengetahuan!DY41","v":""},{"$f":"pengetahuan!DZ41","v":""},{"$f":"pengetahuan!EA41","v":""},{"$f":"pengetahuan!EB41","v":""},{"$f":"pengetahuan!EC41","v":""},{"$f":"pengetahuan!ED41","v":""},{"$f":"pengetahuan!DL41","v":""},{"$f":"pengetahuan!DM41","v":0},{"$f":"pengetahuan!DN41","v":0},{"$f":"pengetahuan!DO41","v":0},{"$f":"keterampilan!DT41","v":""},{"$f":"keterampilan!DU41","v":""},{"$f":"keterampilan!DV41","v":""},{"$f":"keterampilan!DW41","v":""},{"$f":"keterampilan!DX41","v":""},{"$f":"keterampilan!DY41","v":""},{"$f":"keterampilan!DZ41","v":""},{"$f":"keterampilan!EA41","v":""},{"$f":"keterampilan!EB41","v":""},{"$f":"keterampilan!EC41","v":""},{"$f":"keterampilan!DL41","v":0},{"$f":"keterampilan!DN41","v":0}]
[null,26,{"$f":"dataumum!C34","v":"0099314795"},{"$f":"dataumum!D34","v":"YESI DESTRIYANI"},{"$f":"pengetahuan!DU42","v":""},{"$f":"pengetahuan!DV42","v":""},{"$f":"pengetahuan!DW42","v":""},{"$f":"pengetahuan!DX42","v":""},{"$f":"pengetahuan!DY42","v":""},{"$f":"pengetahuan!DZ42","v":""},{"$f":"pengetahuan!EA42","v":""},{"$f":"pengetahuan!EB42","v":""},{"$f":"pengetahuan!EC42","v":""},{"$f":"pengetahuan!ED42","v":""},{"$f":"pengetahuan!DL42","v":""},{"$f":"pengetahuan!DM42","v":0},{"$f":"pengetahuan!DN42","v":0},{"$f":"pengetahuan!DO42","v":0},{"$f":"keterampilan!DT42","v":""},{"$f":"keterampilan!DU42","v":""},{"$f":"keterampilan!DV42","v":""},{"$f":"keterampilan!DW42","v":""},{"$f":"keterampilan!DX42","v":""},{"$f":"keterampilan!DY42","v":""},{"$f":"keterampilan!DZ42","v":""},{"$f":"keterampilan!EA42","v":""},{"$f":"keterampilan!EB42","v":""},{"$f":"keterampilan!EC42","v":""},{"$f":"keterampilan!DL42","v":0},{"$f":"keterampilan!DN42","v":0}]
[null,27,{"$f":"dataumum!C35","v":0},{"$f":"dataumum!D35","v":0},{"$f":"pengetahuan!DU43","v":""},{"$f":"pengetahuan!DV43","v":""},{"$f":"pengetahuan!DW43","v":""},{"$f":"pengetahuan!DX43","v":""},{"$f":"pengetahuan!DY43","v":""},{"$f":"pengetahuan!DZ43","v":""},{"$f":"pengetahuan!EA43","v":""},{"$f":"pengetahuan!EB43","v":""},{"$f":"pengetahuan!EC43","v":""},{"$f":"pengetahuan!ED43","v":""},{"$f":"pengetahuan!DL43","v":""},{"$f":"pengetahuan!DM43","v":0},{"$f":"pengetahuan!DN43","v":0},{"$f":"pengetahuan!DO43","v":0},{"$f":"keterampilan!DT43","v":""},{"$f":"keterampilan!DU43","v":""},{"$f":"keterampilan!DV43","v":""},{"$f":"keterampilan!DW43","v":""},{"$f":"keterampilan!DX43","v":""},{"$f":"keterampilan!DY43","v":""},{"$f":"keterampilan!DZ43","v":""},{"$f":"keterampilan!EA43","v":""},{"$f":"keterampilan!EB43","v":""},{"$f":"keterampilan!EC43","v":""},{"$f":"keterampilan!DL43","v":0},{"$f":"keterampilan!DN43","v":0}]
[null,28,{"$f":"dataumum!C36","v":0},{"$f":"dataumum!D36","v":0},{"$f":"pengetahuan!DU44","v":""},{"$f":"pengetahuan!DV44","v":""},{"$f":"pengetahuan!DW44","v":""},{"$f":"pengetahuan!DX44","v":""},{"$f":"pengetahuan!DY44","v":""},{"$f":"pengetahuan!DZ44","v":""},{"$f":"pengetahuan!EA44","v":""},{"$f":"pengetahuan!EB44","v":""},{"$f":"pengetahuan!EC44","v":""},{"$f":"pengetahuan!ED44","v":""},{"$f":"pengetahuan!DL44","v":""},{"$f":"pengetahuan!DM44","v":0},{"$f":"pengetahuan!DN44","v":0},{"$f":"pengetahuan!DO44","v":0},{"$f":"keterampilan!DT44","v":""},{"$f":"keterampilan!DU44","v":""},{"$f":"keterampilan!DV44","v":""},{"$f":"keterampilan!DW44","v":""},{"$f":"keterampilan!DX44","v":""},{"$f":"keterampilan!DY44","v":""},{"$f":"keterampilan!DZ44","v":""},{"$f":"keterampilan!EA44","v":""},{"$f":"keterampilan!EB44","v":""},{"$f":"keterampilan!EC44","v":""},{"$f":"keterampilan!DL44","v":0},{"$f":"keterampilan!DN44","v":0}]
[null,29,{"$f":"dataumum!C37","v":0},{"$f":"dataumum!D37","v":0},{"$f":"pengetahuan!DU45","v":""},{"$f":"pengetahuan!DV45","v":""},{"$f":"pengetahuan!DW45","v":""},{"$f":"pengetahuan!DX45","v":""},{"$f":"pengetahuan!DY45","v":""},{"$f":"pengetahuan!DZ45","v":""},{"$f":"pengetahuan!EA45","v":""},{"$f":"pengetahuan!EB45","v":""},{"$f":"pengetahuan!EC45","v":""},{"$f":"pengetahuan!ED45","v":""},{"$f":"pengetahuan!DL45","v":""},{"$f":"pengetahuan!DM45","v":0},{"$f":"pengetahuan!DN45","v":0},{"$f":"pengetahuan!DO45","v":0},{"$f":"keterampilan!DT45","v":""},{"$f":"keterampilan!DU45","v":""},{"$f":"keterampilan!DV45","v":""},{"$f":"keterampilan!DW45","v":""},{"$f":"keterampilan!DX45","v":""},{"$f":"keterampilan!DY45","v":""},{"$f":"keterampilan!DZ45","v":""},{"$f":"keterampilan!EA45","v":""},{"$f":"keterampilan!EB45","v":""},{"$f":"keterampilan!EC45","v":""},{"$f":"keterampilan!DL45","v":0},{"$f":"keterampilan!DN45","v":0}]
[null,30,{"$f":"dataumum!C38","v":0},{"$f":"dataumum!D38","v":0},{"$f":"pengetahuan!DU46","v":""},{"$f":"pengetahuan!DV46","v":""},{"$f":"pengetahuan!DW46","v":""},{"$f":"pengetahuan!DX46","v":""},{"$f":"pengetahuan!DY46","v":""},{"$f":"pengetahuan!DZ46","v":""},{"$f":"pengetahuan!EA46","v":""},{"$f":"pengetahuan!EB46","v":""},{"$f":"pengetahuan!EC46","v":""},{"$f":"pengetahuan!ED46","v":""},{"$f":"pengetahuan!DL46","v":""},{"$f":"pengetahuan!DM46","v":0},{"$f":"pengetahuan!DN46","v":0},{"$f":"pengetahuan!DO46","v":0},{"$f":"keterampilan!DT46","v":""},{"$f":"keterampilan!DU46","v":""},{"$f":"keterampilan!DV46","v":""},{"$f":"keterampilan!DW46","v":""},{"$f":"keterampilan!DX46","v":""},{"$f":"keterampilan!DY46","v":""},{"$f":"keterampilan!DZ46","v":""},{"$f":"keterampilan!EA46","v":""},{"$f":"keterampilan!EB46","v":""},{"$f":"keterampilan!EC46","v":""},{"$f":"keterampilan!DL46","v":0},{"$f":"keterampilan!DN46","v":0}]
[null,31,{"$f":"dataumum!C39","v":0},{"$f":"dataumum!D39","v":0},{"$f":"pengetahuan!DU47","v":""},{"$f":"pengetahuan!DV47","v":""},{"$f":"pengetahuan!DW47","v":""},{"$f":"pengetahuan!DX47","v":""},{"$f":"pengetahuan!DY47","v":""},{"$f":"pengetahuan!DZ47","v":""},{"$f":"pengetahuan!EA47","v":""},{"$f":"pengetahuan!EB47","v":""},{"$f":"pengetahuan!EC47","v":""},{"$f":"pengetahuan!ED47","v":""},{"$f":"pengetahuan!DL47","v":""},{"$f":"pengetahuan!DM47","v":0},{"$f":"pengetahuan!DN47","v":0},{"$f":"pengetahuan!DO47","v":0},{"$f":"keterampilan!DT47","v":""},{"$f":"keterampilan!DU47","v":""},{"$f":"keterampilan!DV47","v":""},{"$f":"keterampilan!DW47","v":""},{"$f":"keterampilan!DX47","v":""},{"$f":"keterampilan!DY47","v":""},{"$f":"keterampilan!DZ47","v":""},{"$f":"keterampilan!EA47","v":""},{"$f":"keterampilan!EB47","v":""},{"$f":"keterampilan!EC47","v":""},{"$f":"keterampilan!DL47","v":0},{"$f":"keterampilan!DN47","v":0}]
[null,32,{"$f":"dataumum!C40","v":0},{"$f":"dataumum!D40","v":0},{"$f":"pengetahuan!DU48","v":""},{"$f":"pengetahuan!DV48","v":""},{"$f":"pengetahuan!DW48","v":""},{"$f":"pengetahuan!DX48","v":""},{"$f":"pengetahuan!DY48","v":""},{"$f":"pengetahuan!DZ48","v":""},{"$f":"pengetahuan!EA48","v":""},{"$f":"pengetahuan!EB48","v":""},{"$f":"pengetahuan!EC48","v":""},{"$f":"pengetahuan!ED48","v":""},{"$f":"pengetahuan!DL48","v":""},{"$f":"pengetahuan!DM48","v":0},{"$f":"pengetahuan!DN48","v":0},{"$f":"pengetahuan!DO48","v":0},{"$f":"keterampilan!DT48","v":""},{"$f":"keterampilan!DU48","v":""},{"$f":"keterampilan!DV48","v":""},{"$f":"keterampilan!DW48","v":""},{"$f":"keterampilan!DX48","v":""},{"$f":"keterampilan!DY48","v":""},{"$f":"keterampilan!DZ48","v":""},{"$f":"keterampilan!EA48","v":""},{"$f":"keterampilan!EB48","v":""},{"$f":"keterampilan!EC48","v":""},{"$f":"keterampilan!DL48","v":0},{"$f":"keterampilan!DN48","v":0}]
[null,33,{"$f":"dataumum!C41","v":0},{"$f":"dataumum!D41","v":0},{"$f":"pengetahuan!DU49","v":""},{"$f":"pengetahuan!DV49","v":""},{"$f":"pengetahuan!DW49","v":""},{"$f":"pengetahuan!DX49","v":""},{"$f":"pengetahuan!DY49","v":""},{"$f":"pengetahuan!DZ49","v":""},{"$f":"pengetahuan!EA49","v":""},{"$f":"pengetahuan!EB49","v":""},{"$f":"pengetahuan!EC49","v":""},{"$f":"pengetahuan!ED49","v":""},{"$f":"pengetahuan!DL49","v":""},{"$f":"pengetahuan!DM49","v":0},{"$f":"pengetahuan!DN49","v":0},{"$f":"pengetahuan!DO49","v":0},{"$f":"keterampilan!DT49","v":""},{"$f":"keterampilan!DU49","v":""},{"$f":"keterampilan!DV49","v":""},{"$f":"keterampilan!DW49","v":""},{"$f":"keterampilan!DX49","v":""},{"$f":"keterampilan!DY49","v":""},{"$f":"keterampilan!DZ49","v":""},{"$f":"keterampilan!EA49","v":""},{"$f":"keterampilan!EB49","v":""},{"$f":"keterampilan!EC49","v":""},{"$f":"keterampilan!DL49","v":0},{"$f":"keterampilan!DN49","v":0}]
[null,34,{"$f":"dataumum!C42","v":0},{"$f":"dataumum!D42","v":0},{"$f":"pengetahuan!DU50","v":""},{"$f":"pengetahuan!DV50","v":""},{"$f":"pengetahuan!DW50","v":""},{"$f":"pengetahuan!DX50","v":""},{"$f":"pengetahuan!DY50","v":""},{"$f":"pengetahuan!DZ50","v":""},{"$f":"pengetahuan!EA50","v":""},{"$f":"pengetahuan!EB50","v":""},{"$f":"pengetahuan!EC50","v":""},{"$f":"pengetahuan!ED50","v":""},{"$f":"pengetahuan!DL50","v":""},{"$f":"pengetahuan!DM50","v":0},{"$f":"pengetahuan!DN50","v":0},{"$f":"pengetahuan!DO50","v":0},{"$f":"keterampilan!DT50","v":""},{"$f":"keterampilan!DU50","v":""},{"$f":"keterampilan!DV50","v":""},{"$f":"keterampilan!DW50","v":""},{"$f":"keterampilan!DX50","v":""},{"$f":"keterampilan!DY50","v":""},{"$f":"keterampilan!DZ50","v":""},{"$f":"keterampilan!EA50","v":""},{"$f":"keterampilan!EB50","v":""},{"$f":"keterampilan!EC50","v":""},{"$f":"keterampilan!DL50","v":0},{"$f":"keterampilan!DN50","v":0}]
[null,35,{"$f":"dataumum!C43","v":0},{"$f":"dataumum!D43","v":0},{"$f":"pengetahuan!DU51","v":""},{"$f":"pengetahuan!DV51","v":""},{"$f":"pengetahuan!DW51","v":""},{"$f":"pengetahuan!DX51","v":""},{"$f":"pengetahuan!DY51","v":""},{"$f":"pengetahuan!DZ51","v":""},{"$f":"pengetahuan!EA51","v":""},{"$f":"pengetahuan!EB51","v":""},{"$f":"pengetahuan!EC51","v":""},{"$f":"pengetahuan!ED51","v":""},{"$f":"pengetahuan!DL51","v":""},{"$f":"pengetahuan!DM51","v":0},{"$f":"pengetahuan!DN51","v":0},{"$f":"pengetahuan!DO51","v":0},{"$f":"keterampilan!DT51","v":""},{"$f":"keterampilan!DU51","v":""},{"$f":"keterampilan!DV51","v":""},{"$f":"keterampilan!DW51","v":""},{"$f":"keterampilan!DX51","v":""},{"$f":"keterampilan!DY51","v":""},{"$f":"keterampilan!DZ51","v":""},{"$f":"keterampilan!EA51","v":""},{"$f":"keterampilan!EB51","v":""},{"$f":"keterampilan!EC51","v":""},{"$f":"keterampilan!DL51","v":0},{"$f":"keterampilan!DN51","v":0}]
[null,36,{"$f":"dataumum!C44","v":0},{"$f":"dataumum!D44","v":0},{"$f":"pengetahuan!DU52","v":""},{"$f":"pengetahuan!DV52","v":""},{"$f":"pengetahuan!DW52","v":""},{"$f":"pengetahuan!DX52","v":""},{"$f":"pengetahuan!DY52","v":""},{"$f":"pengetahuan!DZ52","v":""},{"$f":"pengetahuan!EA52","v":""},{"$f":"pengetahuan!EB52","v":""},{"$f":"pengetahuan!EC52","v":""},{"$f":"pengetahuan!ED52","v":""},{"$f":"pengetahuan!DL52","v":""},{"$f":"pengetahuan!DM52","v":0},{"$f":"pengetahuan!DN52","v":0},{"$f":"pengetahuan!DO52","v":0},{"$f":"keterampilan!DT52","v":""},{"$f":"keterampilan!DU52","v":""},{"$f":"keterampilan!DV52","v":""},{"$f":"keterampilan!DW52","v":""},{"$f":"keterampilan!DX52","v":""},{"$f":"keterampilan!DY52","v":""},{"$f":"keterampilan!DZ52","v":""},{"$f":"keterampilan!EA52","v":""},{"$f":"keterampilan!EB52","v":""},{"$f":"keterampilan!EC52","v":""},{"$f":"keterampilan!DL52","v":0},{"$f":"keterampilan!DN52","v":0}]
[null,37,{"$f":"dataumum!C45","v":0},{"$f":"dataumum!D45","v":0},{"$f":"pengetahuan!DU53","v":""},{"$f":"pengetahuan!DV53","v":""},{"$f":"pengetahuan!DW53","v":""},{"$f":"pengetahuan!DX53","v":""},{"$f":"pengetahuan!DY53","v":""},{"$f":"pengetahuan!DZ53","v":""},{"$f":"pengetahuan!EA53","v":""},{"$f":"pengetahuan!EB53","v":""},{"$f":"pengetahuan!EC53","v":""},{"$f":"pengetahuan!ED53","v":""},{"$f":"pengetahuan!DL53","v":""},{"$f":"pengetahuan!DM53","v":0},{"$f":"pengetahuan!DN53","v":0},{"$f":"pengetahuan!DO53","v":0},{"$f":"keterampilan!DT53","v":""},{"$f":"keterampilan!DU53","v":""},{"$f":"keterampilan!DV53","v":""},{"$f":"keterampilan!DW53","v":""},{"$f":"keterampilan!DX53","v":""},{"$f":"keterampilan!DY53","v":""},{"$f":"keterampilan!DZ53","v":""},{"$f":"keterampilan!EA53","v":""},{"$f":"keterampilan!EB53","v":""},{"$f":"keterampilan!EC53","v":""},{"$f":"keterampilan!DL53","v":0},{"$f":"keterampilan!DN53","v":0}]
[null,38,{"$f":"dataumum!C46","v":0},{"$f":"dataumum!D46","v":0},{"$f":"pengetahuan!DU54","v":""},{"$f":"pengetahuan!DV54","v":""},{"$f":"pengetahuan!DW54","v":""},{"$f":"pengetahuan!DX54","v":""},{"$f":"pengetahuan!DY54","v":""},{"$f":"pengetahuan!DZ54","v":""},{"$f":"pengetahuan!EA54","v":""},{"$f":"pengetahuan!EB54","v":""},{"$f":"pengetahuan!EC54","v":""},{"$f":"pengetahuan!ED54","v":""},{"$f":"pengetahuan!DL54","v":""},{"$f":"pengetahuan!DM54","v":0},{"$f":"pengetahuan!DN54","v":0},{"$f":"pengetahuan!DO54","v":0},{"$f":"keterampilan!DT54","v":""},{"$f":"keterampilan!DU54","v":""},{"$f":"keterampilan!DV54","v":""},{"$f":"keterampilan!DW54","v":""},{"$f":"keterampilan!DX54","v":""},{"$f":"keterampilan!DY54","v":""},{"$f":"keterampilan!DZ54","v":""},{"$f":"keterampilan!EA54","v":""},{"$f":"keterampilan!EB54","v":""},{"$f":"keterampilan!EC54","v":""},{"$f":"keterampilan!DL54","v":0},{"$f":"keterampilan!DN54","v":0}]
[null,39,{"$f":"dataumum!C47","v":0},{"$f":"dataumum!D47","v":0},{"$f":"pengetahuan!DU55","v":""},{"$f":"pengetahuan!DV55","v":""},{"$f":"pengetahuan!DW55","v":""},{"$f":"pengetahuan!DX55","v":""},{"$f":"pengetahuan!DY55","v":""},{"$f":"pengetahuan!DZ55","v":""},{"$f":"pengetahuan!EA55","v":""},{"$f":"pengetahuan!EB55","v":""},{"$f":"pengetahuan!EC55","v":""},{"$f":"pengetahuan!ED55","v":""},{"$f":"pengetahuan!DL55","v":""},{"$f":"pengetahuan!DM55","v":0},{"$f":"pengetahuan!DN55","v":0},{"$f":"pengetahuan!DO55","v":0},{"$f":"keterampilan!DT55","v":""},{"$f":"keterampilan!DU55","v":""},{"$f":"keterampilan!DV55","v":""},{"$f":"keterampilan!DW55","v":""},{"$f":"keterampilan!DX55","v":""},{"$f":"keterampilan!DY55","v":""},{"$f":"keterampilan!DZ55","v":""},{"$f":"keterampilan!EA55","v":""},{"$f":"keterampilan!EB55","v":""},{"$f":"keterampilan!EC55","v":""},{"$f":"keterampilan!DL55","v":0},{"$f":"keterampilan!DN55","v":0}]
[null,40,{"$f":"dataumum!C48","v":0},{"$f":"dataumum!D48","v":0},{"$f":"pengetahuan!DU56","v":""},{"$f":"pengetahuan!DV56","v":""},{"$f":"pengetahuan!DW56","v":""},{"$f":"pengetahuan!DX56","v":""},{"$f":"pengetahuan!DY56","v":""},{"$f":"pengetahuan!DZ56","v":""},{"$f":"pengetahuan!EA56","v":""},{"$f":"pengetahuan!EB56","v":""},{"$f":"pengetahuan!EC56","v":""},{"$f":"pengetahuan!ED56","v":""},{"$f":"pengetahuan!DL56","v":""},{"$f":"pengetahuan!DM56","v":0},{"$f":"pengetahuan!DN56","v":0},{"$f":"pengetahuan!DO56","v":0},{"$f":"keterampilan!DT56","v":""},{"$f":"keterampilan!DU56","v":""},{"$f":"keterampilan!DV56","v":""},{"$f":"keterampilan!DW56","v":""},{"$f":"keterampilan!DX56","v":""},{"$f":"keterampilan!DY56","v":""},{"$f":"keterampilan!DZ56","v":""},{"$f":"keterampilan!EA56","v":""},{"$f":"keterampilan!EB56","v":""},{"$f":"keterampilan!EC56","v":""},{"$f":"keterampilan!DL56","v":0},{"$f":"keterampilan!DN56","v":0}]
[null,null,null,null,null,null,null,null,null,null,null,null,null,null,null,null,null,null,null,null,null,null,null,null,null,null,null,null,null,{"$f":"dataumum!G19","v":"X-D"}]
[null,null,null,"Mengetahui,",null,null,null,null,null,null,null,null,null,null,null,null,null,null,null,null,null,null,null,null,"Tasikmalaya,",null,{"$f":"TODAY()","v":"2026-01-07"}]
[null,null,null,"Kepala MAN 4 Tasikmalaya",null,null,null,null,null,null,null,null,null,null,null,null,null,null,null,null,null,null,null,null,{"$f":"CONCATENATE(\"Guru\",\" \",dataumum!G8)","v":"Guru Kimia"}]
[]
[]
[]
[null,null,null,"Enjang, S.Ag, M.Pd.I",null,null,null,null,null,null,null,null,null,null,null,null,null,null,null,null,null,null,null,null,{"$f":"dataumum!G6","v":"Arief Pribadi, S.Si"}]
[null,null,null,"NIP. 197406152005031006",null,null,null,null,null,null,null,null,null,null,null,null,null,null,null,null,null,null,null,null,{"$f":"CONCATENATE(\"NIP.\",\" \",dataumum!G7)","v":"NIP. 198603112020121005"}]

{"sheet":"rapor","index":21,"n_rows":43,"n_cols":19,"rows_kept":43,"cut":false,"hidden":true,"merged":[[1,7,2,7],[1,8,2,8],[1,9,1,10],[1,11,2,11],[1,12,2,12],[1,5,1,6],[1,1,2,1],[1,2,2,2],[1,3,2,3],[1,4,2,4]]}
[]
[null,"NO","NISN","NAMA SISWA","KELAS","NILAI PENGETAHUAN",null,"RATA-RATA","STATUS NILAI","NILAI KETERAMPILAN",null,"RATA-RATA","STATUS NILAI"]
[null,null,null,null,null,"S1","S2",null,null,"S1","S2"]
[null,1,{"$f":"dataumum!C9","v":"0095527100"},{"$f":"dataumum!D9","v":"AHMAD JAMIL MUNAWAR"},{"$f":"pengetahuan!#REF!","v":{"$error":"#REF!"}},{"$f":"pengetahuan!DN17","v":0},{"$f":"rekap!Q15","v":0},{"$f":"IFERROR(AVERAGE(F4:G4),0)","v":0},{"$f":"IF(R4<0,\"TURUN\",IF(R4=0,\"TETAP\",\"NAIK\"))","v":"TETAP"},{"$f":"pengetahuan!#REF!","v":{"$error":"#REF!"}},{"$f":"rekap!AC15","v":0},{"$f":"IFERROR(AVERAGE(J4:K4),0)","v":0},{"$f":"IF(S4<0,\"TURUN\",IF(V4=0,\"TETAP\",\"NAIK\"))","v":"TETAP"},null,null,null,null,{"$f":"G4-F4","v":0},{"$f":"IFERROR(K4-J4,0)","v":0}]
[null,2,{"$f":"dataumum!C10","v":"0108689880"},{"$f":"dataumum!D10","v":"AKBAR NUGRAHA"},{"$f":"pengetahuan!#REF!","v":{"$error":"#REF!"}},{"$f":"pengetahuan!DN18","v":0},{"$f":"rekap!Q16","v":0},{"$f":"IFERROR(AVERAGE(F5:G5),0)","v":0},{"$f":"IF(R5<0,\"TURUN\",IF(R5=0,\"TETAP\",\"NAIK\"))","v":"TETAP"},{"$f":"pengetahuan!#REF!","v":{"$error":"#REF!"}},{"$f":"rekap!AC16","v":0},{"$f":"IFERROR(AVERAGE(J5:K5),0)","v":0},{"$f":"IF(S5<0,\"TURUN\",IF(V5=0,\"TETAP\",\"NAIK\"))","v":"TETAP"},null,null,null,null,0,0]
[null,3,{"$f":"dataumum!C11","v":"0101457073"},{"$f":"dataumum!D11","v":"ALSA NAPILA ABALIA"},{"$f":"pengetahuan!#REF!","v":{"$error":"#REF!"}},{"$f":"pengetahuan!DN19","v":0},{"$f":"rekap!Q17","v":0},0,"TETAP",{"$f":"pengetahuan!#REF!","v":{"$error":"#REF!"}},{"$f":"rekap!AC17","v":0},0,"TETAP",null,null,null,null,0,0]
[null,4,{"$f":"dataumum!C12","v":"3098669460"},{"$f":"dataumum!D12","v":"ALWAN FAJRUL HAKIM"},{"$f":"pengetahuan!#REF!","v":{"$error":"#REF!"}},{"$f":"pengetahuan!DN20","v":0},{"$f":"rekap!Q18","v":0},0,"TETAP",{"$f":"pengetahuan!#REF!","v":{"$error":"#REF!"}},{"$f":"rekap!AC18","v":0},0,"TETAP",null,null,null,null,0,0]
[null,5,{"$f":"dataumum!C13","v":"0097476054"},{"$f":"dataumum!D13","v":"ANDIKA"},{"$f":"pengetahuan!#REF!","v":{"$error":"#REF!"}},{"$f":"pengetahuan!DN21","v":0},{"$f":"rekap!Q19","v":0},0,"TETAP",{"$f":"pengetahuan!#REF!","v":{"$error":"#REF!"}},{"$f":"rekap!AC19","v":0},0,"TETAP",null,null,null,null,0,0]
[null,6,{"$f":"dataumum!C14","v":"0107479079"},{"$f":"dataumum!D14","v":"CHINTIA NUR AZIZAH"},{"$f":"pengetahuan!#REF!","v":{"$error":"#REF!"}},{"$f":"pengetahuan!DN22","v":0},{"$f":"rekap!Q20","v":0},0,"TETAP",{"$f":"pengetahuan!#REF!","v":{"$error":"#REF!"}},{"$f":"rekap!AC20","v":0},0,"TETAP",null,null,null,null,0,0]
[null,7,{"$f":"dataumum!C15","v":"0095178395"},{"$f":"dataumum!D15","v":"DEDE AULIA"},{"$f":"pengetahuan!#REF!","v":{"$error":"#REF!"}},{"$f":"pengetahuan!DN23","v":0},{"$f":"rekap!Q21","v":0},0,"TETAP",{"$f":"pengetahuan!#REF!","v":{"$error":"#REF!"}},{"$f":"rekap!AC21","v":0},0,"TETAP",null,null,null,null,0,0]
[null,8,{"$f":"dataumum!C16","v":"0097071532"},{"$f":"dataumum!D16","v":"DIRLI PIRMANSAH REZA"},{"$f":"pengetahuan!#REF!","v":{"$error":"#REF!"}},{"$f":"pengetahuan!DN24","v":0},{"$f":"rekap!Q22","v":0},0,"TETAP",{"$f":"pengetahuan!#REF!","v":{"$error":"#REF!"}},{"$f":"rekap!AC22","v":0},0,"TETAP",null,null,null,null,0,0]
[null,9,{"$f":"dataumum!C17","v":"0085525399"},{"$f":"dataumum!D17","v":"EKSEL"},{"$f":"pengetahuan!#REF!","v":{"$error":"#REF!"}},{"$f":"pengetahuan!DN25","v":0},{"$f":"rekap!Q23","v":0},0,"TETAP",{"$f":"pengetahuan!#REF!","v":{"$error":"#REF!"}},{"$f":"rekap!AC23","v":0},0,"TETAP",null,null,null,null,0,0]
[null,10,{"$f":"dataumum!C18","v":"0099271082"},{"$f":"dataumum!D18","v":"FADLAN APANDI"},{"$f":"pengetahuan!#REF!","v":{"$error":"#REF!"}},{"$f":"pengetahuan!DN26","v":0},{"$f":"rekap!Q24","v":0},0,"TETAP",{"$f":"pengetahuan!#REF!","v":{"$error":"#REF!"}},{"$f":"rekap!AC24","v":0},0,"TETAP",null,null,null,null,0,0]
[null,11,{"$f":"dataumum!C19","v":"3109814391"},{"$f":"dataumum!D19","v":"HAYA MADIHATUL ISMAH"},{"$f":"pengetahuan!#REF!","v":{"$error":"#REF!"}},{"$f":"pengetahuan!DN27","v":0},{"$f":"rekap!Q25","v":0},0,"TETAP",{"$f":"pengetahuan!#REF!","v":{"$error":"#REF!"}},{"$f":"rekap!AC25","v":0},0,"TETAP",null,null,null,null,0,0]
[null,12,{"$f":"dataumum!C20","v":"3094762585"},{"$f":"dataumum!D20","v":"HIKAYATUL JABAL"},{"$f":"pengetahuan!#REF!","v":{"$error":"#REF!"}},{"$f":"pengetahuan!DN28","v":0},{"$f":"rekap!Q26","v":0},0,"TETAP",{"$f":"pengetahuan!#REF!","v":{"$error":"#REF!"}},{"$f":"rekap!AC26","v":0},0,"TETAP",null,null,null,null,0,0]
[null,13,{"$f":"dataumum!C21","v":"0105251526"},{"$f":"dataumum!D21","v":"IHSAN NURSALAM"},{"$f":"pengetahuan!#REF!","v":{"$error":"#REF!"}},{"$f":"pengetahuan!DN29","v":0},{"$f":"rekap!Q27","v":0},0,"TETAP",{"$f":"pengetahuan!#REF!","v":{"$error":"#REF!"}},{"$f":"rekap!AC27","v":0},0,"TETAP",null,null,null,null,0,0]
[null,14,{"$f":"dataumum!C22","v":"3095547483"},{"$f":"dataumum!D22","v":"IZAD NOOR JAMAN"},{"$f":"pengetahuan!#REF!","v":{"$error":"#REF!"}},{"$f":"pengetahuan!DN30","v":0},{"$f":"rekap!Q28","v":0},0,"TETAP",{"$f":"pengetahuan!#REF!","v":{"$error":"#REF!"}},{"$f":"rekap!AC28","v":0},0,"TETAP",null,null,null,null,0,0]
[null,15,{"$f":"dataumum!C23","v":"0093659815"},{"$f":"dataumum!D23","v":"JIHAN NURROHMAH SEPTIRA"},{"$f":"pengetahuan!#REF!","v":{"$error":"#REF!"}},{"$f":"pengetahuan!DN31","v":0},{"$f":"rekap!Q29","v":0},0,"TETAP",{"$f":"pengetahuan!#REF!","v":{"$error":"#REF!"}},{"$f":"rekap!AC29","v":0},0,"TETAP",null,null,null,null,0,0]
[null,16,{"$f":"dataumum!C24","v":"3090540244"},{"$f":"dataumum!D24","v":"KAKA SEPTIAN"},{"$f":"pengetahuan!#REF!","v":{"$error":"#REF!"}},{"$f":"pengetahuan!DN32","v":0},{"$f":"rekap!Q30","v":0},0,"TETAP",{"$f":"pengetahuan!#REF!","v":{"$error":"#REF!"}},{"$f":"rekap!AC30","v":0},0,"TETAP",null,null,null,null,0,0]
[null,17,{"$f":"dataumum!C25","v":"0088283383"},{"$f":"dataumum!D25","v":"LUTPI"},{"$f":"pengetahuan!#REF!","v":{"$error":"#REF!"}},{"$f":"pengetahuan!DN33","v":0},{"$f":"rekap!Q31","v":0},0,"TETAP",{"$f":"pengetahuan!#REF!","v":{"$error":"#REF!"}},{"$f":"rekap!AC31","v":0},0,"TETAP",null,null,null,null,0,0]
[null,18,{"$f":"dataumum!C26","v":"3096008382"},{"$f":"dataumum!D26","v":"M SUGIH MIWAHA"},{"$f":"pengetahuan!#REF!","v":{"$error":"#REF!"}},{"$f":"pengetahuan!DN34","v":0},{"$f":"rekap!Q32","v":0},0,"TETAP",{"$f":"pengetahuan!#REF!","v":{"$error":"#REF!"}},{"$f":"rekap!AC32","v":0},0,"TETAP",null,null,null,null,0,0]
[null,19,{"$f":"dataumum!C27","v":"0093656626"},{"$f":"dataumum!D27","v":"MUHLIS"},{"$f":"pengetahuan!#REF!","v":{"$error":"#REF!"}},{"$f":"pengetahuan!DN35","v":0},{"$f":"rekap!Q33","v":0},0,"TETAP",{"$f":"pengetahuan!#REF!","v":{"$error":"#REF!"}},{"$f":"rekap!AC33","v":0},0,"TETAP",null,null,null,null,0,0]
[null,20,{"$f":"dataumum!C28","v":"0097902846"},{"$f":"dataumum!D28","v":"NURAFIFAH FAUZIAH"},{"$f":"pengetahuan!#REF!","v":{"$error":"#REF!"}},{"$f":"pengetahuan!DN36","v":0},{"$f":"rekap!Q34","v":0},0,"TETAP",{"$f":"pengetahuan!#REF!","v":{"$error":"#REF!"}},{"$f":"rekap!AC34","v":0},0,"TETAP",null,null,null,null,0,0]
[null,21,{"$f":"dataumum!C29","v":"0088756415"},{"$f":"dataumum!D29","v":"REPAN"},{"$f":"pengetahuan!#REF!","v":{"$error":"#REF!"}},{"$f":"pengetahuan!DN37","v":0},{"$f":"rekap!Q35","v":0},{"$f":"IFERROR(AVERAGE(F24:G24),0)","v":0},{"$f":"IF(R24<0,\"TURUN\",IF(R24=0,\"TETAP\",\"NAIK\"))","v":"TETAP"},{"$f":"pengetahuan!#REF!","v":{"$error":"#REF!"}},{"$f":"rekap!AC35","v":0},{"$f":"IFERROR(AVERAGE(J24:K24),0)","v":0},{"$f":"IF(S24<0,\"TURUN\",IF(V24=0,\"TETAP\",\"NAIK\"))","v":"TETAP"}]
[null,22,{"$f":"dataumum!C30","v":"0095868392"},{"$f":"dataumum!D30","v":"REZA NURUL WILDAN"},{"$f":"pengetahuan!#REF!","v":{"$error":"#REF!"}},{"$f":"pengetahuan!DN38","v":0},{"$f":"rekap!Q36","v":0},{"$f":"IFERROR(AVERAGE(F25:G25),0)","v":0},{"$f":"IF(R25<0,\"TURUN\",IF(R25=0,\"TETAP\",\"NAIK\"))","v":"TETAP"},{"$f":"pengetahuan!#REF!","v":{"$error":"#REF!"}},{"$f":"rekap!AC36","v":0},{"$f":"IFERROR(AVERAGE(J25:K25),0)","v":0},{"$f":"IF(S25<0,\"TURUN\",IF(V25=0,\"TETAP\",\"NAIK\"))","v":"TETAP"}]
[null,23,{"$f":"dataumum!C31","v":"3095334952"},{"$f":"dataumum!D31","v":"SYIFA NURJANAH"},{"$f":"pengetahuan!#REF!","v":{"$error":"#REF!"}},{"$f":"pengetahuan!DN39","v":0},{"$f":"rekap!Q37","v":0},0,"TETAP",{"$f":"pengetahuan!#REF!","v":{"$error":"#REF!"}},{"$f":"rekap!AC37","v":0},0,"TETAP"]
[null,24,{"$f":"dataumum!C32","v":"0093189091"},{"$f":"dataumum!D32","v":"WINDI PUJIA SAFITRI"},{"$f":"pengetahuan!#REF!","v":{"$error":"#REF!"}},{"$f":"pengetahuan!DN40","v":0},{"$f":"rekap!Q38","v":0},0,"TETAP",{"$f":"pengetahuan!#REF!","v":{"$error":"#REF!"}},{"$f":"rekap!AC38","v":0},0,"TETAP"]
[null,25,{"$f":"dataumum!C33","v":"0096749734"},{"$f":"dataumum!D33","v":"WULAN RESPIANI"},{"$f":"pengetahuan!#REF!","v":{"$error":"#REF!"}},{"$f":"pengetahuan!DN41","v":0},{"$f":"rekap!Q39","v":0},0,"TETAP",{"$f":"pengetahuan!#REF!","v":{"$error":"#REF!"}},{"$f":"rekap!AC39","v":0},0,"TETAP"]
[null,26,{"$f":"dataumum!C34","v":"0099314795"},{"$f":"dataumum!D34","v":"YESI DESTRIYANI"},{"$f":"pengetahuan!#REF!","v":{"$error":"#REF!"}},{"$f":"pengetahuan!DN42","v":0},{"$f":"rekap!Q40","v":0},0,"TETAP",{"$f":"pengetahuan!#REF!","v":{"$error":"#REF!"}},{"$f":"rekap!AC40","v":0},0,"TETAP"]
[null,27,{"$f":"dataumum!C35","v":0},{"$f":"dataumum!D35","v":0},{"$f":"pengetahuan!#REF!","v":{"$error":"#REF!"}},{"$f":"pengetahuan!DN43","v":0},{"$f":"rekap!Q41","v":0},0,"TETAP",{"$f":"pengetahuan!#REF!","v":{"$error":"#REF!"}},{"$f":"rekap!AC41","v":0},0,"TETAP"]
[null,28,{"$f":"dataumum!C36","v":0},{"$f":"dataumum!D36","v":0},{"$f":"pengetahuan!#REF!","v":{"$error":"#REF!"}},{"$f":"pengetahuan!DN44","v":0},{"$f":"rekap!Q42","v":0},0,"TETAP",{"$f":"pengetahuan!#REF!","v":{"$error":"#REF!"}},{"$f":"rekap!AC42","v":0},0,"TETAP"]
[null,29,{"$f":"dataumum!C37","v":0},{"$f":"dataumum!D37","v":0},{"$f":"pengetahuan!#REF!","v":{"$error":"#REF!"}},{"$f":"pengetahuan!DN45","v":0},{"$f":"rekap!Q43","v":0},0,"TETAP",{"$f":"pengetahuan!#REF!","v":{"$error":"#REF!"}},{"$f":"rekap!AC43","v":0},0,"TETAP",null,null,null,null,{"$f":"G32-F32","v":0},{"$f":"IFERROR(K32-J32,0)","v":0}]
[null,30,{"$f":"dataumum!C38","v":0},{"$f":"dataumum!D38","v":0},{"$f":"pengetahuan!#REF!","v":{"$error":"#REF!"}},{"$f":"pengetahuan!DN46","v":0},{"$f":"rekap!Q44","v":0},0,"TETAP",{"$f":"pengetahuan!#REF!","v":{"$error":"#REF!"}},{"$f":"rekap!AC44","v":0},0,"TETAP",null,null,null,null,0,0]
[null,31,{"$f":"dataumum!C39","v":0},{"$f":"dataumum!D39","v":0},{"$f":"pengetahuan!#REF!","v":{"$error":"#REF!"}},{"$f":"pengetahuan!DN47","v":0},{"$f":"rekap!Q45","v":0},0,"TETAP",{"$f":"pengetahuan!#REF!","v":{"$error":"#REF!"}},{"$f":"rekap!AC45","v":0},0,"TETAP",null,null,null,null,0,0]
[null,32,{"$f":"dataumum!C40","v":0},{"$f":"dataumum!D40","v":0},{"$f":"pengetahuan!#REF!","v":{"$error":"#REF!"}},{"$f":"pengetahuan!DN48","v":0},{"$f":"rekap!Q46","v":0},0,"TETAP",{"$f":"pengetahuan!#REF!","v":{"$error":"#REF!"}},{"$f":"rekap!AC46","v":0},0,"TETAP",null,null,null,null,0,0]
[null,33,{"$f":"dataumum!C41","v":0},{"$f":"dataumum!D41","v":0},{"$f":"pengetahuan!#REF!","v":{"$error":"#REF!"}},{"$f":"pengetahuan!DN49","v":0},{"$f":"rekap!Q47","v":0},0,"TETAP",{"$f":"pengetahuan!#REF!","v":{"$error":"#REF!"}},{"$f":"rekap!AC47","v":0},0,"TETAP",null,null,null,null,0,0]
[null,34,{"$f":"dataumum!C42","v":0},{"$f":"dataumum!D42","v":0},{"$f":"pengetahuan!#REF!","v":{"$error":"#REF!"}},{"$f":"pengetahuan!DN50","v":0},{"$f":"rekap!Q48","v":0},0,"TETAP",{"$f":"pengetahuan!#REF!","v":{"$error":"#REF!"}},{"$f":"rekap!AC48","v":0},0,"TETAP",null,null,null,null,0,0]
[null,35,{"$f":"dataumum!C43","v":0},{"$f":"dataumum!D43","v":0},{"$f":"pengetahuan!#REF!","v":{"$error":"#REF!"}},{"$f":"pengetahuan!DN51","v":0},{"$f":"rekap!Q49","v":0},0,"TETAP",{"$f":"pengetahuan!#REF!","v":{"$error":"#REF!"}},{"$f":"rekap!AC49","v":0},0,"TETAP",null,null,null,null,0,0]
[null,36,{"$f":"dataumum!C44","v":0},{"$f":"dataumum!D44","v":0},{"$f":"pengetahuan!#REF!","v":{"$error":"#REF!"}},{"$f":"pengetahuan!DN52","v":0},{"$f":"rekap!Q50","v":0},0,"TETAP",{"$f":"pengetahuan!#REF!","v":{"$error":"#REF!"}},{"$f":"rekap!AC50","v":0},0,"TETAP",null,null,null,null,0,0]
[null,37,{"$f":"dataumum!C45","v":0},{"$f":"dataumum!D45","v":0},{"$f":"pengetahuan!#REF!","v":{"$error":"#REF!"}},{"$f":"pengetahuan!DN53","v":0},{"$f":"rekap!Q51","v":0},0,"TETAP",{"$f":"pengetahuan!#REF!","v":{"$error":"#REF!"}},{"$f":"rekap!AC51","v":0},0,"TETAP",null,null,null,null,0,0]
[null,38,{"$f":"dataumum!C46","v":0},{"$f":"dataumum!D46","v":0},{"$f":"pengetahuan!#REF!","v":{"$error":"#REF!"}},{"$f":"pengetahuan!DN54","v":0},{"$f":"rekap!Q52","v":0},0,"TETAP",{"$f":"pengetahuan!#REF!","v":{"$error":"#REF!"}},{"$f":"rekap!AC52","v":0},0,"TETAP",null,null,null,null,0,0]
[null,39,{"$f":"dataumum!C47","v":0},{"$f":"dataumum!D47","v":0},{"$f":"pengetahuan!#REF!","v":{"$error":"#REF!"}},{"$f":"pengetahuan!DN55","v":0},{"$f":"rekap!Q53","v":0},0,"TETAP",{"$f":"pengetahuan!#REF!","v":{"$error":"#REF!"}},{"$f":"rekap!AC53","v":0},0,"TETAP",null,null,null,null,0,0]
[null,40,{"$f":"dataumum!C48","v":0},{"$f":"dataumum!D48","v":0},{"$f":"pengetahuan!#REF!","v":{"$error":"#REF!"}},{"$f":"pengetahuan!DN56","v":0},{"$f":"rekap!Q54","v":0},0,"TETAP",{"$f":"pengetahuan!#REF!","v":{"$error":"#REF!"}},{"$f":"rekap!AC54","v":0},0,"TETAP",null,null,null,null,0,0]

{"sheet":"daftarhadir","index":22,"n_rows":56,"n_cols":34,"rows_kept":56,"cut":false,"hidden":true,"merged":[[4,1,4,2],[5,4,5,33],[5,3,6,3],[5,1,7,1],[5,2,7,2]]}
[null,"DAFTAR HADIR PESERTA DIDIK"]
[null,"MAN 4 TASIKMALAYA"]
[null,{"$f":"CONCATENATE(\"Tahun Pelajaran\",\" \",dataumum!G10)","v":"Tahun Pelajaran 2025/2026"}]
[]
[null,{"$f":"CONCATENATE(dataumum!F11,\" \",\":\",\" \",dataumum!G11)","v":"Kelas : X-D"},null,null,null,null,null,null,null,null,null,null,null,null,null,null,null,null,null,null,null,null,null,null,null,null,{"$f":"CONCATENATE(dataumum!F9,\" \",\":\",\" \",dataumum!G9)","v":"Semester : 2 (Genap)"}]
[null,"No","NISN","NAMA","Tanggal"]
[]
[null,null,null,"Pert. Ke-",1,2,3,4,5,6,7,8,9,10,11,12,13,14,15,16,17,18,19,20,21,22,23,24,25,26,27,28,29,30]
[null,1,{"$f":"dataumum!C9","v":"0095527100"},{"$f":"dataumum!D9","v":"AHMAD JAMIL MUNAWAR"}]
[null,2,{"$f":"dataumum!C10","v":"0108689880"},{"$f":"dataumum!D10","v":"AKBAR NUGRAHA"}]
[null,3,{"$f":"dataumum!C11","v":"0101457073"},{"$f":"dataumum!D11","v":"ALSA NAPILA ABALIA"}]
[null,4,{"$f":"dataumum!C12","v":"3098669460"},{"$f":"dataumum!D12","v":"ALWAN FAJRUL HAKIM"}]
[null,5,{"$f":"dataumum!C13","v":"0097476054"},{"$f":"dataumum!D13","v":"ANDIKA"}]
[null,6,{"$f":"dataumum!C14","v":"0107479079"},{"$f":"dataumum!D14","v":"CHINTIA NUR AZIZAH"}]
[null,7,{"$f":"dataumum!C15","v":"0095178395"},{"$f":"dataumum!D15","v":"DEDE AULIA"}]
[null,8,{"$f":"dataumum!C16","v":"0097071532"},{"$f":"dataumum!D16","v":"DIRLI PIRMANSAH REZA"}]
[null,9,{"$f":"dataumum!C17","v":"0085525399"},{"$f":"dataumum!D17","v":"EKSEL"}]
[null,10,{"$f":"dataumum!C18","v":"0099271082"},{"$f":"dataumum!D18","v":"FADLAN APANDI"}]
[null,11,{"$f":"dataumum!C19","v":"3109814391"},{"$f":"dataumum!D19","v":"HAYA MADIHATUL ISMAH"}]
[null,12,{"$f":"dataumum!C20","v":"3094762585"},{"$f":"dataumum!D20","v":"HIKAYATUL JABAL"}]
[null,13,{"$f":"dataumum!C21","v":"0105251526"},{"$f":"dataumum!D21","v":"IHSAN NURSALAM"}]
[null,14,{"$f":"dataumum!C22","v":"3095547483"},{"$f":"dataumum!D22","v":"IZAD NOOR JAMAN"}]
[null,15,{"$f":"dataumum!C23","v":"0093659815"},{"$f":"dataumum!D23","v":"JIHAN NURROHMAH SEPTIRA"}]
[null,16,{"$f":"dataumum!C24","v":"3090540244"},{"$f":"dataumum!D24","v":"KAKA SEPTIAN"}]
[null,17,{"$f":"dataumum!C25","v":"0088283383"},{"$f":"dataumum!D25","v":"LUTPI"}]
[null,18,{"$f":"dataumum!C26","v":"3096008382"},{"$f":"dataumum!D26","v":"M SUGIH MIWAHA"}]
[null,19,{"$f":"dataumum!C27","v":"0093656626"},{"$f":"dataumum!D27","v":"MUHLIS"}]
[null,20,{"$f":"dataumum!C28","v":"0097902846"},{"$f":"dataumum!D28","v":"NURAFIFAH FAUZIAH"}]
[null,21,{"$f":"dataumum!C29","v":"0088756415"},{"$f":"dataumum!D29","v":"REPAN"}]
[null,22,{"$f":"dataumum!C30","v":"0095868392"},{"$f":"dataumum!D30","v":"REZA NURUL WILDAN"}]
[null,23,{"$f":"dataumum!C31","v":"3095334952"},{"$f":"dataumum!D31","v":"SYIFA NURJANAH"}]
[null,24,{"$f":"dataumum!C32","v":"0093189091"},{"$f":"dataumum!D32","v":"WINDI PUJIA SAFITRI"}]
[null,25,{"$f":"dataumum!C33","v":"0096749734"},{"$f":"dataumum!D33","v":"WULAN RESPIANI"}]
[null,26,{"$f":"dataumum!C34","v":"0099314795"},{"$f":"dataumum!D34","v":"YESI DESTRIYANI"}]
[null,27,{"$f":"dataumum!C35","v":0},{"$f":"dataumum!D35","v":0}]
[null,28,{"$f":"dataumum!C36","v":0},{"$f":"dataumum!D36","v":0}]
[null,29,{"$f":"dataumum!C37","v":0},{"$f":"dataumum!D37","v":0}]
[null,30,{"$f":"dataumum!C38","v":0},{"$f":"dataumum!D38","v":0}]
[null,31,{"$f":"dataumum!C39","v":0},{"$f":"dataumum!D39","v":0}]
[null,32,{"$f":"dataumum!C40","v":0},{"$f":"dataumum!D40","v":0}]
[null,33,{"$f":"dataumum!C41","v":0},{"$f":"dataumum!D41","v":0}]
[null,34,{"$f":"dataumum!C42","v":0},{"$f":"dataumum!D42","v":0}]
[null,35,{"$f":"dataumum!C43","v":0},{"$f":"dataumum!D43","v":0}]
[null,36,{"$f":"dataumum!C44","v":0},{"$f":"dataumum!D44","v":0}]
[null,37,{"$f":"dataumum!C45","v":0},{"$f":"dataumum!D45","v":0}]
[null,38,{"$f":"dataumum!C46","v":0},{"$f":"dataumum!D46","v":0}]
[null,39,{"$f":"dataumum!C47","v":0},{"$f":"dataumum!D47","v":0}]
[null,40,{"$f":"dataumum!C48","v":0},{"$f":"dataumum!D48","v":0}]
[null,null,null,null,null,null,null,null,null,null,null,null,null,null,null,null,null,null,null,null,null,null,null,null,null,null,null,null,null,null,null,null,null,{"$f":"dataumum!G19","v":"X-D"}]
[null,null,null,"Mengetahui,",null,null,null,null,null,null,null,null,null,null,null,null,null,null,null,null,null,null,"Tasikmalaya, …....................... 2023"]
[null,null,null,"Kepala MAN 4 Tasikmalaya",null,null,null,null,null,null,null,null,null,null,null,null,null,null,null,null,null,null,"Guru Mata Pelajaran,"]
[]
[]
[]
[null,null,null,"Enjang, S.Ag, M.Pd.I",null,null,null,null,null,null,null,null,null,null,null,null,null,null,null,null,null,null,"_______________________________"]
[null,null,null,"NIP. 197406152005011006",null,null,null,null,null,null,null,null,null,null,null,null,null,null,null,null,null,null,"NIP. "]

{"sheet":"blankonilai","index":23,"n_rows":62,"n_cols":21,"rows_kept":62,"cut":false,"hidden":true,"merged":[[9,4,10,20],[12,3,12,10],[12,11,12,18],[12,1,13,1],[12,2,13,2],[12,20,13,20]]}
[null,"KEMENTERIAN AGAMA REPUBLIK INDONESIA"]
[null,"KANTOR KEMENTERIAN AGAMA KABUPATEN TASIKMALAYA"]
[null,"MADRASAH ALIYAH NEGERI 4 TASIKMALAYA"]
[null,"Jl. Sindanghurip Desa Cikalong Kec. Cikalong 46195"]
[null,"Website : www.mancikalong.sch.id e-mail : mancikalong@gmail.com"]
[]
[null,"DAFTAR NILAI PENGETAHUAN DAN KETERAMPILAN"]
[null,null,"MATA PELAJARAN",":",{"$f":"dataumum!G8","v":"Kimia"}]
[null,null,"KELAS / SEMESTER",":",{"$f":"CONCATENATE(dataumum!G11,\" \",\"/\",\" \",dataumum!G9)","v":"X-D / 2 (Genap)"}]
[null,null,"DESKRIPSI KD",":"]
[]
[]
[null,"NO","NAMA SISWA","PENILAIAN PENGETAHUAN/KD",null,null,null,null,null,null,null,"PENILAIAN KETERAMPILAN/KD",null,null,null,null,null,null,null,"NILAI","RATA-RATA"]
[null,null,null,1,2,3,4,5,6,7,8,1,2,3,4,5,6,7,8,"PAT"]
[null,{"$f":"daftarhadir!B9","v":1},{"$f":"daftarhadir!D9","v":"AHMAD JAMIL MUNAWAR"},1,1,1,1,1,1,1,1,1,1,1,1,1,1,1,1]
[null,{"$f":"daftarhadir!B10","v":2},{"$f":"daftarhadir!D10","v":"AKBAR NUGRAHA"},1,1,1,1,1,1,1,1,1,1,1,1,1,1,1,1]
[null,{"$f":"daftarhadir!B11","v":3},{"$f":"daftarhadir!D11","v":"ALSA NAPILA ABALIA"},1,1,1,1,1,1,1,1,1,1,1,1,1,1,1,1]
[null,{"$f":"daftarhadir!B12","v":4},{"$f":"daftarhadir!D12","v":"ALWAN FAJRUL HAKIM"},1,1,1,1,1,1,1,1,1,1,1,1,1,1,1,1]
[null,{"$f":"daftarhadir!B13","v":5},{"$f":"daftarhadir!D13","v":"ANDIKA"},1,1,1,1,1,1,1,1,1,1,1,1,1,1,1,1]
[null,{"$f":"daftarhadir!B14","v":6},{"$f":"daftarhadir!D14","v":"CHINTIA NUR AZIZAH"},1,1,1,1,1,1,1,1,1,1,1,1,1,1,1,1]
[null,{"$f":"daftarhadir!B15","v":7},{"$f":"daftarhadir!D15","v":"DEDE AULIA"},1,1,1,1,1,1,1,1,1,1,1,1,1,1,1,1]
[null,{"$f":"daftarhadir!B16","v":8},{"$f":"daftarhadir!D16","v":"DIRLI PIRMANSAH REZA"},1,1,1,1,1,1,1,1,1,1,1,1,1,1,1,1]
[null,{"$f":"daftarhadir!B17","v":9},{"$f":"daftarhadir!D17","v":"EKSEL"},1,1,1,1,1,1,1,1,1,1,1,1,1,1,1,1]
[null,{"$f":"daftarhadir!B18","v":10},{"$f":"daftarhadir!D18","v":"FADLAN APANDI"},1,1,1,1,1,1,1,1,1,1,1,1,1,1,1,1]
[null,{"$f":"daftarhadir!B19","v":11},{"$f":"daftarhadir!D19","v":"HAYA MADIHATUL ISMAH"},1,1,1,1,1,1,1,1,1,1,1,1,1,1,1,1]
[null,{"$f":"daftarhadir!B20","v":12},{"$f":"daftarhadir!D20","v":"HIKAYATUL JABAL"},1,1,1,1,1,1,1,1,1,1,1,1,1,1,1,1]
[null,{"$f":"daftarhadir!B21","v":13},{"$f":"daftarhadir!D21","v":"IHSAN NURSALAM"},1,1,1,1,1,1,1,1,1,1,1,1,1,1,1,1]
[null,{"$f":"daftarhadir!B22","v":14},{"$f":"daftarhadir!D22","v":"IZAD NOOR JAMAN"},1,1,1,1,1,1,1,1,1,1,1,1,1,1,1,1]
[null,{"$f":"daftarhadir!B23","v":15},{"$f":"daftarhadir!D23","v":"JIHAN NURROHMAH SEPTIRA"},1,1,1,1,1,1,1,1,1,1,1,1,1,1,1,1]
[null,{"$f":"daftarhadir!B24","v":16},{"$f":"daftarhadir!D24","v":"KAKA SEPTIAN"},1,1,1,1,1,1,1,1,1,1,1,1,1,1,1,1]
[null,{"$f":"daftarhadir!B25","v":17},{"$f":"daftarhadir!D25","v":"LUTPI"},1,1,1,1,1,1,1,1,1,1,1,1,1,1,1,1]
[null,{"$f":"daftarhadir!B26","v":18},{"$f":"daftarhadir!D26","v":"M SUGIH MIWAHA"},1,1,1,1,1,1,1,1,1,1,1,1,1,1,1,1]
[null,{"$f":"daftarhadir!B27","v":19},{"$f":"daftarhadir!D27","v":"MUHLIS"},1,1,1,1,1,1,1,1,1,1,1,1,1,1,1,1]
[null,{"$f":"daftarhadir!B28","v":20},{"$f":"daftarhadir!D28","v":"NURAFIFAH FAUZIAH"},1,1,1,1,1,1,1,1,1,1,1,1,1,1,1,1]
[null,{"$f":"daftarhadir!B29","v":21},{"$f":"daftarhadir!D29","v":"REPAN"},1,1,1,1,1,1,1,1,1,1,1,1,1,1,1,1]
[null,{"$f":"daftarhadir!B30","v":22},{"$f":"daftarhadir!D30","v":"REZA NURUL WILDAN"},1,1,1,1,1,1,1,1,1,1,1,1,1,1,1,1]
[null,{"$f":"daftarhadir!B31","v":23},{"$f":"daftarhadir!D31","v":"SYIFA NURJANAH"},1,1,1,1,1,1,1,1,1,1,1,1,1,1,1,1]
[null,{"$f":"daftarhadir!B32","v":24},{"$f":"daftarhadir!D32","v":"WINDI PUJIA SAFITRI"},1,1,1,1,1,1,1,1,1,1,1,1,1,1,1,1]
[null,{"$f":"daftarhadir!B33","v":25},{"$f":"daftarhadir!D33","v":"WULAN RESPIANI"},1,1,1,1,1,1,1,1,1,1,1,1,1,1,1,1]
[null,{"$f":"daftarhadir!B34","v":26},{"$f":"daftarhadir!D34","v":"YESI DESTRIYANI"},1,1,1,1,1,1,1,1,1,1,1,1,1,1,1,1]
[null,{"$f":"daftarhadir!B35","v":27},{"$f":"daftarhadir!D35","v":0},1,1,1,1,1,1,1,1,1,1,1,1,1,1,1,1]
[null,{"$f":"daftarhadir!B36","v":28},{"$f":"daftarhadir!D36","v":0},1,1,1,1,1,1,1,1,1,1,1,1,1,1,1,1]
[null,{"$f":"daftarhadir!B37","v":29},{"$f":"daftarhadir!D37","v":0},1,1,1,1,1,1,1,1,1,1,1,1,1,1,1,1]
[null,{"$f":"daftarhadir!B38","v":30},{"$f":"daftarhadir!D38","v":0},1,1,1,1,1,1,1,1,1,1,1,1,1,1,1,1]
[null,{"$f":"daftarhadir!B39","v":31},{"$f":"daftarhadir!D39","v":0},1,1,1,1,1,1,1,1,1,1,1,1,1,1,1,1]
[null,{"$f":"daftarhadir!B40","v":32},{"$f":"daftarhadir!D40","v":0},1,1,1,1,1,1,1,1,1,1,1,1,1,1,1,1]
[null,{"$f":"daftarhadir!B41","v":33},{"$f":"daftarhadir!D41","v":0},1,1,1,1,1,1,1,1,1,1,1,1,1,1,1,1]
[null,{"$f":"daftarhadir!B42","v":34},{"$f":"daftarhadir!D42","v":0},1,1,1,1,1,1,1,1,1,1,1,1,1,1,1,1]
[null,{"$f":"daftarhadir!B43","v":35},{"$f":"daftarhadir!D43","v":0},1,1,1,1,1,1,1,1,1,1,1,1,1,1,1,1]
[null,{"$f":"daftarhadir!B44","v":36},{"$f":"daftarhadir!D44","v":0},1,1,1,1,1,1,1,1,1,1,1,1,1,1,1,1]
[null,{"$f":"daftarhadir!B45","v":37},{"$f":"daftarhadir!D45","v":0},1,1,1,1,1,1,1,1,1,1,1,1,1,1,1,1]
[null,{"$f":"daftarhadir!B46","v":38},{"$f":"daftarhadir!D46","v":0},1,1,1,1,1,1,1,1,1,1,1,1,1,1,1,1]
[null,{"$f":"daftarhadir!B47","v":39},{"$f":"daftarhadir!D47","v":0},1,1,1,1,1,1,1,1,1,1,1,1,1,1,1,1]
[null,{"$f":"daftarhadir!B48","v":40},{"$f":"daftarhadir!D48","v":0},1,1,1,1,1,1,1,1,1,1,1,1,1,1,1,1]
[null,null,null,null,null,null,null,null,null,null,null,null,null,null,null,null,null,null,null,null,{"$f":"dataumum!G19","v":"X-D"}]
[null,null,{"$f":"daftarhadir!D50","v":"Mengetahui,"},null,null,null,null,null,null,null,null,null,null,null,null,{"$f":"daftarhadir!W50","v":"Tasikmalaya, …....................... 2023"}]
[null,null,{"$f":"daftarhadir!D51","v":"Kepala MAN 4 Tasikmalaya"},null,null,null,null,null,null,null,null,null,null,null,null,{"$f":"daftarhadir!W51","v":"Guru Mata Pelajaran,"}]
[]
[]
[]
[null,null,{"$f":"daftarhadir!D55","v":"Enjang, S.Ag, M.Pd.I"},null,null,null,null,null,null,null,null,null,null,null,null,{"$f":"daftarhadir!W55","v":"_______________________________"}]
[null,null,{"$f":"daftarhadir!D56","v":"NIP. 197406152005011006"},null,null,null,null,null,null,null,null,null,null,null,null,{"$f":"daftarhadir!W56","v":"NIP. "}]